Workbook

Sheet PRP Application Attachments (hidden)
B1: File Name | C1: Description | D1: Applicability | E1: Application Worksheet | F1: Comments
A2: 1 | B2: PRP Application | C2: PLP Excel application | D2: Required | E2: Application workbook
A3: 2 | B3: Const Letter #1, #2, etc | C3: Proof(s) of construction financing (letter of interest or commitment letter). HCD will review for acceptability. | D3: Required | E3: Project, Applicant, Threshold | F3: May have up to seven files
A4: 3 | B4: App1 Cert & Legal | C4: See Certifications & Legal worksheet. | D4: Not required from public agencies | E4: Project, Applicant, Threshold
A5: 4 | B5: App1 Resolution | C5: Signature required; see Applicant Documents worksheet. | D5: Required | E5: Project, Applicant, Threshold
A6: 5 | B6: App1 OrgDoc1, OrgDoc2, etc… | C6: See Applicant Documents worksheet. | D6: Not required from public agencies | E6: Project, Applicant, Threshold | F6: May be eight separate documents; based on entity type see 'Applicant Documents' worksheet for full list
A7: 6 | B7: App1 OrgChart | C7: See Applicant Documents worksheet. | D7: Not required from public agencies | E7: Project, Applicant, Threshold
A8: 7 | B8: App1 Signature Block | C8: See Applicant Documents worksheet. | D8: Required | E8: Project, Applicant, Threshold
A9: 8 | B9: App1 Payee Data Record | C9: See Applicant Documents worksheet. | D9: Required | E9: Project, Applicant, Threshold
A10: 9 | B10: App1 TIN | C10: See Applicant Documents worksheet (not applicable for non-governmental entities) | D10: Not required from non-public agencies | E10: Project, Applicant, Threshold
A11: 10 | B11: App1 Cert of Good Standing | C11: Dated 30 days or less from the application due date. | D11: Not required from public agencies | E11: Project, Applicant, Threshold
A12: 11 | B12: App1 Tax-Exempt Status | C12: If applicable, evidence of tax-exempt status from IRS and Franchise Tax Board for Corps | D12: Not required from public agencies and for profits | E12: Project, Applicant, Threshold
A13: 12 | B13: App2 Cert & Legal | C13: See Certifications & Legal worksheet. | D13: Not required if there is not an Applicant 2; Not required from public agencies | E13: Project, Applicant, Threshold
A14: 13 | B14: App2 Resolution | C14: Signature required; see Applicant Documents worksheet. | D14: Not required if there is not an Applicant 2; Required | E14: Project, Applicant, Threshold
A15: 14 | B15: App2 OrgDoc1, OrgDoc2, etc… | C15: See Applicant Documents worksheet. | D15: Not required if there is not an Applicant 2; Not required from public agencies | E15: Project, Applicant, Threshold | F15: May be eight separate documents; based on entity type see 'Applicant Documents' worksheet for full list
A16: 15 | B16: App2 OrgChart | C16: See Applicant Documents worksheet. | D16: Not required if there is not an Applicant 2; Not required from public agencies | E16: Project, Applicant, Threshold
A17: 16 | B17: App2 Signature Block | C17: See Applicant Documents worksheet. | D17: Not required if there is not an Applicant 2; Required | E17: Project, Applicant, Threshold
A18: 17 | B18: App2 Payee Data Record | C18: See Applicant Documents worksheet. | D18: Not required if there is not an Applicant 2; Required | E18: Project, Applicant, Threshold
A19: 18 | B19: App2 TIN | C19: See Applicant Documents worksheet (not applicable for non-governmental entities) | D19: Not required if there is not an Applicant 2; Not required from non-public agencies | E19: Project, Applicant, Threshold
A20: 19 | B20: App2 Cert of Good Standing | C20: Dated 30 days or less from the application due date. | D20: Not required if there is not an Applicant 2; Not required from public agencies | E20: Project, Applicant, Threshold
A21: 20 | B21: App2 Tax-Exempt Status | C21: If applicable, evidence of tax-exempt status from IRS and Franchise Tax Board for Corps | D21: Not required if there is not an Applicant 2; Not required from public agencies and for profits | E21: Project, Applicant, Threshold
A22: 21 | B22: Ownership approval | C22: If Applicant is not the current owner, attach HCD approval letter regarding Applicant's capacity to acquire the Project. | D22: Not always required, may be N/A | E22: Project, Applicant, Threshold
A23: 22 | B23: Preservation compliance | C23: Documentation showing the Project and proposed transaction complies with Preservation Notice Law requirements Gov. Code §65863.11 and/or13 | D23: Required | E23: Project, Applicant, Threshold
A24: 23 | B24: Staff Chart | C24: Staffing chart illustrating capacity | D24: Not required from public agencies | E24: Project, Applicant, Threshold
A25: 24 | B25: Site Control | C25: Proof of site control per UMR §8303 | D25: Required | E25: Project, Applicant, Threshold
A26: 25 | B26: PCA | C26: Prepared within 12 months of the application submittal date that documents all physical needs and all repairs required within five years of the Property Condition Assessment (PCA) date. HCD will assume a $500 per unit annual deposit to the Replacement Reserve unless a different amount is approved by HCD pursuant to UMR §8309(b)(2). | D26: Required | E26: Project, Applicant, Threshold
A27: 26 | B27: Scope of Work | C27: Attach a scope of work for the Project that includes the repairs required in the next five years as identified in the PNA. Include a general timeline for the repairs. | D27: Required | E27: Project, Applicant, Threshold
A28: 27 | B28: Borrower Cert & Legal | C28: See Certifications & Legal worksheet. | D28: Not required from public agencies | E28: Borrower and Dev Team Contacts
A29: 28 | B29: Borrower Resolution | C29: Signature required; see Applicant Documents worksheet. | D29: Required | E29: Borrower and Dev Team Contacts
A30: 29 | B30: Borrower OrgDoc1, OrgDoc2, etc… | C30: See Applicant Documents worksheet. | D30: Not required from public agencies | E30: Borrower and Dev Team Contacts | F30: May be eight separate documents; based on entity type see 'Applicant Documents' worksheet for full list
A31: 30 | B31: Borrower OrgChart | C31: See Applicant Documents worksheet. | D31: Not required from public agencies | E31: Borrower and Dev Team Contacts
A32: 31 | B32: Borrower Signature Block | C32: See Applicant Documents worksheet. | D32: Required | E32: Borrower and Dev Team Contacts
A33: 32 | B33: Borrower Payee Data Record | C33: See Applicant Documents worksheet. | D33: Required | E33: Borrower and Dev Team Contacts
A34: 33 | B34: Borrower TIN | C34: See Applicant Documents worksheet (not applicable for non-governmental entities) | D34: Not required from non-public agencies | E34: Borrower and Dev Team Contacts
A35: 34 | B35: Borrower Cert of Good Standing | C35: Dated 30 days or less from the application due date. | D35: Not required from public agencies | E35: Borrower and Dev Team Contacts
A36: 35 | B36: Borrower Tax-Exempt Status | C36: If applicable, evidence of tax-exempt status from IRS and Franchise Tax Board for Corps | D36: Not required from public agencies and for profits | E36: Borrower and Dev Team Contacts
A37: 36 | B37: Party 1 Cert & Legal | C37: See Certifications & Legal worksheet. | D37: Not required if there is not a Party 1; Not required from public agencies | E37: Borrower and Dev Team Contacts
A38: 37 | B38: Party 1 Resolution | C38: Signature required; see Applicant Documents worksheet. | D38: Not required if there is not a Party 1; Required | E38: Borrower and Dev Team Contacts
A39: 38 | B39: Party 1 OrgDoc1, OrgDoc2, etc | C39: See Applicant Documents worksheet. | D39: Not required if there is not a Party 1; Not required from public agencies | E39: Borrower and Dev Team Contacts | F39: May be eight separate documents; based on entity type see 'Applicant Documents' worksheet for full list
A40: 39 | B40: Party 1 OrgChart | C40: See Applicant Documents worksheet. | D40: Not required if there is not a Party 1; Not required from public agencies | E40: Borrower and Dev Team Contacts
A41: 40 | B41: Party 1 Signature Block | C41: See Applicant Documents worksheet. | D41: Not required if there is not a Party 1; Required | E41: Borrower and Dev Team Contacts
A42: 41 | B42: Party 1 Payee Data Record | C42: See Applicant Documents worksheet. | D42: Not required if there is not a Party 1; Required | E42: Borrower and Dev Team Contacts
A43: 42 | B43: Party 1 TIN | C43: See Applicant Documents worksheet (not applicable for non-governmental entities) | D43: Not required if there is not a Party 1; Not required from non-public agencies | E43: Borrower and Dev Team Contacts
A44: 43 | B44: Party 1 Cert of Good Standing | C44: Dated 30 days or less from the application due date. | D44: Not required if there is not a Party 1; Not required from public agencies | E44: Borrower and Dev Team Contacts
A45: 44 | B45: Party 1 Tax-Exempt Status | C45: If applicable, evidence of tax-exempt status from IRS and Franchise Tax Board for Corps | D45: Not required if there is not a Party 1; Not required from public agencies and for profits | E45: Borrower and Dev Team Contacts
A46: 45 | B46: Party 2 Cert & Legal | C46: See Certifications & Legal worksheet. | D46: Not required if there is not a Party 2; Not required from public agencies | E46: Borrower and Dev Team Contacts
A47: 46 | B47: Party 2 Resolution | C47: Signature required; see Applicant Documents worksheet. | D47: Not required if there is not a Party 2; Required | E47: Borrower and Dev Team Contacts
A48: 47 | B48: Party 2 OrgDoc1, OrgDoc2, etc | C48: See Applicant Documents worksheet. | D48: Not required if there is not a Party 2; Not required from public agencies | E48: Borrower and Dev Team Contacts | F48: May be eight separate documents; based on entity type see 'Applicant Documents' worksheet for full list
A49: 48 | B49: Party 2 OrgChart | C49: See Applicant Documents worksheet. | D49: Not required if there is not a Party 2; Not required from public agencies | E49: Borrower and Dev Team Contacts
A50: 49 | B50: Party 2 Signature Block | C50: See Applicant Documents worksheet. | D50: Not required if there is not a Party 2; Required | E50: Borrower and Dev Team Contacts
A51: 50 | B51: Party 2 Payee Data Record | C51: See Applicant Documents worksheet. | D51: Not required if there is not a Party 2; Required | E51: Borrower and Dev Team Contacts
A52: 51 | B52: Party 2 TIN | C52: See Applicant Documents worksheet (not applicable for non-governmental entities) | D52: Not required if there is not a Party 2; Not required from non-public agencies | E52: Borrower and Dev Team Contacts
A53: 52 | B53: Party 2 Cert of Good Standing | C53: Dated 30 days or less from the application due date. | D53: Not required if there is not a Party 2; Not required from public agencies | E53: Borrower and Dev Team Contacts
A54: 53 | B54: Party 2 Tax-Exempt Status | C54: If applicable, evidence of tax-exempt status from IRS and Franchise Tax Board for Corps | D54: Not required if there is not a Party 2; Not required from public agencies and for profits | E54: Borrower and Dev Team Contacts
A55: 54 | B55: Party 3 Cert & Legal | C55: See Certifications & Legal worksheet. | D55: Not required if there is not a Party 3; Not required from public agencies | E55: Borrower and Dev Team Contacts
A56: 55 | B56: Party 3 Resolution | C56: Signature required; see Applicant Documents worksheet. | D56: Not required if there is not a Party 3; Required | E56: Borrower and Dev Team Contacts
A57: 56 | B57: Party 3 OrgDoc1, OrgDoc2, etc | C57: See Applicant Documents worksheet. | D57: Not required if there is not a Party 3; Not required from public agencies | E57: Borrower and Dev Team Contacts | F57: May be eight separate documents; based on entity type see 'Applicant Documents' worksheet for full list
A58: 57 | B58: Party 3 OrgChart | C58: See Applicant Documents worksheet. | D58: Not required if there is not a Party 3; Not required from public agencies | E58: Borrower and Dev Team Contacts
A59: 58 | B59: Party 3 Signature Block | C59: See Applicant Documents worksheet. | D59: Not required if there is not a Party 3; Required | E59: Borrower and Dev Team Contacts
A60: 59 | B60: Party 3 Payee Data Record | C60: See Applicant Documents worksheet. | D60: Not required if there is not a Party 3; Required | E60: Borrower and Dev Team Contacts
A61: 60 | B61: Party 3 TIN | C61: See Applicant Documents worksheet (not applicable for non-governmental entities) | D61: Not required if there is not a Party 3; Not required from non-public agencies | E61: Borrower and Dev Team Contacts
A62: 61 | B62: Party 3 Cert of Good Standing | C62: Dated 30 days or less from the application due date. | D62: Not required if there is not a Party 3; Not required from public agencies | E62: Borrower and Dev Team Contacts
A63: 62 | B63: Party 3 Tax-Exempt Status | C63: If applicable, evidence of tax-exempt status from IRS and Franchise Tax Board for Corps | D63: Not required if there is not a Party 3; Not required from public agencies and for profits | E63: Borrower and Dev Team Contacts
A64: 63 | B64: Utilities | C64: Monthly Utility Allowance must attach utility allowance chart | D64: Required | E64: Assisted Units
A65: 64 | B65: Relocation Plan | C65: Submit a relocation plan including costs of relocation | D65: Only required if requesting this funding boost | E65: Max Rehab Loan
A66: 65 | B66: Elevator study | C66: Submit elevator repair or replacement study | D66: Only required if requesting this funding boost | E66: Max Rehab Loan
A67: 66 | B67: Seismic letter | C67: Submit seismic work description as described in a letter from an enforcement agency | D67: Only required if requesting this funding boost | E67: Max Rehab Loan
A68: 67 | B68: Structural work | C68: Submit structural work as described in a letter from an enforcement agency | D68: Only required if requesting this funding boost | E68: Max Rehab Loan
A69: 68 | B69: Environmental remediation | C69: Submit environmental work as specified in a letter from a third-party environmental company | D69: Only required if requesting this funding boost | E69: Max Rehab Loan
A70: 69 | B70: Accessibility work | C70: Submit an accessibility study from a Certified Access Specialist | D70: Only required if requesting this funding boost | E70: Max Rehab Loan
A71: 70 | B71: Cert & Legal Explanation | C71: Letter of explanation for any "Yes" answers or red shaded items above. | D71: Only required if Yes answers on Cert & Legal worksheet | E71: Certification & Legal

Sheet PRP Cover Page
A4: Portfolio Reinvestment Program (PRP)
A6: Notice of Funding Availability (NOFA) December 28, 2023
A9: Rev. | B9: 2024-02-07
A27: State of California
A28: Gavin Newsom, Governor
A30: Melinda Grant, Undersecretary
A31: Business, Consumer Services and Housing Agency
A33: Gustavo Velasquez, Director
A34: Department of Housing and Community Development (HCD)
A36: 2020 West El Camino Avenue, Suite 150
A37: Sacramento, CA 95833
A38: Phone: (916) 263-2771
A39: Email: PortfolioReinvestment@hcd.ca.gov
A40: Website: https://www.hcd.ca.gov/grants-and-funding/programs-active/portfolio-reinvestment-program
A41: Application Technical Support email:
A42: AppSupport@hcd.ca.gov

Sheet Mapping (hidden)
A1: App version date | B1: App submittal date | C1: Project name | D1: Project address | E1: Project city | F1: Project county | G1: County = non-metro MI | H1: Project zip | I1: Eligible set aside | J1: Requested set aside | K1: Eligible for Boost | L1: Proposed PRP Rehab | M1: Proposed PRP COSR | N1: Total Proposed | O1: Total Rehab costs | P1: PRP Admin Allowance | Q1: Total Units | R1: Total Assisted Units | S1: Total Non-Assisted Units | T1: Project address 2 | U1: Project city 2 | V1: Project county 2 | W1: Project zip 2 | X1: Project address 3 | Y1: Project city 3 | Z1: Project county 3 | AA1: Project zip 3 | AB1: Project address 4 | AC1: Project city 4 | AD1: Project county 4 | AE1: Project zip 4 | AF1: HCD (RA) # | AG1: Expiration date of RA | AH1: Second HCD RA # | AI1: Expiration date of RA | AJ1: Third HCD (RA) # | AK1: Expiration date of RA | AL1: Applicant | AM1: Organization Type | AN1: c. Profit basis | AO1: Authorized Rep | AP1: Auth Rep Title | AQ1: Auth Rep Phone | AR1: Contact Name | AS1: Contact Title | AT1: Contact Email | AU1: Contact Phone | AV1: Applicant 2 | AW1: Organization Type | AX1: c. Profit basis | AY1: Authorized Rep | AZ1: Auth Rep Title | BA1: Auth Rep Phone | BB1: Contact Name | BC1: Contact Title | BD1: Contact Email | BE1: Contact Phone | BF1: Borrower | BG1: Borrower Party 1 | BH1: Party 1 Title | BI1: Borrower Party 2 | BJ1: Party 2 Title | BK1: Property Manager | BL1: General Contractor | BM1: Consultant | BN1: Legal Counsel | BO1: Legal Counsel Contact | BP1: Legal Counsel phone | BQ1: §II(A)2 RA not terminated | BR1: 3a No Tax Credits | BS1: 3b Need for PRP | BT1: 3c Rehab fully funded | BU1: 3d 10 year prohibition | BV1: 4 Construction sources | BW1: 5 Rental Hsng Dev | BX1: 6 Not 2 or more sites | BY1: §II(B)(1)(b) JV app compliance | BZ1: d app current owner | CA1: e Capacity | CB1: f Other capacity | CC1: g Other reliance | CD1: h Tribal app | CE1: 2 Not in breach | CF1: 3 Site control | CG1: §II(D)1 Rehab w/i 180 days | CH1: Construction start date | CI1: Construction completion date | CJ1: Construction loan close date | CK1: 2 Comply with NOFA | CL1: 3 Complete app | CM1: 4a PCA | CN1: PCA date | CO1: 4b Scope shows PCA repairs | CP1: 5 Fiscal Integrity | CQ1: 6 Docs submitted | CR1: 7 Std Agreement | CS1: 8 Misrepresentation | CT1: Construction 1 | CU1: Amount | CV1: Construction 2 | CW1: Amount | CX1: Construction 3 | CY1: Amount | CZ1: Construction 4 | DA1: Amount | DB1: Construction 5 | DC1: Amount | DD1: Construction 6 | DE1: Amount | DF1: Construction 7 | DG1: Amount | DH1: Construction 8 | DI1: Amount | DJ1: Construction 9 | DK1: Amount | DL1: Perm 1 | DM1: Amount | DN1: Perm 2 | DO1: Amount | DP1: Perm 3 | DQ1: Amount | DR1: Perm 4 | DS1: Amount | DT1: Perm 5 | DU1: Amount | DV1: Perm 6 | DW1: Amount | DX1: Perm 7 | DY1: Amount | DZ1: Perm 8 | EA1: Amount | EB1: Perm 9 | EC1: Amount
A2: ='Project, Applicant, Threshold'!AK1 -> 2024-02-07 | B2: ='Project, Applicant, Threshold'!V18 -> 00:00:00 | C2: ='Project, Applicant, Threshold'!E38 -> 0 | D2: ='Project, Applicant, Threshold'!E40 -> 0 | E2: ='Project, Applicant, Threshold'!U40 -> 0 | F2: ='Project, Applicant, Threshold'!AD40 -> 0 | G2: ='Project, Applicant, Threshold'!AK4 ->  | H2: ='Project, Applicant, Threshold'!AI40 -> 0 | I2: ='Project, Applicant, Threshold'!V5 -> No qualifying set-aside | J2: ='Project, Applicant, Threshold'!V6 ->  | K2: ='Max Rehab Loan'!AI13 -> Yes | L2: ='Project, Applicant, Threshold'!V7 -> 0 | M2: ='Project, Applicant, Threshold'!V14 -> 0 | N2: ='Project, Applicant, Threshold'!V17 -> 0 | O2: ='Dev Sources'!J28 -> 0 | P2: ='PRP Developer Fee'!H3 -> 0 | Q2: ='Max Rehab Loan'!M7 -> 0 | R2: ='Max Rehab Loan'!Z7 -> 0 | S2: ='Non Assisted Units'!C10 -> 0 | T2: ='Project, Applicant, Threshold'!E42 -> 0 | U2: ='Project, Applicant, Threshold'!U42 -> 0 | V2: ='Project, Applicant, Threshold'!AD42 -> 0 | W2: ='Project, Applicant, Threshold'!AI42 -> 0 | X2: ='Project, Applicant, Threshold'!E43 -> 0 | Y2: ='Project, Applicant, Threshold'!U43 -> 0 | Z2: ='Project, Applicant, Threshold'!AD43 -> 0 | AA2: ='Project, Applicant, Threshold'!AI43 -> 0 | AB2: ='Project, Applicant, Threshold'!E44 -> 0 | AC2: ='Project, Applicant, Threshold'!U44 -> 0 | AD2: ='Project, Applicant, Threshold'!AD44 -> 0 | AE2: ='Project, Applicant, Threshold'!AI44 -> 0 | AF2: ='Project, Applicant, Threshold'!C21 -> 0 | AG2: ='Project, Applicant, Threshold'!J21 -> 00:00:00 | AH2: ='Project, Applicant, Threshold'!P21 -> 0 | AI2: ='Project, Applicant, Threshold'!W21 -> 00:00:00 | AJ2: ='Project, Applicant, Threshold'!AC21 -> 0 | AK2: ='Project, Applicant, Threshold'!AJ21 -> 00:00:00 | AL2: ='Project, Applicant, Threshold'!D47 -> 0 | AM2: ='Project, Applicant, Threshold'!AE47 -> 0 | AN2: ='Project, Applicant, Threshold'!AE78 -> 0 | AO2: ='Project, Applicant, Threshold'!D49 -> 0 | AP2: ='Project, Applicant, Threshold'!N49 -> 0 | AQ2: ='Project, Applicant, Threshold'!AI49 -> 0 | AR2: ='Project, Applicant, Threshold'!D50 -> 0 | AS2: ='Project, Applicant, Threshold'!N50 -> 0 | AT2: ='Project, Applicant, Threshold'!X50 -> 0 | AU2: ='Project, Applicant, Threshold'!AI50 -> 0 | AV2: ='Project, Applicant, Threshold'!D62 -> 0 | AW2: ='Project, Applicant, Threshold'!AE62 -> 0 | AX2: ='Project, Applicant, Threshold'!AE79 -> 0 | AY2: ='Project, Applicant, Threshold'!D64 -> 0 | AZ2: ='Project, Applicant, Threshold'!N64 -> 0 | BA2: ='Project, Applicant, Threshold'!AI64 -> 0 | BB2: ='Project, Applicant, Threshold'!D65 -> 0 | BC2: ='Project, Applicant, Threshold'!N65 -> 0 | BD2: ='Project, Applicant, Threshold'!X65 -> 0 | BE2: ='Project, Applicant, Threshold'!AI65 -> 0 | BF2: ='Borrower and Dev Team Contacts'!D4 -> 0 | BG2: ='Borrower and Dev Team Contacts'!D20 -> 0 | BH2: ='Borrower and Dev Team Contacts'!H19 -> 0 | BI2: ='Borrower and Dev Team Contacts'!D36 -> 0 | BJ2: ='Borrower and Dev Team Contacts'!H35 -> 0 | BK2: ='Borrower and Dev Team Contacts'!D67 -> 0 | BL2: ='Borrower and Dev Team Contacts'!D79 -> 0 | BM2: ='Borrower and Dev Team Contacts'!D70 -> 0 | BN2: ='Borrower and Dev Team Contacts'!D76 -> 0 | BO2: ='Borrower and Dev Team Contacts'!S76 -> 0 | BP2: ='Borrower and Dev Team Contacts'!C77 -> 0 | BQ2: ='Project, Applicant, Threshold'!V27 -> 0 | BR2: ='Project, Applicant, Threshold'!AK29 -> 0 | BS2: ='Project, Applicant, Threshold'!AK30 -> 0 | BT2: ='Project, Applicant, Threshold'!#REF! ->  | BU2: ='Project, Applicant, Threshold'!#REF! ->  | BV2: ='Project, Applicant, Threshold'!AK31 -> 0 | BW2: ='Project, Applicant, Threshold'!AK35 -> 0 | BX2: ='Project, Applicant, Threshold'!AK37 -> 0 | BY2: ='Project, Applicant, Threshold'!AK77 -> 0 | BZ2: ='Project, Applicant, Threshold'!AK80 -> 0 | CA2: ='Project, Applicant, Threshold'!AK88 -> 0 | CB2: ='Project, Applicant, Threshold'!AK89 -> 0 | CC2: ='Project, Applicant, Threshold'!AK91 -> 0 | CD2: ='Project, Applicant, Threshold'!AK97 -> 0 | CE2: ='Project, Applicant, Threshold'!AK97 -> 0 | CF2: ='Project, Applicant, Threshold'!AK99 -> 0 | CG2: ='Project, Applicant, Threshold'!S103 -> 0 | CH2: ='Project, Applicant, Threshold'!AA103 -> 00:00:00 | CI2: ='Project, Applicant, Threshold'!AJ103 -> 00:00:00 | CJ2: ='COSR Calculation'!J2 -> 2028-12-31 | CK2: ='Project, Applicant, Threshold'!AK104 -> 0 | CL2: ='Project, Applicant, Threshold'!AK107 -> 0 | CM2: ='Project, Applicant, Threshold'!AA108 -> 0 | CN2: ='Project, Applicant, Threshold'!AJ108 -> 00:00:00 | CO2: ='Project, Applicant, Threshold'!AK109 -> 0 | CP2: ='Project, Applicant, Threshold'!AK112 -> 0 | CQ2: ='Project, Applicant, Threshold'!AK114 -> 0 | CR2: ='Project, Applicant, Threshold'!AK115 -> 0 | CS2: ='Project, Applicant, Threshold'!AK116 -> 0 | CT2: ='Dev Sources'!C5 -> 0 | CU2: ='Dev Sources'!J5 -> 0 | CV2: ='Dev Sources'!C6 -> 0 | CW2: ='Dev Sources'!J6 -> 0 | CX2: ='Dev Sources'!C7 -> 0 | CY2: ='Dev Sources'!J7 -> 0 | CZ2: ='Dev Sources'!C8 -> 0 | DA2: ='Dev Sources'!J8 -> 0 | DB2: ='Dev Sources'!C9 -> 0 | DC2: ='Dev Sources'!J9 -> 0 | DD2: ='Dev Sources'!C10 -> 0 | DE2: ='Dev Sources'!J10 -> 0 | DF2: ='Dev Sources'!C11 -> 0 | DG2: ='Dev Sources'!J11 -> 0 | DH2: ='Dev Sources'!C12 -> 0 | DI2: ='Dev Sources'!J12 -> 0 | DJ2: ='Dev Sources'!C13 -> Deferred costs (detail at right) | DK2: ='Dev Sources'!J13 -> 0 | DL2: ='Dev Sources'!C19 -> HCD PRP Rehab Loan | DM2: ='Dev Sources'!J19 -> 0 | DN2: ='Dev Sources'!C20 -> Residential Source Name: | DO2: ='Dev Sources'!J20 -> 0 | DP2: ='Dev Sources'!C21 -> Residential Source Name: | DQ2: ='Dev Sources'!J21 -> 0 | DR2: ='Dev Sources'!C22 -> Residential Source Name: | DS2: ='Dev Sources'!J22 -> 0 | DT2: ='Dev Sources'!C23 -> Residential Source Name: | DU2: ='Dev Sources'!J23 -> 0 | DV2: ='Dev Sources'!C24 -> Private mortgage financing | DW2: ='Dev Sources'!J24 -> 0 | DX2: ='Dev Sources'!C25 -> Deferred costs | DY2: ='Dev Sources'!J25 -> 0 | DZ2: ='Dev Sources'!C26 -> Commercial Source Name: | EA2: ='Dev Sources'!J26 -> 0 | EB2: ='Dev Sources'!C27 -> Commercial Source Name: | EC2: ='Dev Sources'!J27 -> 0

Sheet Project, Applicant, Threshold
A1: Project, Applicant, and Threshold | AK1: ='PRP Cover Page'!B9 -> 2024-02-07
A2: Instructions: Provide answers to application questions and requirements within all yellow shaded cells beginning with this worksheet. After completing this worksheet, proceed to the worksheets from left to right and fill in those yellow shaded cells. Please do not copy and paste data from an external file into this application. Cell comments (red triangles in upper right portion of the cell) have been added to clarify red shading and inputs. Please contact PRP staff at portfolioreinvestment@hcd.ca.gov for red shaded cell questions or concerns. Orange shaded cells indicate documentation that must be submitted with your application. If you have issues, comments or questions regarding the application, please note them on the last worksheet "App Customer Service" and email your application to: AppSupport@hcd.ca.gov.
A3: Project Summary (application must be fully completed for this summary section to properly populate)
A4: Is Project in a county where the 100% AMI for four persons is less than or equal to the 2023 statewide non-metro median income of $83,800? NOFA §II(E)(1)(c) | AK4: =IF(AD40="","",IF('Assisted Units'!AA2<='Assisted Units'!AA1,"Yes","No")) -> 
A5: 1 | B5: Funding set-aside Applicant is eligible for (from "Max Rehab Loan" worksheet cell J9) | V5: ='Max Rehab Loan'!J9 -> No qualifying set-aside
A6: 2 | B6: Funding set-aside Applicant is applying for (from "Max Rehab Loan" worksheet cell AG9) | V6: =IF('Max Rehab Loan'!AG9="","",'Max Rehab Loan'!AG9) -> 
A7: PRP Rehab Loan Summary - proposed amount (lesser of max and requested) | V7: ='Max Rehab Loan'!AI3 -> 0 | Z7: from "Max Rehab Loan" worksheet cell AI3
A8: 3 | B8: Max rehab loan §II(G) | V8: ='Max Rehab Loan'!G10 -> 25000000
A9: 4 | B9: Max rehab loan based on $250,000 per Assisted unit | V9: ='Max Rehab Loan'!R10 -> 0 | Z9: from "Max Rehab Loan" worksheet cell Q10
A10: 5 | B10: Max base rehab loan amount - lesser of 3 or 4 above | V10: =MIN(V8,V9) -> 0
A11: 6 | B11: Max rehab loan Boost amount | V11: ='Max Rehab Loan'!AI14 -> 0 | Z11: from "Max Rehab Loan" worksheet cell AI14
A12: 7 | B12: Max rehab loan (base plus Boost; not exceeding NOFA limit) - 5 plus 6 | V12: =V10+V11 -> 0
A13: 8 | B13: Rehab requested loan amount | V13: ='Max Rehab Loan'!X3 -> 0 | Z13: from "Max Rehab Loan" worksheet cell X3
A14: PRP COSR Funding Summary - proposed amount (lesser of max and requested) | V14: =MIN(V15,V16) -> 0
A15: 9 | B15: Max COSR amount §II(F) including UMR §8308 Operating Reserve deposit | V15: =MIN('COSR Calculation'!I11,'COSR Calculation'!I12+'COSR Calculation'!F62) -> 0 | Z15: from "COSR Calculation" worksheet I11 vs. I12 plus F62
A16: 10 | B16: COSR requested amount including UMR §8308 Operating Reserve deposit | V16: ='COSR Calculation'!I13+'COSR Calculation'!F62 -> 0 | Z16: from "COSR Calculation" worksheet cells I13 plus F62
A17: 11 | B17: Total proposed PRP Project funding (lesser of max and requested amounts) | V17: =V7+V14 -> 0 | Z17: Assisted units (new) | AF17: ='Assisted Units'!A279 -> 0 | AH17: Total units | AK17: ='Assisted Units'!A279+'Non Assisted Units'!C10 -> 0
A18: Enter the date that your PRP Application is submitted to HCD:
A19: Eligible Project NOFA §II(A): must currently have an Original HCD Loan recorded on the property that is not paid off and meet all the following requirements:
A20: 1a. Have all HCD Project Regulatory Agreement(s) (RA) expired or will they expire on or before 12/31/33? If Yes, enter the HCD Project RA #(s) below (the Project RA # contains the funding program acronym, for example 99-RHCP-9999). If Project was funded by an HCD Legacy Program, foreclosed on by HCD or another public lender, or obtained an HLCP or LPR loan extension only - select "N/A".
A21: HCD (RA) # | G21: Expiration date of RA | M21: Second HCD RA # | T21: Expiration date of RA 2 | Z21: Third HCD RA # | AG21: Expiration date of RA 3 | AM21: 2033-12-31
A22: 1b. If the Project has received HCD funding that imposed rent and income restrictions, has the Project been foreclosed on by HCD or another public lender?
A23: 1c. Has the Project obtained only a loan extension but not been awarded substantial rehabilitation funding under HCD's Loan Portfolio Restructuring (LPR)? | AA23: If Yes, enter the LPR contract #
A24: 1d. Has the Project obtained only a loan extension but not been awarded substantial rehabilitation funding under HCD's Housing Loan Conversion Program (HLCP)? | AA24: If Yes, enter the HLCP contract #
A25: 1e. Is the Project an HCD Legacy Program Project, as defined, which has not been awarded funding for substantial rehabilitation in the past 15 years?
A26: 2. The Project has not previously received a PRP award? | X26: If No, enter award date
A27: 3. Applicant acknowledges and agrees that at least one RA has not been terminated by HCD? | X27: If Yes, enter non-terminated RA#
A28: 4. Applicant has not submitted more than two applications for this PRP NOFA (not including small project set-aside applications)?
A29: 5a. The 'Dev Sources' budget worksheet within this application clearly supports the need for the PRP loan?
A30: 5b. The 'Dev Sources' budget fully funds the rehabilitation costs identified in the Property Condition Assessment (PCA) for the first five years of the PCA term?
A31: 6a. Applicant has full Project construction period rehabilitation financing as evidenced by a letter(s) of interest or commitment letter(s)?
A32: File Name | D32: Const Letter #1, #2, etc | L32: Proof(s) of construction financing (letter of interest or commitment letter). HCD will review for acceptability. | AF32: Uploaded to HCD?
A33: 6b. Applicant certifies it has sufficient financial capacity to fund all required predevelopment expenses prior to construction close?
A34: File Name | D34: Predevelop Letter | L34: Proof of predevelopment funding. HCD will review for acceptability. | AF34: Uploaded to HCD?
A35: 7. Project will comply with the definition of Rental Housing Development as defined in Health and Safety Code §50675.2 including having 5 or more units?
A36: 8. Project certifies it is not a group home?
A37: 9. Project will not comprise two or more sites unless the Original HCD Loan is already secured on each of those sites?
A38: Project name
A39: If the Project was formerly known under another name(s), provide name(s)
A40: Project address | S40: City | AB40: County | AH40: Zip
A41: If Project has multiple sites, provide addresses for the additional sites
A42: Project address | S42: City | AB42: County | AH42: Zip
A43: Project address | S43: City | AB43: County | AH43: Zip
A44: Project address | S44: City | AB44: County | AH44: Zip
A45: Eligible Sponsor (Applicant) NOFA §II(B)(1)(a)
A46: Applicant #1 (1)(a)
A47: Entity name | AA47: Organization type | AM47: =IF(E47="","",E47) ->  | AO47: Individual Sole Proprietorship
A48: Address | V48: City | AC48: State | AH48: Zip | AM48: =IF(D62="","",D62) ->  | AO48: General Partnership
A49: Auth Rep | M49: Title | V49: Email | AG49: Phone | AO49: Limited Partnership
A50: Contact | M50: Title | V50: Email | AG50: Phone | AO50: Trust
A51: Address | V51: City | AC51: State | AH51: Zip | AO51: Non-profit Corporation
A52: File Name | D52: App1 Cert & Legal | L52: See Certifications & Legal worksheet. | AF52: Uploaded to HCD? | AO52: Non-profit Public Benefit Corporation
A53: File Name | D53: App1 Resolution | L53: Signature required; see Applicant Documents worksheet. | AF53: Uploaded to HCD? | AO53: For-profit Corporation
A54: File Name | D54: App1 OrgDoc1, OrgDoc2, etc… | L54: See Applicant Documents worksheet. | AF54: Uploaded to HCD? | AO54: Limited Liability Company
A55: File Name | D55: App1 OrgChart | L55: See Applicant Documents worksheet. | AF55: Uploaded to HCD? | AO55: Public Agency
A56: File Name | D56: App1 Signature Block | L56: See Applicant Documents worksheet. | AF56: Uploaded to HCD? | AO56: Tribal Entity
A57: File Name | D57: App1 Payee Data Record | L57: See Applicant Documents worksheet. | AF57: Uploaded to HCD?
A58: File Name | D58: App1 TIN | L58: See Applicant Documents worksheet (not applicable for non-governmental entities) | AF58: Uploaded to HCD?
A59: File Name | D59: App1 Cert of Good Standing | L59: Dated 30 days or less from the application submittal date. | AF59: Uploaded to HCD?
A60: File Name | D60: App1 Tax-Exempt Status | L60: If applicable, evidence of tax-exempt status from IRS and Franchise Tax Board for Corps | AF60: Uploaded to HCD?
A61: Applicant #2 (1)(a)
A62: Entity name | AA62: Organization type
A63: Address | V63: City | AC63: State | AH63: Zip
A64: Auth Rep | M64: Title | V64: Email | AG64: Phone
A65: Contact | M65: Title | V65: Email | AG65: Phone
A66: Address | V66: City | AC66: State | AH66: Zip
A67: File Name | D67: App2 Cert & Legal | L67: See Certifications & Legal worksheet. | AF67: Uploaded to HCD?
A68: File Name | D68: App2 Resolution | L68: Signature required; see Applicant Documents worksheet. | AF68: Uploaded to HCD?
A69: File Name | D69: App2 OrgDoc1, OrgDoc2, etc… | L69: See Applicant Documents worksheet. | AF69: Uploaded to HCD?
A70: File Name | D70: App2 OrgChart | L70: See Applicant Documents worksheet. | AF70: Uploaded to HCD?
A71: File Name | D71: App2 Signature Block | L71: See Applicant Documents worksheet. | AF71: Uploaded to HCD?
A72: File Name | D72: App2 Payee Data Record | L72: See Applicant Documents worksheet. | AF72: Uploaded to HCD?
A73: File Name | D73: App2 TIN | L73: See Applicant Documents worksheet (not applicable for non-governmental entities) | AF73: Uploaded to HCD?
A74: File Name | D74: App2 Cert of Good Standing | L74: Dated 30 days or less from the application submittal date. | AF74: Uploaded to HCD?
A75: File Name | D75: App2 Tax-Exempt Status | L75: If applicable, evidence of tax-exempt status from IRS and Franchise Tax Board for Corps | AF75: Uploaded to HCD?
A77: 1b. Applicant acknowledges if it is a Joint Venture and qualifies as an eligible Sponsor under this section based on the experience of only one joint venture partner, that partner must have a controlling interest in the Joint Venture and a substantial and continued role in the Project’s ongoing operations, as evidenced in the documents governing the Joint Venture?
A78: 1c. On what profit basis is Applicant #1 above organized?
A79: 1c. On what profit basis is Applicant #2 above organized?
A80: 1d. Is the Applicant the current owner of the Project?
A81: If Applicant(s) is not the current owner of the Project, the current owner has requested HCD approval of a change of ownership no less than 30 days prior to submittal of its application, and HCD has issued a formal approval of the change of ownership prior to submittal of the application. In addition, Applicant has site control in compliance with UMR §8303? If Applicant is not the current owner and has not complied with this subsection, explain below. §II(B)(3)
A83: File Name | D83: Ownership Change Approval Letter | L83: If Applicant is not the current owner, upload HCD approval letter regarding Applicant's acquisition of the Project. | AF83: Uploaded to HCD?
A84: File Name | D84: Ownership Change Capacity | L84: If Applicant is not the current owner, upload document describing Applicant's capacity to acquire the Project including experience, financial resources, an office, payroll pursuant to NOFA §II(B)(1)(d). | AF84: Uploaded to HCD?
A85: Are there any anticipated changes to the Applicant(s) existing organizational structures? If Yes, submit the proposed organizational chart(s); updated organizational documents must be submitted prior to Standard Agreement.
A86: File Name | D86: App1 Propsed Org Chart | L86: See Applicant Documents worksheet. | AF86: Uploaded to HCD?
A87: File Name | D87: App2 Propsed Org Chart | L87: See Applicant Documents worksheet. | AF87: Uploaded to HCD?
A88: 1e. Applicant(s) certifies their capacity to rehabilitate, own, and manage the Project?
A89: 1f. Is Applicant an entity (not an individual) relying on the capacity of a parent organization, specific employee, or other entity having control of the Applicant? If Yes, identify the parent organization, specific employee, or other entity having control of the Applicant below.
A91: 1g. Is Applicant an entity (not an individual) relying on the experience of its principal to meet eligibility requirements? If Yes, indicate principal's experience below.
A92: Affordable rental housing project name and address | N92: Name, title and phone number of principal who provides the ownership and development experience | AG92: Latest date owned | AJ92: Latest date developed
A95: 1h. If Applicant is a Tribal Entity, does the Tribal Entity have a fully executed contract at time of application submission that will be in effect at least until permanent loan closing with an experienced developer who will not be a general partner to meet the requirements of this section? If Yes, must upload executed contract.
A96: File Name | D96: Tribal Contract | L96: Executed contract with an experienced developer | AF96: Uploaded to HCD?
A97: 2. Applicant(s) and borrower certify that they are not in breach or default of the Original HCD Loan nor under any other HCD programs, except for the maturity of an unpaid loan? NOFA §II(B)(2)
A98: File Name | D98: Existing HCD Projects | L98: Separate document must include all HCD funded projects controlled by this application's Sponsors/Applicants that are currently monitored by HCD. Must include Project name, full Project address, and HCD Contract #. | AF98: Uploaded to HCD?
A99: 3. Does Applicant have site control in compliance with UMR §8303?
A100: File Name | D100: Prelim Report | L100: Preliminary Title Report (pdf) that has hyperlinks to the underlying documents; dated within 60 days of application submittal | AF100: Uploaded to HCD?
A101: File Name | D101: Site Control | L101: Proof of site control per UMR §8303, if site control is not fee title. | AF101: Uploaded to HCD?
A102: Threshold NOFA §II(D)
A103: 1. Applicant will commence rehabilitation as required to comply with this section and the construction loan closing deadline in §II(G)(6)(a)? | U103: Estimated construction start (loan close) date | AD103: Estimated construction completion date
A104: 2a. Applicant will comply and to the best of its knowledge is in compliance with all the requirements specified in this NOFA?
A105: 2b. Applicant will comply with CEQA requirements for the proposed project?
A106: 2c. Applicant will comply with prevailing wage requirements for the proposed project?
A107: 3. Applicant has submitted a complete HCD PRP application by the application deadline, used unaltered application forms, included all required attachments, and adhered to application submittal protocols?
A108: 4a. Applicant has a third-party PCA prepared within 12 months prior to the application submittal date that documents all physical needs and all repairs required within five years of the PCA date? | AC108: If Yes, enter the date PCA was prepared
A109: 4b. Applicant acknowledges all PCA identified required repairs within five years are included in the rehabilitation scope of work submitted with the application?
A110: File Name | D110: PCA | L110: Prepared within 12 months of the application submittal date that documents all physical needs and all repairs required within five years of the PCA date. HCD will assume a $500 per unit annual deposit to the Replacement Reserve unless a different amount is approved by HCD pursuant to UMR §8309(b)(2). PCA must include the total residential and commercial square feet, number of elevators, and number of parking spaces. | AF110: Uploaded to HCD?
A111: File Name | D111: Scope and Costs | L111: Attach a scope of work including construction cost estimate prepared by a General Contractor for the Project that includes the repairs required in the next five years as identified in the PCA. Include a general timeline for the repairs. | AF111: Uploaded to HCD?
A112: 5. Application demonstrates Fiscal Integrity per MHP Guideline §7301(j) by the 10th year after the date of recordation of the PRP Rehabilitation loan? MHP §7301(j) "total operating income plus funds released pursuant to the regulatory agreement from the operating reserve account is sufficient to: (1) pay all current operating expenses; (2) pay all current debt service (excluding deferred interest); (3) fully fund all reserve accounts (other than the operating reserve account) established pursuant to the Regulatory Agreement; and (4) pay other extraordinary costs permitted by the Regulatory Agreement."
A113: 6. Application demonstrates compliance with the Debt Service Coverage Ratio as stated in UMR §8310(e)(2)?
A114: 7. Each Applicant has submitted their organizational documents and all amendments thereto (excluding governmental entities) with the application. Each Applicant has also submitted an authorizing resolution that materially comports with the PRP requirements and is legally sufficient?
A115: 8. Applicant acknowledges HCD will not approve a PRP Standard Agreement until it receives a complete set of authorizing, formational, and organizational documents from the Applicant, as required?
A116: 9. Applicant acknowledges any Applicant that has misrepresented any material facts related to the Applicant's compliance with any of HCD's loans will not be eligible for a PRP award and any misrepresentation of material facts is grounds for PRP award ineligibility?
A117: File Name | D117: Unique Project Attributes | L117: You may attach a separate document to explain unique circumstances in the Project. | AF117: Uploaded to HCD?

Sheet Unit Des Table (hidden)
A1: Individual Sole Proprietorship | B1: Joint Venture | C1: General Partnership | D1: Limited Partnership | E1: Trust | F1: Corporation | G1: Limited Liability Company | H1: Local Public Entity | I1: Tribal Entity
A2: Individual | B2: Individual Sole Proprietorship | C2: General Partner | D2: General Partner | E2: Trustee | F2: President | G2: Manager | H2: Chairperson of the Board | I2: Tribal Council Leader | K2: Individual
B3: General Partnership | C3: Co-General Partner | D3: Co-General Partner | E3: Co-Trustee | F3: Chief Executive Officer | G3: Member | H3: Chief Executive Officer | I3: Tribal Council Representative | K3: Joint Venture
B4: Limited Partnership | C4: Special General Partner | D4: Managing General Partner | E4: Executor | F4: Vice President | G4: Member/Manager | H4: Chief Administrative Officer | I4: Authorized Federal Official | K4: Partnership
B5: Trust | D5: Administrative General Partner | F5: Chief Operating Officer | H5: City Manager | K5: Limited Partnership
B6: Non-profit Corporation | F6: Treasurer | H6: Assistant City Manager | K6: Trust
B7: Non-profit Public Benefit Corporation | F7: Chief Financial Officer | H7: Finance Director | K7: Corporation
B8: For-profit Corporation | F8: Secretary | H8: Chief Financial Officer | K8: Limited Liability Company
B9: Limited Liability Company | H9: Mayor | K9: Local Public Entity
B10: Public Agency | H10: Chancellor | K10: Tribal Entity
B11: Tribal Entity | H11: Superintendent
H12: Director
H13: Secretary

Sheet Dropdowns (hidden)
A1: CALDAP | B1: 0.15
A2: CHRP-R | B2: 0.2
A3: DDS | B3: 0.25
A4: DPRLP | B4: 0.3
A5: EHAP-CD | B5: 0.35
A6: FHDP | B6: 0.4
A7: FWHG | B7: 0.45
A8: HLCP-E | B8: 0.5
A9: HLCP-N | B9: 0.55
A10: HOME | B10: 0.6
A11: LPR | B11: 0.8
A12: Manager
A13: New PRP
A14: RHCP-B
A15: RHCP-O
A16: SERA
A17: SUHRP

Sheet Rent Limits (hidden)
A1: County | B1: 1 | C1: 2 | D1: 3 | E1: 4 | F1: 5 | G1: 6 | H1: 7 | I1: 8 | J1: County | K1: 0 | L1: 1 | M1: 2 | N1: 3 | O1: 4 | P1: 5
A2: Alameda0.15 | B2: =B9*2*0.15 -> 15540 | C2: =C9*2*0.15 -> 17760 | D2: =D9*2*0.15 -> 19980 | E2: =E9*2*0.15 -> 22185 | F2: =F9*2*0.15 -> 23970 | G2: =G9*2*0.15 -> 25740 | H2: 27510 | I2: 29295 | J2: Alameda0.15 | K2: =TRUNC(B2/12*0.3) -> 388 | L2: =TRUNC((B2+C2)/2/12*0.3) -> 416 | M2: =TRUNC((D2)/12*0.3) -> 499 | N2: =TRUNC(((E2+F2)/2)/12*0.3) -> 576 | O2: =TRUNC(G2/12*0.3) -> 643 | P2: =TRUNC(((H2+I2)/2)/12*0.3) -> 710
A3: Alameda0.2 | B3: =B9*2*0.2 -> 20720 | C3: =C9*2*0.2 -> 23680 | D3: 26640 | E3: 29580 | F3: 31960 | G3: 34320 | H3: 36680 | I3: 39060 | J3: Alameda0.2 | K3: 518 | L3: 555 | M3: 666 | N3: 769 | O3: 858 | P3: 946
A4: Alameda0.25 | B4: =B9*2*0.25 -> 25900 | C4: =C9*2*0.25 -> 29600 | D4: 33300 | E4: 36975 | F4: 39950 | G4: 42900 | H4: 45850 | I4: 48825 | J4: Alameda0.25 | K4: 647 | L4: 693 | M4: 832 | N4: 961 | O4: 1072 | P4: 1183
A5: Alameda0.3 | B5: =B9*2*0.3 -> 31080 | C5: =C9*2*0.3 -> 35520 | D5: 39960 | E5: 44370 | F5: 47940 | G5: 51480 | H5: 55020 | I5: 58590 | J5: Alameda0.3 | K5: 777 | L5: 832 | M5: 999 | N5: 1153 | O5: 1287 | P5: 1420
A6: Alameda0.35 | B6: =B9*2*0.35 -> 36260 | C6: =C9*2*0.35 -> 41440 | D6: 46620 | E6: 51765 | F6: 55930 | G6: 60060 | H6: 64190 | I6: 68355 | J6: Alameda0.35 | K6: 906 | L6: 971 | M6: 1165 | N6: 1346 | O6: 1501 | P6: 1656
A7: Alameda0.4 | B7: =B9*2*0.4 -> 41440 | C7: =C9*2*0.4 -> 47360 | D7: 53280 | E7: 59160 | F7: 63920 | G7: 68640 | H7: 73360 | I7: 78120 | J7: Alameda0.4 | K7: 1036 | L7: 1110 | M7: 1332 | N7: 1538 | O7: 1716 | P7: 1893
A8: Alameda0.45 | B8: =B9*2*0.45 -> 46620 | C8: =C9*2*0.45 -> 53280 | D8: 59940 | E8: 66555 | F8: 71910 | G8: 77220 | H8: 82530 | I8: 87885 | J8: Alameda0.45 | K8: 1165 | L8: 1248 | M8: 1498 | N8: 1730 | O8: 1930 | P8: 2130
A9: Alameda0.5 | B9: ='MTSP 50% Income Limits'!B2 -> 51800 | C9: ='MTSP 50% Income Limits'!C2 -> 59200 | D9: ='MTSP 50% Income Limits'!D2 -> 66600 | E9: ='MTSP 50% Income Limits'!E2 -> 73950 | F9: ='MTSP 50% Income Limits'!F2 -> 79900 | G9: ='MTSP 50% Income Limits'!G2 -> 85800 | H9: ='MTSP 50% Income Limits'!H2 -> 91700 | I9: ='MTSP 50% Income Limits'!I2 -> 97650 | J9: Alameda0.5 | K9: =TRUNC(B9/12*0.3) -> 1295 | L9: =TRUNC((B9+C9)/2/12*0.3) -> 1387 | M9: =TRUNC((D9)/12*0.3) -> 1665 | N9: =TRUNC(((E9+F9)/2)/12*0.3) -> 1923 | O9: =TRUNC(G9/12*0.3) -> 2145 | P9: =TRUNC(((H9+I9)/2)/12*0.3) -> 2366
A10: Alameda0.55 | B10: =B9*2*0.55 -> 56980 | C10: =C9*2*0.55 -> 65120 | D10: 73260 | E10: 81345 | F10: 87890 | G10: 94380 | H10: 100870 | I10: 107415 | J10: Alameda0.55 | K10: =TRUNC(B10/12*0.3) -> 1424 | L10: =TRUNC((B10+C10)/2/12*0.3) -> 1526 | M10: =TRUNC((D10)/12*0.3) -> 1831 | N10: =TRUNC(((E10+F10)/2)/12*0.3) -> 2115 | O10: =TRUNC(G10/12*0.3) -> 2359 | P10: =TRUNC(((H10+I10)/2)/12*0.3) -> 2603
A11: Alameda0.6 | B11: =B9*2*0.6 -> 62160 | C11: =C9*2*0.6 -> 71040 | D11: 79920 | E11: 88740 | F11: 95880 | G11: 102960 | H11: 110040 | I11: 117180 | J11: Alameda0.6 | K11: 1554 | L11: 1665 | M11: 1998 | N11: 2307 | O11: 2574 | P11: 2840
A12: Alameda0.65 | B12: =B9*2*0.65 -> 67340 | C12: =C9*2*0.65 -> 76960 | D12: 86580 | E12: 96135 | F12: 103870 | G12: 111540 | H12: 119210 | I12: 126945 | J12: Alameda0.65 | K12: 1683 | L12: 1803 | M12: 2164 | N12: 2500 | O12: 2788 | P12: 3076
A13: Alameda0.7 | B13: =B9*2*0.7 -> 72520 | C13: =C9*2*0.7 -> 82880 | D13: 93240 | E13: 103530 | F13: 111860 | G13: 120120 | H13: 128380 | I13: 136710 | J13: Alameda0.7 | K13: 1813 | L13: 1942 | M13: 2331 | N13: 2692 | O13: 3003 | P13: 3313
A14: Alameda0.75 | B14: =B9*2*0.75 -> 77700 | C14: =C9*2*0.75 -> 88800 | D14: 99900 | E14: 110925 | F14: 119850 | G14: 128700 | H14: 137550 | I14: 146475 | J14: Alameda0.75 | K14: 1942 | L14: 2081 | M14: 2497 | N14: 2884 | O14: 3217 | P14: 3550
A15: Alameda0.8 | B15: =B9*2*0.8 -> 82880 | C15: =C9*2*0.8 -> 94720 | D15: 106560 | E15: 118320 | F15: 127840 | G15: 137280 | H15: 146720 | I15: 156240 | J15: Alameda0.8 | K15: 2072 | L15: 2220 | M15: 2664 | N15: 3077 | O15: 3432 | P15: 3787
A16: Alameda0.9 | B16: =B9*2*0.9 -> 93240 | C16: =C9*2*0.9 -> 106560 | D16: 119880 | E16: 133110 | F16: 143820 | G16: 154440 | H16: 165060 | I16: 175770 | J16: Alameda0.9 | K16: 2331 | L16: 2497 | M16: 2997 | N16: 3461 | O16: 3861 | P16: 4260
A17: Alameda1 | B17: =B9*2 -> 103600 | C17: =C9*2 -> 118400 | D17: 133200 | E17: 147900 | F17: 159800 | G17: 171600 | H17: 183400 | I17: 195300 | J17: Alameda1 | K17: =K9*2 -> 2590 | L17: =L9*2 -> 2774 | M17: 3330 | N17: 3846 | O17: 4290 | P17: 4732
A18: Alameda1.1 | B18: =B9*2*1.1 -> 113960 | C18: =C9*2*1.1 -> 130240 | D18: 146520 | E18: 162690 | F18: 175780 | G18: 188760 | H18: 201740 | I18: 214830 | J18: Alameda1.1 | K18: 2849 | L18: 3052 | M18: 3663 | N18: 4230 | O18: 4719 | P18: 5207
A19: Alameda1.2 | B19: =B9*2*1.2 -> 124320 | C19: =C9*2*1.2 -> 142080 | D19: 159840 | E19: 177480 | F19: 191760 | G19: 205920 | H19: 220080 | I19: 234360 | J19: Alameda1.2 | K19: 3108 | L19: 3330 | M19: 3996 | N19: 4615 | O19: 5148 | P19: 5680
A20: Alpine0.15 | B20: =B27*2*0.15 -> 10095 | C20: =C27*2*0.15 -> 11535 | D20: =D27*2*0.15 -> 12975 | E20: =E27*2*0.15 -> 14415 | F20: =F27*2*0.15 -> 15570 | G20: =G27*2*0.15 -> 16725 | H20: 17880 | I20: 19035 | J20: Alpine0.15 | K20: 252 | L20: 270 | M20: 324 | N20: 374 | O20: 418 | P20: 461
A21: Alpine0.2 | B21: =B27*2*0.2 -> 13460 | C21: =C27*2*0.2 -> 15380 | D21: 17300 | E21: 19220 | F21: 20760 | G21: 22300 | H21: 23840 | I21: 25380 | J21: Alpine0.2 | K21: 336 | L21: 360 | M21: 432 | N21: 499 | O21: 557 | P21: 615
A22: Alpine0.25 | B22: =B27*2*0.25 -> 16825 | C22: =C27*2*0.25 -> 19225 | D22: 21625 | E22: 24025 | F22: 25950 | G22: 27875 | H22: 29800 | I22: 31725 | J22: Alpine0.25 | K22: 420 | L22: 450 | M22: 540 | N22: 624 | O22: 696 | P22: 769
A23: Alpine0.3 | B23: =B27*2*0.3 -> 20190 | C23: =C27*2*0.3 -> 23070 | D23: 25950 | E23: 28830 | F23: 31140 | G23: 33450 | H23: 35760 | I23: 38070 | J23: Alpine0.3 | K23: 504 | L23: 540 | M23: 648 | N23: 749 | O23: 836 | P23: 922
A24: Alpine0.35 | B24: =B27*2*0.35 -> 23555 | C24: =C27*2*0.35 -> 26915 | D24: 30275 | E24: 33635 | F24: 36330 | G24: 39025 | H24: 41720 | I24: 44415 | J24: Alpine0.35 | K24: 588 | L24: 630 | M24: 756 | N24: 874 | O24: 975 | P24: 1076
A25: Alpine0.4 | B25: =B27*2*0.4 -> 26920 | C25: =C27*2*0.4 -> 30760 | D25: 34600 | E25: 38440 | F25: 41520 | G25: 44600 | H25: 47680 | I25: 50760 | J25: Alpine0.4 | K25: 673 | L25: 721 | M25: 865 | N25: 999 | O25: 1115 | P25: 1230
A26: Alpine0.45 | B26: =B27*2*0.45 -> 30285 | C26: =C27*2*0.45 -> 34605 | D26: 38925 | E26: 43245 | F26: 46710 | G26: 50175 | H26: 53640 | I26: 57105 | J26: Alpine0.45 | K26: 757 | L26: 811 | M26: 973 | N26: 1124 | O26: 1254 | P26: 1384
A27: Alpine0.5 | B27: ='MTSP 50% Income Limits'!B3 -> 33650 | C27: ='MTSP 50% Income Limits'!C3 -> 38450 | D27: ='MTSP 50% Income Limits'!D3 -> 43250 | E27: ='MTSP 50% Income Limits'!E3 -> 48050 | F27: ='MTSP 50% Income Limits'!F3 -> 51900 | G27: ='MTSP 50% Income Limits'!G3 -> 55750 | H27: ='MTSP 50% Income Limits'!H3 -> 59600 | I27: ='MTSP 50% Income Limits'!I3 -> 63450 | J27: Alpine0.5 | K27: =TRUNC(B27/12*0.3) -> 841 | L27: =TRUNC((B27+C27)/2/12*0.3) -> 901 | M27: =TRUNC((D27)/12*0.3) -> 1081 | N27: =TRUNC(((E27+F27)/2)/12*0.3) -> 1249 | O27: =TRUNC(G27/12*0.3) -> 1393 | P27: =TRUNC(((H27+I27)/2)/12*0.3) -> 1538
A28: Alpine0.55 | B28: =B27*2*0.55 -> 37015 | C28: =C27*2*0.55 -> 42295 | D28: 47575 | E28: 52855 | F28: 57090 | G28: 61325 | H28: 65560 | I28: 69795 | J28: Alpine0.55 | K28: =TRUNC(B28/12*0.3) -> 925 | L28: =TRUNC((B28+C28)/2/12*0.3) -> 991 | M28: =TRUNC((D28)/12*0.3) -> 1189 | N28: =TRUNC(((E28+F28)/2)/12*0.3) -> 1374 | O28: =TRUNC(G28/12*0.3) -> 1533 | P28: =TRUNC(((H28+I28)/2)/12*0.3) -> 1691
A29: Alpine0.6 | B29: =B27*2*0.6 -> 40380 | C29: =C27*2*0.6 -> 46140 | D29: 51900 | E29: 57660 | F29: 62280 | G29: 66900 | H29: 71520 | I29: 76140 | J29: Alpine0.6 | K29: 1009 | L29: 1081 | M29: 1297 | N29: 1499 | O29: 1672 | P29: 1845
A30: Alpine0.65 | B30: =B27*2*0.65 -> 43745 | C30: =C27*2*0.65 -> 49985 | D30: 56225 | E30: 62465 | F30: 67470 | G30: 72475 | H30: 77480 | I30: 82485 | J30: Alpine0.65 | K30: 1093 | L30: 1171 | M30: 1405 | N30: 1624 | O30: 1811 | P30: 1999
A31: Alpine0.7 | B31: =B27*2*0.7 -> 47110 | C31: =C27*2*0.7 -> 53830 | D31: 60550 | E31: 67270 | F31: 72660 | G31: 78050 | H31: 83440 | I31: 88830 | J31: Alpine0.7 | K31: 1177 | L31: 1261 | M31: 1513 | N31: 1749 | O31: 1951 | P31: 2153
A32: Alpine0.75 | B32: =B27*2*0.75 -> 50475 | C32: =C27*2*0.75 -> 57675 | D32: 64875 | E32: 72075 | F32: 77850 | G32: 83625 | H32: 89400 | I32: 95175 | J32: Alpine0.75 | K32: 1261 | L32: 1351 | M32: 1621 | N32: 1874 | O32: 2090 | P32: 2307
A33: Alpine0.8 | B33: =B27*2*0.8 -> 53840 | C33: =C27*2*0.8 -> 61520 | D33: 69200 | E33: 76880 | F33: 83040 | G33: 89200 | H33: 95360 | I33: 101520 | J33: Alpine0.8 | K33: 1346 | L33: 1442 | M33: 1730 | N33: 1999 | O33: 2230 | P33: 2461
A34: Alpine0.9 | B34: =B27*2*0.9 -> 60570 | C34: =C27*2*0.9 -> 69210 | D34: 77850 | E34: 86490 | F34: 93420 | G34: 100350 | H34: 107280 | I34: 114210 | J34: Alpine0.9 | K34: 1514 | L34: 1622 | M34: 1946 | N34: 2248 | O34: 2508 | P34: 2768
A35: Alpine1 | B35: =B27*2 -> 67300 | C35: =C27*2 -> 76900 | D35: 86500 | E35: 96100 | F35: 103800 | G35: 111500 | H35: 119200 | I35: 126900 | J35: Alpine1 | K35: =K27*2 -> 1682 | L35: =L27*2 -> 1802 | M35: 2162 | N35: 2498 | O35: 2786 | P35: 3076
A36: Alpine1.1 | B36: =B27*2*1.1 -> 74030 | C36: =C27*2*1.1 -> 84590 | D36: 95150 | E36: 105710 | F36: 114180 | G36: 122650 | H36: 131120 | I36: 139590 | J36: Alpine1.1 | K36: =TRUNC(B36/12*0.3) -> 1850 | L36: =TRUNC((B36+C36)/2/12*0.3) -> 1982 | M36: =TRUNC((D36)/12*0.3) -> 2378 | N36: =TRUNC(((E36+F36)/2)/12*0.3) -> 2748 | O36: =TRUNC(G36/12*0.3) -> 3066 | P36: =TRUNC(((H36+I36)/2)/12*0.3) -> 3383
A37: Alpine1.2 | B37: =B27*2*1.2 -> 80760 | C37: =C27*2*1.2 -> 92280 | D37: 103800 | E37: 115320 | F37: 124560 | G37: 133800 | H37: 143040 | I37: 152280 | J37: Alpine1.2 | K37: 2019 | L37: 2163 | M37: 2595 | N37: 2998 | O37: 3345 | P37: 3691
A38: Amador0.15 | B38: =B45*2*0.15 -> 9630 | C38: =C45*2*0.15 -> 11010 | D38: =D45*2*0.15 -> 12390 | E38: =E45*2*0.15 -> 13755 | F38: =F45*2*0.15 -> 14865 | G38: =G45*2*0.15 -> 15960 | H38: 17070 | I38: 18165 | J38: Amador0.15 | K38: 240 | L38: 258 | M38: 309 | N38: 357 | O38: 399 | P38: 440
A39: Amador0.2 | B39: =B45*2*0.2 -> 12840 | C39: =C45*2*0.2 -> 14680 | D39: 16520 | E39: 18340 | F39: 19820 | G39: 21280 | H39: 22760 | I39: 24220 | J39: Amador0.2 | K39: 321 | L39: 344 | M39: 413 | N39: 477 | O39: 532 | P39: 587
A40: Amador0.25 | B40: =B45*2*0.25 -> 16050 | C40: =C45*2*0.25 -> 18350 | D40: 20650 | E40: 22925 | F40: 24775 | G40: 26600 | H40: 28450 | I40: 30275 | J40: Amador0.25 | K40: 401 | L40: 430 | M40: 516 | N40: 596 | O40: 665 | P40: 734
A41: Amador0.3 | B41: =B45*2*0.3 -> 19260 | C41: =C45*2*0.3 -> 22020 | D41: 24780 | E41: 27510 | F41: 29730 | G41: 31920 | H41: 34140 | I41: 36330 | J41: Amador0.3 | K41: 481 | L41: 516 | M41: 619 | N41: 715 | O41: 798 | P41: 880
A42: Amador0.35 | B42: =B45*2*0.35 -> 22470 | C42: =C45*2*0.35 -> 25690 | D42: 28910 | E42: 32095 | F42: 34685 | G42: 37240 | H42: 39830 | I42: 42385 | J42: Amador0.35 | K42: 561 | L42: 602 | M42: 722 | N42: 834 | O42: 931 | P42: 1027
A43: Amador0.4 | B43: =B45*2*0.4 -> 25680 | C43: =C45*2*0.4 -> 29360 | D43: 33040 | E43: 36680 | F43: 39640 | G43: 42560 | H43: 45520 | I43: 48440 | J43: Amador0.4 | K43: 642 | L43: 688 | M43: 826 | N43: 954 | O43: 1064 | P43: 1174
A44: Amador0.45 | B44: =B45*2*0.45 -> 28890 | C44: =C45*2*0.45 -> 33030 | D44: 37170 | E44: 41265 | F44: 44595 | G44: 47880 | H44: 51210 | I44: 54495 | J44: Amador0.45 | K44: 722 | L44: 774 | M44: 929 | N44: 1073 | O44: 1197 | P44: 1321
A45: Amador0.5 | B45: ='MTSP 50% Income Limits'!B4 -> 32100 | C45: ='MTSP 50% Income Limits'!C4 -> 36700 | D45: ='MTSP 50% Income Limits'!D4 -> 41300 | E45: ='MTSP 50% Income Limits'!E4 -> 45850 | F45: ='MTSP 50% Income Limits'!F4 -> 49550 | G45: ='MTSP 50% Income Limits'!G4 -> 53200 | H45: ='MTSP 50% Income Limits'!H4 -> 56900 | I45: ='MTSP 50% Income Limits'!I4 -> 60550 | J45: Amador0.5 | K45: =TRUNC(B45/12*0.3) -> 802 | L45: =TRUNC((B45+C45)/2/12*0.3) -> 860 | M45: =TRUNC((D45)/12*0.3) -> 1032 | N45: =TRUNC(((E45+F45)/2)/12*0.3) -> 1192 | O45: =TRUNC(G45/12*0.3) -> 1330 | P45: =TRUNC(((H45+I45)/2)/12*0.3) -> 1468
A46: Amador0.55 | B46: =B45*2*0.55 -> 35310 | C46: =C45*2*0.55 -> 40370 | D46: 45430 | E46: 50435 | F46: 54505 | G46: 58520 | H46: 62590 | I46: 66605 | J46: Amador0.55 | K46: =TRUNC(B46/12*0.3) -> 882 | L46: =TRUNC((B46+C46)/2/12*0.3) -> 946 | M46: =TRUNC((D46)/12*0.3) -> 1135 | N46: =TRUNC(((E46+F46)/2)/12*0.3) -> 1311 | O46: =TRUNC(G46/12*0.3) -> 1463 | P46: =TRUNC(((H46+I46)/2)/12*0.3) -> 1614
A47: Amador0.6 | B47: =B45*2*0.6 -> 38520 | C47: =C45*2*0.6 -> 44040 | D47: 49560 | E47: 55020 | F47: 59460 | G47: 63840 | H47: 68280 | I47: 72660 | J47: Amador0.6 | K47: 963 | L47: 1032 | M47: 1239 | N47: 1431 | O47: 1596 | P47: 1761
A48: Amador0.65 | B48: =B45*2*0.65 -> 41730 | C48: =C45*2*0.65 -> 47710 | D48: 53690 | E48: 59605 | F48: 64415 | G48: 69160 | H48: 73970 | I48: 78715 | J48: Amador0.65 | K48: 1043 | L48: 1118 | M48: 1342 | N48: 1550 | O48: 1729 | P48: 1908
A49: Amador0.7 | B49: =B45*2*0.7 -> 44940 | C49: =C45*2*0.7 -> 51380 | D49: 57820 | E49: 64190 | F49: 69370 | G49: 74480 | H49: 79660 | I49: 84770 | J49: Amador0.7 | K49: 1123 | L49: 1204 | M49: 1445 | N49: 1669 | O49: 1862 | P49: 2055
A50: Amador0.75 | B50: =B45*2*0.75 -> 48150 | C50: =C45*2*0.75 -> 55050 | D50: 61950 | E50: 68775 | F50: 74325 | G50: 79800 | H50: 85350 | I50: 90825 | J50: Amador0.75 | K50: 1203 | L50: 1290 | M50: 1548 | N50: 1788 | O50: 1995 | P50: 2202
A51: Amador0.8 | B51: =B45*2*0.8 -> 51360 | C51: =C45*2*0.8 -> 58720 | D51: 66080 | E51: 73360 | F51: 79280 | G51: 85120 | H51: 91040 | I51: 96880 | J51: Amador0.8 | K51: 1284 | L51: 1376 | M51: 1652 | N51: 1908 | O51: 2128 | P51: 2349
A52: Amador0.9 | B52: =B45*2*0.9 -> 57780 | C52: =C45*2*0.9 -> 66060 | D52: 74340 | E52: 82530 | F52: 89190 | G52: 95760 | H52: 102420 | I52: 108990 | J52: Amador0.9 | K52: 1444 | L52: 1548 | M52: 1858 | N52: 2146 | O52: 2394 | P52: 2642
A53: Amador1 | B53: =B45*2 -> 64200 | C53: =C45*2 -> 73400 | D53: 82600 | E53: 91700 | F53: 99100 | G53: 106400 | H53: 113800 | I53: 121100 | J53: Amador1 | K53: =K45*2 -> 1604 | L53: =L45*2 -> 1720 | M53: 2064 | N53: 2384 | O53: 2660 | P53: 2936
A54: Amador1.1 | B54: =B45*2*1.1 -> 70620 | C54: =C45*2*1.1 -> 80740 | D54: 90860 | E54: 100870 | F54: 109010 | G54: 117040 | H54: 125180 | I54: 133210 | J54: Amador1.1 | K54: =TRUNC(B54/12*0.3) -> 1765 | L54: =TRUNC((B54+C54)/2/12*0.3) -> 1892 | M54: =TRUNC((D54)/12*0.3) -> 2271 | N54: =TRUNC(((E54+F54)/2)/12*0.3) -> 2623 | O54: =TRUNC(G54/12*0.3) -> 2926 | P54: =TRUNC(((H54+I54)/2)/12*0.3) -> 3229
A55: Amador1.2 | B55: =B45*2*1.2 -> 77040 | C55: =C45*2*1.2 -> 88080 | D55: 99120 | E55: 110040 | F55: 118920 | G55: 127680 | H55: 136560 | I55: 145320 | J55: Amador1.2 | K55: 1926 | L55: 2064 | M55: 2478 | N55: 2862 | O55: 3192 | P55: 3523
A56: Butte0.15 | B56: =B63*2*0.15 -> 8670 | C56: =C63*2*0.15 -> 9900 | D56: =D63*2*0.15 -> 11145 | E56: =E63*2*0.15 -> 12375 | F56: =F63*2*0.15 -> 13365 | G56: =G63*2*0.15 -> 14355 | H56: 15345 | I56: 16335 | J56: Butte0.15 | K56: 216 | L56: 232 | M56: 278 | N56: 321 | O56: 358 | P56: 396
A57: Butte0.2 | B57: =B63*2*0.2 -> 11560 | C57: =C63*2*0.2 -> 13200 | D57: 14860 | E57: 16500 | F57: 17820 | G57: 19140 | H57: 20460 | I57: 21780 | J57: Butte0.2 | K57: 289 | L57: 309 | M57: 371 | N57: 429 | O57: 478 | P57: 528
A58: Butte0.25 | B58: =B63*2*0.25 -> 14450 | C58: =C63*2*0.25 -> 16500 | D58: 18575 | E58: 20625 | F58: 22275 | G58: 23925 | H58: 25575 | I58: 27225 | J58: Butte0.25 | K58: 361 | L58: 386 | M58: 464 | N58: 536 | O58: 598 | P58: 660
A59: Butte0.3 | B59: =B63*2*0.3 -> 17340 | C59: =C63*2*0.3 -> 19800 | D59: 22290 | E59: 24750 | F59: 26730 | G59: 28710 | H59: 30690 | I59: 32670 | J59: Butte0.3 | K59: 433 | L59: 464 | M59: 557 | N59: 643 | O59: 717 | P59: 792
A60: Butte0.35 | B60: =B63*2*0.35 -> 20230 | C60: =C63*2*0.35 -> 23100 | D60: 26005 | E60: 28875 | F60: 31185 | G60: 33495 | H60: 35805 | I60: 38115 | J60: Butte0.35 | K60: 505 | L60: 541 | M60: 650 | N60: 750 | O60: 837 | P60: 924
A61: Butte0.4 | B61: =B63*2*0.4 -> 23120 | C61: =C63*2*0.4 -> 26400 | D61: 29720 | E61: 33000 | F61: 35640 | G61: 38280 | H61: 40920 | I61: 43560 | J61: Butte0.4 | K61: 578 | L61: 619 | M61: 743 | N61: 858 | O61: 957 | P61: 1056
A62: Butte0.45 | B62: =B63*2*0.45 -> 26010 | C62: =C63*2*0.45 -> 29700 | D62: 33435 | E62: 37125 | F62: 40095 | G62: 43065 | H62: 46035 | I62: 49005 | J62: Butte0.45 | K62: 650 | L62: 696 | M62: 835 | N62: 965 | O62: 1076 | P62: 1188
A63: Butte0.5 | B63: ='MTSP 50% Income Limits'!B5 -> 28900 | C63: ='MTSP 50% Income Limits'!C5 -> 33000 | D63: ='MTSP 50% Income Limits'!D5 -> 37150 | E63: ='MTSP 50% Income Limits'!E5 -> 41250 | F63: ='MTSP 50% Income Limits'!F5 -> 44550 | G63: ='MTSP 50% Income Limits'!G5 -> 47850 | H63: ='MTSP 50% Income Limits'!H5 -> 51150 | I63: ='MTSP 50% Income Limits'!I5 -> 54450 | J63: Butte0.5 | K63: =TRUNC(B63/12*0.3) -> 722 | L63: =TRUNC((B63+C63)/2/12*0.3) -> 773 | M63: =TRUNC((D63)/12*0.3) -> 928 | N63: =TRUNC(((E63+F63)/2)/12*0.3) -> 1072 | O63: =TRUNC(G63/12*0.3) -> 1196 | P63: =TRUNC(((H63+I63)/2)/12*0.3) -> 1320
A64: Butte0.55 | B64: =B63*2*0.55 -> 31790 | C64: =C63*2*0.55 -> 36300 | D64: 40865 | E64: 45375 | F64: 49005 | G64: 52635 | H64: 56265 | I64: 59895 | J64: Butte0.55 | K64: =TRUNC(B64/12*0.3) -> 794 | L64: =TRUNC((B64+C64)/2/12*0.3) -> 851 | M64: =TRUNC((D64)/12*0.3) -> 1021 | N64: =TRUNC(((E64+F64)/2)/12*0.3) -> 1179 | O64: =TRUNC(G64/12*0.3) -> 1315 | P64: =TRUNC(((H64+I64)/2)/12*0.3) -> 1452
A65: Butte0.6 | B65: =B63*2*0.6 -> 34680 | C65: =C63*2*0.6 -> 39600 | D65: 44580 | E65: 49500 | F65: 53460 | G65: 57420 | H65: 61380 | I65: 65340 | J65: Butte0.6 | K65: 867 | L65: 928 | M65: 1114 | N65: 1287 | O65: 1435 | P65: 1584
A66: Butte0.65 | B66: =B63*2*0.65 -> 37570 | C66: =C63*2*0.65 -> 42900 | D66: 48295 | E66: 53625 | F66: 57915 | G66: 62205 | H66: 66495 | I66: 70785 | J66: Butte0.65 | K66: 939 | L66: 1005 | M66: 1207 | N66: 1394 | O66: 1555 | P66: 1716
A67: Butte0.7 | B67: =B63*2*0.7 -> 40460 | C67: =C63*2*0.7 -> 46200 | D67: 52010 | E67: 57750 | F67: 62370 | G67: 66990 | H67: 71610 | I67: 76230 | J67: Butte0.7 | K67: 1011 | L67: 1083 | M67: 1300 | N67: 1501 | O67: 1674 | P67: 1848
A68: Butte0.75 | B68: =B63*2*0.75 -> 43350 | C68: =C63*2*0.75 -> 49500 | D68: 55725 | E68: 61875 | F68: 66825 | G68: 71775 | H68: 76725 | I68: 81675 | J68: Butte0.75 | K68: 1083 | L68: 1160 | M68: 1393 | N68: 1608 | O68: 1794 | P68: 1980
A69: Butte0.8 | B69: =B63*2*0.8 -> 46240 | C69: =C63*2*0.8 -> 52800 | D69: 59440 | E69: 66000 | F69: 71280 | G69: 76560 | H69: 81840 | I69: 87120 | J69: Butte0.8 | K69: 1156 | L69: 1238 | M69: 1486 | N69: 1716 | O69: 1914 | P69: 2112
A70: Butte0.9 | B70: =B63*2*0.9 -> 52020 | C70: =C63*2*0.9 -> 59400 | D70: 66870 | E70: 74250 | F70: 80190 | G70: 86130 | H70: 92070 | I70: 98010 | J70: Butte0.9 | K70: 1300 | L70: 1392 | M70: 1671 | N70: 1930 | O70: 2153 | P70: 2376
A71: Butte1 | B71: =B63*2 -> 57800 | C71: =C63*2 -> 66000 | D71: 74300 | E71: 82500 | F71: 89100 | G71: 95700 | H71: 102300 | I71: 108900 | J71: Butte1 | K71: =K63*2 -> 1444 | L71: =L63*2 -> 1546 | M71: 1856 | N71: 2144 | O71: 2392 | P71: 2640
A72: Butte1.1 | B72: =B63*2*1.1 -> 63580 | C72: =C63*2*1.1 -> 72600 | D72: 81730 | E72: 90750 | F72: 98010 | G72: 105270 | H72: 112530 | I72: 119790 | J72: Butte1.1 | K72: =TRUNC(B72/12*0.3) -> 1589 | L72: =TRUNC((B72+C72)/2/12*0.3) -> 1702 | M72: =TRUNC((D72)/12*0.3) -> 2043 | N72: =TRUNC(((E72+F72)/2)/12*0.3) -> 2359 | O72: =TRUNC(G72/12*0.3) -> 2631 | P72: =TRUNC(((H72+I72)/2)/12*0.3) -> 2904
A73: Butte1.2 | B73: =B63*2*1.2 -> 69360 | C73: =C63*2*1.2 -> 79200 | D73: 89160 | E73: 99000 | F73: 106920 | G73: 114840 | H73: 122760 | I73: 130680 | J73: Butte1.2 | K73: 1734 | L73: 1857 | M73: 2229 | N73: 2574 | O73: 2871 | P73: 3168
A74: Calaveras0.15 | B74: =B81*2*0.15 -> 10020 | C74: =C81*2*0.15 -> 11445 | D74: =D81*2*0.15 -> 12870 | E74: =E81*2*0.15 -> 14295 | F74: =F81*2*0.15 -> 15450 | G74: =G81*2*0.15 -> 16590 | H74: 17730 | I74: 18870 | J74: Calaveras0.15 | K74: 250 | L74: 268 | M74: 321 | N74: 371 | O74: 414 | P74: 457
A75: Calaveras0.2 | B75: =B81*2*0.2 -> 13360 | C75: =C81*2*0.2 -> 15260 | D75: 17160 | E75: 19060 | F75: 20600 | G75: 22120 | H75: 23640 | I75: 25160 | J75: Calaveras0.2 | K75: 334 | L75: 357 | M75: 429 | N75: 495 | O75: 553 | P75: 610
A76: Calaveras0.25 | B76: =B81*2*0.25 -> 16700 | C76: =C81*2*0.25 -> 19075 | D76: 21450 | E76: 23825 | F76: 25750 | G76: 27650 | H76: 29550 | I76: 31450 | J76: Calaveras0.25 | K76: 417 | L76: 447 | M76: 536 | N76: 619 | O76: 691 | P76: 762
A77: Calaveras0.3 | B77: =B81*2*0.3 -> 20040 | C77: =C81*2*0.3 -> 22890 | D77: 25740 | E77: 28590 | F77: 30900 | G77: 33180 | H77: 35460 | I77: 37740 | J77: Calaveras0.3 | K77: 501 | L77: 536 | M77: 643 | N77: 743 | O77: 829 | P77: 915
A78: Calaveras0.35 | B78: =B81*2*0.35 -> 23380 | C78: =C81*2*0.35 -> 26705 | D78: 30030 | E78: 33355 | F78: 36050 | G78: 38710 | H78: 41370 | I78: 44030 | J78: Calaveras0.35 | K78: 584 | L78: 626 | M78: 750 | N78: 867 | O78: 967 | P78: 1067
A79: Calaveras0.4 | B79: =B81*2*0.4 -> 26720 | C79: =C81*2*0.4 -> 30520 | D79: 34320 | E79: 38120 | F79: 41200 | G79: 44240 | H79: 47280 | I79: 50320 | J79: Calaveras0.4 | K79: 668 | L79: 715 | M79: 858 | N79: 991 | O79: 1106 | P79: 1220
A80: Calaveras0.45 | B80: =B81*2*0.45 -> 30060 | C80: =C81*2*0.45 -> 34335 | D80: 38610 | E80: 42885 | F80: 46350 | G80: 49770 | H80: 53190 | I80: 56610 | J80: Calaveras0.45 | K80: 751 | L80: 804 | M80: 965 | N80: 1115 | O80: 1244 | P80: 1372
A81: Calaveras0.5 | B81: ='MTSP 50% Income Limits'!B6 -> 33400 | C81: ='MTSP 50% Income Limits'!C6 -> 38150 | D81: ='MTSP 50% Income Limits'!D6 -> 42900 | E81: ='MTSP 50% Income Limits'!E6 -> 47650 | F81: ='MTSP 50% Income Limits'!F6 -> 51500 | G81: ='MTSP 50% Income Limits'!G6 -> 55300 | H81: ='MTSP 50% Income Limits'!H6 -> 59100 | I81: ='MTSP 50% Income Limits'!I6 -> 62900 | J81: Calaveras0.5 | K81: =TRUNC(B81/12*0.3) -> 835 | L81: =TRUNC((B81+C81)/2/12*0.3) -> 894 | M81: =TRUNC((D81)/12*0.3) -> 1072 | N81: =TRUNC(((E81+F81)/2)/12*0.3) -> 1239 | O81: =TRUNC(G81/12*0.3) -> 1382 | P81: =TRUNC(((H81+I81)/2)/12*0.3) -> 1525
A82: Calaveras0.55 | B82: =B81*2*0.55 -> 36740 | C82: =C81*2*0.55 -> 41965 | D82: 47190 | E82: 52415 | F82: 56650 | G82: 60830 | H82: 65010 | I82: 69190 | J82: Calaveras0.55 | K82: =TRUNC(B82/12*0.3) -> 918 | L82: =TRUNC((B82+C82)/2/12*0.3) -> 983 | M82: =TRUNC((D82)/12*0.3) -> 1179 | N82: =TRUNC(((E82+F82)/2)/12*0.3) -> 1363 | O82: =TRUNC(G82/12*0.3) -> 1520 | P82: =TRUNC(((H82+I82)/2)/12*0.3) -> 1677
A83: Calaveras0.6 | B83: =B81*2*0.6 -> 40080 | C83: =C81*2*0.6 -> 45780 | D83: 51480 | E83: 57180 | F83: 61800 | G83: 66360 | H83: 70920 | I83: 75480 | J83: Calaveras0.6 | K83: 1002 | L83: 1073 | M83: 1287 | N83: 1487 | O83: 1659 | P83: 1830
A84: Calaveras0.65 | B84: =B81*2*0.65 -> 43420 | C84: =C81*2*0.65 -> 49595 | D84: 55770 | E84: 61945 | F84: 66950 | G84: 71890 | H84: 76830 | I84: 81770 | J84: Calaveras0.65 | K84: 1085 | L84: 1162 | M84: 1394 | N84: 1611 | O84: 1797 | P84: 1982
A85: Calaveras0.7 | B85: =B81*2*0.7 -> 46760 | C85: =C81*2*0.7 -> 53410 | D85: 60060 | E85: 66710 | F85: 72100 | G85: 77420 | H85: 82740 | I85: 88060 | J85: Calaveras0.7 | K85: 1169 | L85: 1252 | M85: 1501 | N85: 1735 | O85: 1935 | P85: 2135
A86: Calaveras0.75 | B86: =B81*2*0.75 -> 50100 | C86: =C81*2*0.75 -> 57225 | D86: 64350 | E86: 71475 | F86: 77250 | G86: 82950 | H86: 88650 | I86: 94350 | J86: Calaveras0.75 | K86: 1252 | L86: 1341 | M86: 1608 | N86: 1859 | O86: 2073 | P86: 2287
A87: Calaveras0.8 | B87: =B81*2*0.8 -> 53440 | C87: =C81*2*0.8 -> 61040 | D87: 68640 | E87: 76240 | F87: 82400 | G87: 88480 | H87: 94560 | I87: 100640 | J87: Calaveras0.8 | K87: 1336 | L87: 1431 | M87: 1716 | N87: 1983 | O87: 2212 | P87: 2440
A88: Calaveras0.9 | B88: =B81*2*0.9 -> 60120 | C88: =C81*2*0.9 -> 68670 | D88: 77220 | E88: 85770 | F88: 92700 | G88: 99540 | H88: 106380 | I88: 113220 | J88: Calaveras0.9 | K88: 1503 | L88: 1609 | M88: 1930 | N88: 2230 | O88: 2488 | P88: 2745
A89: Calaveras1 | B89: =B81*2 -> 66800 | C89: =C81*2 -> 76300 | D89: 85800 | E89: 95300 | F89: 103000 | G89: 110600 | H89: 118200 | I89: 125800 | J89: Calaveras1 | K89: =K81*2 -> 1670 | L89: =L81*2 -> 1788 | M89: 2144 | N89: 2478 | O89: 2764 | P89: 3050
A90: Calaveras1.1 | B90: =B81*2*1.1 -> 73480 | C90: =C81*2*1.1 -> 83930 | D90: 94380 | E90: 104830 | F90: 113300 | G90: 121660 | H90: 130020 | I90: 138380 | J90: Calaveras1.1 | K90: =TRUNC(B90/12*0.3) -> 1837 | L90: =TRUNC((B90+C90)/2/12*0.3) -> 1967 | M90: =TRUNC((D90)/12*0.3) -> 2359 | N90: =TRUNC(((E90+F90)/2)/12*0.3) -> 2726 | O90: =TRUNC(G90/12*0.3) -> 3041 | P90: =TRUNC(((H90+I90)/2)/12*0.3) -> 3355
A91: Calaveras1.2 | B91: =B81*2*1.2 -> 80160 | C91: =C81*2*1.2 -> 91560 | D91: 102960 | E91: 114360 | F91: 123600 | G91: 132720 | H91: 141840 | I91: 150960 | J91: Calaveras1.2 | K91: 2004 | L91: 2146 | M91: 2574 | N91: 2974 | O91: 3318 | P91: 3660
A92: Colusa0.15 | B92: =B99*2*0.15 -> 8670 | C92: =C99*2*0.15 -> 9900 | D92: =D99*2*0.15 -> 11145 | E92: =E99*2*0.15 -> 12375 | F92: =F99*2*0.15 -> 13365 | G92: =G99*2*0.15 -> 14355 | H92: 15345 | I92: 16335 | J92: Colusa0.15 | K92: 216 | L92: 232 | M92: 278 | N92: 321 | O92: 358 | P92: 396
A93: Colusa0.2 | B93: =B99*2*0.2 -> 11560 | C93: =C99*2*0.2 -> 13200 | D93: 14860 | E93: 16500 | F93: 17820 | G93: 19140 | H93: 20460 | I93: 21780 | J93: Colusa0.2 | K93: 289 | L93: 309 | M93: 371 | N93: 429 | O93: 478 | P93: 528
A94: Colusa0.25 | B94: =B99*2*0.25 -> 14450 | C94: =C99*2*0.25 -> 16500 | D94: 18575 | E94: 20625 | F94: 22275 | G94: 23925 | H94: 25575 | I94: 27225 | J94: Colusa0.25 | K94: 361 | L94: 386 | M94: 464 | N94: 536 | O94: 598 | P94: 660
A95: Colusa0.3 | B95: =B99*2*0.3 -> 17340 | C95: =C99*2*0.3 -> 19800 | D95: 22290 | E95: 24750 | F95: 26730 | G95: 28710 | H95: 30690 | I95: 32670 | J95: Colusa0.3 | K95: 433 | L95: 464 | M95: 557 | N95: 643 | O95: 717 | P95: 792
A96: Colusa0.35 | B96: =B99*2*0.35 -> 20230 | C96: =C99*2*0.35 -> 23100 | D96: 26005 | E96: 28875 | F96: 31185 | G96: 33495 | H96: 35805 | I96: 38115 | J96: Colusa0.35 | K96: 505 | L96: 541 | M96: 650 | N96: 750 | O96: 837 | P96: 924
A97: Colusa0.4 | B97: =B99*2*0.4 -> 23120 | C97: =C99*2*0.4 -> 26400 | D97: 29720 | E97: 33000 | F97: 35640 | G97: 38280 | H97: 40920 | I97: 43560 | J97: Colusa0.4 | K97: 578 | L97: 619 | M97: 743 | N97: 858 | O97: 957 | P97: 1056
A98: Colusa0.45 | B98: =B99*2*0.45 -> 26010 | C98: =C99*2*0.45 -> 29700 | D98: 33435 | E98: 37125 | F98: 40095 | G98: 43065 | H98: 46035 | I98: 49005 | J98: Colusa0.45 | K98: 650 | L98: 696 | M98: 835 | N98: 965 | O98: 1076 | P98: 1188
A99: Colusa0.5 | B99: ='MTSP 50% Income Limits'!B7 -> 28900 | C99: ='MTSP 50% Income Limits'!C7 -> 33000 | D99: ='MTSP 50% Income Limits'!D7 -> 37150 | E99: ='MTSP 50% Income Limits'!E7 -> 41250 | F99: ='MTSP 50% Income Limits'!F7 -> 44550 | G99: ='MTSP 50% Income Limits'!G7 -> 47850 | H99: ='MTSP 50% Income Limits'!H7 -> 51150 | I99: ='MTSP 50% Income Limits'!I7 -> 54450 | J99: Colusa0.5 | K99: =TRUNC(B99/12*0.3) -> 722 | L99: =TRUNC((B99+C99)/2/12*0.3) -> 773 | M99: =TRUNC((D99)/12*0.3) -> 928 | N99: =TRUNC(((E99+F99)/2)/12*0.3) -> 1072 | O99: =TRUNC(G99/12*0.3) -> 1196 | P99: =TRUNC(((H99+I99)/2)/12*0.3) -> 1320
A100: Colusa0.55 | B100: =B99*2*0.55 -> 31790 | C100: =C99*2*0.55 -> 36300 | D100: 40865 | E100: 45375 | F100: 49005 | G100: 52635 | H100: 56265 | I100: 59895 | J100: Colusa0.55 | K100: =TRUNC(B100/12*0.3) -> 794 | L100: =TRUNC((B100+C100)/2/12*0.3) -> 851 | M100: =TRUNC((D100)/12*0.3) -> 1021 | N100: =TRUNC(((E100+F100)/2)/12*0.3) -> 1179 | O100: =TRUNC(G100/12*0.3) -> 1315 | P100: =TRUNC(((H100+I100)/2)/12*0.3) -> 1452
A101: Colusa0.6 | B101: =B99*2*0.6 -> 34680 | C101: =C99*2*0.6 -> 39600 | D101: 44580 | E101: 49500 | F101: 53460 | G101: 57420 | H101: 61380 | I101: 65340 | J101: Colusa0.6 | K101: 867 | L101: 928 | M101: 1114 | N101: 1287 | O101: 1435 | P101: 1584
A102: Colusa0.65 | B102: =B99*2*0.65 -> 37570 | C102: =C99*2*0.65 -> 42900 | D102: 48295 | E102: 53625 | F102: 57915 | G102: 62205 | H102: 66495 | I102: 70785 | J102: Colusa0.65 | K102: 939 | L102: 1005 | M102: 1207 | N102: 1394 | O102: 1555 | P102: 1716
A103: Colusa0.7 | B103: =B99*2*0.7 -> 40460 | C103: =C99*2*0.7 -> 46200 | D103: 52010 | E103: 57750 | F103: 62370 | G103: 66990 | H103: 71610 | I103: 76230 | J103: Colusa0.7 | K103: 1011 | L103: 1083 | M103: 1300 | N103: 1501 | O103: 1674 | P103: 1848
A104: Colusa0.75 | B104: =B99*2*0.75 -> 43350 | C104: =C99*2*0.75 -> 49500 | D104: 55725 | E104: 61875 | F104: 66825 | G104: 71775 | H104: 76725 | I104: 81675 | J104: Colusa0.75 | K104: 1083 | L104: 1160 | M104: 1393 | N104: 1608 | O104: 1794 | P104: 1980
A105: Colusa0.8 | B105: =B99*2*0.8 -> 46240 | C105: =C99*2*0.8 -> 52800 | D105: 59440 | E105: 66000 | F105: 71280 | G105: 76560 | H105: 81840 | I105: 87120 | J105: Colusa0.8 | K105: 1156 | L105: 1238 | M105: 1486 | N105: 1716 | O105: 1914 | P105: 2112
A106: Colusa0.9 | B106: =B99*2*0.9 -> 52020 | C106: =C99*2*0.9 -> 59400 | D106: 66870 | E106: 74250 | F106: 80190 | G106: 86130 | H106: 92070 | I106: 98010 | J106: Colusa0.9 | K106: 1300 | L106: 1392 | M106: 1671 | N106: 1930 | O106: 2153 | P106: 2376
A107: Colusa1 | B107: =B99*2 -> 57800 | C107: =C99*2 -> 66000 | D107: 74300 | E107: 82500 | F107: 89100 | G107: 95700 | H107: 102300 | I107: 108900 | J107: Colusa1 | K107: =K99*2 -> 1444 | L107: =L99*2 -> 1546 | M107: 1856 | N107: 2144 | O107: 2392 | P107: 2640
A108: Colusa1.1 | B108: =B99*2*1.1 -> 63580 | C108: =C99*2*1.1 -> 72600 | D108: 81730 | E108: 90750 | F108: 98010 | G108: 105270 | H108: 112530 | I108: 119790 | J108: Colusa1.1 | K108: =TRUNC(B108/12*0.3) -> 1589 | L108: =TRUNC((B108+C108)/2/12*0.3) -> 1702 | M108: =TRUNC((D108)/12*0.3) -> 2043 | N108: =TRUNC(((E108+F108)/2)/12*0.3) -> 2359 | O108: =TRUNC(G108/12*0.3) -> 2631 | P108: =TRUNC(((H108+I108)/2)/12*0.3) -> 2904
A109: Colusa1.2 | B109: =B99*2*1.2 -> 69360 | C109: =C99*2*1.2 -> 79200 | D109: 89160 | E109: 99000 | F109: 106920 | G109: 114840 | H109: 122760 | I109: 130680 | J109: Colusa1.2 | K109: 1734 | L109: 1857 | M109: 2229 | N109: 2574 | O109: 2871 | P109: 3168
A110: Contra Costa0.15 | B110: =B117*2*0.15 -> 15540 | C110: =C117*2*0.15 -> 17760 | D110: =D117*2*0.15 -> 19980 | E110: =E117*2*0.15 -> 22185 | F110: =F117*2*0.15 -> 23970 | G110: =G117*2*0.15 -> 25740 | H110: 27510 | I110: 29295 | J110: Contra Costa0.15 | K110: 388 | L110: 416 | M110: 499 | N110: 576 | O110: 643 | P110: 710
A111: Contra Costa0.2 | B111: =B117*2*0.2 -> 20720 | C111: =C117*2*0.2 -> 23680 | D111: 26640 | E111: 29580 | F111: 31960 | G111: 34320 | H111: 36680 | I111: 39060 | J111: Contra Costa0.2 | K111: 518 | L111: 555 | M111: 666 | N111: 769 | O111: 858 | P111: 946
A112: Contra Costa0.25 | B112: =B117*2*0.25 -> 25900 | C112: =C117*2*0.25 -> 29600 | D112: 33300 | E112: 36975 | F112: 39950 | G112: 42900 | H112: 45850 | I112: 48825 | J112: Contra Costa0.25 | K112: 647 | L112: 693 | M112: 832 | N112: 961 | O112: 1072 | P112: 1183
A113: Contra Costa0.3 | B113: =B117*2*0.3 -> 31080 | C113: =C117*2*0.3 -> 35520 | D113: 39960 | E113: 44370 | F113: 47940 | G113: 51480 | H113: 55020 | I113: 58590 | J113: Contra Costa0.3 | K113: 777 | L113: 832 | M113: 999 | N113: 1153 | O113: 1287 | P113: 1420
A114: Contra Costa0.35 | B114: =B117*2*0.35 -> 36260 | C114: =C117*2*0.35 -> 41440 | D114: 46620 | E114: 51765 | F114: 55930 | G114: 60060 | H114: 64190 | I114: 68355 | J114: Contra Costa0.35 | K114: 906 | L114: 971 | M114: 1165 | N114: 1346 | O114: 1501 | P114: 1656
A115: Contra Costa0.4 | B115: =B117*2*0.4 -> 41440 | C115: =C117*2*0.4 -> 47360 | D115: 53280 | E115: 59160 | F115: 63920 | G115: 68640 | H115: 73360 | I115: 78120 | J115: Contra Costa0.4 | K115: 1036 | L115: 1110 | M115: 1332 | N115: 1538 | O115: 1716 | P115: 1893
A116: Contra Costa0.45 | B116: =B117*2*0.45 -> 46620 | C116: =C117*2*0.45 -> 53280 | D116: 59940 | E116: 66555 | F116: 71910 | G116: 77220 | H116: 82530 | I116: 87885 | J116: Contra Costa0.45 | K116: 1165 | L116: 1248 | M116: 1498 | N116: 1730 | O116: 1930 | P116: 2130
A117: Contra Costa0.5 | B117: ='MTSP 50% Income Limits'!B8 -> 51800 | C117: ='MTSP 50% Income Limits'!C8 -> 59200 | D117: ='MTSP 50% Income Limits'!D8 -> 66600 | E117: ='MTSP 50% Income Limits'!E8 -> 73950 | F117: ='MTSP 50% Income Limits'!F8 -> 79900 | G117: ='MTSP 50% Income Limits'!G8 -> 85800 | H117: ='MTSP 50% Income Limits'!H8 -> 91700 | I117: ='MTSP 50% Income Limits'!I8 -> 97650 | J117: Contra Costa0.5 | K117: =TRUNC(B117/12*0.3) -> 1295 | L117: =TRUNC((B117+C117)/2/12*0.3) -> 1387 | M117: =TRUNC((D117)/12*0.3) -> 1665 | N117: =TRUNC(((E117+F117)/2)/12*0.3) -> 1923 | O117: =TRUNC(G117/12*0.3) -> 2145 | P117: =TRUNC(((H117+I117)/2)/12*0.3) -> 2366
A118: Contra Costa0.55 | B118: =B117*2*0.55 -> 56980 | C118: =C117*2*0.55 -> 65120 | D118: 73260 | E118: 81345 | F118: 87890 | G118: 94380 | H118: 100870 | I118: 107415 | J118: Contra Costa0.55 | K118: =TRUNC(B118/12*0.3) -> 1424 | L118: =TRUNC((B118+C118)/2/12*0.3) -> 1526 | M118: =TRUNC((D118)/12*0.3) -> 1831 | N118: =TRUNC(((E118+F118)/2)/12*0.3) -> 2115 | O118: =TRUNC(G118/12*0.3) -> 2359 | P118: =TRUNC(((H118+I118)/2)/12*0.3) -> 2603
A119: Contra Costa0.6 | B119: =B117*2*0.6 -> 62160 | C119: =C117*2*0.6 -> 71040 | D119: 79920 | E119: 88740 | F119: 95880 | G119: 102960 | H119: 110040 | I119: 117180 | J119: Contra Costa0.6 | K119: 1554 | L119: 1665 | M119: 1998 | N119: 2307 | O119: 2574 | P119: 2840
A120: Contra Costa0.65 | B120: =B117*2*0.65 -> 67340 | C120: =C117*2*0.65 -> 76960 | D120: 86580 | E120: 96135 | F120: 103870 | G120: 111540 | H120: 119210 | I120: 126945 | J120: Contra Costa0.65 | K120: 1683 | L120: 1803 | M120: 2164 | N120: 2500 | O120: 2788 | P120: 3076
A121: Contra Costa0.7 | B121: =B117*2*0.7 -> 72520 | C121: =C117*2*0.7 -> 82880 | D121: 93240 | E121: 103530 | F121: 111860 | G121: 120120 | H121: 128380 | I121: 136710 | J121: Contra Costa0.7 | K121: 1813 | L121: 1942 | M121: 2331 | N121: 2692 | O121: 3003 | P121: 3313
A122: Contra Costa0.75 | B122: =B117*2*0.75 -> 77700 | C122: =C117*2*0.75 -> 88800 | D122: 99900 | E122: 110925 | F122: 119850 | G122: 128700 | H122: 137550 | I122: 146475 | J122: Contra Costa0.75 | K122: 1942 | L122: 2081 | M122: 2497 | N122: 2884 | O122: 3217 | P122: 3550
A123: Contra Costa0.8 | B123: =B117*2*0.8 -> 82880 | C123: =C117*2*0.8 -> 94720 | D123: 106560 | E123: 118320 | F123: 127840 | G123: 137280 | H123: 146720 | I123: 156240 | J123: Contra Costa0.8 | K123: 2072 | L123: 2220 | M123: 2664 | N123: 3077 | O123: 3432 | P123: 3787
A124: Contra Costa0.9 | B124: =B117*2*0.9 -> 93240 | C124: =C117*2*0.9 -> 106560 | D124: 119880 | E124: 133110 | F124: 143820 | G124: 154440 | H124: 165060 | I124: 175770 | J124: Contra Costa0.9 | K124: 2331 | L124: 2497 | M124: 2997 | N124: 3461 | O124: 3861 | P124: 4260
A125: Contra Costa1 | B125: =B117*2 -> 103600 | C125: =C117*2 -> 118400 | D125: 133200 | E125: 147900 | F125: 159800 | G125: 171600 | H125: 183400 | I125: 195300 | J125: Contra Costa1 | K125: =K117*2 -> 2590 | L125: =L117*2 -> 2774 | M125: 3330 | N125: 3846 | O125: 4290 | P125: 4732
A126: Contra Costa1.1 | B126: =B117*2*1.1 -> 113960 | C126: =C117*2*1.1 -> 130240 | D126: 146520 | E126: 162690 | F126: 175780 | G126: 188760 | H126: 201740 | I126: 214830 | J126: Contra Costa1.1 | K126: =TRUNC(B126/12*0.3) -> 2849 | L126: =TRUNC((B126+C126)/2/12*0.3) -> 3052 | M126: =TRUNC((D126)/12*0.3) -> 3663 | N126: =TRUNC(((E126+F126)/2)/12*0.3) -> 4230 | O126: =TRUNC(G126/12*0.3) -> 4719 | P126: =TRUNC(((H126+I126)/2)/12*0.3) -> 5207
A127: Contra Costa1.2 | B127: =B117*2*1.2 -> 124320 | C127: =C117*2*1.2 -> 142080 | D127: 159840 | E127: 177480 | F127: 191760 | G127: 205920 | H127: 220080 | I127: 234360 | J127: Contra Costa1.2 | K127: 3108 | L127: 3330 | M127: 3996 | N127: 4615 | O127: 5148 | P127: 5680
A128: Del Norte0.15 | B128: =B135*2*0.15 -> 8670 | C128: =C135*2*0.15 -> 9900 | D128: =D135*2*0.15 -> 11145 | E128: =E135*2*0.15 -> 12375 | F128: =F135*2*0.15 -> 13365 | G128: =G135*2*0.15 -> 14355 | H128: 15345 | I128: 16335 | J128: Del Norte0.15 | K128: 216 | L128: 232 | M128: 278 | N128: 321 | O128: 358 | P128: 396
A129: Del Norte0.2 | B129: =B135*2*0.2 -> 11560 | C129: =C135*2*0.2 -> 13200 | D129: 14860 | E129: 16500 | F129: 17820 | G129: 19140 | H129: 20460 | I129: 21780 | J129: Del Norte0.2 | K129: 289 | L129: 309 | M129: 371 | N129: 429 | O129: 478 | P129: 528
A130: Del Norte0.25 | B130: =B135*2*0.25 -> 14450 | C130: =C135*2*0.25 -> 16500 | D130: 18575 | E130: 20625 | F130: 22275 | G130: 23925 | H130: 25575 | I130: 27225 | J130: Del Norte0.25 | K130: 361 | L130: 386 | M130: 464 | N130: 536 | O130: 598 | P130: 660
A131: Del Norte0.3 | B131: =B135*2*0.3 -> 17340 | C131: =C135*2*0.3 -> 19800 | D131: 22290 | E131: 24750 | F131: 26730 | G131: 28710 | H131: 30690 | I131: 32670 | J131: Del Norte0.3 | K131: 433 | L131: 464 | M131: 557 | N131: 643 | O131: 717 | P131: 792
A132: Del Norte0.35 | B132: =B135*2*0.35 -> 20230 | C132: =C135*2*0.35 -> 23100 | D132: 26005 | E132: 28875 | F132: 31185 | G132: 33495 | H132: 35805 | I132: 38115 | J132: Del Norte0.35 | K132: 505 | L132: 541 | M132: 650 | N132: 750 | O132: 837 | P132: 924
A133: Del Norte0.4 | B133: =B135*2*0.4 -> 23120 | C133: =C135*2*0.4 -> 26400 | D133: 29720 | E133: 33000 | F133: 35640 | G133: 38280 | H133: 40920 | I133: 43560 | J133: Del Norte0.4 | K133: 578 | L133: 619 | M133: 743 | N133: 858 | O133: 957 | P133: 1056
A134: Del Norte0.45 | B134: =B135*2*0.45 -> 26010 | C134: =C135*2*0.45 -> 29700 | D134: 33435 | E134: 37125 | F134: 40095 | G134: 43065 | H134: 46035 | I134: 49005 | J134: Del Norte0.45 | K134: 650 | L134: 696 | M134: 835 | N134: 965 | O134: 1076 | P134: 1188
A135: Del Norte0.5 | B135: ='MTSP 50% Income Limits'!B9 -> 28900 | C135: ='MTSP 50% Income Limits'!C9 -> 33000 | D135: ='MTSP 50% Income Limits'!D9 -> 37150 | E135: ='MTSP 50% Income Limits'!E9 -> 41250 | F135: ='MTSP 50% Income Limits'!F9 -> 44550 | G135: ='MTSP 50% Income Limits'!G9 -> 47850 | H135: ='MTSP 50% Income Limits'!H9 -> 51150 | I135: ='MTSP 50% Income Limits'!I9 -> 54450 | J135: Del Norte0.5 | K135: =TRUNC(B135/12*0.3) -> 722 | L135: =TRUNC((B135+C135)/2/12*0.3) -> 773 | M135: =TRUNC((D135)/12*0.3) -> 928 | N135: =TRUNC(((E135+F135)/2)/12*0.3) -> 1072 | O135: =TRUNC(G135/12*0.3) -> 1196 | P135: =TRUNC(((H135+I135)/2)/12*0.3) -> 1320
A136: Del Norte0.55 | B136: =B135*2*0.55 -> 31790 | C136: =C135*2*0.55 -> 36300 | D136: 40865 | E136: 45375 | F136: 49005 | G136: 52635 | H136: 56265 | I136: 59895 | J136: Del Norte0.55 | K136: =TRUNC(B136/12*0.3) -> 794 | L136: =TRUNC((B136+C136)/2/12*0.3) -> 851 | M136: =TRUNC((D136)/12*0.3) -> 1021 | N136: =TRUNC(((E136+F136)/2)/12*0.3) -> 1179 | O136: =TRUNC(G136/12*0.3) -> 1315 | P136: =TRUNC(((H136+I136)/2)/12*0.3) -> 1452
A137: Del Norte0.6 | B137: =B135*2*0.6 -> 34680 | C137: =C135*2*0.6 -> 39600 | D137: 44580 | E137: 49500 | F137: 53460 | G137: 57420 | H137: 61380 | I137: 65340 | J137: Del Norte0.6 | K137: 867 | L137: 928 | M137: 1114 | N137: 1287 | O137: 1435 | P137: 1584
A138: Del Norte0.65 | B138: =B135*2*0.65 -> 37570 | C138: =C135*2*0.65 -> 42900 | D138: 48295 | E138: 53625 | F138: 57915 | G138: 62205 | H138: 66495 | I138: 70785 | J138: Del Norte0.65 | K138: 939 | L138: 1005 | M138: 1207 | N138: 1394 | O138: 1555 | P138: 1716
A139: Del Norte0.7 | B139: =B135*2*0.7 -> 40460 | C139: =C135*2*0.7 -> 46200 | D139: 52010 | E139: 57750 | F139: 62370 | G139: 66990 | H139: 71610 | I139: 76230 | J139: Del Norte0.7 | K139: 1011 | L139: 1083 | M139: 1300 | N139: 1501 | O139: 1674 | P139: 1848
A140: Del Norte0.75 | B140: =B135*2*0.75 -> 43350 | C140: =C135*2*0.75 -> 49500 | D140: 55725 | E140: 61875 | F140: 66825 | G140: 71775 | H140: 76725 | I140: 81675 | J140: Del Norte0.75 | K140: 1083 | L140: 1160 | M140: 1393 | N140: 1608 | O140: 1794 | P140: 1980
A141: Del Norte0.8 | B141: =B135*2*0.8 -> 46240 | C141: =C135*2*0.8 -> 52800 | D141: 59440 | E141: 66000 | F141: 71280 | G141: 76560 | H141: 81840 | I141: 87120 | J141: Del Norte0.8 | K141: 1156 | L141: 1238 | M141: 1486 | N141: 1716 | O141: 1914 | P141: 2112
A142: Del Norte0.9 | B142: =B135*2*0.9 -> 52020 | C142: =C135*2*0.9 -> 59400 | D142: 66870 | E142: 74250 | F142: 80190 | G142: 86130 | H142: 92070 | I142: 98010 | J142: Del Norte0.9 | K142: 1300 | L142: 1392 | M142: 1671 | N142: 1930 | O142: 2153 | P142: 2376
A143: Del Norte1 | B143: =B135*2 -> 57800 | C143: =C135*2 -> 66000 | D143: 74300 | E143: 82500 | F143: 89100 | G143: 95700 | H143: 102300 | I143: 108900 | J143: Del Norte1 | K143: =K135*2 -> 1444 | L143: =L135*2 -> 1546 | M143: 1856 | N143: 2144 | O143: 2392 | P143: 2640
A144: Del Norte1.1 | B144: =B135*2*1.1 -> 63580 | C144: =C135*2*1.1 -> 72600 | D144: 81730 | E144: 90750 | F144: 98010 | G144: 105270 | H144: 112530 | I144: 119790 | J144: Del Norte1.1 | K144: =TRUNC(B144/12*0.3) -> 1589 | L144: =TRUNC((B144+C144)/2/12*0.3) -> 1702 | M144: =TRUNC((D144)/12*0.3) -> 2043 | N144: =TRUNC(((E144+F144)/2)/12*0.3) -> 2359 | O144: =TRUNC(G144/12*0.3) -> 2631 | P144: =TRUNC(((H144+I144)/2)/12*0.3) -> 2904
A145: Del Norte1.2 | B145: =B135*2*1.2 -> 69360 | C145: =C135*2*1.2 -> 79200 | D145: 89160 | E145: 99000 | F145: 106920 | G145: 114840 | H145: 122760 | I145: 130680 | J145: Del Norte1.2 | K145: 1734 | L145: 1857 | M145: 2229 | N145: 2574 | O145: 2871 | P145: 3168
A146: El Dorado0.15 | B146: =B153*2*0.15 -> 11265 | C146: =C153*2*0.15 -> 12870 | D146: =D153*2*0.15 -> 14475 | E146: =E153*2*0.15 -> 16080 | F146: =F153*2*0.15 -> 17370 | G146: =G153*2*0.15 -> 18660 | H146: 19950 | I146: 21240 | J146: El Dorado0.15 | K146: 281 | L146: 301 | M146: 361 | N146: 418 | O146: 466 | P146: 514
A147: El Dorado0.2 | B147: =B153*2*0.2 -> 15020 | C147: =C153*2*0.2 -> 17160 | D147: 19300 | E147: 21440 | F147: 23160 | G147: 24880 | H147: 26600 | I147: 28320 | J147: El Dorado0.2 | K147: 375 | L147: 402 | M147: 482 | N147: 557 | O147: 622 | P147: 686
A148: El Dorado0.25 | B148: =B153*2*0.25 -> 18775 | C148: =C153*2*0.25 -> 21450 | D148: 24125 | E148: 26800 | F148: 28950 | G148: 31100 | H148: 33250 | I148: 35400 | J148: El Dorado0.25 | K148: 469 | L148: 502 | M148: 603 | N148: 696 | O148: 777 | P148: 858
A149: El Dorado0.3 | B149: =B153*2*0.3 -> 22530 | C149: =C153*2*0.3 -> 25740 | D149: 28950 | E149: 32160 | F149: 34740 | G149: 37320 | H149: 39900 | I149: 42480 | J149: El Dorado0.3 | K149: 563 | L149: 603 | M149: 723 | N149: 836 | O149: 933 | P149: 1029
A150: El Dorado0.35 | B150: =B153*2*0.35 -> 26285 | C150: =C153*2*0.35 -> 30030 | D150: 33775 | E150: 37520 | F150: 40530 | G150: 43540 | H150: 46550 | I150: 49560 | J150: El Dorado0.35 | K150: 657 | L150: 703 | M150: 844 | N150: 975 | O150: 1088 | P150: 1201
A151: El Dorado0.4 | B151: =B153*2*0.4 -> 30040 | C151: =C153*2*0.4 -> 34320 | D151: 38600 | E151: 42880 | F151: 46320 | G151: 49760 | H151: 53200 | I151: 56640 | J151: El Dorado0.4 | K151: 751 | L151: 804 | M151: 965 | N151: 1115 | O151: 1244 | P151: 1373
A152: El Dorado0.45 | B152: =B153*2*0.45 -> 33795 | C152: =C153*2*0.45 -> 38610 | D152: 43425 | E152: 48240 | F152: 52110 | G152: 55980 | H152: 59850 | I152: 63720 | J152: El Dorado0.45 | K152: 844 | L152: 905 | M152: 1085 | N152: 1254 | O152: 1399 | P152: 1544
A153: El Dorado0.5 | B153: ='MTSP 50% Income Limits'!B10 -> 37550 | C153: ='MTSP 50% Income Limits'!C10 -> 42900 | D153: ='MTSP 50% Income Limits'!D10 -> 48250 | E153: ='MTSP 50% Income Limits'!E10 -> 53600 | F153: ='MTSP 50% Income Limits'!F10 -> 57900 | G153: ='MTSP 50% Income Limits'!G10 -> 62200 | H153: ='MTSP 50% Income Limits'!H10 -> 66500 | I153: ='MTSP 50% Income Limits'!I10 -> 70800 | J153: El Dorado0.5 | K153: =TRUNC(B153/12*0.3) -> 938 | L153: =TRUNC((B153+C153)/2/12*0.3) -> 1005 | M153: =TRUNC((D153)/12*0.3) -> 1206 | N153: =TRUNC(((E153+F153)/2)/12*0.3) -> 1393 | O153: =TRUNC(G153/12*0.3) -> 1555 | P153: =TRUNC(((H153+I153)/2)/12*0.3) -> 1716
A154: El Dorado0.55 | B154: =B153*2*0.55 -> 41305 | C154: =C153*2*0.55 -> 47190 | D154: 53075 | E154: 58960 | F154: 63690 | G154: 68420 | H154: 73150 | I154: 77880 | J154: El Dorado0.55 | K154: =TRUNC(B154/12*0.3) -> 1032 | L154: =TRUNC((B154+C154)/2/12*0.3) -> 1106 | M154: =TRUNC((D154)/12*0.3) -> 1326 | N154: =TRUNC(((E154+F154)/2)/12*0.3) -> 1533 | O154: =TRUNC(G154/12*0.3) -> 1710 | P154: =TRUNC(((H154+I154)/2)/12*0.3) -> 1887
A155: El Dorado0.6 | B155: =B153*2*0.6 -> 45060 | C155: =C153*2*0.6 -> 51480 | D155: 57900 | E155: 64320 | F155: 69480 | G155: 74640 | H155: 79800 | I155: 84960 | J155: El Dorado0.6 | K155: 1126 | L155: 1206 | M155: 1447 | N155: 1672 | O155: 1866 | P155: 2059
A156: El Dorado0.65 | B156: =B153*2*0.65 -> 48815 | C156: =C153*2*0.65 -> 55770 | D156: 62725 | E156: 69680 | F156: 75270 | G156: 80860 | H156: 86450 | I156: 92040 | J156: El Dorado0.65 | K156: 1220 | L156: 1307 | M156: 1568 | N156: 1811 | O156: 2021 | P156: 2231
A157: El Dorado0.7 | B157: =B153*2*0.7 -> 52570 | C157: =C153*2*0.7 -> 60060 | D157: 67550 | E157: 75040 | F157: 81060 | G157: 87080 | H157: 93100 | I157: 99120 | J157: El Dorado0.7 | K157: 1314 | L157: 1407 | M157: 1688 | N157: 1951 | O157: 2177 | P157: 2402
A158: El Dorado0.75 | B158: =B153*2*0.75 -> 56325 | C158: =C153*2*0.75 -> 64350 | D158: 72375 | E158: 80400 | F158: 86850 | G158: 93300 | H158: 99750 | I158: 106200 | J158: El Dorado0.75 | K158: 1408 | L158: 1508 | M158: 1809 | N158: 2090 | O158: 2332 | P158: 2574
A159: El Dorado0.8 | B159: =B153*2*0.8 -> 60080 | C159: =C153*2*0.8 -> 68640 | D159: 77200 | E159: 85760 | F159: 92640 | G159: 99520 | H159: 106400 | I159: 113280 | J159: El Dorado0.8 | K159: 1502 | L159: 1609 | M159: 1930 | N159: 2230 | O159: 2488 | P159: 2746
A160: El Dorado0.9 | B160: =B153*2*0.9 -> 67590 | C160: =C153*2*0.9 -> 77220 | D160: 86850 | E160: 96480 | F160: 104220 | G160: 111960 | H160: 119700 | I160: 127440 | J160: El Dorado0.9 | K160: 1689 | L160: 1810 | M160: 2171 | N160: 2508 | O160: 2799 | P160: 3089
A161: El Dorado1 | B161: =B153*2 -> 75100 | C161: =C153*2 -> 85800 | D161: 96500 | E161: 107200 | F161: 115800 | G161: 124400 | H161: 133000 | I161: 141600 | J161: El Dorado1 | K161: =K153*2 -> 1876 | L161: =L153*2 -> 2010 | M161: 2412 | N161: 2786 | O161: 3110 | P161: 3432
A162: El Dorado1.1 | B162: =B153*2*1.1 -> 82610 | C162: =C153*2*1.1 -> 94380 | D162: 106150 | E162: 117920 | F162: 127380 | G162: 136840 | H162: 146300 | I162: 155760 | J162: El Dorado1.1 | K162: =TRUNC(B162/12*0.3) -> 2065 | L162: =TRUNC((B162+C162)/2/12*0.3) -> 2212 | M162: =TRUNC((D162)/12*0.3) -> 2653 | N162: =TRUNC(((E162+F162)/2)/12*0.3) -> 3066 | O162: =TRUNC(G162/12*0.3) -> 3421 | P162: =TRUNC(((H162+I162)/2)/12*0.3) -> 3775
A163: El Dorado1.2 | B163: =B153*2*1.2 -> 90120 | C163: =C153*2*1.2 -> 102960 | D163: 115800 | E163: 128640 | F163: 138960 | G163: 149280 | H163: 159600 | I163: 169920 | J163: El Dorado1.2 | K163: 2253 | L163: 2413 | M163: 2895 | N163: 3345 | O163: 3732 | P163: 4119
A164: Fresno0.15 | B164: =B171*2*0.15 -> 8670 | C164: =C171*2*0.15 -> 9900 | D164: =D171*2*0.15 -> 11145 | E164: =E171*2*0.15 -> 12375 | F164: =F171*2*0.15 -> 13365 | G164: =G171*2*0.15 -> 14355 | H164: 15345 | I164: 16335 | J164: Fresno0.15 | K164: 216 | L164: 232 | M164: 278 | N164: 321 | O164: 358 | P164: 396
A165: Fresno0.2 | B165: =B171*2*0.2 -> 11560 | C165: =C171*2*0.2 -> 13200 | D165: 14860 | E165: 16500 | F165: 17820 | G165: 19140 | H165: 20460 | I165: 21780 | J165: Fresno0.2 | K165: 289 | L165: 309 | M165: 371 | N165: 429 | O165: 478 | P165: 528
A166: Fresno0.25 | B166: =B171*2*0.25 -> 14450 | C166: =C171*2*0.25 -> 16500 | D166: 18575 | E166: 20625 | F166: 22275 | G166: 23925 | H166: 25575 | I166: 27225 | J166: Fresno0.25 | K166: 361 | L166: 386 | M166: 464 | N166: 536 | O166: 598 | P166: 660
A167: Fresno0.3 | B167: =B171*2*0.3 -> 17340 | C167: =C171*2*0.3 -> 19800 | D167: 22290 | E167: 24750 | F167: 26730 | G167: 28710 | H167: 30690 | I167: 32670 | J167: Fresno0.3 | K167: 433 | L167: 464 | M167: 557 | N167: 643 | O167: 717 | P167: 792
A168: Fresno0.35 | B168: =B171*2*0.35 -> 20230 | C168: =C171*2*0.35 -> 23100 | D168: 26005 | E168: 28875 | F168: 31185 | G168: 33495 | H168: 35805 | I168: 38115 | J168: Fresno0.35 | K168: 505 | L168: 541 | M168: 650 | N168: 750 | O168: 837 | P168: 924
A169: Fresno0.4 | B169: =B171*2*0.4 -> 23120 | C169: =C171*2*0.4 -> 26400 | D169: 29720 | E169: 33000 | F169: 35640 | G169: 38280 | H169: 40920 | I169: 43560 | J169: Fresno0.4 | K169: 578 | L169: 619 | M169: 743 | N169: 858 | O169: 957 | P169: 1056
A170: Fresno0.45 | B170: =B171*2*0.45 -> 26010 | C170: =C171*2*0.45 -> 29700 | D170: 33435 | E170: 37125 | F170: 40095 | G170: 43065 | H170: 46035 | I170: 49005 | J170: Fresno0.45 | K170: 650 | L170: 696 | M170: 835 | N170: 965 | O170: 1076 | P170: 1188
A171: Fresno0.5 | B171: ='MTSP 50% Income Limits'!B11 -> 28900 | C171: ='MTSP 50% Income Limits'!C11 -> 33000 | D171: ='MTSP 50% Income Limits'!D11 -> 37150 | E171: ='MTSP 50% Income Limits'!E11 -> 41250 | F171: ='MTSP 50% Income Limits'!F11 -> 44550 | G171: ='MTSP 50% Income Limits'!G11 -> 47850 | H171: ='MTSP 50% Income Limits'!H11 -> 51150 | I171: ='MTSP 50% Income Limits'!I11 -> 54450 | J171: Fresno0.5 | K171: =TRUNC(B171/12*0.3) -> 722 | L171: =TRUNC((B171+C171)/2/12*0.3) -> 773 | M171: =TRUNC((D171)/12*0.3) -> 928 | N171: =TRUNC(((E171+F171)/2)/12*0.3) -> 1072 | O171: =TRUNC(G171/12*0.3) -> 1196 | P171: =TRUNC(((H171+I171)/2)/12*0.3) -> 1320
A172: Fresno0.55 | B172: =B171*2*0.55 -> 31790 | C172: =C171*2*0.55 -> 36300 | D172: 40865 | E172: 45375 | F172: 49005 | G172: 52635 | H172: 56265 | I172: 59895 | J172: Fresno0.55 | K172: =TRUNC(B172/12*0.3) -> 794 | L172: =TRUNC((B172+C172)/2/12*0.3) -> 851 | M172: =TRUNC((D172)/12*0.3) -> 1021 | N172: =TRUNC(((E172+F172)/2)/12*0.3) -> 1179 | O172: =TRUNC(G172/12*0.3) -> 1315 | P172: =TRUNC(((H172+I172)/2)/12*0.3) -> 1452
A173: Fresno0.6 | B173: =B171*2*0.6 -> 34680 | C173: =C171*2*0.6 -> 39600 | D173: 44580 | E173: 49500 | F173: 53460 | G173: 57420 | H173: 61380 | I173: 65340 | J173: Fresno0.6 | K173: 867 | L173: 928 | M173: 1114 | N173: 1287 | O173: 1435 | P173: 1584
A174: Fresno0.65 | B174: =B171*2*0.65 -> 37570 | C174: =C171*2*0.65 -> 42900 | D174: 48295 | E174: 53625 | F174: 57915 | G174: 62205 | H174: 66495 | I174: 70785 | J174: Fresno0.65 | K174: 939 | L174: 1005 | M174: 1207 | N174: 1394 | O174: 1555 | P174: 1716
A175: Fresno0.7 | B175: =B171*2*0.7 -> 40460 | C175: =C171*2*0.7 -> 46200 | D175: 52010 | E175: 57750 | F175: 62370 | G175: 66990 | H175: 71610 | I175: 76230 | J175: Fresno0.7 | K175: 1011 | L175: 1083 | M175: 1300 | N175: 1501 | O175: 1674 | P175: 1848
A176: Fresno0.75 | B176: =B171*2*0.75 -> 43350 | C176: =C171*2*0.75 -> 49500 | D176: 55725 | E176: 61875 | F176: 66825 | G176: 71775 | H176: 76725 | I176: 81675 | J176: Fresno0.75 | K176: 1083 | L176: 1160 | M176: 1393 | N176: 1608 | O176: 1794 | P176: 1980
A177: Fresno0.8 | B177: =B171*2*0.8 -> 46240 | C177: =C171*2*0.8 -> 52800 | D177: 59440 | E177: 66000 | F177: 71280 | G177: 76560 | H177: 81840 | I177: 87120 | J177: Fresno0.8 | K177: 1156 | L177: 1238 | M177: 1486 | N177: 1716 | O177: 1914 | P177: 2112
A178: Fresno0.9 | B178: =B171*2*0.9 -> 52020 | C178: =C171*2*0.9 -> 59400 | D178: 66870 | E178: 74250 | F178: 80190 | G178: 86130 | H178: 92070 | I178: 98010 | J178: Fresno0.9 | K178: 1300 | L178: 1392 | M178: 1671 | N178: 1930 | O178: 2153 | P178: 2376
A179: Fresno1 | B179: =B171*2 -> 57800 | C179: =C171*2 -> 66000 | D179: 74300 | E179: 82500 | F179: 89100 | G179: 95700 | H179: 102300 | I179: 108900 | J179: Fresno1 | K179: =K171*2 -> 1444 | L179: =L171*2 -> 1546 | M179: 1856 | N179: 2144 | O179: 2392 | P179: 2640
A180: Fresno1.1 | B180: =B171*2*1.1 -> 63580 | C180: =C171*2*1.1 -> 72600 | D180: 81730 | E180: 90750 | F180: 98010 | G180: 105270 | H180: 112530 | I180: 119790 | J180: Fresno1.1 | K180: =TRUNC(B180/12*0.3) -> 1589 | L180: =TRUNC((B180+C180)/2/12*0.3) -> 1702 | M180: =TRUNC((D180)/12*0.3) -> 2043 | N180: =TRUNC(((E180+F180)/2)/12*0.3) -> 2359 | O180: =TRUNC(G180/12*0.3) -> 2631 | P180: =TRUNC(((H180+I180)/2)/12*0.3) -> 2904
A181: Fresno1.2 | B181: =B171*2*1.2 -> 69360 | C181: =C171*2*1.2 -> 79200 | D181: 89160 | E181: 99000 | F181: 106920 | G181: 114840 | H181: 122760 | I181: 130680 | J181: Fresno1.2 | K181: 1734 | L181: 1857 | M181: 2229 | N181: 2574 | O181: 2871 | P181: 3168
A182: Glenn0.15 | B182: =B189*2*0.15 -> 8670 | C182: =C189*2*0.15 -> 9900 | D182: =D189*2*0.15 -> 11145 | E182: =E189*2*0.15 -> 12375 | F182: =F189*2*0.15 -> 13365 | G182: =G189*2*0.15 -> 14355 | H182: 15345 | I182: 16335 | J182: Glenn0.15 | K182: 216 | L182: 232 | M182: 278 | N182: 321 | O182: 358 | P182: 396
A183: Glenn0.2 | B183: =B189*2*0.2 -> 11560 | C183: =C189*2*0.2 -> 13200 | D183: 14860 | E183: 16500 | F183: 17820 | G183: 19140 | H183: 20460 | I183: 21780 | J183: Glenn0.2 | K183: 289 | L183: 309 | M183: 371 | N183: 429 | O183: 478 | P183: 528
A184: Glenn0.25 | B184: =B189*2*0.25 -> 14450 | C184: =C189*2*0.25 -> 16500 | D184: 18575 | E184: 20625 | F184: 22275 | G184: 23925 | H184: 25575 | I184: 27225 | J184: Glenn0.25 | K184: 361 | L184: 386 | M184: 464 | N184: 536 | O184: 598 | P184: 660
A185: Glenn0.3 | B185: =B189*2*0.3 -> 17340 | C185: =C189*2*0.3 -> 19800 | D185: 22290 | E185: 24750 | F185: 26730 | G185: 28710 | H185: 30690 | I185: 32670 | J185: Glenn0.3 | K185: 433 | L185: 464 | M185: 557 | N185: 643 | O185: 717 | P185: 792
A186: Glenn0.35 | B186: =B189*2*0.35 -> 20230 | C186: =C189*2*0.35 -> 23100 | D186: 26005 | E186: 28875 | F186: 31185 | G186: 33495 | H186: 35805 | I186: 38115 | J186: Glenn0.35 | K186: 505 | L186: 541 | M186: 650 | N186: 750 | O186: 837 | P186: 924
A187: Glenn0.4 | B187: =B189*2*0.4 -> 23120 | C187: =C189*2*0.4 -> 26400 | D187: 29720 | E187: 33000 | F187: 35640 | G187: 38280 | H187: 40920 | I187: 43560 | J187: Glenn0.4 | K187: 578 | L187: 619 | M187: 743 | N187: 858 | O187: 957 | P187: 1056
A188: Glenn0.45 | B188: =B189*2*0.45 -> 26010 | C188: =C189*2*0.45 -> 29700 | D188: 33435 | E188: 37125 | F188: 40095 | G188: 43065 | H188: 46035 | I188: 49005 | J188: Glenn0.45 | K188: 650 | L188: 696 | M188: 835 | N188: 965 | O188: 1076 | P188: 1188
A189: Glenn0.5 | B189: ='MTSP 50% Income Limits'!B12 -> 28900 | C189: ='MTSP 50% Income Limits'!C12 -> 33000 | D189: ='MTSP 50% Income Limits'!D12 -> 37150 | E189: ='MTSP 50% Income Limits'!E12 -> 41250 | F189: ='MTSP 50% Income Limits'!F12 -> 44550 | G189: ='MTSP 50% Income Limits'!G12 -> 47850 | H189: ='MTSP 50% Income Limits'!H12 -> 51150 | I189: ='MTSP 50% Income Limits'!I12 -> 54450 | J189: Glenn0.5 | K189: =TRUNC(B189/12*0.3) -> 722 | L189: =TRUNC((B189+C189)/2/12*0.3) -> 773 | M189: =TRUNC((D189)/12*0.3) -> 928 | N189: =TRUNC(((E189+F189)/2)/12*0.3) -> 1072 | O189: =TRUNC(G189/12*0.3) -> 1196 | P189: =TRUNC(((H189+I189)/2)/12*0.3) -> 1320
A190: Glenn0.55 | B190: =B189*2*0.55 -> 31790 | C190: =C189*2*0.55 -> 36300 | D190: 40865 | E190: 45375 | F190: 49005 | G190: 52635 | H190: 56265 | I190: 59895 | J190: Glenn0.55 | K190: =TRUNC(B190/12*0.3) -> 794 | L190: =TRUNC((B190+C190)/2/12*0.3) -> 851 | M190: =TRUNC((D190)/12*0.3) -> 1021 | N190: =TRUNC(((E190+F190)/2)/12*0.3) -> 1179 | O190: =TRUNC(G190/12*0.3) -> 1315 | P190: =TRUNC(((H190+I190)/2)/12*0.3) -> 1452
A191: Glenn0.6 | B191: =B189*2*0.6 -> 34680 | C191: =C189*2*0.6 -> 39600 | D191: 44580 | E191: 49500 | F191: 53460 | G191: 57420 | H191: 61380 | I191: 65340 | J191: Glenn0.6 | K191: 867 | L191: 928 | M191: 1114 | N191: 1287 | O191: 1435 | P191: 1584
A192: Glenn0.65 | B192: =B189*2*0.65 -> 37570 | C192: =C189*2*0.65 -> 42900 | D192: 48295 | E192: 53625 | F192: 57915 | G192: 62205 | H192: 66495 | I192: 70785 | J192: Glenn0.65 | K192: 939 | L192: 1005 | M192: 1207 | N192: 1394 | O192: 1555 | P192: 1716
A193: Glenn0.7 | B193: =B189*2*0.7 -> 40460 | C193: =C189*2*0.7 -> 46200 | D193: 52010 | E193: 57750 | F193: 62370 | G193: 66990 | H193: 71610 | I193: 76230 | J193: Glenn0.7 | K193: 1011 | L193: 1083 | M193: 1300 | N193: 1501 | O193: 1674 | P193: 1848
A194: Glenn0.75 | B194: =B189*2*0.75 -> 43350 | C194: =C189*2*0.75 -> 49500 | D194: 55725 | E194: 61875 | F194: 66825 | G194: 71775 | H194: 76725 | I194: 81675 | J194: Glenn0.75 | K194: 1083 | L194: 1160 | M194: 1393 | N194: 1608 | O194: 1794 | P194: 1980
A195: Glenn0.8 | B195: =B189*2*0.8 -> 46240 | C195: =C189*2*0.8 -> 52800 | D195: 59440 | E195: 66000 | F195: 71280 | G195: 76560 | H195: 81840 | I195: 87120 | J195: Glenn0.8 | K195: 1156 | L195: 1238 | M195: 1486 | N195: 1716 | O195: 1914 | P195: 2112
A196: Glenn0.9 | B196: =B189*2*0.9 -> 52020 | C196: =C189*2*0.9 -> 59400 | D196: 66870 | E196: 74250 | F196: 80190 | G196: 86130 | H196: 92070 | I196: 98010 | J196: Glenn0.9 | K196: 1300 | L196: 1392 | M196: 1671 | N196: 1930 | O196: 2153 | P196: 2376
A197: Glenn1 | B197: =B189*2 -> 57800 | C197: =C189*2 -> 66000 | D197: 74300 | E197: 82500 | F197: 89100 | G197: 95700 | H197: 102300 | I197: 108900 | J197: Glenn1 | K197: =K189*2 -> 1444 | L197: =L189*2 -> 1546 | M197: 1856 | N197: 2144 | O197: 2392 | P197: 2640
A198: Glenn1.1 | B198: =B189*2*1.1 -> 63580 | C198: =C189*2*1.1 -> 72600 | D198: 81730 | E198: 90750 | F198: 98010 | G198: 105270 | H198: 112530 | I198: 119790 | J198: Glenn1.1 | K198: =TRUNC(B198/12*0.3) -> 1589 | L198: =TRUNC((B198+C198)/2/12*0.3) -> 1702 | M198: =TRUNC((D198)/12*0.3) -> 2043 | N198: =TRUNC(((E198+F198)/2)/12*0.3) -> 2359 | O198: =TRUNC(G198/12*0.3) -> 2631 | P198: =TRUNC(((H198+I198)/2)/12*0.3) -> 2904
A199: Glenn1.2 | B199: =B189*2*1.2 -> 69360 | C199: =C189*2*1.2 -> 79200 | D199: 89160 | E199: 99000 | F199: 106920 | G199: 114840 | H199: 122760 | I199: 130680 | J199: Glenn1.2 | K199: 1734 | L199: 1857 | M199: 2229 | N199: 2574 | O199: 2871 | P199: 3168
A200: Humboldt0.15 | B200: =B207*2*0.15 -> 8670 | C200: =C207*2*0.15 -> 9900 | D200: =D207*2*0.15 -> 11145 | E200: =E207*2*0.15 -> 12375 | F200: =F207*2*0.15 -> 13365 | G200: =G207*2*0.15 -> 14355 | H200: 15345 | I200: 16335 | J200: Humboldt0.15 | K200: 216 | L200: 232 | M200: 278 | N200: 321 | O200: 358 | P200: 396
... 845 more rows

Sheet MTSP 50% Income Limits (hidden)
A1: county_name | B1: lim50_23p1 | C1: lim50_23p2 | D1: lim50_23p3 | E1: lim50_23p4 | F1: lim50_23p5 | G1: lim50_23p6 | H1: lim50_23p7 | I1: lim50_23p8
A2: Alameda | B2: 51800 | C2: 59200 | D2: 66600 | E2: 73950 | F2: 79900 | G2: 85800 | H2: 91700 | I2: 97650
A3: Alpine | B3: 33650 | C3: 38450 | D3: 43250 | E3: 48050 | F3: 51900 | G3: 55750 | H3: 59600 | I3: 63450
A4: Amador | B4: 32100 | C4: 36700 | D4: 41300 | E4: 45850 | F4: 49550 | G4: 53200 | H4: 56900 | I4: 60550
A5: Butte | B5: 28900 | C5: 33000 | D5: 37150 | E5: 41250 | F5: 44550 | G5: 47850 | H5: 51150 | I5: 54450
A6: Calaveras | B6: 33400 | C6: 38150 | D6: 42900 | E6: 47650 | F6: 51500 | G6: 55300 | H6: 59100 | I6: 62900
A7: Colusa | B7: 28900 | C7: 33000 | D7: 37150 | E7: 41250 | F7: 44550 | G7: 47850 | H7: 51150 | I7: 54450
A8: Contra Costa | B8: 51800 | C8: 59200 | D8: 66600 | E8: 73950 | F8: 79900 | G8: 85800 | H8: 91700 | I8: 97650
A9: Del Norte | B9: 28900 | C9: 33000 | D9: 37150 | E9: 41250 | F9: 44550 | G9: 47850 | H9: 51150 | I9: 54450
A10: El Dorado | B10: 37550 | C10: 42900 | D10: 48250 | E10: 53600 | F10: 57900 | G10: 62200 | H10: 66500 | I10: 70800
A11: Fresno | B11: 28900 | C11: 33000 | D11: 37150 | E11: 41250 | F11: 44550 | G11: 47850 | H11: 51150 | I11: 54450
A12: Glenn | B12: 28900 | C12: 33000 | D12: 37150 | E12: 41250 | F12: 44550 | G12: 47850 | H12: 51150 | I12: 54450
A13: Humboldt | B13: 28900 | C13: 33000 | D13: 37150 | E13: 41250 | F13: 44550 | G13: 47850 | H13: 51150 | I13: 54450
A14: Imperial | B14: 28900 | C14: 33000 | D14: 37150 | E14: 41250 | F14: 44550 | G14: 47850 | H14: 51150 | I14: 54450
A15: Inyo | B15: 29900 | C15: 34200 | D15: 38450 | E15: 42700 | F15: 46150 | G15: 49550 | H15: 52950 | I15: 56400
A16: Kern | B16: 28900 | C16: 33000 | D16: 37150 | E16: 41250 | F16: 44550 | G16: 47850 | H16: 51150 | I16: 54450
A17: Kings | B17: 28900 | C17: 33000 | D17: 37150 | E17: 41250 | F17: 44550 | G17: 47850 | H17: 51150 | I17: 54450
A18: Lake | B18: 28900 | C18: 33000 | D18: 37150 | E18: 41250 | F18: 44550 | G18: 47850 | H18: 51150 | I18: 54450
A19: Lassen | B19: 29350 | C19: 33550 | D19: 37750 | E19: 41900 | F19: 45300 | G19: 48650 | H19: 52000 | I19: 55350
A20: Los Angeles | B20: 44150 | C20: 50450 | D20: 56750 | E20: 63050 | F20: 68100 | G20: 73150 | H20: 78200 | I20: 83250
A21: Madera | B21: 28900 | C21: 33000 | D21: 37150 | E21: 41250 | F21: 44550 | G21: 47850 | H21: 51150 | I21: 54450
A22: Marin | B22: 65050 | C22: 74350 | D22: 83650 | E22: 92900 | F22: 100350 | G22: 107800 | H22: 115200 | I22: 122650
A23: Mariposa | B23: 28900 | C23: 33000 | D23: 37150 | E23: 41250 | F23: 44550 | G23: 47850 | H23: 51150 | I23: 54450
A24: Mendocino | B24: 29750 | C24: 34000 | D24: 38250 | E24: 42500 | F24: 45900 | G24: 49300 | H24: 52700 | I24: 56100
A25: Merced | B25: 28900 | C25: 33000 | D25: 37150 | E25: 41250 | F25: 44550 | G25: 47850 | H25: 51150 | I25: 54450
A26: Modoc | B26: 28900 | C26: 33000 | D26: 37150 | E26: 41250 | F26: 44550 | G26: 47850 | H26: 51150 | I26: 54450
A27: Mono | B27: 29750 | C27: 34000 | D27: 38250 | E27: 42500 | F27: 45900 | G27: 49300 | H27: 52700 | I27: 56100
A28: Monterey | B28: 42150 | C28: 48200 | D28: 54200 | E28: 60200 | F28: 65050 | G28: 69850 | H28: 74650 | I28: 79500
A29: Napa | B29: 46750 | C29: 53400 | D29: 60100 | E29: 66750 | F29: 72100 | G29: 77450 | H29: 82800 | I29: 88150
A30: Nevada | B30: 36500 | C30: 41700 | D30: 46900 | E30: 52100 | F30: 56300 | G30: 60450 | H30: 64650 | I30: 68800
A31: Orange | B31: 50250 | C31: 57400 | D31: 64600 | E31: 71750 | F31: 77500 | G31: 83250 | H31: 89000 | I31: 94750
A32: Placer | B32: 37550 | C32: 42900 | D32: 48250 | E32: 53600 | F32: 57900 | G32: 62200 | H32: 66500 | I32: 70800
A33: Plumas | B33: 29350 | C33: 33550 | D33: 37750 | E33: 41900 | F33: 45300 | G33: 48650 | H33: 52000 | I33: 55350
A34: Riverside | B34: 32650 | C34: 37300 | D34: 41950 | E34: 46600 | F34: 50350 | G34: 54100 | H34: 57800 | I34: 61550
A35: Sacramento | B35: 37550 | C35: 42900 | D35: 48250 | E35: 53600 | F35: 57900 | G35: 62200 | H35: 66500 | I35: 70800
A36: San Benito | B36: 39000 | C36: 44550 | D36: 50100 | E36: 55650 | F36: 60150 | G36: 64600 | H36: 69050 | I36: 73500
A37: San Bernardino | B37: 32650 | C37: 37300 | D37: 41950 | E37: 46600 | F37: 50350 | G37: 54100 | H37: 57800 | I37: 61550
A38: San Diego | B38: 48250 | C38: 55150 | D38: 62050 | E38: 68900 | F38: 74450 | G38: 79950 | H38: 85450 | I38: 90950
A39: San Francisco | B39: 65050 | C39: 74350 | D39: 83650 | E39: 92900 | F39: 100350 | G39: 107800 | H39: 115200 | I39: 122650
A40: San Joaquin | B40: 30700 | C40: 35100 | D40: 39500 | E40: 43850 | F40: 47400 | G40: 50900 | H40: 54400 | I40: 57900
A41: San Luis Obispo | B41: 40550 | C41: 46350 | D41: 52150 | E41: 57900 | F41: 62550 | G41: 67200 | H41: 71800 | I41: 76450
A42: San Mateo | B42: 65050 | C42: 74350 | D42: 83650 | E42: 92900 | F42: 100350 | G42: 107800 | H42: 115200 | I42: 122650
A43: Santa Barbara | B43: 51800 | C43: 59200 | D43: 66600 | E43: 73950 | F43: 79900 | G43: 85800 | H43: 91700 | I43: 97650
A44: Santa Clara | B44: 62450 | C44: 71400 | D44: 80300 | E44: 89200 | F44: 96350 | G44: 103500 | H44: 110650 | I44: 117750
A45: Santa Cruz | B45: 57650 | C45: 65900 | D45: 74150 | E45: 82350 | F45: 88950 | G45: 95550 | H45: 102150 | I45: 108750
A46: Shasta | B46: 29400 | C46: 33600 | D46: 37800 | E46: 42000 | F46: 45400 | G46: 48750 | H46: 52100 | I46: 55450
A47: Sierra | B47: 29950 | C47: 34200 | D47: 38500 | E47: 42750 | F47: 46200 | G47: 49600 | H47: 53050 | I47: 56450
A48: Siskiyou | B48: 28900 | C48: 33000 | D48: 37150 | E48: 41250 | F48: 44550 | G48: 47850 | H48: 51150 | I48: 54450
A49: Solano | B49: 40050 | C49: 45800 | D49: 51500 | E49: 57200 | F49: 61800 | G49: 66400 | H49: 70950 | I49: 75550
A50: Sonoma | B50: 44050 | C50: 50350 | D50: 56650 | E50: 62900 | F50: 67950 | G50: 73000 | H50: 78000 | I50: 83050
A51: Stanislaus | B51: 29550 | C51: 33800 | D51: 38000 | E51: 42200 | F51: 45600 | G51: 49000 | H51: 52350 | I51: 55750
A52: Sutter | B52: 28900 | C52: 33000 | D52: 37150 | E52: 41250 | F52: 44550 | G52: 47850 | H52: 51150 | I52: 54450
A53: Tehama | B53: 28900 | C53: 33000 | D53: 37150 | E53: 41250 | F53: 44550 | G53: 47850 | H53: 51150 | I53: 54450
A54: Trinity | B54: 28900 | C54: 33000 | D54: 37150 | E54: 41250 | F54: 44550 | G54: 47850 | H54: 51150 | I54: 54450
A55: Tulare | B55: 28900 | C55: 33000 | D55: 37150 | E55: 41250 | F55: 44550 | G55: 47850 | H55: 51150 | I55: 54450
A56: Tuolumne | B56: 30850 | C56: 35250 | D56: 39650 | E56: 44050 | F56: 47600 | G56: 51100 | H56: 54650 | I56: 58150
A57: Ventura | B57: 46500 | C57: 53150 | D57: 59800 | E57: 66400 | F57: 71750 | G57: 77050 | H57: 82350 | I57: 87650
A58: Yolo | B58: 36750 | C58: 42000 | D58: 47250 | E58: 52450 | F58: 56650 | G58: 60850 | H58: 65050 | I58: 69250
A59: Yuba | B59: 28900 | C59: 33000 | D59: 37150 | E59: 41250 | F59: 44550 | G59: 47850 | H59: 51150 | I59: 54450

Sheet Borrower and Dev Team Contacts
A1: Owner/Borrower and Development Team Contacts | AK1: ='PRP Cover Page'!B9 -> 2024-02-07
A2: Development Team Contacts (provide information that is currently available) | AN2: Individual
A3: Owner/Borrower Entity | AN3: Joint Venture
A4: Legal name | AA4: Organization type | AN4: Partnership
A5: Address | V5: City | AC5: State | AH5: Zip | AN5: Limited Partnership
A6: Auth Rep | M6: Title | V6: Email | AG6: Phone | AN6: Trust
A7: Contact | M7: Title | V7: Email | AG7: Phone | AN7: Corporation
A8: Address | V8: City | AC8: State | AH8: Zip | AN8: Limited Liability Company
A9: File Name | D9: Borrower Cert & Legal | L9: See Certifications & Legal worksheet. | AF9: Uploaded to HCD? | AN9: Local Public Entity
A10: File Name | D10: Borrower Resolution | L10: Signature required; see Applicant Documents worksheet. | AF10: Uploaded to HCD? | AN10: Tribal Entity
A11: File Name | D11: Borrower OrgDoc1, OrgDoc2, etc… | L11: See Applicant Documents worksheet. | AF11: Uploaded to HCD?
A12: File Name | D12: Borrower OrgChart | L12: See Applicant Documents worksheet. | AF12: Uploaded to HCD?
A13: File Name | D13: Borrower Signature Block | L13: See Applicant Documents worksheet. | AF13: Uploaded to HCD?
A14: File Name | D14: Borrower Payee Data Record | L14: See Applicant Documents worksheet. | AF14: Uploaded to HCD?
A15: File Name | D15: Borrower TIN | L15: See Applicant Documents worksheet (not applicable for non-governmental entities) | AF15: Uploaded to HCD?
A16: File Name | D16: Borrower Cert of Good Standing | L16: Dated 30 days or less from the application submittal date. | AF16: Uploaded to HCD?
A17: File Name | D17: Borrower Tax-Exempt Status | L17: If applicable, evidence of tax-exempt status from IRS and Franchise Tax Board for Corps | AF17: Uploaded to HCD?
A18: In the cell below, select an applicable controlling party to the organization type in cell AE4
A19: Controlling party #1 title
A20: Legal name | AA20: Organization type
A21: Address | V21: City | AC21: State | AH21: Zip
A22: Auth Rep | M22: Title | V22: Email | AG22: Phone
A23: Contact | M23: Title | V23: Email | AG23: Phone
A24: Address | V24: City | AC24: State | AH24: Zip
A25: File Name | D25: Party 1 Cert & Legal | L25: See Certifications & Legal worksheet. | AF25: Uploaded to HCD?
A26: File Name | D26: Party 1 Resolution | L26: Signature required; see Applicant Documents worksheet. | AF26: Uploaded to HCD?
A27: File Name | D27: Party 1 OrgDoc1, OrgDoc2, etc | L27: See Applicant Documents worksheet. | AF27: Uploaded to HCD?
A28: File Name | D28: Party 1 OrgChart | L28: See Applicant Documents worksheet. | AF28: Uploaded to HCD?
A29: File Name | D29: Party 1 Signature Block | L29: See Applicant Documents worksheet. | AF29: Uploaded to HCD?
A30: File Name | D30: Party 1 Payee Data Record | L30: See Applicant Documents worksheet. | AF30: Uploaded to HCD?
A31: File Name | D31: Party 1 TIN | L31: See Applicant Documents worksheet (not applicable for non-governmental entities) | AF31: Uploaded to HCD?
A32: File Name | D32: Party 1 Cert of Good Standing | L32: Dated 30 days or less from the application submittal date. | AF32: Uploaded to HCD?
A33: File Name | D33: Party 1 Tax-Exempt Status | L33: If applicable, evidence of tax-exempt status from IRS and Franchise Tax Board for Corps | AF33: Uploaded to HCD?
A34: In the cell below, select an applicable controlling party to the organization type in cell AE4
A35: Controlling party #2 title
A36: Legal name | AA36: Organization type
A37: Address | V37: City | AC37: State | AH37: Zip
A38: Auth Rep | M38: Title | V38: Email | AG38: Phone
A39: Contact | M39: Title | V39: Email | AG39: Phone
A40: Address | V40: City | AC40: State | AH40: Zip
A41: File Name | D41: Party 2 Cert & Legal | L41: See Certifications & Legal worksheet. | AF41: Uploaded to HCD?
A42: File Name | D42: Party 2 Resolution | L42: Signature required; see Applicant Documents worksheet. | AF42: Uploaded to HCD?
A43: File Name | D43: Party 2 OrgDoc1, OrgDoc2, etc | L43: See Applicant Documents worksheet. | AF43: Uploaded to HCD?
A44: File Name | D44: Party 2 OrgChart | L44: See Applicant Documents worksheet. | AF44: Uploaded to HCD?
A45: File Name | D45: Party 2 Signature Block | L45: See Applicant Documents worksheet. | AF45: Uploaded to HCD?
A46: File Name | D46: Party 2 Payee Data Record | L46: See Applicant Documents worksheet. | AF46: Uploaded to HCD?
A47: File Name | D47: Party 2 TIN | L47: See Applicant Documents worksheet (not applicable for non-governmental entities) | AF47: Uploaded to HCD?
A48: File Name | D48: Party 2 Cert of Good Standing | L48: Dated 30 days or less from the application submittal date. | AF48: Uploaded to HCD?
A49: File Name | D49: Party 2 Tax-Exempt Status | L49: If applicable, evidence of tax-exempt status from IRS and Franchise Tax Board for Corps | AF49: Uploaded to HCD?
A50: In the cell below, select an applicable controlling party to the organization type in cell AE4
A51: Controlling party #3 title
A52: Legal name | AA52: Organization type
A53: Address | V53: City | AC53: State | AH53: Zip
A54: Auth Rep | M54: Title | V54: Email | AG54: Phone
A55: Contact | M55: Title | V55: Email | AG55: Phone
A56: Address | V56: City | AC56: State | AH56: Zip
A57: File Name | D57: Party 3 Cert & Legal | L57: See Certifications & Legal worksheet. | AF57: Uploaded to HCD?
A58: File Name | D58: Party 3 Resolution | L58: Signature required; see Applicant Documents worksheet. | AF58: Uploaded to HCD?
A59: File Name | D59: Party 3 OrgDoc1, OrgDoc2, etc | L59: See Applicant Documents worksheet. | AF59: Uploaded to HCD?
A60: File Name | D60: Party 3 OrgChart | L60: See Applicant Documents worksheet. | AF60: Uploaded to HCD?
A61: File Name | D61: Party 3 Signature Block | L61: See Applicant Documents worksheet. | AF61: Uploaded to HCD?
A62: File Name | D62: Party 3 Payee Data Record | L62: See Applicant Documents worksheet. | AF62: Uploaded to HCD?
A63: File Name | D63: Party 3 TIN | L63: See Applicant Documents worksheet (not applicable for non-governmental entities) | AF63: Uploaded to HCD?
A64: File Name | D64: Party 3 Cert of Good Standing | L64: Dated 30 days or less from the application submittal date. | AF64: Uploaded to HCD?
A65: File Name | D65: Party 3 Tax-Exempt Status | L65: If applicable, evidence of tax-exempt status from IRS and Franchise Tax Board for Corps | AF65: Uploaded to HCD?
A66: Property Management Agent
A67: Legal name | P67: Contact | AB67: Email
A68: Phone | H68: Address | V68: City | AD68: State | AH68: Zip
A69: Financial Consultant
A70: Legal name | P70: Contact | AB70: Email
A71: Phone | H71: Address | V71: City | AD71: State | AH71: Zip
A72: Primary Supportive Service Provider
A73: Legal name | P73: Contact | AB73: Email
A74: Phone | H74: Address | V74: City | AD74: State | AH74: Zip
A75: Borrower Legal Counsel
A76: Legal name | P76: Contact | AB76: Email
A77: Phone | H77: Address | V77: City | AD77: State | AH77: Zip
A78: General Contractor
A79: Legal name | P79: Contact | AB79: Email
A80: Phone | H80: Address | V80: City | AD80: State | AH80: Zip
A81: Development Funding Source
A82: Legal name | P82: Contact | AB82: Email
A83: Phone | H83: Address | V83: City | AD83: State | AH83: Zip
A84: Development Funding Source
A85: Legal name | P85: Contact | AB85: Email
A86: Phone | H86: Address | V86: City | AD86: State | AH86: Zip
A87: Development Funding Source
A88: Legal name | P88: Contact | AB88: Email
A89: Phone | H89: Address | V89: City | AD89: State | AH89: Zip
A90: Rent/Operating Subsidy Source
A91: Legal name | P91: Contact | AB91: Email
A92: Phone | H92: Address | V92: City | AD92: State | AH92: Zip
A93: Rent/Operating Subsidy Source
A94: Legal name | P94: Contact | AB94: Email
A95: Phone | H95: Address | V95: City | AD95: State | AH95: Zip

Sheet Project Description (hidden)
A1: Project Description | AK1: ='PRP Cover Page'!B9 -> 2024-02-07
A2: 1) Sponsor/Developer Experience
A4: 2) Topography and Special Site Features
A6: 3) Specific Issues (relocation, environmental, historical, etc.)
A8: 4) Rehabilitation and scope of work
A10: 5) Will Prevailing Wage be paid

Sheet Assisted Units
A1: Manager and existing or new PRP Assisted Units (including all designated Assisted units in Original HCD RA) -enter Non-Assisted, Market Rate, and Other Restricted units on 'Non Assisted Units' tab | W1: Project County- | X1: =IF('Project, Applicant, Threshold'!AD40="","",'Project, Applicant, Threshold'!AD40) ->  | Y1: ='PRP Cover Page'!B9 -> 2024-02-07 | AA1: 83800 | AB1: < = 2023 Statewide non-metro median income from HCD Official Income Limits page 14
A2: Unit Number (include Manager units) Hide unused yellow rows by clicking down arrow and unchecking (Blanks) box. | B2: Manager Unit | C2: Household ID | D2: Number of Persons in Household (if Vacant, select Vacant) | E2: Bedroom Size (if SRO or Studio apts, use 0) | F2: Household Income Certification Date (must be within one year of application submittal) | G2: Existing Annual Household Income (Certified) | H2: Tenant Current Monthly Net Rent | I2: HCD Approved Current Monthly Tenant Rent (enter from prior year HCD approved SRI; see cell comments) | J2: Original HCD RA Unit Designation | K2: Original HCD RA Targeted Income Level | L2: HCD New PRP RA Targeted AMI Level (see cell comments) | M2: Monthly Utility Allowance (attach utility allowance chart; see cell comments) | N2: 35% AMI Income Limit for Existing Tenants §E(3)(a) and (b) | O2: % Rent Increase for Existing Tenants §E(3)(a) and (b) | P2: A PRP Unit Monthly Net Rent Limit Existing Tenants Current Rents + % increase §E(3)(a) and (b) | Q2: B1 PRP Unit Monthly Gross Rent Limit 2022 AMI Rents §E(2) | R2: B2 PRP Unit Monthly Net Rent Limit 2022 AMI Rents §E(2) | S2: C1 PRP Unit Monthly Gross Rent Limit 50% of Household Income §E(3)(d) | T2: C2 PRP Unit Monthly Net Rent Limit 50% of Household Income §E(3)(d) | U2: D Tenant Current Monthly Net Rent Limit | V2: E Monthly Net Rent Limit based on A, B2, C2 or D (limit used indicated by green cell shading) | W2: Annual Assisted Net Rent E x 12 | X2: Enter rent subsidy source #1 here & monthly amounts below | Y2: Enter rent subsidy source #2 here & monthly amounts below | Z2: Approved Annual Gross Rent as % of Annual Household Income | AA2: =IFERROR(VLOOKUP('Project, Applicant, Threshold'!AD40,'MTSP 50% Income Limits'!$A$1:$I$59,5,FALSE)*2,0) -> 0 | AB2: <= 100% AMI for four persons | AE2: Look up field | AF2: Look up field
N3: =IF(J3="HOME",0,IFERROR(INDEX('Rent Limits'!$A$1:$I$1045,MATCH(AF3,'Rent Limits'!$A$1:$A$1045,0),MATCH(D3,'Rent Limits'!$A$1:$I$1,0)),0)) -> 0 | O3: =IF(OR(B3="x",E3=""),0,IF(OR(G3="",D3="Vacant",J3="New PRP",J3="HLCP-E",J3="HLCP-N",J3="HOME",J3="LPR",X3>0,Y3>0),0.025,IF(G3<=N3,0.05,0.1))) -> 0 | P3: =H3*(1+O3) -> 0 | Q3: =IFERROR(INDEX('Rent Limits'!$J$1:$P$1045,MATCH(AE3,'Rent Limits'!$A$1:$A$1045,0),MATCH(E3,'Rent Limits'!$J$1:$P$1)),0) -> 0 | R3: =Q3-M3 -> 0 | S3: =IF(J3="HOME",0,ROUND(G3*0.5/12,0)) -> 0 | T3: =IF(J3="HOME",0,S3-M3) -> 0 | U3: =H3 -> 0 | V3: =IF(OR(D3="Vacant",J3="New PRP"),R3,IF(J3="HOME",MAX(U3,MIN(R3,P3)),MAX(U3,MIN(R3,P3,T3)))) -> 0 | W3: =V3*12 -> 0 | X3: 0 | Y3: 0 | Z3: =IFERROR(V3*12/G3,0) -> 0 | AA3: =IF(OR(AND(K3="VLI",J3<>"HOME",L3>0.3),AND(K3="LI",L3>$AB$3),AND(OR(J3="New PRP",K3="New PRP"),L3=0.8)),"Yes","No") -> No | AB3: =IF($AA$2<=$AA$1,0.8,0.6) -> 0.8 | AE3: =CONCATENATE('Project, Applicant, Threshold'!$AD$40,'Assisted Units'!L3) ->  | AF3: =CONCATENATE('Project, Applicant, Threshold'!$AD$40,"0.35") -> 0.35
N4: =IF(J4="HOME",0,IFERROR(INDEX('Rent Limits'!$A$1:$I$1045,MATCH(AF4,'Rent Limits'!$A$1:$A$1045,0),MATCH(D4,'Rent Limits'!$A$1:$I$1,0)),0)) -> 0 | O4: =IF(OR(B4="x",E4=""),0,IF(OR(G4="",D4="Vacant",J4="New PRP",J4="HLCP-E",J4="HLCP-N",J4="HOME",J4="LPR",X4>0,Y4>0),0.025,IF(G4<=N4,0.05,0.1))) -> 0 | P4: =H4*(1+O4) -> 0 | Q4: =IFERROR(INDEX('Rent Limits'!$J$1:$P$1045,MATCH(AE4,'Rent Limits'!$A$1:$A$1045,0),MATCH(E4,'Rent Limits'!$J$1:$P$1)),0) -> 0 | R4: =Q4-M4 -> 0 | S4: =IF(J4="HOME",0,ROUND(G4*0.5/12,0)) -> 0 | T4: =IF(J4="HOME",0,S4-M4) -> 0 | U4: =H4 -> 0 | V4: =IF(OR(D4="Vacant",J4="New PRP"),R4,IF(J4="HOME",MAX(U4,MIN(R4,P4)),MAX(U4,MIN(R4,P4,T4)))) -> 0 | W4: =V4*12 -> 0 | X4: 0 | Y4: 0 | Z4: 0 | AA4: =IF(OR(AND(K4="VLI",J4<>"HOME",L4>0.3),AND(K4="LI",L4>$AB$3),AND(OR(J4="New PRP",K4="New PRP"),L4=0.8)),"Yes","No") -> No | AE4: =CONCATENATE('Project, Applicant, Threshold'!$AD$40,'Assisted Units'!L4) ->  | AF4: =CONCATENATE('Project, Applicant, Threshold'!$AD$40,"0.35") -> 0.35
N5: =IF(J5="HOME",0,IFERROR(INDEX('Rent Limits'!$A$1:$I$1045,MATCH(AF5,'Rent Limits'!$A$1:$A$1045,0),MATCH(D5,'Rent Limits'!$A$1:$I$1,0)),0)) -> 0 | O5: 0 | P5: 0 | Q5: =IFERROR(INDEX('Rent Limits'!$J$1:$P$1045,MATCH(AE5,'Rent Limits'!$A$1:$A$1045,0),MATCH(E5,'Rent Limits'!$J$1:$P$1)),0) -> 0 | R5: 0 | S5: 0 | T5: 0 | U5: 0 | V5: =IF(OR(D5="Vacant",J5="New PRP"),R5,IF(J5="HOME",MAX(U5,MIN(R5,P5)),MAX(U5,MIN(R5,P5,T5)))) -> 0 | W5: 0 | X5: 0 | Y5: 0 | Z5: 0 | AA5: No | AE5: =CONCATENATE('Project, Applicant, Threshold'!$AD$40,'Assisted Units'!L5) ->  | AF5: =CONCATENATE('Project, Applicant, Threshold'!$AD$40,"0.35") -> 0.35
N6: =IF(J6="HOME",0,IFERROR(INDEX('Rent Limits'!$A$1:$I$1045,MATCH(AF6,'Rent Limits'!$A$1:$A$1045,0),MATCH(D6,'Rent Limits'!$A$1:$I$1,0)),0)) -> 0 | O6: 0 | P6: 0 | Q6: =IFERROR(INDEX('Rent Limits'!$J$1:$P$1045,MATCH(AE6,'Rent Limits'!$A$1:$A$1045,0),MATCH(E6,'Rent Limits'!$J$1:$P$1)),0) -> 0 | R6: 0 | S6: 0 | T6: 0 | U6: 0 | V6: 0 | W6: 0 | X6: 0 | Y6: 0 | Z6: 0 | AA6: No | AE6: =CONCATENATE('Project, Applicant, Threshold'!$AD$40,'Assisted Units'!L6) ->  | AF6: =CONCATENATE('Project, Applicant, Threshold'!$AD$40,"0.35") -> 0.35
N7: =IF(J7="HOME",0,IFERROR(INDEX('Rent Limits'!$A$1:$I$1045,MATCH(AF7,'Rent Limits'!$A$1:$A$1045,0),MATCH(D7,'Rent Limits'!$A$1:$I$1,0)),0)) -> 0 | O7: 0 | P7: 0 | Q7: =IFERROR(INDEX('Rent Limits'!$J$1:$P$1045,MATCH(AE7,'Rent Limits'!$A$1:$A$1045,0),MATCH(E7,'Rent Limits'!$J$1:$P$1)),0) -> 0 | R7: 0 | S7: 0 | T7: 0 | U7: 0 | V7: 0 | W7: 0 | X7: 0 | Y7: 0 | Z7: 0 | AA7: No | AE7: =CONCATENATE('Project, Applicant, Threshold'!$AD$40,'Assisted Units'!L7) ->  | AF7: =CONCATENATE('Project, Applicant, Threshold'!$AD$40,"0.35") -> 0.35
N8: =IF(J8="HOME",0,IFERROR(INDEX('Rent Limits'!$A$1:$I$1045,MATCH(AF8,'Rent Limits'!$A$1:$A$1045,0),MATCH(D8,'Rent Limits'!$A$1:$I$1,0)),0)) -> 0 | O8: 0 | P8: 0 | Q8: =IFERROR(INDEX('Rent Limits'!$J$1:$P$1045,MATCH(AE8,'Rent Limits'!$A$1:$A$1045,0),MATCH(E8,'Rent Limits'!$J$1:$P$1)),0) -> 0 | R8: 0 | S8: 0 | T8: 0 | U8: 0 | V8: 0 | W8: 0 | X8: 0 | Y8: 0 | Z8: 0 | AA8: No | AE8: =CONCATENATE('Project, Applicant, Threshold'!$AD$40,'Assisted Units'!L8) ->  | AF8: =CONCATENATE('Project, Applicant, Threshold'!$AD$40,"0.35") -> 0.35
N9: =IF(J9="HOME",0,IFERROR(INDEX('Rent Limits'!$A$1:$I$1045,MATCH(AF9,'Rent Limits'!$A$1:$A$1045,0),MATCH(D9,'Rent Limits'!$A$1:$I$1,0)),0)) -> 0 | O9: 0 | P9: 0 | Q9: =IFERROR(INDEX('Rent Limits'!$J$1:$P$1045,MATCH(AE9,'Rent Limits'!$A$1:$A$1045,0),MATCH(E9,'Rent Limits'!$J$1:$P$1)),0) -> 0 | R9: 0 | S9: 0 | T9: 0 | U9: 0 | V9: 0 | W9: 0 | X9: 0 | Y9: 0 | Z9: 0 | AA9: No | AE9: =CONCATENATE('Project, Applicant, Threshold'!$AD$40,'Assisted Units'!L9) ->  | AF9: =CONCATENATE('Project, Applicant, Threshold'!$AD$40,"0.35") -> 0.35
N10: =IF(J10="HOME",0,IFERROR(INDEX('Rent Limits'!$A$1:$I$1045,MATCH(AF10,'Rent Limits'!$A$1:$A$1045,0),MATCH(D10,'Rent Limits'!$A$1:$I$1,0)),0)) -> 0 | O10: 0 | P10: 0 | Q10: =IFERROR(INDEX('Rent Limits'!$J$1:$P$1045,MATCH(AE10,'Rent Limits'!$A$1:$A$1045,0),MATCH(E10,'Rent Limits'!$J$1:$P$1)),0) -> 0 | R10: 0 | S10: 0 | T10: 0 | U10: 0 | V10: 0 | W10: 0 | X10: 0 | Y10: 0 | Z10: 0 | AA10: No | AE10: =CONCATENATE('Project, Applicant, Threshold'!$AD$40,'Assisted Units'!L10) ->  | AF10: =CONCATENATE('Project, Applicant, Threshold'!$AD$40,"0.35") -> 0.35
N11: =IF(J11="HOME",0,IFERROR(INDEX('Rent Limits'!$A$1:$I$1045,MATCH(AF11,'Rent Limits'!$A$1:$A$1045,0),MATCH(D11,'Rent Limits'!$A$1:$I$1,0)),0)) -> 0 | O11: 0 | P11: 0 | Q11: =IFERROR(INDEX('Rent Limits'!$J$1:$P$1045,MATCH(AE11,'Rent Limits'!$A$1:$A$1045,0),MATCH(E11,'Rent Limits'!$J$1:$P$1)),0) -> 0 | R11: 0 | S11: 0 | T11: 0 | U11: 0 | V11: 0 | W11: 0 | X11: 0 | Y11: 0 | Z11: 0 | AA11: No | AE11: =CONCATENATE('Project, Applicant, Threshold'!$AD$40,'Assisted Units'!L11) ->  | AF11: =CONCATENATE('Project, Applicant, Threshold'!$AD$40,"0.35") -> 0.35
N12: =IF(J12="HOME",0,IFERROR(INDEX('Rent Limits'!$A$1:$I$1045,MATCH(AF12,'Rent Limits'!$A$1:$A$1045,0),MATCH(D12,'Rent Limits'!$A$1:$I$1,0)),0)) -> 0 | O12: 0 | P12: 0 | Q12: =IFERROR(INDEX('Rent Limits'!$J$1:$P$1045,MATCH(AE12,'Rent Limits'!$A$1:$A$1045,0),MATCH(E12,'Rent Limits'!$J$1:$P$1)),0) -> 0 | R12: 0 | S12: 0 | T12: 0 | U12: 0 | V12: 0 | W12: 0 | X12: 0 | Y12: 0 | Z12: 0 | AA12: No | AE12: =CONCATENATE('Project, Applicant, Threshold'!$AD$40,'Assisted Units'!L12) ->  | AF12: =CONCATENATE('Project, Applicant, Threshold'!$AD$40,"0.35") -> 0.35
N13: =IF(J13="HOME",0,IFERROR(INDEX('Rent Limits'!$A$1:$I$1045,MATCH(AF13,'Rent Limits'!$A$1:$A$1045,0),MATCH(D13,'Rent Limits'!$A$1:$I$1,0)),0)) -> 0 | O13: 0 | P13: 0 | Q13: =IFERROR(INDEX('Rent Limits'!$J$1:$P$1045,MATCH(AE13,'Rent Limits'!$A$1:$A$1045,0),MATCH(E13,'Rent Limits'!$J$1:$P$1)),0) -> 0 | R13: 0 | S13: 0 | T13: 0 | U13: 0 | V13: 0 | W13: 0 | X13: 0 | Y13: 0 | Z13: 0 | AA13: No | AE13: =CONCATENATE('Project, Applicant, Threshold'!$AD$40,'Assisted Units'!L13) ->  | AF13: =CONCATENATE('Project, Applicant, Threshold'!$AD$40,"0.35") -> 0.35
N14: =IF(J14="HOME",0,IFERROR(INDEX('Rent Limits'!$A$1:$I$1045,MATCH(AF14,'Rent Limits'!$A$1:$A$1045,0),MATCH(D14,'Rent Limits'!$A$1:$I$1,0)),0)) -> 0 | O14: 0 | P14: 0 | Q14: =IFERROR(INDEX('Rent Limits'!$J$1:$P$1045,MATCH(AE14,'Rent Limits'!$A$1:$A$1045,0),MATCH(E14,'Rent Limits'!$J$1:$P$1)),0) -> 0 | R14: 0 | S14: 0 | T14: 0 | U14: 0 | V14: 0 | W14: 0 | X14: 0 | Y14: 0 | Z14: 0 | AA14: No | AE14: =CONCATENATE('Project, Applicant, Threshold'!$AD$40,'Assisted Units'!L14) ->  | AF14: =CONCATENATE('Project, Applicant, Threshold'!$AD$40,"0.35") -> 0.35
N15: =IF(J15="HOME",0,IFERROR(INDEX('Rent Limits'!$A$1:$I$1045,MATCH(AF15,'Rent Limits'!$A$1:$A$1045,0),MATCH(D15,'Rent Limits'!$A$1:$I$1,0)),0)) -> 0 | O15: 0 | P15: 0 | Q15: =IFERROR(INDEX('Rent Limits'!$J$1:$P$1045,MATCH(AE15,'Rent Limits'!$A$1:$A$1045,0),MATCH(E15,'Rent Limits'!$J$1:$P$1)),0) -> 0 | R15: 0 | S15: 0 | T15: 0 | U15: 0 | V15: 0 | W15: 0 | X15: 0 | Y15: 0 | Z15: 0 | AA15: No | AE15: =CONCATENATE('Project, Applicant, Threshold'!$AD$40,'Assisted Units'!L15) ->  | AF15: =CONCATENATE('Project, Applicant, Threshold'!$AD$40,"0.35") -> 0.35
N16: =IF(J16="HOME",0,IFERROR(INDEX('Rent Limits'!$A$1:$I$1045,MATCH(AF16,'Rent Limits'!$A$1:$A$1045,0),MATCH(D16,'Rent Limits'!$A$1:$I$1,0)),0)) -> 0 | O16: 0 | P16: 0 | Q16: =IFERROR(INDEX('Rent Limits'!$J$1:$P$1045,MATCH(AE16,'Rent Limits'!$A$1:$A$1045,0),MATCH(E16,'Rent Limits'!$J$1:$P$1)),0) -> 0 | R16: 0 | S16: 0 | T16: 0 | U16: 0 | V16: 0 | W16: 0 | X16: 0 | Y16: 0 | Z16: 0 | AA16: No | AE16: =CONCATENATE('Project, Applicant, Threshold'!$AD$40,'Assisted Units'!L16) ->  | AF16: =CONCATENATE('Project, Applicant, Threshold'!$AD$40,"0.35") -> 0.35
N17: =IF(J17="HOME",0,IFERROR(INDEX('Rent Limits'!$A$1:$I$1045,MATCH(AF17,'Rent Limits'!$A$1:$A$1045,0),MATCH(D17,'Rent Limits'!$A$1:$I$1,0)),0)) -> 0 | O17: 0 | P17: 0 | Q17: =IFERROR(INDEX('Rent Limits'!$J$1:$P$1045,MATCH(AE17,'Rent Limits'!$A$1:$A$1045,0),MATCH(E17,'Rent Limits'!$J$1:$P$1)),0) -> 0 | R17: 0 | S17: 0 | T17: 0 | U17: 0 | V17: 0 | W17: 0 | X17: 0 | Y17: 0 | Z17: 0 | AA17: No | AE17: =CONCATENATE('Project, Applicant, Threshold'!$AD$40,'Assisted Units'!L17) ->  | AF17: =CONCATENATE('Project, Applicant, Threshold'!$AD$40,"0.35") -> 0.35
N18: =IF(J18="HOME",0,IFERROR(INDEX('Rent Limits'!$A$1:$I$1045,MATCH(AF18,'Rent Limits'!$A$1:$A$1045,0),MATCH(D18,'Rent Limits'!$A$1:$I$1,0)),0)) -> 0 | O18: 0 | P18: 0 | Q18: =IFERROR(INDEX('Rent Limits'!$J$1:$P$1045,MATCH(AE18,'Rent Limits'!$A$1:$A$1045,0),MATCH(E18,'Rent Limits'!$J$1:$P$1)),0) -> 0 | R18: 0 | S18: 0 | T18: 0 | U18: 0 | V18: 0 | W18: 0 | X18: 0 | Y18: 0 | Z18: 0 | AA18: No | AE18: =CONCATENATE('Project, Applicant, Threshold'!$AD$40,'Assisted Units'!L18) ->  | AF18: =CONCATENATE('Project, Applicant, Threshold'!$AD$40,"0.35") -> 0.35
N19: =IF(J19="HOME",0,IFERROR(INDEX('Rent Limits'!$A$1:$I$1045,MATCH(AF19,'Rent Limits'!$A$1:$A$1045,0),MATCH(D19,'Rent Limits'!$A$1:$I$1,0)),0)) -> 0 | O19: 0 | P19: 0 | Q19: =IFERROR(INDEX('Rent Limits'!$J$1:$P$1045,MATCH(AE19,'Rent Limits'!$A$1:$A$1045,0),MATCH(E19,'Rent Limits'!$J$1:$P$1)),0) -> 0 | R19: 0 | S19: 0 | T19: 0 | U19: 0 | V19: 0 | W19: 0 | X19: 0 | Y19: 0 | Z19: 0 | AA19: No | AE19: =CONCATENATE('Project, Applicant, Threshold'!$AD$40,'Assisted Units'!L19) ->  | AF19: =CONCATENATE('Project, Applicant, Threshold'!$AD$40,"0.35") -> 0.35
N20: =IF(J20="HOME",0,IFERROR(INDEX('Rent Limits'!$A$1:$I$1045,MATCH(AF20,'Rent Limits'!$A$1:$A$1045,0),MATCH(D20,'Rent Limits'!$A$1:$I$1,0)),0)) -> 0 | O20: 0 | P20: 0 | Q20: =IFERROR(INDEX('Rent Limits'!$J$1:$P$1045,MATCH(AE20,'Rent Limits'!$A$1:$A$1045,0),MATCH(E20,'Rent Limits'!$J$1:$P$1)),0) -> 0 | R20: 0 | S20: 0 | T20: 0 | U20: 0 | V20: 0 | W20: 0 | X20: 0 | Y20: 0 | Z20: 0 | AA20: No | AE20: =CONCATENATE('Project, Applicant, Threshold'!$AD$40,'Assisted Units'!L20) ->  | AF20: =CONCATENATE('Project, Applicant, Threshold'!$AD$40,"0.35") -> 0.35
N21: =IF(J21="HOME",0,IFERROR(INDEX('Rent Limits'!$A$1:$I$1045,MATCH(AF21,'Rent Limits'!$A$1:$A$1045,0),MATCH(D21,'Rent Limits'!$A$1:$I$1,0)),0)) -> 0 | O21: 0 | P21: 0 | Q21: =IFERROR(INDEX('Rent Limits'!$J$1:$P$1045,MATCH(AE21,'Rent Limits'!$A$1:$A$1045,0),MATCH(E21,'Rent Limits'!$J$1:$P$1)),0) -> 0 | R21: 0 | S21: 0 | T21: 0 | U21: 0 | V21: 0 | W21: 0 | X21: 0 | Y21: 0 | Z21: 0 | AA21: No | AE21: =CONCATENATE('Project, Applicant, Threshold'!$AD$40,'Assisted Units'!L21) ->  | AF21: =CONCATENATE('Project, Applicant, Threshold'!$AD$40,"0.35") -> 0.35
N22: =IF(J22="HOME",0,IFERROR(INDEX('Rent Limits'!$A$1:$I$1045,MATCH(AF22,'Rent Limits'!$A$1:$A$1045,0),MATCH(D22,'Rent Limits'!$A$1:$I$1,0)),0)) -> 0 | O22: 0 | P22: 0 | Q22: =IFERROR(INDEX('Rent Limits'!$J$1:$P$1045,MATCH(AE22,'Rent Limits'!$A$1:$A$1045,0),MATCH(E22,'Rent Limits'!$J$1:$P$1)),0) -> 0 | R22: 0 | S22: 0 | T22: 0 | U22: 0 | V22: 0 | W22: 0 | X22: 0 | Y22: 0 | Z22: 0 | AA22: No | AE22: =CONCATENATE('Project, Applicant, Threshold'!$AD$40,'Assisted Units'!L22) ->  | AF22: =CONCATENATE('Project, Applicant, Threshold'!$AD$40,"0.35") -> 0.35
N23: =IF(J23="HOME",0,IFERROR(INDEX('Rent Limits'!$A$1:$I$1045,MATCH(AF23,'Rent Limits'!$A$1:$A$1045,0),MATCH(D23,'Rent Limits'!$A$1:$I$1,0)),0)) -> 0 | O23: 0 | P23: 0 | Q23: =IFERROR(INDEX('Rent Limits'!$J$1:$P$1045,MATCH(AE23,'Rent Limits'!$A$1:$A$1045,0),MATCH(E23,'Rent Limits'!$J$1:$P$1)),0) -> 0 | R23: 0 | S23: 0 | T23: 0 | U23: 0 | V23: 0 | W23: 0 | X23: 0 | Y23: 0 | Z23: 0 | AA23: No | AE23: =CONCATENATE('Project, Applicant, Threshold'!$AD$40,'Assisted Units'!L23) ->  | AF23: =CONCATENATE('Project, Applicant, Threshold'!$AD$40,"0.35") -> 0.35
N24: =IF(J24="HOME",0,IFERROR(INDEX('Rent Limits'!$A$1:$I$1045,MATCH(AF24,'Rent Limits'!$A$1:$A$1045,0),MATCH(D24,'Rent Limits'!$A$1:$I$1,0)),0)) -> 0 | O24: 0 | P24: 0 | Q24: =IFERROR(INDEX('Rent Limits'!$J$1:$P$1045,MATCH(AE24,'Rent Limits'!$A$1:$A$1045,0),MATCH(E24,'Rent Limits'!$J$1:$P$1)),0) -> 0 | R24: 0 | S24: 0 | T24: 0 | U24: 0 | V24: 0 | W24: 0 | X24: 0 | Y24: 0 | Z24: 0 | AA24: No | AE24: =CONCATENATE('Project, Applicant, Threshold'!$AD$40,'Assisted Units'!L24) ->  | AF24: =CONCATENATE('Project, Applicant, Threshold'!$AD$40,"0.35") -> 0.35
N25: =IF(J25="HOME",0,IFERROR(INDEX('Rent Limits'!$A$1:$I$1045,MATCH(AF25,'Rent Limits'!$A$1:$A$1045,0),MATCH(D25,'Rent Limits'!$A$1:$I$1,0)),0)) -> 0 | O25: 0 | P25: 0 | Q25: =IFERROR(INDEX('Rent Limits'!$J$1:$P$1045,MATCH(AE25,'Rent Limits'!$A$1:$A$1045,0),MATCH(E25,'Rent Limits'!$J$1:$P$1)),0) -> 0 | R25: 0 | S25: 0 | T25: 0 | U25: 0 | V25: 0 | W25: 0 | X25: 0 | Y25: 0 | Z25: 0 | AA25: No | AE25: =CONCATENATE('Project, Applicant, Threshold'!$AD$40,'Assisted Units'!L25) ->  | AF25: =CONCATENATE('Project, Applicant, Threshold'!$AD$40,"0.35") -> 0.35
N26: =IF(J26="HOME",0,IFERROR(INDEX('Rent Limits'!$A$1:$I$1045,MATCH(AF26,'Rent Limits'!$A$1:$A$1045,0),MATCH(D26,'Rent Limits'!$A$1:$I$1,0)),0)) -> 0 | O26: 0 | P26: 0 | Q26: =IFERROR(INDEX('Rent Limits'!$J$1:$P$1045,MATCH(AE26,'Rent Limits'!$A$1:$A$1045,0),MATCH(E26,'Rent Limits'!$J$1:$P$1)),0) -> 0 | R26: 0 | S26: 0 | T26: 0 | U26: 0 | V26: 0 | W26: 0 | X26: 0 | Y26: 0 | Z26: 0 | AA26: No | AE26: =CONCATENATE('Project, Applicant, Threshold'!$AD$40,'Assisted Units'!L26) ->  | AF26: =CONCATENATE('Project, Applicant, Threshold'!$AD$40,"0.35") -> 0.35
N27: =IF(J27="HOME",0,IFERROR(INDEX('Rent Limits'!$A$1:$I$1045,MATCH(AF27,'Rent Limits'!$A$1:$A$1045,0),MATCH(D27,'Rent Limits'!$A$1:$I$1,0)),0)) -> 0 | O27: 0 | P27: 0 | Q27: =IFERROR(INDEX('Rent Limits'!$J$1:$P$1045,MATCH(AE27,'Rent Limits'!$A$1:$A$1045,0),MATCH(E27,'Rent Limits'!$J$1:$P$1)),0) -> 0 | R27: 0 | S27: 0 | T27: 0 | U27: 0 | V27: 0 | W27: 0 | X27: 0 | Y27: 0 | Z27: 0 | AA27: No | AE27: =CONCATENATE('Project, Applicant, Threshold'!$AD$40,'Assisted Units'!L27) ->  | AF27: =CONCATENATE('Project, Applicant, Threshold'!$AD$40,"0.35") -> 0.35
N28: =IF(J28="HOME",0,IFERROR(INDEX('Rent Limits'!$A$1:$I$1045,MATCH(AF28,'Rent Limits'!$A$1:$A$1045,0),MATCH(D28,'Rent Limits'!$A$1:$I$1,0)),0)) -> 0 | O28: 0 | P28: 0 | Q28: =IFERROR(INDEX('Rent Limits'!$J$1:$P$1045,MATCH(AE28,'Rent Limits'!$A$1:$A$1045,0),MATCH(E28,'Rent Limits'!$J$1:$P$1)),0) -> 0 | R28: 0 | S28: 0 | T28: 0 | U28: 0 | V28: 0 | W28: 0 | X28: 0 | Y28: 0 | Z28: 0 | AA28: No | AE28: =CONCATENATE('Project, Applicant, Threshold'!$AD$40,'Assisted Units'!L28) ->  | AF28: =CONCATENATE('Project, Applicant, Threshold'!$AD$40,"0.35") -> 0.35
N29: =IF(J29="HOME",0,IFERROR(INDEX('Rent Limits'!$A$1:$I$1045,MATCH(AF29,'Rent Limits'!$A$1:$A$1045,0),MATCH(D29,'Rent Limits'!$A$1:$I$1,0)),0)) -> 0 | O29: 0 | P29: 0 | Q29: =IFERROR(INDEX('Rent Limits'!$J$1:$P$1045,MATCH(AE29,'Rent Limits'!$A$1:$A$1045,0),MATCH(E29,'Rent Limits'!$J$1:$P$1)),0) -> 0 | R29: 0 | S29: 0 | T29: 0 | U29: 0 | V29: 0 | W29: 0 | X29: 0 | Y29: 0 | Z29: 0 | AA29: No | AE29: =CONCATENATE('Project, Applicant, Threshold'!$AD$40,'Assisted Units'!L29) ->  | AF29: =CONCATENATE('Project, Applicant, Threshold'!$AD$40,"0.35") -> 0.35
N30: =IF(J30="HOME",0,IFERROR(INDEX('Rent Limits'!$A$1:$I$1045,MATCH(AF30,'Rent Limits'!$A$1:$A$1045,0),MATCH(D30,'Rent Limits'!$A$1:$I$1,0)),0)) -> 0 | O30: 0 | P30: 0 | Q30: =IFERROR(INDEX('Rent Limits'!$J$1:$P$1045,MATCH(AE30,'Rent Limits'!$A$1:$A$1045,0),MATCH(E30,'Rent Limits'!$J$1:$P$1)),0) -> 0 | R30: 0 | S30: 0 | T30: 0 | U30: 0 | V30: 0 | W30: 0 | X30: 0 | Y30: 0 | Z30: 0 | AA30: No | AE30: =CONCATENATE('Project, Applicant, Threshold'!$AD$40,'Assisted Units'!L30) ->  | AF30: =CONCATENATE('Project, Applicant, Threshold'!$AD$40,"0.35") -> 0.35
N31: =IF(J31="HOME",0,IFERROR(INDEX('Rent Limits'!$A$1:$I$1045,MATCH(AF31,'Rent Limits'!$A$1:$A$1045,0),MATCH(D31,'Rent Limits'!$A$1:$I$1,0)),0)) -> 0 | O31: 0 | P31: 0 | Q31: =IFERROR(INDEX('Rent Limits'!$J$1:$P$1045,MATCH(AE31,'Rent Limits'!$A$1:$A$1045,0),MATCH(E31,'Rent Limits'!$J$1:$P$1)),0) -> 0 | R31: 0 | S31: 0 | T31: 0 | U31: 0 | V31: 0 | W31: 0 | X31: 0 | Y31: 0 | Z31: 0 | AA31: No | AE31: =CONCATENATE('Project, Applicant, Threshold'!$AD$40,'Assisted Units'!L31) ->  | AF31: =CONCATENATE('Project, Applicant, Threshold'!$AD$40,"0.35") -> 0.35
N32: =IF(J32="HOME",0,IFERROR(INDEX('Rent Limits'!$A$1:$I$1045,MATCH(AF32,'Rent Limits'!$A$1:$A$1045,0),MATCH(D32,'Rent Limits'!$A$1:$I$1,0)),0)) -> 0 | O32: 0 | P32: 0 | Q32: =IFERROR(INDEX('Rent Limits'!$J$1:$P$1045,MATCH(AE32,'Rent Limits'!$A$1:$A$1045,0),MATCH(E32,'Rent Limits'!$J$1:$P$1)),0) -> 0 | R32: 0 | S32: 0 | T32: 0 | U32: 0 | V32: 0 | W32: 0 | X32: 0 | Y32: 0 | Z32: 0 | AA32: No | AE32: =CONCATENATE('Project, Applicant, Threshold'!$AD$40,'Assisted Units'!L32) ->  | AF32: =CONCATENATE('Project, Applicant, Threshold'!$AD$40,"0.35") -> 0.35
N33: =IF(J33="HOME",0,IFERROR(INDEX('Rent Limits'!$A$1:$I$1045,MATCH(AF33,'Rent Limits'!$A$1:$A$1045,0),MATCH(D33,'Rent Limits'!$A$1:$I$1,0)),0)) -> 0 | O33: 0 | P33: 0 | Q33: =IFERROR(INDEX('Rent Limits'!$J$1:$P$1045,MATCH(AE33,'Rent Limits'!$A$1:$A$1045,0),MATCH(E33,'Rent Limits'!$J$1:$P$1)),0) -> 0 | R33: 0 | S33: 0 | T33: 0 | U33: 0 | V33: 0 | W33: 0 | X33: 0 | Y33: 0 | Z33: 0 | AA33: No | AE33: =CONCATENATE('Project, Applicant, Threshold'!$AD$40,'Assisted Units'!L33) ->  | AF33: =CONCATENATE('Project, Applicant, Threshold'!$AD$40,"0.35") -> 0.35
N34: =IF(J34="HOME",0,IFERROR(INDEX('Rent Limits'!$A$1:$I$1045,MATCH(AF34,'Rent Limits'!$A$1:$A$1045,0),MATCH(D34,'Rent Limits'!$A$1:$I$1,0)),0)) -> 0 | O34: 0 | P34: 0 | Q34: =IFERROR(INDEX('Rent Limits'!$J$1:$P$1045,MATCH(AE34,'Rent Limits'!$A$1:$A$1045,0),MATCH(E34,'Rent Limits'!$J$1:$P$1)),0) -> 0 | R34: 0 | S34: 0 | T34: 0 | U34: 0 | V34: 0 | W34: 0 | X34: 0 | Y34: 0 | Z34: 0 | AA34: No | AE34: =CONCATENATE('Project, Applicant, Threshold'!$AD$40,'Assisted Units'!L34) ->  | AF34: =CONCATENATE('Project, Applicant, Threshold'!$AD$40,"0.35") -> 0.35
N35: =IF(J35="HOME",0,IFERROR(INDEX('Rent Limits'!$A$1:$I$1045,MATCH(AF35,'Rent Limits'!$A$1:$A$1045,0),MATCH(D35,'Rent Limits'!$A$1:$I$1,0)),0)) -> 0 | O35: 0 | P35: 0 | Q35: =IFERROR(INDEX('Rent Limits'!$J$1:$P$1045,MATCH(AE35,'Rent Limits'!$A$1:$A$1045,0),MATCH(E35,'Rent Limits'!$J$1:$P$1)),0) -> 0 | R35: 0 | S35: 0 | T35: 0 | U35: 0 | V35: 0 | W35: 0 | X35: 0 | Y35: 0 | Z35: 0 | AA35: No | AE35: =CONCATENATE('Project, Applicant, Threshold'!$AD$40,'Assisted Units'!L35) ->  | AF35: =CONCATENATE('Project, Applicant, Threshold'!$AD$40,"0.35") -> 0.35
N36: =IF(J36="HOME",0,IFERROR(INDEX('Rent Limits'!$A$1:$I$1045,MATCH(AF36,'Rent Limits'!$A$1:$A$1045,0),MATCH(D36,'Rent Limits'!$A$1:$I$1,0)),0)) -> 0 | O36: 0 | P36: 0 | Q36: =IFERROR(INDEX('Rent Limits'!$J$1:$P$1045,MATCH(AE36,'Rent Limits'!$A$1:$A$1045,0),MATCH(E36,'Rent Limits'!$J$1:$P$1)),0) -> 0 | R36: 0 | S36: 0 | T36: 0 | U36: 0 | V36: 0 | W36: 0 | X36: 0 | Y36: 0 | Z36: 0 | AA36: No | AE36: =CONCATENATE('Project, Applicant, Threshold'!$AD$40,'Assisted Units'!L36) ->  | AF36: =CONCATENATE('Project, Applicant, Threshold'!$AD$40,"0.35") -> 0.35
N37: =IF(J37="HOME",0,IFERROR(INDEX('Rent Limits'!$A$1:$I$1045,MATCH(AF37,'Rent Limits'!$A$1:$A$1045,0),MATCH(D37,'Rent Limits'!$A$1:$I$1,0)),0)) -> 0 | O37: 0 | P37: 0 | Q37: =IFERROR(INDEX('Rent Limits'!$J$1:$P$1045,MATCH(AE37,'Rent Limits'!$A$1:$A$1045,0),MATCH(E37,'Rent Limits'!$J$1:$P$1)),0) -> 0 | R37: 0 | S37: 0 | T37: 0 | U37: 0 | V37: 0 | W37: 0 | X37: 0 | Y37: 0 | Z37: 0 | AA37: No | AE37: =CONCATENATE('Project, Applicant, Threshold'!$AD$40,'Assisted Units'!L37) ->  | AF37: =CONCATENATE('Project, Applicant, Threshold'!$AD$40,"0.35") -> 0.35
N38: =IF(J38="HOME",0,IFERROR(INDEX('Rent Limits'!$A$1:$I$1045,MATCH(AF38,'Rent Limits'!$A$1:$A$1045,0),MATCH(D38,'Rent Limits'!$A$1:$I$1,0)),0)) -> 0 | O38: 0 | P38: 0 | Q38: =IFERROR(INDEX('Rent Limits'!$J$1:$P$1045,MATCH(AE38,'Rent Limits'!$A$1:$A$1045,0),MATCH(E38,'Rent Limits'!$J$1:$P$1)),0) -> 0 | R38: 0 | S38: 0 | T38: 0 | U38: 0 | V38: 0 | W38: 0 | X38: 0 | Y38: 0 | Z38: 0 | AA38: No | AE38: =CONCATENATE('Project, Applicant, Threshold'!$AD$40,'Assisted Units'!L38) ->  | AF38: =CONCATENATE('Project, Applicant, Threshold'!$AD$40,"0.35") -> 0.35
N39: =IF(J39="HOME",0,IFERROR(INDEX('Rent Limits'!$A$1:$I$1045,MATCH(AF39,'Rent Limits'!$A$1:$A$1045,0),MATCH(D39,'Rent Limits'!$A$1:$I$1,0)),0)) -> 0 | O39: 0 | P39: 0 | Q39: =IFERROR(INDEX('Rent Limits'!$J$1:$P$1045,MATCH(AE39,'Rent Limits'!$A$1:$A$1045,0),MATCH(E39,'Rent Limits'!$J$1:$P$1)),0) -> 0 | R39: 0 | S39: 0 | T39: 0 | U39: 0 | V39: 0 | W39: 0 | X39: 0 | Y39: 0 | Z39: 0 | AA39: No | AE39: =CONCATENATE('Project, Applicant, Threshold'!$AD$40,'Assisted Units'!L39) ->  | AF39: =CONCATENATE('Project, Applicant, Threshold'!$AD$40,"0.35") -> 0.35
N40: =IF(J40="HOME",0,IFERROR(INDEX('Rent Limits'!$A$1:$I$1045,MATCH(AF40,'Rent Limits'!$A$1:$A$1045,0),MATCH(D40,'Rent Limits'!$A$1:$I$1,0)),0)) -> 0 | O40: 0 | P40: 0 | Q40: =IFERROR(INDEX('Rent Limits'!$J$1:$P$1045,MATCH(AE40,'Rent Limits'!$A$1:$A$1045,0),MATCH(E40,'Rent Limits'!$J$1:$P$1)),0) -> 0 | R40: 0 | S40: 0 | T40: 0 | U40: 0 | V40: 0 | W40: 0 | X40: 0 | Y40: 0 | Z40: 0 | AA40: No | AE40: =CONCATENATE('Project, Applicant, Threshold'!$AD$40,'Assisted Units'!L40) ->  | AF40: =CONCATENATE('Project, Applicant, Threshold'!$AD$40,"0.35") -> 0.35
N41: =IF(J41="HOME",0,IFERROR(INDEX('Rent Limits'!$A$1:$I$1045,MATCH(AF41,'Rent Limits'!$A$1:$A$1045,0),MATCH(D41,'Rent Limits'!$A$1:$I$1,0)),0)) -> 0 | O41: 0 | P41: 0 | Q41: =IFERROR(INDEX('Rent Limits'!$J$1:$P$1045,MATCH(AE41,'Rent Limits'!$A$1:$A$1045,0),MATCH(E41,'Rent Limits'!$J$1:$P$1)),0) -> 0 | R41: 0 | S41: 0 | T41: 0 | U41: 0 | V41: 0 | W41: 0 | X41: 0 | Y41: 0 | Z41: 0 | AA41: No | AE41: =CONCATENATE('Project, Applicant, Threshold'!$AD$40,'Assisted Units'!L41) ->  | AF41: =CONCATENATE('Project, Applicant, Threshold'!$AD$40,"0.35") -> 0.35
N42: =IF(J42="HOME",0,IFERROR(INDEX('Rent Limits'!$A$1:$I$1045,MATCH(AF42,'Rent Limits'!$A$1:$A$1045,0),MATCH(D42,'Rent Limits'!$A$1:$I$1,0)),0)) -> 0 | O42: 0 | P42: 0 | Q42: =IFERROR(INDEX('Rent Limits'!$J$1:$P$1045,MATCH(AE42,'Rent Limits'!$A$1:$A$1045,0),MATCH(E42,'Rent Limits'!$J$1:$P$1)),0) -> 0 | R42: 0 | S42: 0 | T42: 0 | U42: 0 | V42: 0 | W42: 0 | X42: 0 | Y42: 0 | Z42: 0 | AA42: No | AE42: =CONCATENATE('Project, Applicant, Threshold'!$AD$40,'Assisted Units'!L42) ->  | AF42: =CONCATENATE('Project, Applicant, Threshold'!$AD$40,"0.35") -> 0.35
N43: =IF(J43="HOME",0,IFERROR(INDEX('Rent Limits'!$A$1:$I$1045,MATCH(AF43,'Rent Limits'!$A$1:$A$1045,0),MATCH(D43,'Rent Limits'!$A$1:$I$1,0)),0)) -> 0 | O43: 0 | P43: 0 | Q43: =IFERROR(INDEX('Rent Limits'!$J$1:$P$1045,MATCH(AE43,'Rent Limits'!$A$1:$A$1045,0),MATCH(E43,'Rent Limits'!$J$1:$P$1)),0) -> 0 | R43: 0 | S43: 0 | T43: 0 | U43: 0 | V43: 0 | W43: 0 | X43: 0 | Y43: 0 | Z43: 0 | AA43: No | AE43: =CONCATENATE('Project, Applicant, Threshold'!$AD$40,'Assisted Units'!L43) ->  | AF43: =CONCATENATE('Project, Applicant, Threshold'!$AD$40,"0.35") -> 0.35
N44: =IF(J44="HOME",0,IFERROR(INDEX('Rent Limits'!$A$1:$I$1045,MATCH(AF44,'Rent Limits'!$A$1:$A$1045,0),MATCH(D44,'Rent Limits'!$A$1:$I$1,0)),0)) -> 0 | O44: 0 | P44: 0 | Q44: =IFERROR(INDEX('Rent Limits'!$J$1:$P$1045,MATCH(AE44,'Rent Limits'!$A$1:$A$1045,0),MATCH(E44,'Rent Limits'!$J$1:$P$1)),0) -> 0 | R44: 0 | S44: 0 | T44: 0 | U44: 0 | V44: 0 | W44: 0 | X44: 0 | Y44: 0 | Z44: 0 | AA44: No | AE44: =CONCATENATE('Project, Applicant, Threshold'!$AD$40,'Assisted Units'!L44) ->  | AF44: =CONCATENATE('Project, Applicant, Threshold'!$AD$40,"0.35") -> 0.35
N45: =IF(J45="HOME",0,IFERROR(INDEX('Rent Limits'!$A$1:$I$1045,MATCH(AF45,'Rent Limits'!$A$1:$A$1045,0),MATCH(D45,'Rent Limits'!$A$1:$I$1,0)),0)) -> 0 | O45: 0 | P45: 0 | Q45: =IFERROR(INDEX('Rent Limits'!$J$1:$P$1045,MATCH(AE45,'Rent Limits'!$A$1:$A$1045,0),MATCH(E45,'Rent Limits'!$J$1:$P$1)),0) -> 0 | R45: 0 | S45: 0 | T45: 0 | U45: 0 | V45: 0 | W45: 0 | X45: 0 | Y45: 0 | Z45: 0 | AA45: No | AE45: =CONCATENATE('Project, Applicant, Threshold'!$AD$40,'Assisted Units'!L45) ->  | AF45: =CONCATENATE('Project, Applicant, Threshold'!$AD$40,"0.35") -> 0.35
N46: =IF(J46="HOME",0,IFERROR(INDEX('Rent Limits'!$A$1:$I$1045,MATCH(AF46,'Rent Limits'!$A$1:$A$1045,0),MATCH(D46,'Rent Limits'!$A$1:$I$1,0)),0)) -> 0 | O46: 0 | P46: 0 | Q46: =IFERROR(INDEX('Rent Limits'!$J$1:$P$1045,MATCH(AE46,'Rent Limits'!$A$1:$A$1045,0),MATCH(E46,'Rent Limits'!$J$1:$P$1)),0) -> 0 | R46: 0 | S46: 0 | T46: 0 | U46: 0 | V46: 0 | W46: 0 | X46: 0 | Y46: 0 | Z46: 0 | AA46: No | AE46: =CONCATENATE('Project, Applicant, Threshold'!$AD$40,'Assisted Units'!L46) ->  | AF46: =CONCATENATE('Project, Applicant, Threshold'!$AD$40,"0.35") -> 0.35
N47: =IF(J47="HOME",0,IFERROR(INDEX('Rent Limits'!$A$1:$I$1045,MATCH(AF47,'Rent Limits'!$A$1:$A$1045,0),MATCH(D47,'Rent Limits'!$A$1:$I$1,0)),0)) -> 0 | O47: 0 | P47: 0 | Q47: =IFERROR(INDEX('Rent Limits'!$J$1:$P$1045,MATCH(AE47,'Rent Limits'!$A$1:$A$1045,0),MATCH(E47,'Rent Limits'!$J$1:$P$1)),0) -> 0 | R47: 0 | S47: 0 | T47: 0 | U47: 0 | V47: 0 | W47: 0 | X47: 0 | Y47: 0 | Z47: 0 | AA47: No | AE47: =CONCATENATE('Project, Applicant, Threshold'!$AD$40,'Assisted Units'!L47) ->  | AF47: =CONCATENATE('Project, Applicant, Threshold'!$AD$40,"0.35") -> 0.35
N48: =IF(J48="HOME",0,IFERROR(INDEX('Rent Limits'!$A$1:$I$1045,MATCH(AF48,'Rent Limits'!$A$1:$A$1045,0),MATCH(D48,'Rent Limits'!$A$1:$I$1,0)),0)) -> 0 | O48: 0 | P48: 0 | Q48: =IFERROR(INDEX('Rent Limits'!$J$1:$P$1045,MATCH(AE48,'Rent Limits'!$A$1:$A$1045,0),MATCH(E48,'Rent Limits'!$J$1:$P$1)),0) -> 0 | R48: 0 | S48: 0 | T48: 0 | U48: 0 | V48: 0 | W48: 0 | X48: 0 | Y48: 0 | Z48: 0 | AA48: No | AE48: =CONCATENATE('Project, Applicant, Threshold'!$AD$40,'Assisted Units'!L48) ->  | AF48: =CONCATENATE('Project, Applicant, Threshold'!$AD$40,"0.35") -> 0.35
N49: =IF(J49="HOME",0,IFERROR(INDEX('Rent Limits'!$A$1:$I$1045,MATCH(AF49,'Rent Limits'!$A$1:$A$1045,0),MATCH(D49,'Rent Limits'!$A$1:$I$1,0)),0)) -> 0 | O49: 0 | P49: 0 | Q49: =IFERROR(INDEX('Rent Limits'!$J$1:$P$1045,MATCH(AE49,'Rent Limits'!$A$1:$A$1045,0),MATCH(E49,'Rent Limits'!$J$1:$P$1)),0) -> 0 | R49: 0 | S49: 0 | T49: 0 | U49: 0 | V49: 0 | W49: 0 | X49: 0 | Y49: 0 | Z49: 0 | AA49: No | AE49: =CONCATENATE('Project, Applicant, Threshold'!$AD$40,'Assisted Units'!L49) ->  | AF49: =CONCATENATE('Project, Applicant, Threshold'!$AD$40,"0.35") -> 0.35
N50: =IF(J50="HOME",0,IFERROR(INDEX('Rent Limits'!$A$1:$I$1045,MATCH(AF50,'Rent Limits'!$A$1:$A$1045,0),MATCH(D50,'Rent Limits'!$A$1:$I$1,0)),0)) -> 0 | O50: 0 | P50: 0 | Q50: =IFERROR(INDEX('Rent Limits'!$J$1:$P$1045,MATCH(AE50,'Rent Limits'!$A$1:$A$1045,0),MATCH(E50,'Rent Limits'!$J$1:$P$1)),0) -> 0 | R50: 0 | S50: 0 | T50: 0 | U50: 0 | V50: 0 | W50: 0 | X50: 0 | Y50: 0 | Z50: 0 | AA50: No | AE50: =CONCATENATE('Project, Applicant, Threshold'!$AD$40,'Assisted Units'!L50) ->  | AF50: =CONCATENATE('Project, Applicant, Threshold'!$AD$40,"0.35") -> 0.35
N51: =IF(J51="HOME",0,IFERROR(INDEX('Rent Limits'!$A$1:$I$1045,MATCH(AF51,'Rent Limits'!$A$1:$A$1045,0),MATCH(D51,'Rent Limits'!$A$1:$I$1,0)),0)) -> 0 | O51: 0 | P51: 0 | Q51: =IFERROR(INDEX('Rent Limits'!$J$1:$P$1045,MATCH(AE51,'Rent Limits'!$A$1:$A$1045,0),MATCH(E51,'Rent Limits'!$J$1:$P$1)),0) -> 0 | R51: 0 | S51: 0 | T51: 0 | U51: 0 | V51: 0 | W51: 0 | X51: 0 | Y51: 0 | Z51: 0 | AA51: No | AE51: =CONCATENATE('Project, Applicant, Threshold'!$AD$40,'Assisted Units'!L51) ->  | AF51: =CONCATENATE('Project, Applicant, Threshold'!$AD$40,"0.35") -> 0.35
N52: =IF(J52="HOME",0,IFERROR(INDEX('Rent Limits'!$A$1:$I$1045,MATCH(AF52,'Rent Limits'!$A$1:$A$1045,0),MATCH(D52,'Rent Limits'!$A$1:$I$1,0)),0)) -> 0 | O52: 0 | P52: 0 | Q52: =IFERROR(INDEX('Rent Limits'!$J$1:$P$1045,MATCH(AE52,'Rent Limits'!$A$1:$A$1045,0),MATCH(E52,'Rent Limits'!$J$1:$P$1)),0) -> 0 | R52: 0 | S52: 0 | T52: 0 | U52: 0 | V52: 0 | W52: 0 | X52: 0 | Y52: 0 | Z52: 0 | AA52: No | AE52: =CONCATENATE('Project, Applicant, Threshold'!$AD$40,'Assisted Units'!L52) ->  | AF52: =CONCATENATE('Project, Applicant, Threshold'!$AD$40,"0.35") -> 0.35
N53: =IF(J53="HOME",0,IFERROR(INDEX('Rent Limits'!$A$1:$I$1045,MATCH(AF53,'Rent Limits'!$A$1:$A$1045,0),MATCH(D53,'Rent Limits'!$A$1:$I$1,0)),0)) -> 0 | O53: 0 | P53: 0 | Q53: =IFERROR(INDEX('Rent Limits'!$J$1:$P$1045,MATCH(AE53,'Rent Limits'!$A$1:$A$1045,0),MATCH(E53,'Rent Limits'!$J$1:$P$1)),0) -> 0 | R53: 0 | S53: 0 | T53: 0 | U53: 0 | V53: 0 | W53: 0 | X53: 0 | Y53: 0 | Z53: 0 | AA53: No | AE53: =CONCATENATE('Project, Applicant, Threshold'!$AD$40,'Assisted Units'!L53) ->  | AF53: =CONCATENATE('Project, Applicant, Threshold'!$AD$40,"0.35") -> 0.35
N54: =IF(J54="HOME",0,IFERROR(INDEX('Rent Limits'!$A$1:$I$1045,MATCH(AF54,'Rent Limits'!$A$1:$A$1045,0),MATCH(D54,'Rent Limits'!$A$1:$I$1,0)),0)) -> 0 | O54: 0 | P54: 0 | Q54: =IFERROR(INDEX('Rent Limits'!$J$1:$P$1045,MATCH(AE54,'Rent Limits'!$A$1:$A$1045,0),MATCH(E54,'Rent Limits'!$J$1:$P$1)),0) -> 0 | R54: 0 | S54: 0 | T54: 0 | U54: 0 | V54: 0 | W54: 0 | X54: 0 | Y54: 0 | Z54: 0 | AA54: No | AE54: =CONCATENATE('Project, Applicant, Threshold'!$AD$40,'Assisted Units'!L54) ->  | AF54: =CONCATENATE('Project, Applicant, Threshold'!$AD$40,"0.35") -> 0.35
N55: =IF(J55="HOME",0,IFERROR(INDEX('Rent Limits'!$A$1:$I$1045,MATCH(AF55,'Rent Limits'!$A$1:$A$1045,0),MATCH(D55,'Rent Limits'!$A$1:$I$1,0)),0)) -> 0 | O55: 0 | P55: 0 | Q55: =IFERROR(INDEX('Rent Limits'!$J$1:$P$1045,MATCH(AE55,'Rent Limits'!$A$1:$A$1045,0),MATCH(E55,'Rent Limits'!$J$1:$P$1)),0) -> 0 | R55: 0 | S55: 0 | T55: 0 | U55: 0 | V55: 0 | W55: 0 | X55: 0 | Y55: 0 | Z55: 0 | AA55: No | AE55: =CONCATENATE('Project, Applicant, Threshold'!$AD$40,'Assisted Units'!L55) ->  | AF55: =CONCATENATE('Project, Applicant, Threshold'!$AD$40,"0.35") -> 0.35
N56: =IF(J56="HOME",0,IFERROR(INDEX('Rent Limits'!$A$1:$I$1045,MATCH(AF56,'Rent Limits'!$A$1:$A$1045,0),MATCH(D56,'Rent Limits'!$A$1:$I$1,0)),0)) -> 0 | O56: 0 | P56: 0 | Q56: =IFERROR(INDEX('Rent Limits'!$J$1:$P$1045,MATCH(AE56,'Rent Limits'!$A$1:$A$1045,0),MATCH(E56,'Rent Limits'!$J$1:$P$1)),0) -> 0 | R56: 0 | S56: 0 | T56: 0 | U56: 0 | V56: 0 | W56: 0 | X56: 0 | Y56: 0 | Z56: 0 | AA56: No | AE56: =CONCATENATE('Project, Applicant, Threshold'!$AD$40,'Assisted Units'!L56) ->  | AF56: =CONCATENATE('Project, Applicant, Threshold'!$AD$40,"0.35") -> 0.35
N57: =IF(J57="HOME",0,IFERROR(INDEX('Rent Limits'!$A$1:$I$1045,MATCH(AF57,'Rent Limits'!$A$1:$A$1045,0),MATCH(D57,'Rent Limits'!$A$1:$I$1,0)),0)) -> 0 | O57: 0 | P57: 0 | Q57: =IFERROR(INDEX('Rent Limits'!$J$1:$P$1045,MATCH(AE57,'Rent Limits'!$A$1:$A$1045,0),MATCH(E57,'Rent Limits'!$J$1:$P$1)),0) -> 0 | R57: 0 | S57: 0 | T57: 0 | U57: 0 | V57: 0 | W57: 0 | X57: 0 | Y57: 0 | Z57: 0 | AA57: No | AE57: =CONCATENATE('Project, Applicant, Threshold'!$AD$40,'Assisted Units'!L57) ->  | AF57: =CONCATENATE('Project, Applicant, Threshold'!$AD$40,"0.35") -> 0.35
N58: =IF(J58="HOME",0,IFERROR(INDEX('Rent Limits'!$A$1:$I$1045,MATCH(AF58,'Rent Limits'!$A$1:$A$1045,0),MATCH(D58,'Rent Limits'!$A$1:$I$1,0)),0)) -> 0 | O58: 0 | P58: 0 | Q58: =IFERROR(INDEX('Rent Limits'!$J$1:$P$1045,MATCH(AE58,'Rent Limits'!$A$1:$A$1045,0),MATCH(E58,'Rent Limits'!$J$1:$P$1)),0) -> 0 | R58: 0 | S58: 0 | T58: 0 | U58: 0 | V58: 0 | W58: 0 | X58: 0 | Y58: 0 | Z58: 0 | AA58: No | AE58: =CONCATENATE('Project, Applicant, Threshold'!$AD$40,'Assisted Units'!L58) ->  | AF58: =CONCATENATE('Project, Applicant, Threshold'!$AD$40,"0.35") -> 0.35
N59: =IF(J59="HOME",0,IFERROR(INDEX('Rent Limits'!$A$1:$I$1045,MATCH(AF59,'Rent Limits'!$A$1:$A$1045,0),MATCH(D59,'Rent Limits'!$A$1:$I$1,0)),0)) -> 0 | O59: 0 | P59: 0 | Q59: =IFERROR(INDEX('Rent Limits'!$J$1:$P$1045,MATCH(AE59,'Rent Limits'!$A$1:$A$1045,0),MATCH(E59,'Rent Limits'!$J$1:$P$1)),0) -> 0 | R59: 0 | S59: 0 | T59: 0 | U59: 0 | V59: 0 | W59: 0 | X59: 0 | Y59: 0 | Z59: 0 | AA59: No | AE59: =CONCATENATE('Project, Applicant, Threshold'!$AD$40,'Assisted Units'!L59) ->  | AF59: =CONCATENATE('Project, Applicant, Threshold'!$AD$40,"0.35") -> 0.35
N60: =IF(J60="HOME",0,IFERROR(INDEX('Rent Limits'!$A$1:$I$1045,MATCH(AF60,'Rent Limits'!$A$1:$A$1045,0),MATCH(D60,'Rent Limits'!$A$1:$I$1,0)),0)) -> 0 | O60: 0 | P60: 0 | Q60: =IFERROR(INDEX('Rent Limits'!$J$1:$P$1045,MATCH(AE60,'Rent Limits'!$A$1:$A$1045,0),MATCH(E60,'Rent Limits'!$J$1:$P$1)),0) -> 0 | R60: 0 | S60: 0 | T60: 0 | U60: 0 | V60: 0 | W60: 0 | X60: 0 | Y60: 0 | Z60: 0 | AA60: No | AE60: =CONCATENATE('Project, Applicant, Threshold'!$AD$40,'Assisted Units'!L60) ->  | AF60: =CONCATENATE('Project, Applicant, Threshold'!$AD$40,"0.35") -> 0.35
N61: =IF(J61="HOME",0,IFERROR(INDEX('Rent Limits'!$A$1:$I$1045,MATCH(AF61,'Rent Limits'!$A$1:$A$1045,0),MATCH(D61,'Rent Limits'!$A$1:$I$1,0)),0)) -> 0 | O61: 0 | P61: 0 | Q61: =IFERROR(INDEX('Rent Limits'!$J$1:$P$1045,MATCH(AE61,'Rent Limits'!$A$1:$A$1045,0),MATCH(E61,'Rent Limits'!$J$1:$P$1)),0) -> 0 | R61: 0 | S61: 0 | T61: 0 | U61: 0 | V61: 0 | W61: 0 | X61: 0 | Y61: 0 | Z61: 0 | AA61: No | AE61: =CONCATENATE('Project, Applicant, Threshold'!$AD$40,'Assisted Units'!L61) ->  | AF61: =CONCATENATE('Project, Applicant, Threshold'!$AD$40,"0.35") -> 0.35
N62: =IF(J62="HOME",0,IFERROR(INDEX('Rent Limits'!$A$1:$I$1045,MATCH(AF62,'Rent Limits'!$A$1:$A$1045,0),MATCH(D62,'Rent Limits'!$A$1:$I$1,0)),0)) -> 0 | O62: 0 | P62: 0 | Q62: =IFERROR(INDEX('Rent Limits'!$J$1:$P$1045,MATCH(AE62,'Rent Limits'!$A$1:$A$1045,0),MATCH(E62,'Rent Limits'!$J$1:$P$1)),0) -> 0 | R62: 0 | S62: 0 | T62: 0 | U62: 0 | V62: 0 | W62: 0 | X62: 0 | Y62: 0 | Z62: 0 | AA62: No | AE62: =CONCATENATE('Project, Applicant, Threshold'!$AD$40,'Assisted Units'!L62) ->  | AF62: =CONCATENATE('Project, Applicant, Threshold'!$AD$40,"0.35") -> 0.35
N63: =IF(J63="HOME",0,IFERROR(INDEX('Rent Limits'!$A$1:$I$1045,MATCH(AF63,'Rent Limits'!$A$1:$A$1045,0),MATCH(D63,'Rent Limits'!$A$1:$I$1,0)),0)) -> 0 | O63: 0 | P63: 0 | Q63: =IFERROR(INDEX('Rent Limits'!$J$1:$P$1045,MATCH(AE63,'Rent Limits'!$A$1:$A$1045,0),MATCH(E63,'Rent Limits'!$J$1:$P$1)),0) -> 0 | R63: 0 | S63: 0 | T63: 0 | U63: 0 | V63: 0 | W63: 0 | X63: 0 | Y63: 0 | Z63: 0 | AA63: No | AE63: =CONCATENATE('Project, Applicant, Threshold'!$AD$40,'Assisted Units'!L63) ->  | AF63: =CONCATENATE('Project, Applicant, Threshold'!$AD$40,"0.35") -> 0.35
N64: =IF(J64="HOME",0,IFERROR(INDEX('Rent Limits'!$A$1:$I$1045,MATCH(AF64,'Rent Limits'!$A$1:$A$1045,0),MATCH(D64,'Rent Limits'!$A$1:$I$1,0)),0)) -> 0 | O64: 0 | P64: 0 | Q64: =IFERROR(INDEX('Rent Limits'!$J$1:$P$1045,MATCH(AE64,'Rent Limits'!$A$1:$A$1045,0),MATCH(E64,'Rent Limits'!$J$1:$P$1)),0) -> 0 | R64: 0 | S64: 0 | T64: 0 | U64: 0 | V64: 0 | W64: 0 | X64: 0 | Y64: 0 | Z64: 0 | AA64: No | AE64: =CONCATENATE('Project, Applicant, Threshold'!$AD$40,'Assisted Units'!L64) ->  | AF64: =CONCATENATE('Project, Applicant, Threshold'!$AD$40,"0.35") -> 0.35
N65: =IF(J65="HOME",0,IFERROR(INDEX('Rent Limits'!$A$1:$I$1045,MATCH(AF65,'Rent Limits'!$A$1:$A$1045,0),MATCH(D65,'Rent Limits'!$A$1:$I$1,0)),0)) -> 0 | O65: 0 | P65: 0 | Q65: =IFERROR(INDEX('Rent Limits'!$J$1:$P$1045,MATCH(AE65,'Rent Limits'!$A$1:$A$1045,0),MATCH(E65,'Rent Limits'!$J$1:$P$1)),0) -> 0 | R65: 0 | S65: 0 | T65: 0 | U65: 0 | V65: 0 | W65: 0 | X65: 0 | Y65: 0 | Z65: 0 | AA65: No | AE65: =CONCATENATE('Project, Applicant, Threshold'!$AD$40,'Assisted Units'!L65) ->  | AF65: =CONCATENATE('Project, Applicant, Threshold'!$AD$40,"0.35") -> 0.35
N66: =IF(J66="HOME",0,IFERROR(INDEX('Rent Limits'!$A$1:$I$1045,MATCH(AF66,'Rent Limits'!$A$1:$A$1045,0),MATCH(D66,'Rent Limits'!$A$1:$I$1,0)),0)) -> 0 | O66: 0 | P66: 0 | Q66: =IFERROR(INDEX('Rent Limits'!$J$1:$P$1045,MATCH(AE66,'Rent Limits'!$A$1:$A$1045,0),MATCH(E66,'Rent Limits'!$J$1:$P$1)),0) -> 0 | R66: 0 | S66: 0 | T66: 0 | U66: 0 | V66: 0 | W66: 0 | X66: 0 | Y66: 0 | Z66: 0 | AA66: No | AE66: =CONCATENATE('Project, Applicant, Threshold'!$AD$40,'Assisted Units'!L66) ->  | AF66: =CONCATENATE('Project, Applicant, Threshold'!$AD$40,"0.35") -> 0.35
N67: =IF(J67="HOME",0,IFERROR(INDEX('Rent Limits'!$A$1:$I$1045,MATCH(AF67,'Rent Limits'!$A$1:$A$1045,0),MATCH(D67,'Rent Limits'!$A$1:$I$1,0)),0)) -> 0 | O67: 0 | P67: 0 | Q67: =IFERROR(INDEX('Rent Limits'!$J$1:$P$1045,MATCH(AE67,'Rent Limits'!$A$1:$A$1045,0),MATCH(E67,'Rent Limits'!$J$1:$P$1)),0) -> 0 | R67: 0 | S67: 0 | T67: 0 | U67: 0 | V67: 0 | W67: 0 | X67: 0 | Y67: 0 | Z67: =IFERROR(V67*12/G67,0) -> 0 | AA67: No | AE67: =CONCATENATE('Project, Applicant, Threshold'!$AD$40,'Assisted Units'!L67) ->  | AF67: =CONCATENATE('Project, Applicant, Threshold'!$AD$40,"0.35") -> 0.35
N68: =IF(J68="HOME",0,IFERROR(INDEX('Rent Limits'!$A$1:$I$1045,MATCH(AF68,'Rent Limits'!$A$1:$A$1045,0),MATCH(D68,'Rent Limits'!$A$1:$I$1,0)),0)) -> 0 | O68: =IF(OR(B68="x",E68=""),0,IF(OR(G68="",D68="Vacant",J68="New PRP",J68="HLCP-E",J68="HLCP-N",J68="HOME",J68="LPR",X68>0,Y68>0),0.025,IF(G68<=N68,0.05,0.1))) -> 0 | P68: =H68*(1+O68) -> 0 | Q68: =IFERROR(INDEX('Rent Limits'!$J$1:$P$1045,MATCH(AE68,'Rent Limits'!$A$1:$A$1045,0),MATCH(E68,'Rent Limits'!$J$1:$P$1)),0) -> 0 | R68: =Q68-M68 -> 0 | S68: =IF(J68="HOME",0,ROUND(G68*0.5/12,0)) -> 0 | T68: =IF(J68="HOME",0,S68-M68) -> 0 | U68: =H68 -> 0 | V68: 0 | W68: =V68*12 -> 0 | X68: 0 | Y68: 0 | Z68: 0 | AA68: =IF(OR(AND(K68="VLI",J68<>"HOME",L68>0.3),AND(K68="LI",L68>$AB$3),AND(OR(J68="New PRP",K68="New PRP"),L68=0.8)),"Yes","No") -> No | AE68: =CONCATENATE('Project, Applicant, Threshold'!$AD$40,'Assisted Units'!L68) ->  | AF68: =CONCATENATE('Project, Applicant, Threshold'!$AD$40,"0.35") -> 0.35
N69: =IF(J69="HOME",0,IFERROR(INDEX('Rent Limits'!$A$1:$I$1045,MATCH(AF69,'Rent Limits'!$A$1:$A$1045,0),MATCH(D69,'Rent Limits'!$A$1:$I$1,0)),0)) -> 0 | O69: 0 | P69: 0 | Q69: =IFERROR(INDEX('Rent Limits'!$J$1:$P$1045,MATCH(AE69,'Rent Limits'!$A$1:$A$1045,0),MATCH(E69,'Rent Limits'!$J$1:$P$1)),0) -> 0 | R69: 0 | S69: 0 | T69: 0 | U69: 0 | V69: =IF(OR(D69="Vacant",J69="New PRP"),R69,IF(J69="HOME",MAX(U69,MIN(R69,P69)),MAX(U69,MIN(R69,P69,T69)))) -> 0 | W69: 0 | X69: 0 | Y69: 0 | Z69: 0 | AA69: No | AE69: =CONCATENATE('Project, Applicant, Threshold'!$AD$40,'Assisted Units'!L69) ->  | AF69: =CONCATENATE('Project, Applicant, Threshold'!$AD$40,"0.35") -> 0.35
N70: =IF(J70="HOME",0,IFERROR(INDEX('Rent Limits'!$A$1:$I$1045,MATCH(AF70,'Rent Limits'!$A$1:$A$1045,0),MATCH(D70,'Rent Limits'!$A$1:$I$1,0)),0)) -> 0 | O70: 0 | P70: 0 | Q70: =IFERROR(INDEX('Rent Limits'!$J$1:$P$1045,MATCH(AE70,'Rent Limits'!$A$1:$A$1045,0),MATCH(E70,'Rent Limits'!$J$1:$P$1)),0) -> 0 | R70: 0 | S70: 0 | T70: 0 | U70: 0 | V70: 0 | W70: 0 | X70: 0 | Y70: 0 | Z70: 0 | AA70: No | AE70: =CONCATENATE('Project, Applicant, Threshold'!$AD$40,'Assisted Units'!L70) ->  | AF70: =CONCATENATE('Project, Applicant, Threshold'!$AD$40,"0.35") -> 0.35
N71: =IF(J71="HOME",0,IFERROR(INDEX('Rent Limits'!$A$1:$I$1045,MATCH(AF71,'Rent Limits'!$A$1:$A$1045,0),MATCH(D71,'Rent Limits'!$A$1:$I$1,0)),0)) -> 0 | O71: 0 | P71: 0 | Q71: =IFERROR(INDEX('Rent Limits'!$J$1:$P$1045,MATCH(AE71,'Rent Limits'!$A$1:$A$1045,0),MATCH(E71,'Rent Limits'!$J$1:$P$1)),0) -> 0 | R71: 0 | S71: 0 | T71: 0 | U71: 0 | V71: 0 | W71: 0 | X71: 0 | Y71: 0 | Z71: 0 | AA71: No | AE71: =CONCATENATE('Project, Applicant, Threshold'!$AD$40,'Assisted Units'!L71) ->  | AF71: =CONCATENATE('Project, Applicant, Threshold'!$AD$40,"0.35") -> 0.35
N72: =IF(J72="HOME",0,IFERROR(INDEX('Rent Limits'!$A$1:$I$1045,MATCH(AF72,'Rent Limits'!$A$1:$A$1045,0),MATCH(D72,'Rent Limits'!$A$1:$I$1,0)),0)) -> 0 | O72: 0 | P72: 0 | Q72: =IFERROR(INDEX('Rent Limits'!$J$1:$P$1045,MATCH(AE72,'Rent Limits'!$A$1:$A$1045,0),MATCH(E72,'Rent Limits'!$J$1:$P$1)),0) -> 0 | R72: 0 | S72: 0 | T72: 0 | U72: 0 | V72: 0 | W72: 0 | X72: 0 | Y72: 0 | Z72: 0 | AA72: No | AE72: =CONCATENATE('Project, Applicant, Threshold'!$AD$40,'Assisted Units'!L72) ->  | AF72: =CONCATENATE('Project, Applicant, Threshold'!$AD$40,"0.35") -> 0.35
N73: =IF(J73="HOME",0,IFERROR(INDEX('Rent Limits'!$A$1:$I$1045,MATCH(AF73,'Rent Limits'!$A$1:$A$1045,0),MATCH(D73,'Rent Limits'!$A$1:$I$1,0)),0)) -> 0 | O73: 0 | P73: 0 | Q73: =IFERROR(INDEX('Rent Limits'!$J$1:$P$1045,MATCH(AE73,'Rent Limits'!$A$1:$A$1045,0),MATCH(E73,'Rent Limits'!$J$1:$P$1)),0) -> 0 | R73: 0 | S73: 0 | T73: 0 | U73: 0 | V73: 0 | W73: 0 | X73: 0 | Y73: 0 | Z73: 0 | AA73: No | AE73: =CONCATENATE('Project, Applicant, Threshold'!$AD$40,'Assisted Units'!L73) ->  | AF73: =CONCATENATE('Project, Applicant, Threshold'!$AD$40,"0.35") -> 0.35
N74: =IF(J74="HOME",0,IFERROR(INDEX('Rent Limits'!$A$1:$I$1045,MATCH(AF74,'Rent Limits'!$A$1:$A$1045,0),MATCH(D74,'Rent Limits'!$A$1:$I$1,0)),0)) -> 0 | O74: 0 | P74: 0 | Q74: =IFERROR(INDEX('Rent Limits'!$J$1:$P$1045,MATCH(AE74,'Rent Limits'!$A$1:$A$1045,0),MATCH(E74,'Rent Limits'!$J$1:$P$1)),0) -> 0 | R74: 0 | S74: 0 | T74: 0 | U74: 0 | V74: 0 | W74: 0 | X74: 0 | Y74: 0 | Z74: 0 | AA74: No | AE74: =CONCATENATE('Project, Applicant, Threshold'!$AD$40,'Assisted Units'!L74) ->  | AF74: =CONCATENATE('Project, Applicant, Threshold'!$AD$40,"0.35") -> 0.35
N75: =IF(J75="HOME",0,IFERROR(INDEX('Rent Limits'!$A$1:$I$1045,MATCH(AF75,'Rent Limits'!$A$1:$A$1045,0),MATCH(D75,'Rent Limits'!$A$1:$I$1,0)),0)) -> 0 | O75: 0 | P75: 0 | Q75: =IFERROR(INDEX('Rent Limits'!$J$1:$P$1045,MATCH(AE75,'Rent Limits'!$A$1:$A$1045,0),MATCH(E75,'Rent Limits'!$J$1:$P$1)),0) -> 0 | R75: 0 | S75: 0 | T75: 0 | U75: 0 | V75: 0 | W75: 0 | X75: 0 | Y75: 0 | Z75: 0 | AA75: No | AE75: =CONCATENATE('Project, Applicant, Threshold'!$AD$40,'Assisted Units'!L75) ->  | AF75: =CONCATENATE('Project, Applicant, Threshold'!$AD$40,"0.35") -> 0.35
N76: =IF(J76="HOME",0,IFERROR(INDEX('Rent Limits'!$A$1:$I$1045,MATCH(AF76,'Rent Limits'!$A$1:$A$1045,0),MATCH(D76,'Rent Limits'!$A$1:$I$1,0)),0)) -> 0 | O76: 0 | P76: 0 | Q76: =IFERROR(INDEX('Rent Limits'!$J$1:$P$1045,MATCH(AE76,'Rent Limits'!$A$1:$A$1045,0),MATCH(E76,'Rent Limits'!$J$1:$P$1)),0) -> 0 | R76: 0 | S76: 0 | T76: 0 | U76: 0 | V76: 0 | W76: 0 | X76: 0 | Y76: 0 | Z76: 0 | AA76: No | AE76: =CONCATENATE('Project, Applicant, Threshold'!$AD$40,'Assisted Units'!L76) ->  | AF76: =CONCATENATE('Project, Applicant, Threshold'!$AD$40,"0.35") -> 0.35
N77: =IF(J77="HOME",0,IFERROR(INDEX('Rent Limits'!$A$1:$I$1045,MATCH(AF77,'Rent Limits'!$A$1:$A$1045,0),MATCH(D77,'Rent Limits'!$A$1:$I$1,0)),0)) -> 0 | O77: 0 | P77: 0 | Q77: =IFERROR(INDEX('Rent Limits'!$J$1:$P$1045,MATCH(AE77,'Rent Limits'!$A$1:$A$1045,0),MATCH(E77,'Rent Limits'!$J$1:$P$1)),0) -> 0 | R77: 0 | S77: 0 | T77: 0 | U77: 0 | V77: 0 | W77: 0 | X77: 0 | Y77: 0 | Z77: 0 | AA77: No | AE77: =CONCATENATE('Project, Applicant, Threshold'!$AD$40,'Assisted Units'!L77) ->  | AF77: =CONCATENATE('Project, Applicant, Threshold'!$AD$40,"0.35") -> 0.35
N78: =IF(J78="HOME",0,IFERROR(INDEX('Rent Limits'!$A$1:$I$1045,MATCH(AF78,'Rent Limits'!$A$1:$A$1045,0),MATCH(D78,'Rent Limits'!$A$1:$I$1,0)),0)) -> 0 | O78: 0 | P78: 0 | Q78: =IFERROR(INDEX('Rent Limits'!$J$1:$P$1045,MATCH(AE78,'Rent Limits'!$A$1:$A$1045,0),MATCH(E78,'Rent Limits'!$J$1:$P$1)),0) -> 0 | R78: 0 | S78: 0 | T78: 0 | U78: 0 | V78: 0 | W78: 0 | X78: 0 | Y78: 0 | Z78: 0 | AA78: No | AE78: =CONCATENATE('Project, Applicant, Threshold'!$AD$40,'Assisted Units'!L78) ->  | AF78: =CONCATENATE('Project, Applicant, Threshold'!$AD$40,"0.35") -> 0.35
N79: =IF(J79="HOME",0,IFERROR(INDEX('Rent Limits'!$A$1:$I$1045,MATCH(AF79,'Rent Limits'!$A$1:$A$1045,0),MATCH(D79,'Rent Limits'!$A$1:$I$1,0)),0)) -> 0 | O79: 0 | P79: 0 | Q79: =IFERROR(INDEX('Rent Limits'!$J$1:$P$1045,MATCH(AE79,'Rent Limits'!$A$1:$A$1045,0),MATCH(E79,'Rent Limits'!$J$1:$P$1)),0) -> 0 | R79: 0 | S79: 0 | T79: 0 | U79: 0 | V79: 0 | W79: 0 | X79: 0 | Y79: 0 | Z79: 0 | AA79: No | AE79: =CONCATENATE('Project, Applicant, Threshold'!$AD$40,'Assisted Units'!L79) ->  | AF79: =CONCATENATE('Project, Applicant, Threshold'!$AD$40,"0.35") -> 0.35
N80: =IF(J80="HOME",0,IFERROR(INDEX('Rent Limits'!$A$1:$I$1045,MATCH(AF80,'Rent Limits'!$A$1:$A$1045,0),MATCH(D80,'Rent Limits'!$A$1:$I$1,0)),0)) -> 0 | O80: 0 | P80: 0 | Q80: =IFERROR(INDEX('Rent Limits'!$J$1:$P$1045,MATCH(AE80,'Rent Limits'!$A$1:$A$1045,0),MATCH(E80,'Rent Limits'!$J$1:$P$1)),0) -> 0 | R80: 0 | S80: 0 | T80: 0 | U80: 0 | V80: 0 | W80: 0 | X80: 0 | Y80: 0 | Z80: 0 | AA80: No | AE80: =CONCATENATE('Project, Applicant, Threshold'!$AD$40,'Assisted Units'!L80) ->  | AF80: =CONCATENATE('Project, Applicant, Threshold'!$AD$40,"0.35") -> 0.35
N81: =IF(J81="HOME",0,IFERROR(INDEX('Rent Limits'!$A$1:$I$1045,MATCH(AF81,'Rent Limits'!$A$1:$A$1045,0),MATCH(D81,'Rent Limits'!$A$1:$I$1,0)),0)) -> 0 | O81: 0 | P81: 0 | Q81: =IFERROR(INDEX('Rent Limits'!$J$1:$P$1045,MATCH(AE81,'Rent Limits'!$A$1:$A$1045,0),MATCH(E81,'Rent Limits'!$J$1:$P$1)),0) -> 0 | R81: 0 | S81: 0 | T81: 0 | U81: 0 | V81: 0 | W81: 0 | X81: 0 | Y81: 0 | Z81: 0 | AA81: No | AE81: =CONCATENATE('Project, Applicant, Threshold'!$AD$40,'Assisted Units'!L81) ->  | AF81: =CONCATENATE('Project, Applicant, Threshold'!$AD$40,"0.35") -> 0.35
N82: =IF(J82="HOME",0,IFERROR(INDEX('Rent Limits'!$A$1:$I$1045,MATCH(AF82,'Rent Limits'!$A$1:$A$1045,0),MATCH(D82,'Rent Limits'!$A$1:$I$1,0)),0)) -> 0 | O82: 0 | P82: 0 | Q82: =IFERROR(INDEX('Rent Limits'!$J$1:$P$1045,MATCH(AE82,'Rent Limits'!$A$1:$A$1045,0),MATCH(E82,'Rent Limits'!$J$1:$P$1)),0) -> 0 | R82: 0 | S82: 0 | T82: 0 | U82: 0 | V82: 0 | W82: 0 | X82: 0 | Y82: 0 | Z82: 0 | AA82: No | AE82: =CONCATENATE('Project, Applicant, Threshold'!$AD$40,'Assisted Units'!L82) ->  | AF82: =CONCATENATE('Project, Applicant, Threshold'!$AD$40,"0.35") -> 0.35
N83: =IF(J83="HOME",0,IFERROR(INDEX('Rent Limits'!$A$1:$I$1045,MATCH(AF83,'Rent Limits'!$A$1:$A$1045,0),MATCH(D83,'Rent Limits'!$A$1:$I$1,0)),0)) -> 0 | O83: 0 | P83: 0 | Q83: =IFERROR(INDEX('Rent Limits'!$J$1:$P$1045,MATCH(AE83,'Rent Limits'!$A$1:$A$1045,0),MATCH(E83,'Rent Limits'!$J$1:$P$1)),0) -> 0 | R83: 0 | S83: 0 | T83: 0 | U83: 0 | V83: 0 | W83: 0 | X83: 0 | Y83: 0 | Z83: 0 | AA83: No | AE83: =CONCATENATE('Project, Applicant, Threshold'!$AD$40,'Assisted Units'!L83) ->  | AF83: =CONCATENATE('Project, Applicant, Threshold'!$AD$40,"0.35") -> 0.35
N84: =IF(J84="HOME",0,IFERROR(INDEX('Rent Limits'!$A$1:$I$1045,MATCH(AF84,'Rent Limits'!$A$1:$A$1045,0),MATCH(D84,'Rent Limits'!$A$1:$I$1,0)),0)) -> 0 | O84: 0 | P84: 0 | Q84: =IFERROR(INDEX('Rent Limits'!$J$1:$P$1045,MATCH(AE84,'Rent Limits'!$A$1:$A$1045,0),MATCH(E84,'Rent Limits'!$J$1:$P$1)),0) -> 0 | R84: 0 | S84: 0 | T84: 0 | U84: 0 | V84: 0 | W84: 0 | X84: 0 | Y84: 0 | Z84: 0 | AA84: No | AE84: =CONCATENATE('Project, Applicant, Threshold'!$AD$40,'Assisted Units'!L84) ->  | AF84: =CONCATENATE('Project, Applicant, Threshold'!$AD$40,"0.35") -> 0.35
N85: =IF(J85="HOME",0,IFERROR(INDEX('Rent Limits'!$A$1:$I$1045,MATCH(AF85,'Rent Limits'!$A$1:$A$1045,0),MATCH(D85,'Rent Limits'!$A$1:$I$1,0)),0)) -> 0 | O85: 0 | P85: 0 | Q85: =IFERROR(INDEX('Rent Limits'!$J$1:$P$1045,MATCH(AE85,'Rent Limits'!$A$1:$A$1045,0),MATCH(E85,'Rent Limits'!$J$1:$P$1)),0) -> 0 | R85: 0 | S85: 0 | T85: 0 | U85: 0 | V85: 0 | W85: 0 | X85: 0 | Y85: 0 | Z85: 0 | AA85: No | AE85: =CONCATENATE('Project, Applicant, Threshold'!$AD$40,'Assisted Units'!L85) ->  | AF85: =CONCATENATE('Project, Applicant, Threshold'!$AD$40,"0.35") -> 0.35
N86: =IF(J86="HOME",0,IFERROR(INDEX('Rent Limits'!$A$1:$I$1045,MATCH(AF86,'Rent Limits'!$A$1:$A$1045,0),MATCH(D86,'Rent Limits'!$A$1:$I$1,0)),0)) -> 0 | O86: 0 | P86: 0 | Q86: =IFERROR(INDEX('Rent Limits'!$J$1:$P$1045,MATCH(AE86,'Rent Limits'!$A$1:$A$1045,0),MATCH(E86,'Rent Limits'!$J$1:$P$1)),0) -> 0 | R86: 0 | S86: 0 | T86: 0 | U86: 0 | V86: 0 | W86: 0 | X86: 0 | Y86: 0 | Z86: 0 | AA86: No | AE86: =CONCATENATE('Project, Applicant, Threshold'!$AD$40,'Assisted Units'!L86) ->  | AF86: =CONCATENATE('Project, Applicant, Threshold'!$AD$40,"0.35") -> 0.35
N87: =IF(J87="HOME",0,IFERROR(INDEX('Rent Limits'!$A$1:$I$1045,MATCH(AF87,'Rent Limits'!$A$1:$A$1045,0),MATCH(D87,'Rent Limits'!$A$1:$I$1,0)),0)) -> 0 | O87: 0 | P87: 0 | Q87: =IFERROR(INDEX('Rent Limits'!$J$1:$P$1045,MATCH(AE87,'Rent Limits'!$A$1:$A$1045,0),MATCH(E87,'Rent Limits'!$J$1:$P$1)),0) -> 0 | R87: 0 | S87: 0 | T87: 0 | U87: 0 | V87: 0 | W87: 0 | X87: 0 | Y87: 0 | Z87: 0 | AA87: No | AE87: =CONCATENATE('Project, Applicant, Threshold'!$AD$40,'Assisted Units'!L87) ->  | AF87: =CONCATENATE('Project, Applicant, Threshold'!$AD$40,"0.35") -> 0.35
N88: =IF(J88="HOME",0,IFERROR(INDEX('Rent Limits'!$A$1:$I$1045,MATCH(AF88,'Rent Limits'!$A$1:$A$1045,0),MATCH(D88,'Rent Limits'!$A$1:$I$1,0)),0)) -> 0 | O88: 0 | P88: 0 | Q88: =IFERROR(INDEX('Rent Limits'!$J$1:$P$1045,MATCH(AE88,'Rent Limits'!$A$1:$A$1045,0),MATCH(E88,'Rent Limits'!$J$1:$P$1)),0) -> 0 | R88: 0 | S88: 0 | T88: 0 | U88: 0 | V88: 0 | W88: 0 | X88: 0 | Y88: 0 | Z88: 0 | AA88: No | AE88: =CONCATENATE('Project, Applicant, Threshold'!$AD$40,'Assisted Units'!L88) ->  | AF88: =CONCATENATE('Project, Applicant, Threshold'!$AD$40,"0.35") -> 0.35
N89: =IF(J89="HOME",0,IFERROR(INDEX('Rent Limits'!$A$1:$I$1045,MATCH(AF89,'Rent Limits'!$A$1:$A$1045,0),MATCH(D89,'Rent Limits'!$A$1:$I$1,0)),0)) -> 0 | O89: 0 | P89: 0 | Q89: =IFERROR(INDEX('Rent Limits'!$J$1:$P$1045,MATCH(AE89,'Rent Limits'!$A$1:$A$1045,0),MATCH(E89,'Rent Limits'!$J$1:$P$1)),0) -> 0 | R89: 0 | S89: 0 | T89: 0 | U89: 0 | V89: 0 | W89: 0 | X89: 0 | Y89: 0 | Z89: 0 | AA89: No | AE89: =CONCATENATE('Project, Applicant, Threshold'!$AD$40,'Assisted Units'!L89) ->  | AF89: =CONCATENATE('Project, Applicant, Threshold'!$AD$40,"0.35") -> 0.35
N90: =IF(J90="HOME",0,IFERROR(INDEX('Rent Limits'!$A$1:$I$1045,MATCH(AF90,'Rent Limits'!$A$1:$A$1045,0),MATCH(D90,'Rent Limits'!$A$1:$I$1,0)),0)) -> 0 | O90: 0 | P90: 0 | Q90: =IFERROR(INDEX('Rent Limits'!$J$1:$P$1045,MATCH(AE90,'Rent Limits'!$A$1:$A$1045,0),MATCH(E90,'Rent Limits'!$J$1:$P$1)),0) -> 0 | R90: 0 | S90: 0 | T90: 0 | U90: 0 | V90: 0 | W90: 0 | X90: 0 | Y90: 0 | Z90: 0 | AA90: No | AE90: =CONCATENATE('Project, Applicant, Threshold'!$AD$40,'Assisted Units'!L90) ->  | AF90: =CONCATENATE('Project, Applicant, Threshold'!$AD$40,"0.35") -> 0.35
N91: =IF(J91="HOME",0,IFERROR(INDEX('Rent Limits'!$A$1:$I$1045,MATCH(AF91,'Rent Limits'!$A$1:$A$1045,0),MATCH(D91,'Rent Limits'!$A$1:$I$1,0)),0)) -> 0 | O91: 0 | P91: 0 | Q91: =IFERROR(INDEX('Rent Limits'!$J$1:$P$1045,MATCH(AE91,'Rent Limits'!$A$1:$A$1045,0),MATCH(E91,'Rent Limits'!$J$1:$P$1)),0) -> 0 | R91: 0 | S91: 0 | T91: 0 | U91: 0 | V91: 0 | W91: 0 | X91: 0 | Y91: 0 | Z91: 0 | AA91: No | AE91: =CONCATENATE('Project, Applicant, Threshold'!$AD$40,'Assisted Units'!L91) ->  | AF91: =CONCATENATE('Project, Applicant, Threshold'!$AD$40,"0.35") -> 0.35
N92: =IF(J92="HOME",0,IFERROR(INDEX('Rent Limits'!$A$1:$I$1045,MATCH(AF92,'Rent Limits'!$A$1:$A$1045,0),MATCH(D92,'Rent Limits'!$A$1:$I$1,0)),0)) -> 0 | O92: 0 | P92: 0 | Q92: =IFERROR(INDEX('Rent Limits'!$J$1:$P$1045,MATCH(AE92,'Rent Limits'!$A$1:$A$1045,0),MATCH(E92,'Rent Limits'!$J$1:$P$1)),0) -> 0 | R92: 0 | S92: 0 | T92: 0 | U92: 0 | V92: 0 | W92: 0 | X92: 0 | Y92: 0 | Z92: 0 | AA92: No | AE92: =CONCATENATE('Project, Applicant, Threshold'!$AD$40,'Assisted Units'!L92) ->  | AF92: =CONCATENATE('Project, Applicant, Threshold'!$AD$40,"0.35") -> 0.35
N93: =IF(J93="HOME",0,IFERROR(INDEX('Rent Limits'!$A$1:$I$1045,MATCH(AF93,'Rent Limits'!$A$1:$A$1045,0),MATCH(D93,'Rent Limits'!$A$1:$I$1,0)),0)) -> 0 | O93: 0 | P93: 0 | Q93: =IFERROR(INDEX('Rent Limits'!$J$1:$P$1045,MATCH(AE93,'Rent Limits'!$A$1:$A$1045,0),MATCH(E93,'Rent Limits'!$J$1:$P$1)),0) -> 0 | R93: 0 | S93: 0 | T93: 0 | U93: 0 | V93: 0 | W93: 0 | X93: 0 | Y93: 0 | Z93: 0 | AA93: No | AE93: =CONCATENATE('Project, Applicant, Threshold'!$AD$40,'Assisted Units'!L93) ->  | AF93: =CONCATENATE('Project, Applicant, Threshold'!$AD$40,"0.35") -> 0.35
N94: =IF(J94="HOME",0,IFERROR(INDEX('Rent Limits'!$A$1:$I$1045,MATCH(AF94,'Rent Limits'!$A$1:$A$1045,0),MATCH(D94,'Rent Limits'!$A$1:$I$1,0)),0)) -> 0 | O94: 0 | P94: 0 | Q94: =IFERROR(INDEX('Rent Limits'!$J$1:$P$1045,MATCH(AE94,'Rent Limits'!$A$1:$A$1045,0),MATCH(E94,'Rent Limits'!$J$1:$P$1)),0) -> 0 | R94: 0 | S94: 0 | T94: 0 | U94: 0 | V94: 0 | W94: 0 | X94: 0 | Y94: 0 | Z94: 0 | AA94: No | AE94: =CONCATENATE('Project, Applicant, Threshold'!$AD$40,'Assisted Units'!L94) ->  | AF94: =CONCATENATE('Project, Applicant, Threshold'!$AD$40,"0.35") -> 0.35
N95: =IF(J95="HOME",0,IFERROR(INDEX('Rent Limits'!$A$1:$I$1045,MATCH(AF95,'Rent Limits'!$A$1:$A$1045,0),MATCH(D95,'Rent Limits'!$A$1:$I$1,0)),0)) -> 0 | O95: 0 | P95: 0 | Q95: =IFERROR(INDEX('Rent Limits'!$J$1:$P$1045,MATCH(AE95,'Rent Limits'!$A$1:$A$1045,0),MATCH(E95,'Rent Limits'!$J$1:$P$1)),0) -> 0 | R95: 0 | S95: 0 | T95: 0 | U95: 0 | V95: 0 | W95: 0 | X95: 0 | Y95: 0 | Z95: 0 | AA95: No | AE95: =CONCATENATE('Project, Applicant, Threshold'!$AD$40,'Assisted Units'!L95) ->  | AF95: =CONCATENATE('Project, Applicant, Threshold'!$AD$40,"0.35") -> 0.35
N96: =IF(J96="HOME",0,IFERROR(INDEX('Rent Limits'!$A$1:$I$1045,MATCH(AF96,'Rent Limits'!$A$1:$A$1045,0),MATCH(D96,'Rent Limits'!$A$1:$I$1,0)),0)) -> 0 | O96: 0 | P96: 0 | Q96: =IFERROR(INDEX('Rent Limits'!$J$1:$P$1045,MATCH(AE96,'Rent Limits'!$A$1:$A$1045,0),MATCH(E96,'Rent Limits'!$J$1:$P$1)),0) -> 0 | R96: 0 | S96: 0 | T96: 0 | U96: 0 | V96: 0 | W96: 0 | X96: 0 | Y96: 0 | Z96: 0 | AA96: No | AE96: =CONCATENATE('Project, Applicant, Threshold'!$AD$40,'Assisted Units'!L96) ->  | AF96: =CONCATENATE('Project, Applicant, Threshold'!$AD$40,"0.35") -> 0.35
N97: =IF(J97="HOME",0,IFERROR(INDEX('Rent Limits'!$A$1:$I$1045,MATCH(AF97,'Rent Limits'!$A$1:$A$1045,0),MATCH(D97,'Rent Limits'!$A$1:$I$1,0)),0)) -> 0 | O97: 0 | P97: 0 | Q97: =IFERROR(INDEX('Rent Limits'!$J$1:$P$1045,MATCH(AE97,'Rent Limits'!$A$1:$A$1045,0),MATCH(E97,'Rent Limits'!$J$1:$P$1)),0) -> 0 | R97: 0 | S97: 0 | T97: 0 | U97: 0 | V97: 0 | W97: 0 | X97: 0 | Y97: 0 | Z97: 0 | AA97: No | AE97: =CONCATENATE('Project, Applicant, Threshold'!$AD$40,'Assisted Units'!L97) ->  | AF97: =CONCATENATE('Project, Applicant, Threshold'!$AD$40,"0.35") -> 0.35
N98: =IF(J98="HOME",0,IFERROR(INDEX('Rent Limits'!$A$1:$I$1045,MATCH(AF98,'Rent Limits'!$A$1:$A$1045,0),MATCH(D98,'Rent Limits'!$A$1:$I$1,0)),0)) -> 0 | O98: 0 | P98: 0 | Q98: =IFERROR(INDEX('Rent Limits'!$J$1:$P$1045,MATCH(AE98,'Rent Limits'!$A$1:$A$1045,0),MATCH(E98,'Rent Limits'!$J$1:$P$1)),0) -> 0 | R98: 0 | S98: 0 | T98: 0 | U98: 0 | V98: 0 | W98: 0 | X98: 0 | Y98: 0 | Z98: 0 | AA98: No | AE98: =CONCATENATE('Project, Applicant, Threshold'!$AD$40,'Assisted Units'!L98) ->  | AF98: =CONCATENATE('Project, Applicant, Threshold'!$AD$40,"0.35") -> 0.35
N99: =IF(J99="HOME",0,IFERROR(INDEX('Rent Limits'!$A$1:$I$1045,MATCH(AF99,'Rent Limits'!$A$1:$A$1045,0),MATCH(D99,'Rent Limits'!$A$1:$I$1,0)),0)) -> 0 | O99: 0 | P99: 0 | Q99: =IFERROR(INDEX('Rent Limits'!$J$1:$P$1045,MATCH(AE99,'Rent Limits'!$A$1:$A$1045,0),MATCH(E99,'Rent Limits'!$J$1:$P$1)),0) -> 0 | R99: 0 | S99: 0 | T99: 0 | U99: 0 | V99: 0 | W99: 0 | X99: 0 | Y99: 0 | Z99: 0 | AA99: No | AE99: =CONCATENATE('Project, Applicant, Threshold'!$AD$40,'Assisted Units'!L99) ->  | AF99: =CONCATENATE('Project, Applicant, Threshold'!$AD$40,"0.35") -> 0.35
N100: =IF(J100="HOME",0,IFERROR(INDEX('Rent Limits'!$A$1:$I$1045,MATCH(AF100,'Rent Limits'!$A$1:$A$1045,0),MATCH(D100,'Rent Limits'!$A$1:$I$1,0)),0)) -> 0 | O100: 0 | P100: 0 | Q100: =IFERROR(INDEX('Rent Limits'!$J$1:$P$1045,MATCH(AE100,'Rent Limits'!$A$1:$A$1045,0),MATCH(E100,'Rent Limits'!$J$1:$P$1)),0) -> 0 | R100: 0 | S100: 0 | T100: 0 | U100: 0 | V100: 0 | W100: 0 | X100: 0 | Y100: 0 | Z100: 0 | AA100: No | AE100: =CONCATENATE('Project, Applicant, Threshold'!$AD$40,'Assisted Units'!L100) ->  | AF100: =CONCATENATE('Project, Applicant, Threshold'!$AD$40,"0.35") -> 0.35
N101: =IF(J101="HOME",0,IFERROR(INDEX('Rent Limits'!$A$1:$I$1045,MATCH(AF101,'Rent Limits'!$A$1:$A$1045,0),MATCH(D101,'Rent Limits'!$A$1:$I$1,0)),0)) -> 0 | O101: 0 | P101: 0 | Q101: =IFERROR(INDEX('Rent Limits'!$J$1:$P$1045,MATCH(AE101,'Rent Limits'!$A$1:$A$1045,0),MATCH(E101,'Rent Limits'!$J$1:$P$1)),0) -> 0 | R101: 0 | S101: 0 | T101: 0 | U101: 0 | V101: 0 | W101: 0 | X101: 0 | Y101: 0 | Z101: 0 | AA101: No | AE101: =CONCATENATE('Project, Applicant, Threshold'!$AD$40,'Assisted Units'!L101) ->  | AF101: =CONCATENATE('Project, Applicant, Threshold'!$AD$40,"0.35") -> 0.35
N102: =IF(J102="HOME",0,IFERROR(INDEX('Rent Limits'!$A$1:$I$1045,MATCH(AF102,'Rent Limits'!$A$1:$A$1045,0),MATCH(D102,'Rent Limits'!$A$1:$I$1,0)),0)) -> 0 | O102: 0 | P102: 0 | Q102: =IFERROR(INDEX('Rent Limits'!$J$1:$P$1045,MATCH(AE102,'Rent Limits'!$A$1:$A$1045,0),MATCH(E102,'Rent Limits'!$J$1:$P$1)),0) -> 0 | R102: 0 | S102: 0 | T102: 0 | U102: 0 | V102: 0 | W102: 0 | X102: 0 | Y102: 0 | Z102: 0 | AA102: No | AE102: =CONCATENATE('Project, Applicant, Threshold'!$AD$40,'Assisted Units'!L102) ->  | AF102: =CONCATENATE('Project, Applicant, Threshold'!$AD$40,"0.35") -> 0.35
N103: =IF(J103="HOME",0,IFERROR(INDEX('Rent Limits'!$A$1:$I$1045,MATCH(AF103,'Rent Limits'!$A$1:$A$1045,0),MATCH(D103,'Rent Limits'!$A$1:$I$1,0)),0)) -> 0 | O103: 0 | P103: 0 | Q103: =IFERROR(INDEX('Rent Limits'!$J$1:$P$1045,MATCH(AE103,'Rent Limits'!$A$1:$A$1045,0),MATCH(E103,'Rent Limits'!$J$1:$P$1)),0) -> 0 | R103: 0 | S103: 0 | T103: 0 | U103: 0 | V103: 0 | W103: 0 | X103: 0 | Y103: 0 | Z103: 0 | AA103: No | AE103: =CONCATENATE('Project, Applicant, Threshold'!$AD$40,'Assisted Units'!L103) ->  | AF103: =CONCATENATE('Project, Applicant, Threshold'!$AD$40,"0.35") -> 0.35
N104: =IF(J104="HOME",0,IFERROR(INDEX('Rent Limits'!$A$1:$I$1045,MATCH(AF104,'Rent Limits'!$A$1:$A$1045,0),MATCH(D104,'Rent Limits'!$A$1:$I$1,0)),0)) -> 0 | O104: 0 | P104: 0 | Q104: =IFERROR(INDEX('Rent Limits'!$J$1:$P$1045,MATCH(AE104,'Rent Limits'!$A$1:$A$1045,0),MATCH(E104,'Rent Limits'!$J$1:$P$1)),0) -> 0 | R104: 0 | S104: 0 | T104: 0 | U104: 0 | V104: 0 | W104: 0 | X104: 0 | Y104: 0 | Z104: 0 | AA104: No | AE104: =CONCATENATE('Project, Applicant, Threshold'!$AD$40,'Assisted Units'!L104) ->  | AF104: =CONCATENATE('Project, Applicant, Threshold'!$AD$40,"0.35") -> 0.35
N105: =IF(J105="HOME",0,IFERROR(INDEX('Rent Limits'!$A$1:$I$1045,MATCH(AF105,'Rent Limits'!$A$1:$A$1045,0),MATCH(D105,'Rent Limits'!$A$1:$I$1,0)),0)) -> 0 | O105: 0 | P105: 0 | Q105: =IFERROR(INDEX('Rent Limits'!$J$1:$P$1045,MATCH(AE105,'Rent Limits'!$A$1:$A$1045,0),MATCH(E105,'Rent Limits'!$J$1:$P$1)),0) -> 0 | R105: 0 | S105: 0 | T105: 0 | U105: 0 | V105: 0 | W105: 0 | X105: 0 | Y105: 0 | Z105: 0 | AA105: No | AE105: =CONCATENATE('Project, Applicant, Threshold'!$AD$40,'Assisted Units'!L105) ->  | AF105: =CONCATENATE('Project, Applicant, Threshold'!$AD$40,"0.35") -> 0.35
N106: =IF(J106="HOME",0,IFERROR(INDEX('Rent Limits'!$A$1:$I$1045,MATCH(AF106,'Rent Limits'!$A$1:$A$1045,0),MATCH(D106,'Rent Limits'!$A$1:$I$1,0)),0)) -> 0 | O106: 0 | P106: 0 | Q106: =IFERROR(INDEX('Rent Limits'!$J$1:$P$1045,MATCH(AE106,'Rent Limits'!$A$1:$A$1045,0),MATCH(E106,'Rent Limits'!$J$1:$P$1)),0) -> 0 | R106: 0 | S106: 0 | T106: 0 | U106: 0 | V106: 0 | W106: 0 | X106: 0 | Y106: 0 | Z106: 0 | AA106: No | AE106: =CONCATENATE('Project, Applicant, Threshold'!$AD$40,'Assisted Units'!L106) ->  | AF106: =CONCATENATE('Project, Applicant, Threshold'!$AD$40,"0.35") -> 0.35
N107: =IF(J107="HOME",0,IFERROR(INDEX('Rent Limits'!$A$1:$I$1045,MATCH(AF107,'Rent Limits'!$A$1:$A$1045,0),MATCH(D107,'Rent Limits'!$A$1:$I$1,0)),0)) -> 0 | O107: 0 | P107: 0 | Q107: =IFERROR(INDEX('Rent Limits'!$J$1:$P$1045,MATCH(AE107,'Rent Limits'!$A$1:$A$1045,0),MATCH(E107,'Rent Limits'!$J$1:$P$1)),0) -> 0 | R107: 0 | S107: 0 | T107: 0 | U107: 0 | V107: 0 | W107: 0 | X107: 0 | Y107: 0 | Z107: 0 | AA107: No | AE107: =CONCATENATE('Project, Applicant, Threshold'!$AD$40,'Assisted Units'!L107) ->  | AF107: =CONCATENATE('Project, Applicant, Threshold'!$AD$40,"0.35") -> 0.35
N108: =IF(J108="HOME",0,IFERROR(INDEX('Rent Limits'!$A$1:$I$1045,MATCH(AF108,'Rent Limits'!$A$1:$A$1045,0),MATCH(D108,'Rent Limits'!$A$1:$I$1,0)),0)) -> 0 | O108: 0 | P108: 0 | Q108: =IFERROR(INDEX('Rent Limits'!$J$1:$P$1045,MATCH(AE108,'Rent Limits'!$A$1:$A$1045,0),MATCH(E108,'Rent Limits'!$J$1:$P$1)),0) -> 0 | R108: 0 | S108: 0 | T108: 0 | U108: 0 | V108: 0 | W108: 0 | X108: 0 | Y108: 0 | Z108: 0 | AA108: No | AE108: =CONCATENATE('Project, Applicant, Threshold'!$AD$40,'Assisted Units'!L108) ->  | AF108: =CONCATENATE('Project, Applicant, Threshold'!$AD$40,"0.35") -> 0.35
N109: =IF(J109="HOME",0,IFERROR(INDEX('Rent Limits'!$A$1:$I$1045,MATCH(AF109,'Rent Limits'!$A$1:$A$1045,0),MATCH(D109,'Rent Limits'!$A$1:$I$1,0)),0)) -> 0 | O109: 0 | P109: 0 | Q109: =IFERROR(INDEX('Rent Limits'!$J$1:$P$1045,MATCH(AE109,'Rent Limits'!$A$1:$A$1045,0),MATCH(E109,'Rent Limits'!$J$1:$P$1)),0) -> 0 | R109: 0 | S109: 0 | T109: 0 | U109: 0 | V109: 0 | W109: 0 | X109: 0 | Y109: 0 | Z109: 0 | AA109: No | AE109: =CONCATENATE('Project, Applicant, Threshold'!$AD$40,'Assisted Units'!L109) ->  | AF109: =CONCATENATE('Project, Applicant, Threshold'!$AD$40,"0.35") -> 0.35
N110: =IF(J110="HOME",0,IFERROR(INDEX('Rent Limits'!$A$1:$I$1045,MATCH(AF110,'Rent Limits'!$A$1:$A$1045,0),MATCH(D110,'Rent Limits'!$A$1:$I$1,0)),0)) -> 0 | O110: 0 | P110: 0 | Q110: =IFERROR(INDEX('Rent Limits'!$J$1:$P$1045,MATCH(AE110,'Rent Limits'!$A$1:$A$1045,0),MATCH(E110,'Rent Limits'!$J$1:$P$1)),0) -> 0 | R110: 0 | S110: 0 | T110: 0 | U110: 0 | V110: 0 | W110: 0 | X110: 0 | Y110: 0 | Z110: 0 | AA110: No | AE110: =CONCATENATE('Project, Applicant, Threshold'!$AD$40,'Assisted Units'!L110) ->  | AF110: =CONCATENATE('Project, Applicant, Threshold'!$AD$40,"0.35") -> 0.35
N111: =IF(J111="HOME",0,IFERROR(INDEX('Rent Limits'!$A$1:$I$1045,MATCH(AF111,'Rent Limits'!$A$1:$A$1045,0),MATCH(D111,'Rent Limits'!$A$1:$I$1,0)),0)) -> 0 | O111: 0 | P111: 0 | Q111: =IFERROR(INDEX('Rent Limits'!$J$1:$P$1045,MATCH(AE111,'Rent Limits'!$A$1:$A$1045,0),MATCH(E111,'Rent Limits'!$J$1:$P$1)),0) -> 0 | R111: 0 | S111: 0 | T111: 0 | U111: 0 | V111: 0 | W111: 0 | X111: 0 | Y111: 0 | Z111: 0 | AA111: No | AE111: =CONCATENATE('Project, Applicant, Threshold'!$AD$40,'Assisted Units'!L111) ->  | AF111: =CONCATENATE('Project, Applicant, Threshold'!$AD$40,"0.35") -> 0.35
N112: =IF(J112="HOME",0,IFERROR(INDEX('Rent Limits'!$A$1:$I$1045,MATCH(AF112,'Rent Limits'!$A$1:$A$1045,0),MATCH(D112,'Rent Limits'!$A$1:$I$1,0)),0)) -> 0 | O112: 0 | P112: 0 | Q112: =IFERROR(INDEX('Rent Limits'!$J$1:$P$1045,MATCH(AE112,'Rent Limits'!$A$1:$A$1045,0),MATCH(E112,'Rent Limits'!$J$1:$P$1)),0) -> 0 | R112: 0 | S112: 0 | T112: 0 | U112: 0 | V112: 0 | W112: 0 | X112: 0 | Y112: 0 | Z112: 0 | AA112: No | AE112: =CONCATENATE('Project, Applicant, Threshold'!$AD$40,'Assisted Units'!L112) ->  | AF112: =CONCATENATE('Project, Applicant, Threshold'!$AD$40,"0.35") -> 0.35
N113: =IF(J113="HOME",0,IFERROR(INDEX('Rent Limits'!$A$1:$I$1045,MATCH(AF113,'Rent Limits'!$A$1:$A$1045,0),MATCH(D113,'Rent Limits'!$A$1:$I$1,0)),0)) -> 0 | O113: 0 | P113: 0 | Q113: =IFERROR(INDEX('Rent Limits'!$J$1:$P$1045,MATCH(AE113,'Rent Limits'!$A$1:$A$1045,0),MATCH(E113,'Rent Limits'!$J$1:$P$1)),0) -> 0 | R113: 0 | S113: 0 | T113: 0 | U113: 0 | V113: 0 | W113: 0 | X113: 0 | Y113: 0 | Z113: 0 | AA113: No | AE113: =CONCATENATE('Project, Applicant, Threshold'!$AD$40,'Assisted Units'!L113) ->  | AF113: =CONCATENATE('Project, Applicant, Threshold'!$AD$40,"0.35") -> 0.35
N114: =IF(J114="HOME",0,IFERROR(INDEX('Rent Limits'!$A$1:$I$1045,MATCH(AF114,'Rent Limits'!$A$1:$A$1045,0),MATCH(D114,'Rent Limits'!$A$1:$I$1,0)),0)) -> 0 | O114: 0 | P114: 0 | Q114: =IFERROR(INDEX('Rent Limits'!$J$1:$P$1045,MATCH(AE114,'Rent Limits'!$A$1:$A$1045,0),MATCH(E114,'Rent Limits'!$J$1:$P$1)),0) -> 0 | R114: 0 | S114: 0 | T114: 0 | U114: 0 | V114: 0 | W114: 0 | X114: 0 | Y114: 0 | Z114: 0 | AA114: No | AE114: =CONCATENATE('Project, Applicant, Threshold'!$AD$40,'Assisted Units'!L114) ->  | AF114: =CONCATENATE('Project, Applicant, Threshold'!$AD$40,"0.35") -> 0.35
N115: =IF(J115="HOME",0,IFERROR(INDEX('Rent Limits'!$A$1:$I$1045,MATCH(AF115,'Rent Limits'!$A$1:$A$1045,0),MATCH(D115,'Rent Limits'!$A$1:$I$1,0)),0)) -> 0 | O115: 0 | P115: 0 | Q115: =IFERROR(INDEX('Rent Limits'!$J$1:$P$1045,MATCH(AE115,'Rent Limits'!$A$1:$A$1045,0),MATCH(E115,'Rent Limits'!$J$1:$P$1)),0) -> 0 | R115: 0 | S115: 0 | T115: 0 | U115: 0 | V115: 0 | W115: 0 | X115: 0 | Y115: 0 | Z115: 0 | AA115: No | AE115: =CONCATENATE('Project, Applicant, Threshold'!$AD$40,'Assisted Units'!L115) ->  | AF115: =CONCATENATE('Project, Applicant, Threshold'!$AD$40,"0.35") -> 0.35
N116: =IF(J116="HOME",0,IFERROR(INDEX('Rent Limits'!$A$1:$I$1045,MATCH(AF116,'Rent Limits'!$A$1:$A$1045,0),MATCH(D116,'Rent Limits'!$A$1:$I$1,0)),0)) -> 0 | O116: 0 | P116: 0 | Q116: =IFERROR(INDEX('Rent Limits'!$J$1:$P$1045,MATCH(AE116,'Rent Limits'!$A$1:$A$1045,0),MATCH(E116,'Rent Limits'!$J$1:$P$1)),0) -> 0 | R116: 0 | S116: 0 | T116: 0 | U116: 0 | V116: 0 | W116: 0 | X116: 0 | Y116: 0 | Z116: 0 | AA116: No | AE116: =CONCATENATE('Project, Applicant, Threshold'!$AD$40,'Assisted Units'!L116) ->  | AF116: =CONCATENATE('Project, Applicant, Threshold'!$AD$40,"0.35") -> 0.35
N117: =IF(J117="HOME",0,IFERROR(INDEX('Rent Limits'!$A$1:$I$1045,MATCH(AF117,'Rent Limits'!$A$1:$A$1045,0),MATCH(D117,'Rent Limits'!$A$1:$I$1,0)),0)) -> 0 | O117: 0 | P117: 0 | Q117: =IFERROR(INDEX('Rent Limits'!$J$1:$P$1045,MATCH(AE117,'Rent Limits'!$A$1:$A$1045,0),MATCH(E117,'Rent Limits'!$J$1:$P$1)),0) -> 0 | R117: 0 | S117: 0 | T117: 0 | U117: 0 | V117: 0 | W117: 0 | X117: 0 | Y117: 0 | Z117: 0 | AA117: No | AE117: =CONCATENATE('Project, Applicant, Threshold'!$AD$40,'Assisted Units'!L117) ->  | AF117: =CONCATENATE('Project, Applicant, Threshold'!$AD$40,"0.35") -> 0.35
N118: =IF(J118="HOME",0,IFERROR(INDEX('Rent Limits'!$A$1:$I$1045,MATCH(AF118,'Rent Limits'!$A$1:$A$1045,0),MATCH(D118,'Rent Limits'!$A$1:$I$1,0)),0)) -> 0 | O118: 0 | P118: 0 | Q118: =IFERROR(INDEX('Rent Limits'!$J$1:$P$1045,MATCH(AE118,'Rent Limits'!$A$1:$A$1045,0),MATCH(E118,'Rent Limits'!$J$1:$P$1)),0) -> 0 | R118: 0 | S118: 0 | T118: 0 | U118: 0 | V118: 0 | W118: 0 | X118: 0 | Y118: 0 | Z118: 0 | AA118: No | AE118: =CONCATENATE('Project, Applicant, Threshold'!$AD$40,'Assisted Units'!L118) ->  | AF118: =CONCATENATE('Project, Applicant, Threshold'!$AD$40,"0.35") -> 0.35
N119: =IF(J119="HOME",0,IFERROR(INDEX('Rent Limits'!$A$1:$I$1045,MATCH(AF119,'Rent Limits'!$A$1:$A$1045,0),MATCH(D119,'Rent Limits'!$A$1:$I$1,0)),0)) -> 0 | O119: 0 | P119: 0 | Q119: =IFERROR(INDEX('Rent Limits'!$J$1:$P$1045,MATCH(AE119,'Rent Limits'!$A$1:$A$1045,0),MATCH(E119,'Rent Limits'!$J$1:$P$1)),0) -> 0 | R119: 0 | S119: 0 | T119: 0 | U119: 0 | V119: 0 | W119: 0 | X119: 0 | Y119: 0 | Z119: 0 | AA119: No | AE119: =CONCATENATE('Project, Applicant, Threshold'!$AD$40,'Assisted Units'!L119) ->  | AF119: =CONCATENATE('Project, Applicant, Threshold'!$AD$40,"0.35") -> 0.35
N120: =IF(J120="HOME",0,IFERROR(INDEX('Rent Limits'!$A$1:$I$1045,MATCH(AF120,'Rent Limits'!$A$1:$A$1045,0),MATCH(D120,'Rent Limits'!$A$1:$I$1,0)),0)) -> 0 | O120: 0 | P120: 0 | Q120: =IFERROR(INDEX('Rent Limits'!$J$1:$P$1045,MATCH(AE120,'Rent Limits'!$A$1:$A$1045,0),MATCH(E120,'Rent Limits'!$J$1:$P$1)),0) -> 0 | R120: 0 | S120: 0 | T120: 0 | U120: 0 | V120: 0 | W120: 0 | X120: 0 | Y120: 0 | Z120: 0 | AA120: No | AE120: =CONCATENATE('Project, Applicant, Threshold'!$AD$40,'Assisted Units'!L120) ->  | AF120: =CONCATENATE('Project, Applicant, Threshold'!$AD$40,"0.35") -> 0.35
N121: =IF(J121="HOME",0,IFERROR(INDEX('Rent Limits'!$A$1:$I$1045,MATCH(AF121,'Rent Limits'!$A$1:$A$1045,0),MATCH(D121,'Rent Limits'!$A$1:$I$1,0)),0)) -> 0 | O121: 0 | P121: 0 | Q121: =IFERROR(INDEX('Rent Limits'!$J$1:$P$1045,MATCH(AE121,'Rent Limits'!$A$1:$A$1045,0),MATCH(E121,'Rent Limits'!$J$1:$P$1)),0) -> 0 | R121: 0 | S121: 0 | T121: 0 | U121: 0 | V121: 0 | W121: 0 | X121: 0 | Y121: 0 | Z121: 0 | AA121: No | AE121: =CONCATENATE('Project, Applicant, Threshold'!$AD$40,'Assisted Units'!L121) ->  | AF121: =CONCATENATE('Project, Applicant, Threshold'!$AD$40,"0.35") -> 0.35
N122: =IF(J122="HOME",0,IFERROR(INDEX('Rent Limits'!$A$1:$I$1045,MATCH(AF122,'Rent Limits'!$A$1:$A$1045,0),MATCH(D122,'Rent Limits'!$A$1:$I$1,0)),0)) -> 0 | O122: 0 | P122: 0 | Q122: =IFERROR(INDEX('Rent Limits'!$J$1:$P$1045,MATCH(AE122,'Rent Limits'!$A$1:$A$1045,0),MATCH(E122,'Rent Limits'!$J$1:$P$1)),0) -> 0 | R122: 0 | S122: 0 | T122: 0 | U122: 0 | V122: 0 | W122: 0 | X122: 0 | Y122: 0 | Z122: 0 | AA122: No | AE122: =CONCATENATE('Project, Applicant, Threshold'!$AD$40,'Assisted Units'!L122) ->  | AF122: =CONCATENATE('Project, Applicant, Threshold'!$AD$40,"0.35") -> 0.35
N123: =IF(J123="HOME",0,IFERROR(INDEX('Rent Limits'!$A$1:$I$1045,MATCH(AF123,'Rent Limits'!$A$1:$A$1045,0),MATCH(D123,'Rent Limits'!$A$1:$I$1,0)),0)) -> 0 | O123: 0 | P123: 0 | Q123: =IFERROR(INDEX('Rent Limits'!$J$1:$P$1045,MATCH(AE123,'Rent Limits'!$A$1:$A$1045,0),MATCH(E123,'Rent Limits'!$J$1:$P$1)),0) -> 0 | R123: 0 | S123: 0 | T123: 0 | U123: 0 | V123: 0 | W123: 0 | X123: 0 | Y123: 0 | Z123: 0 | AA123: No | AE123: =CONCATENATE('Project, Applicant, Threshold'!$AD$40,'Assisted Units'!L123) ->  | AF123: =CONCATENATE('Project, Applicant, Threshold'!$AD$40,"0.35") -> 0.35
N124: =IF(J124="HOME",0,IFERROR(INDEX('Rent Limits'!$A$1:$I$1045,MATCH(AF124,'Rent Limits'!$A$1:$A$1045,0),MATCH(D124,'Rent Limits'!$A$1:$I$1,0)),0)) -> 0 | O124: 0 | P124: 0 | Q124: =IFERROR(INDEX('Rent Limits'!$J$1:$P$1045,MATCH(AE124,'Rent Limits'!$A$1:$A$1045,0),MATCH(E124,'Rent Limits'!$J$1:$P$1)),0) -> 0 | R124: 0 | S124: 0 | T124: 0 | U124: 0 | V124: 0 | W124: 0 | X124: 0 | Y124: 0 | Z124: 0 | AA124: No | AE124: =CONCATENATE('Project, Applicant, Threshold'!$AD$40,'Assisted Units'!L124) ->  | AF124: =CONCATENATE('Project, Applicant, Threshold'!$AD$40,"0.35") -> 0.35
N125: =IF(J125="HOME",0,IFERROR(INDEX('Rent Limits'!$A$1:$I$1045,MATCH(AF125,'Rent Limits'!$A$1:$A$1045,0),MATCH(D125,'Rent Limits'!$A$1:$I$1,0)),0)) -> 0 | O125: 0 | P125: 0 | Q125: =IFERROR(INDEX('Rent Limits'!$J$1:$P$1045,MATCH(AE125,'Rent Limits'!$A$1:$A$1045,0),MATCH(E125,'Rent Limits'!$J$1:$P$1)),0) -> 0 | R125: 0 | S125: 0 | T125: 0 | U125: 0 | V125: 0 | W125: 0 | X125: 0 | Y125: 0 | Z125: 0 | AA125: No | AE125: =CONCATENATE('Project, Applicant, Threshold'!$AD$40,'Assisted Units'!L125) ->  | AF125: =CONCATENATE('Project, Applicant, Threshold'!$AD$40,"0.35") -> 0.35
N126: =IF(J126="HOME",0,IFERROR(INDEX('Rent Limits'!$A$1:$I$1045,MATCH(AF126,'Rent Limits'!$A$1:$A$1045,0),MATCH(D126,'Rent Limits'!$A$1:$I$1,0)),0)) -> 0 | O126: 0 | P126: 0 | Q126: =IFERROR(INDEX('Rent Limits'!$J$1:$P$1045,MATCH(AE126,'Rent Limits'!$A$1:$A$1045,0),MATCH(E126,'Rent Limits'!$J$1:$P$1)),0) -> 0 | R126: 0 | S126: 0 | T126: 0 | U126: 0 | V126: 0 | W126: 0 | X126: 0 | Y126: 0 | Z126: 0 | AA126: No | AE126: =CONCATENATE('Project, Applicant, Threshold'!$AD$40,'Assisted Units'!L126) ->  | AF126: =CONCATENATE('Project, Applicant, Threshold'!$AD$40,"0.35") -> 0.35
N127: =IF(J127="HOME",0,IFERROR(INDEX('Rent Limits'!$A$1:$I$1045,MATCH(AF127,'Rent Limits'!$A$1:$A$1045,0),MATCH(D127,'Rent Limits'!$A$1:$I$1,0)),0)) -> 0 | O127: 0 | P127: 0 | Q127: =IFERROR(INDEX('Rent Limits'!$J$1:$P$1045,MATCH(AE127,'Rent Limits'!$A$1:$A$1045,0),MATCH(E127,'Rent Limits'!$J$1:$P$1)),0) -> 0 | R127: 0 | S127: 0 | T127: 0 | U127: 0 | V127: 0 | W127: 0 | X127: 0 | Y127: 0 | Z127: 0 | AA127: No | AE127: =CONCATENATE('Project, Applicant, Threshold'!$AD$40,'Assisted Units'!L127) ->  | AF127: =CONCATENATE('Project, Applicant, Threshold'!$AD$40,"0.35") -> 0.35
N128: =IF(J128="HOME",0,IFERROR(INDEX('Rent Limits'!$A$1:$I$1045,MATCH(AF128,'Rent Limits'!$A$1:$A$1045,0),MATCH(D128,'Rent Limits'!$A$1:$I$1,0)),0)) -> 0 | O128: 0 | P128: 0 | Q128: =IFERROR(INDEX('Rent Limits'!$J$1:$P$1045,MATCH(AE128,'Rent Limits'!$A$1:$A$1045,0),MATCH(E128,'Rent Limits'!$J$1:$P$1)),0) -> 0 | R128: 0 | S128: 0 | T128: 0 | U128: 0 | V128: 0 | W128: 0 | X128: 0 | Y128: 0 | Z128: 0 | AA128: No | AE128: =CONCATENATE('Project, Applicant, Threshold'!$AD$40,'Assisted Units'!L128) ->  | AF128: =CONCATENATE('Project, Applicant, Threshold'!$AD$40,"0.35") -> 0.35
N129: =IF(J129="HOME",0,IFERROR(INDEX('Rent Limits'!$A$1:$I$1045,MATCH(AF129,'Rent Limits'!$A$1:$A$1045,0),MATCH(D129,'Rent Limits'!$A$1:$I$1,0)),0)) -> 0 | O129: 0 | P129: 0 | Q129: =IFERROR(INDEX('Rent Limits'!$J$1:$P$1045,MATCH(AE129,'Rent Limits'!$A$1:$A$1045,0),MATCH(E129,'Rent Limits'!$J$1:$P$1)),0) -> 0 | R129: 0 | S129: 0 | T129: 0 | U129: 0 | V129: 0 | W129: 0 | X129: 0 | Y129: 0 | Z129: 0 | AA129: No | AE129: =CONCATENATE('Project, Applicant, Threshold'!$AD$40,'Assisted Units'!L129) ->  | AF129: =CONCATENATE('Project, Applicant, Threshold'!$AD$40,"0.35") -> 0.35
N130: =IF(J130="HOME",0,IFERROR(INDEX('Rent Limits'!$A$1:$I$1045,MATCH(AF130,'Rent Limits'!$A$1:$A$1045,0),MATCH(D130,'Rent Limits'!$A$1:$I$1,0)),0)) -> 0 | O130: 0 | P130: 0 | Q130: =IFERROR(INDEX('Rent Limits'!$J$1:$P$1045,MATCH(AE130,'Rent Limits'!$A$1:$A$1045,0),MATCH(E130,'Rent Limits'!$J$1:$P$1)),0) -> 0 | R130: 0 | S130: 0 | T130: 0 | U130: 0 | V130: 0 | W130: 0 | X130: 0 | Y130: 0 | Z130: 0 | AA130: No | AE130: =CONCATENATE('Project, Applicant, Threshold'!$AD$40,'Assisted Units'!L130) ->  | AF130: =CONCATENATE('Project, Applicant, Threshold'!$AD$40,"0.35") -> 0.35
N131: =IF(J131="HOME",0,IFERROR(INDEX('Rent Limits'!$A$1:$I$1045,MATCH(AF131,'Rent Limits'!$A$1:$A$1045,0),MATCH(D131,'Rent Limits'!$A$1:$I$1,0)),0)) -> 0 | O131: 0 | P131: 0 | Q131: =IFERROR(INDEX('Rent Limits'!$J$1:$P$1045,MATCH(AE131,'Rent Limits'!$A$1:$A$1045,0),MATCH(E131,'Rent Limits'!$J$1:$P$1)),0) -> 0 | R131: 0 | S131: 0 | T131: 0 | U131: 0 | V131: 0 | W131: 0 | X131: 0 | Y131: 0 | Z131: =IFERROR(V131*12/G131,0) -> 0 | AA131: No | AE131: =CONCATENATE('Project, Applicant, Threshold'!$AD$40,'Assisted Units'!L131) ->  | AF131: =CONCATENATE('Project, Applicant, Threshold'!$AD$40,"0.35") -> 0.35
N132: =IF(J132="HOME",0,IFERROR(INDEX('Rent Limits'!$A$1:$I$1045,MATCH(AF132,'Rent Limits'!$A$1:$A$1045,0),MATCH(D132,'Rent Limits'!$A$1:$I$1,0)),0)) -> 0 | O132: =IF(OR(B132="x",E132=""),0,IF(OR(G132="",D132="Vacant",J132="New PRP",J132="HLCP-E",J132="HLCP-N",J132="HOME",J132="LPR",X132>0,Y132>0),0.025,IF(G132<=N132,0.05,0.1))) -> 0 | P132: =H132*(1+O132) -> 0 | Q132: =IFERROR(INDEX('Rent Limits'!$J$1:$P$1045,MATCH(AE132,'Rent Limits'!$A$1:$A$1045,0),MATCH(E132,'Rent Limits'!$J$1:$P$1)),0) -> 0 | R132: =Q132-M132 -> 0 | S132: =IF(J132="HOME",0,ROUND(G132*0.5/12,0)) -> 0 | T132: =IF(J132="HOME",0,S132-M132) -> 0 | U132: =H132 -> 0 | V132: 0 | W132: =V132*12 -> 0 | X132: 0 | Y132: 0 | Z132: 0 | AA132: =IF(OR(AND(K132="VLI",J132<>"HOME",L132>0.3),AND(K132="LI",L132>$AB$3),AND(OR(J132="New PRP",K132="New PRP"),L132=0.8)),"Yes","No") -> No | AE132: =CONCATENATE('Project, Applicant, Threshold'!$AD$40,'Assisted Units'!L132) ->  | AF132: =CONCATENATE('Project, Applicant, Threshold'!$AD$40,"0.35") -> 0.35
N133: =IF(J133="HOME",0,IFERROR(INDEX('Rent Limits'!$A$1:$I$1045,MATCH(AF133,'Rent Limits'!$A$1:$A$1045,0),MATCH(D133,'Rent Limits'!$A$1:$I$1,0)),0)) -> 0 | O133: 0 | P133: 0 | Q133: =IFERROR(INDEX('Rent Limits'!$J$1:$P$1045,MATCH(AE133,'Rent Limits'!$A$1:$A$1045,0),MATCH(E133,'Rent Limits'!$J$1:$P$1)),0) -> 0 | R133: 0 | S133: 0 | T133: 0 | U133: 0 | V133: =IF(OR(D133="Vacant",J133="New PRP"),R133,IF(J133="HOME",MAX(U133,MIN(R133,P133)),MAX(U133,MIN(R133,P133,T133)))) -> 0 | W133: 0 | X133: 0 | Y133: 0 | Z133: 0 | AA133: No | AE133: =CONCATENATE('Project, Applicant, Threshold'!$AD$40,'Assisted Units'!L133) ->  | AF133: =CONCATENATE('Project, Applicant, Threshold'!$AD$40,"0.35") -> 0.35
N134: =IF(J134="HOME",0,IFERROR(INDEX('Rent Limits'!$A$1:$I$1045,MATCH(AF134,'Rent Limits'!$A$1:$A$1045,0),MATCH(D134,'Rent Limits'!$A$1:$I$1,0)),0)) -> 0 | O134: 0 | P134: 0 | Q134: =IFERROR(INDEX('Rent Limits'!$J$1:$P$1045,MATCH(AE134,'Rent Limits'!$A$1:$A$1045,0),MATCH(E134,'Rent Limits'!$J$1:$P$1)),0) -> 0 | R134: 0 | S134: 0 | T134: 0 | U134: 0 | V134: 0 | W134: 0 | X134: 0 | Y134: 0 | Z134: 0 | AA134: No | AE134: =CONCATENATE('Project, Applicant, Threshold'!$AD$40,'Assisted Units'!L134) ->  | AF134: =CONCATENATE('Project, Applicant, Threshold'!$AD$40,"0.35") -> 0.35
N135: =IF(J135="HOME",0,IFERROR(INDEX('Rent Limits'!$A$1:$I$1045,MATCH(AF135,'Rent Limits'!$A$1:$A$1045,0),MATCH(D135,'Rent Limits'!$A$1:$I$1,0)),0)) -> 0 | O135: 0 | P135: 0 | Q135: =IFERROR(INDEX('Rent Limits'!$J$1:$P$1045,MATCH(AE135,'Rent Limits'!$A$1:$A$1045,0),MATCH(E135,'Rent Limits'!$J$1:$P$1)),0) -> 0 | R135: 0 | S135: 0 | T135: 0 | U135: 0 | V135: 0 | W135: 0 | X135: 0 | Y135: 0 | Z135: 0 | AA135: No | AE135: =CONCATENATE('Project, Applicant, Threshold'!$AD$40,'Assisted Units'!L135) ->  | AF135: =CONCATENATE('Project, Applicant, Threshold'!$AD$40,"0.35") -> 0.35
N136: =IF(J136="HOME",0,IFERROR(INDEX('Rent Limits'!$A$1:$I$1045,MATCH(AF136,'Rent Limits'!$A$1:$A$1045,0),MATCH(D136,'Rent Limits'!$A$1:$I$1,0)),0)) -> 0 | O136: 0 | P136: 0 | Q136: =IFERROR(INDEX('Rent Limits'!$J$1:$P$1045,MATCH(AE136,'Rent Limits'!$A$1:$A$1045,0),MATCH(E136,'Rent Limits'!$J$1:$P$1)),0) -> 0 | R136: 0 | S136: 0 | T136: 0 | U136: 0 | V136: 0 | W136: 0 | X136: 0 | Y136: 0 | Z136: 0 | AA136: No | AE136: =CONCATENATE('Project, Applicant, Threshold'!$AD$40,'Assisted Units'!L136) ->  | AF136: =CONCATENATE('Project, Applicant, Threshold'!$AD$40,"0.35") -> 0.35
N137: =IF(J137="HOME",0,IFERROR(INDEX('Rent Limits'!$A$1:$I$1045,MATCH(AF137,'Rent Limits'!$A$1:$A$1045,0),MATCH(D137,'Rent Limits'!$A$1:$I$1,0)),0)) -> 0 | O137: 0 | P137: 0 | Q137: =IFERROR(INDEX('Rent Limits'!$J$1:$P$1045,MATCH(AE137,'Rent Limits'!$A$1:$A$1045,0),MATCH(E137,'Rent Limits'!$J$1:$P$1)),0) -> 0 | R137: 0 | S137: 0 | T137: 0 | U137: 0 | V137: 0 | W137: 0 | X137: 0 | Y137: 0 | Z137: 0 | AA137: No | AE137: =CONCATENATE('Project, Applicant, Threshold'!$AD$40,'Assisted Units'!L137) ->  | AF137: =CONCATENATE('Project, Applicant, Threshold'!$AD$40,"0.35") -> 0.35
N138: =IF(J138="HOME",0,IFERROR(INDEX('Rent Limits'!$A$1:$I$1045,MATCH(AF138,'Rent Limits'!$A$1:$A$1045,0),MATCH(D138,'Rent Limits'!$A$1:$I$1,0)),0)) -> 0 | O138: 0 | P138: 0 | Q138: =IFERROR(INDEX('Rent Limits'!$J$1:$P$1045,MATCH(AE138,'Rent Limits'!$A$1:$A$1045,0),MATCH(E138,'Rent Limits'!$J$1:$P$1)),0) -> 0 | R138: 0 | S138: 0 | T138: 0 | U138: 0 | V138: 0 | W138: 0 | X138: 0 | Y138: 0 | Z138: 0 | AA138: No | AE138: =CONCATENATE('Project, Applicant, Threshold'!$AD$40,'Assisted Units'!L138) ->  | AF138: =CONCATENATE('Project, Applicant, Threshold'!$AD$40,"0.35") -> 0.35
N139: =IF(J139="HOME",0,IFERROR(INDEX('Rent Limits'!$A$1:$I$1045,MATCH(AF139,'Rent Limits'!$A$1:$A$1045,0),MATCH(D139,'Rent Limits'!$A$1:$I$1,0)),0)) -> 0 | O139: 0 | P139: 0 | Q139: =IFERROR(INDEX('Rent Limits'!$J$1:$P$1045,MATCH(AE139,'Rent Limits'!$A$1:$A$1045,0),MATCH(E139,'Rent Limits'!$J$1:$P$1)),0) -> 0 | R139: 0 | S139: 0 | T139: 0 | U139: 0 | V139: 0 | W139: 0 | X139: 0 | Y139: 0 | Z139: 0 | AA139: No | AE139: =CONCATENATE('Project, Applicant, Threshold'!$AD$40,'Assisted Units'!L139) ->  | AF139: =CONCATENATE('Project, Applicant, Threshold'!$AD$40,"0.35") -> 0.35
N140: =IF(J140="HOME",0,IFERROR(INDEX('Rent Limits'!$A$1:$I$1045,MATCH(AF140,'Rent Limits'!$A$1:$A$1045,0),MATCH(D140,'Rent Limits'!$A$1:$I$1,0)),0)) -> 0 | O140: 0 | P140: 0 | Q140: =IFERROR(INDEX('Rent Limits'!$J$1:$P$1045,MATCH(AE140,'Rent Limits'!$A$1:$A$1045,0),MATCH(E140,'Rent Limits'!$J$1:$P$1)),0) -> 0 | R140: 0 | S140: 0 | T140: 0 | U140: 0 | V140: 0 | W140: 0 | X140: 0 | Y140: 0 | Z140: 0 | AA140: No | AE140: =CONCATENATE('Project, Applicant, Threshold'!$AD$40,'Assisted Units'!L140) ->  | AF140: =CONCATENATE('Project, Applicant, Threshold'!$AD$40,"0.35") -> 0.35
N141: =IF(J141="HOME",0,IFERROR(INDEX('Rent Limits'!$A$1:$I$1045,MATCH(AF141,'Rent Limits'!$A$1:$A$1045,0),MATCH(D141,'Rent Limits'!$A$1:$I$1,0)),0)) -> 0 | O141: 0 | P141: 0 | Q141: =IFERROR(INDEX('Rent Limits'!$J$1:$P$1045,MATCH(AE141,'Rent Limits'!$A$1:$A$1045,0),MATCH(E141,'Rent Limits'!$J$1:$P$1)),0) -> 0 | R141: 0 | S141: 0 | T141: 0 | U141: 0 | V141: 0 | W141: 0 | X141: 0 | Y141: 0 | Z141: 0 | AA141: No | AE141: =CONCATENATE('Project, Applicant, Threshold'!$AD$40,'Assisted Units'!L141) ->  | AF141: =CONCATENATE('Project, Applicant, Threshold'!$AD$40,"0.35") -> 0.35
N142: =IF(J142="HOME",0,IFERROR(INDEX('Rent Limits'!$A$1:$I$1045,MATCH(AF142,'Rent Limits'!$A$1:$A$1045,0),MATCH(D142,'Rent Limits'!$A$1:$I$1,0)),0)) -> 0 | O142: 0 | P142: 0 | Q142: =IFERROR(INDEX('Rent Limits'!$J$1:$P$1045,MATCH(AE142,'Rent Limits'!$A$1:$A$1045,0),MATCH(E142,'Rent Limits'!$J$1:$P$1)),0) -> 0 | R142: 0 | S142: 0 | T142: 0 | U142: 0 | V142: 0 | W142: 0 | X142: 0 | Y142: 0 | Z142: 0 | AA142: No | AE142: =CONCATENATE('Project, Applicant, Threshold'!$AD$40,'Assisted Units'!L142) ->  | AF142: =CONCATENATE('Project, Applicant, Threshold'!$AD$40,"0.35") -> 0.35
N143: =IF(J143="HOME",0,IFERROR(INDEX('Rent Limits'!$A$1:$I$1045,MATCH(AF143,'Rent Limits'!$A$1:$A$1045,0),MATCH(D143,'Rent Limits'!$A$1:$I$1,0)),0)) -> 0 | O143: 0 | P143: 0 | Q143: =IFERROR(INDEX('Rent Limits'!$J$1:$P$1045,MATCH(AE143,'Rent Limits'!$A$1:$A$1045,0),MATCH(E143,'Rent Limits'!$J$1:$P$1)),0) -> 0 | R143: 0 | S143: 0 | T143: 0 | U143: 0 | V143: 0 | W143: 0 | X143: 0 | Y143: 0 | Z143: 0 | AA143: No | AE143: =CONCATENATE('Project, Applicant, Threshold'!$AD$40,'Assisted Units'!L143) ->  | AF143: =CONCATENATE('Project, Applicant, Threshold'!$AD$40,"0.35") -> 0.35
N144: =IF(J144="HOME",0,IFERROR(INDEX('Rent Limits'!$A$1:$I$1045,MATCH(AF144,'Rent Limits'!$A$1:$A$1045,0),MATCH(D144,'Rent Limits'!$A$1:$I$1,0)),0)) -> 0 | O144: 0 | P144: 0 | Q144: =IFERROR(INDEX('Rent Limits'!$J$1:$P$1045,MATCH(AE144,'Rent Limits'!$A$1:$A$1045,0),MATCH(E144,'Rent Limits'!$J$1:$P$1)),0) -> 0 | R144: 0 | S144: 0 | T144: 0 | U144: 0 | V144: 0 | W144: 0 | X144: 0 | Y144: 0 | Z144: 0 | AA144: No | AE144: =CONCATENATE('Project, Applicant, Threshold'!$AD$40,'Assisted Units'!L144) ->  | AF144: =CONCATENATE('Project, Applicant, Threshold'!$AD$40,"0.35") -> 0.35
N145: =IF(J145="HOME",0,IFERROR(INDEX('Rent Limits'!$A$1:$I$1045,MATCH(AF145,'Rent Limits'!$A$1:$A$1045,0),MATCH(D145,'Rent Limits'!$A$1:$I$1,0)),0)) -> 0 | O145: 0 | P145: 0 | Q145: =IFERROR(INDEX('Rent Limits'!$J$1:$P$1045,MATCH(AE145,'Rent Limits'!$A$1:$A$1045,0),MATCH(E145,'Rent Limits'!$J$1:$P$1)),0) -> 0 | R145: 0 | S145: 0 | T145: 0 | U145: 0 | V145: 0 | W145: 0 | X145: 0 | Y145: 0 | Z145: 0 | AA145: No | AE145: =CONCATENATE('Project, Applicant, Threshold'!$AD$40,'Assisted Units'!L145) ->  | AF145: =CONCATENATE('Project, Applicant, Threshold'!$AD$40,"0.35") -> 0.35
N146: =IF(J146="HOME",0,IFERROR(INDEX('Rent Limits'!$A$1:$I$1045,MATCH(AF146,'Rent Limits'!$A$1:$A$1045,0),MATCH(D146,'Rent Limits'!$A$1:$I$1,0)),0)) -> 0 | O146: 0 | P146: 0 | Q146: =IFERROR(INDEX('Rent Limits'!$J$1:$P$1045,MATCH(AE146,'Rent Limits'!$A$1:$A$1045,0),MATCH(E146,'Rent Limits'!$J$1:$P$1)),0) -> 0 | R146: 0 | S146: 0 | T146: 0 | U146: 0 | V146: 0 | W146: 0 | X146: 0 | Y146: 0 | Z146: 0 | AA146: No | AE146: =CONCATENATE('Project, Applicant, Threshold'!$AD$40,'Assisted Units'!L146) ->  | AF146: =CONCATENATE('Project, Applicant, Threshold'!$AD$40,"0.35") -> 0.35
N147: =IF(J147="HOME",0,IFERROR(INDEX('Rent Limits'!$A$1:$I$1045,MATCH(AF147,'Rent Limits'!$A$1:$A$1045,0),MATCH(D147,'Rent Limits'!$A$1:$I$1,0)),0)) -> 0 | O147: 0 | P147: 0 | Q147: =IFERROR(INDEX('Rent Limits'!$J$1:$P$1045,MATCH(AE147,'Rent Limits'!$A$1:$A$1045,0),MATCH(E147,'Rent Limits'!$J$1:$P$1)),0) -> 0 | R147: 0 | S147: 0 | T147: 0 | U147: 0 | V147: 0 | W147: 0 | X147: 0 | Y147: 0 | Z147: 0 | AA147: No | AE147: =CONCATENATE('Project, Applicant, Threshold'!$AD$40,'Assisted Units'!L147) ->  | AF147: =CONCATENATE('Project, Applicant, Threshold'!$AD$40,"0.35") -> 0.35
N148: =IF(J148="HOME",0,IFERROR(INDEX('Rent Limits'!$A$1:$I$1045,MATCH(AF148,'Rent Limits'!$A$1:$A$1045,0),MATCH(D148,'Rent Limits'!$A$1:$I$1,0)),0)) -> 0 | O148: 0 | P148: 0 | Q148: =IFERROR(INDEX('Rent Limits'!$J$1:$P$1045,MATCH(AE148,'Rent Limits'!$A$1:$A$1045,0),MATCH(E148,'Rent Limits'!$J$1:$P$1)),0) -> 0 | R148: 0 | S148: 0 | T148: 0 | U148: 0 | V148: 0 | W148: 0 | X148: 0 | Y148: 0 | Z148: 0 | AA148: No | AE148: =CONCATENATE('Project, Applicant, Threshold'!$AD$40,'Assisted Units'!L148) ->  | AF148: =CONCATENATE('Project, Applicant, Threshold'!$AD$40,"0.35") -> 0.35
N149: =IF(J149="HOME",0,IFERROR(INDEX('Rent Limits'!$A$1:$I$1045,MATCH(AF149,'Rent Limits'!$A$1:$A$1045,0),MATCH(D149,'Rent Limits'!$A$1:$I$1,0)),0)) -> 0 | O149: 0 | P149: 0 | Q149: =IFERROR(INDEX('Rent Limits'!$J$1:$P$1045,MATCH(AE149,'Rent Limits'!$A$1:$A$1045,0),MATCH(E149,'Rent Limits'!$J$1:$P$1)),0) -> 0 | R149: 0 | S149: 0 | T149: 0 | U149: 0 | V149: 0 | W149: 0 | X149: 0 | Y149: 0 | Z149: 0 | AA149: No | AE149: =CONCATENATE('Project, Applicant, Threshold'!$AD$40,'Assisted Units'!L149) ->  | AF149: =CONCATENATE('Project, Applicant, Threshold'!$AD$40,"0.35") -> 0.35
N150: =IF(J150="HOME",0,IFERROR(INDEX('Rent Limits'!$A$1:$I$1045,MATCH(AF150,'Rent Limits'!$A$1:$A$1045,0),MATCH(D150,'Rent Limits'!$A$1:$I$1,0)),0)) -> 0 | O150: 0 | P150: 0 | Q150: =IFERROR(INDEX('Rent Limits'!$J$1:$P$1045,MATCH(AE150,'Rent Limits'!$A$1:$A$1045,0),MATCH(E150,'Rent Limits'!$J$1:$P$1)),0) -> 0 | R150: 0 | S150: 0 | T150: 0 | U150: 0 | V150: 0 | W150: 0 | X150: 0 | Y150: 0 | Z150: 0 | AA150: No | AE150: =CONCATENATE('Project, Applicant, Threshold'!$AD$40,'Assisted Units'!L150) ->  | AF150: =CONCATENATE('Project, Applicant, Threshold'!$AD$40,"0.35") -> 0.35
N151: =IF(J151="HOME",0,IFERROR(INDEX('Rent Limits'!$A$1:$I$1045,MATCH(AF151,'Rent Limits'!$A$1:$A$1045,0),MATCH(D151,'Rent Limits'!$A$1:$I$1,0)),0)) -> 0 | O151: 0 | P151: 0 | Q151: =IFERROR(INDEX('Rent Limits'!$J$1:$P$1045,MATCH(AE151,'Rent Limits'!$A$1:$A$1045,0),MATCH(E151,'Rent Limits'!$J$1:$P$1)),0) -> 0 | R151: 0 | S151: 0 | T151: 0 | U151: 0 | V151: 0 | W151: 0 | X151: 0 | Y151: 0 | Z151: 0 | AA151: No | AE151: =CONCATENATE('Project, Applicant, Threshold'!$AD$40,'Assisted Units'!L151) ->  | AF151: =CONCATENATE('Project, Applicant, Threshold'!$AD$40,"0.35") -> 0.35
N152: =IF(J152="HOME",0,IFERROR(INDEX('Rent Limits'!$A$1:$I$1045,MATCH(AF152,'Rent Limits'!$A$1:$A$1045,0),MATCH(D152,'Rent Limits'!$A$1:$I$1,0)),0)) -> 0 | O152: 0 | P152: 0 | Q152: =IFERROR(INDEX('Rent Limits'!$J$1:$P$1045,MATCH(AE152,'Rent Limits'!$A$1:$A$1045,0),MATCH(E152,'Rent Limits'!$J$1:$P$1)),0) -> 0 | R152: 0 | S152: 0 | T152: 0 | U152: 0 | V152: 0 | W152: 0 | X152: 0 | Y152: 0 | Z152: 0 | AA152: No | AE152: =CONCATENATE('Project, Applicant, Threshold'!$AD$40,'Assisted Units'!L152) ->  | AF152: =CONCATENATE('Project, Applicant, Threshold'!$AD$40,"0.35") -> 0.35
N153: =IF(J153="HOME",0,IFERROR(INDEX('Rent Limits'!$A$1:$I$1045,MATCH(AF153,'Rent Limits'!$A$1:$A$1045,0),MATCH(D153,'Rent Limits'!$A$1:$I$1,0)),0)) -> 0 | O153: 0 | P153: 0 | Q153: =IFERROR(INDEX('Rent Limits'!$J$1:$P$1045,MATCH(AE153,'Rent Limits'!$A$1:$A$1045,0),MATCH(E153,'Rent Limits'!$J$1:$P$1)),0) -> 0 | R153: 0 | S153: 0 | T153: 0 | U153: 0 | V153: 0 | W153: 0 | X153: 0 | Y153: 0 | Z153: 0 | AA153: No | AE153: =CONCATENATE('Project, Applicant, Threshold'!$AD$40,'Assisted Units'!L153) ->  | AF153: =CONCATENATE('Project, Applicant, Threshold'!$AD$40,"0.35") -> 0.35
N154: =IF(J154="HOME",0,IFERROR(INDEX('Rent Limits'!$A$1:$I$1045,MATCH(AF154,'Rent Limits'!$A$1:$A$1045,0),MATCH(D154,'Rent Limits'!$A$1:$I$1,0)),0)) -> 0 | O154: 0 | P154: 0 | Q154: =IFERROR(INDEX('Rent Limits'!$J$1:$P$1045,MATCH(AE154,'Rent Limits'!$A$1:$A$1045,0),MATCH(E154,'Rent Limits'!$J$1:$P$1)),0) -> 0 | R154: 0 | S154: 0 | T154: 0 | U154: 0 | V154: 0 | W154: 0 | X154: 0 | Y154: 0 | Z154: 0 | AA154: No | AE154: =CONCATENATE('Project, Applicant, Threshold'!$AD$40,'Assisted Units'!L154) ->  | AF154: =CONCATENATE('Project, Applicant, Threshold'!$AD$40,"0.35") -> 0.35
N155: =IF(J155="HOME",0,IFERROR(INDEX('Rent Limits'!$A$1:$I$1045,MATCH(AF155,'Rent Limits'!$A$1:$A$1045,0),MATCH(D155,'Rent Limits'!$A$1:$I$1,0)),0)) -> 0 | O155: 0 | P155: 0 | Q155: =IFERROR(INDEX('Rent Limits'!$J$1:$P$1045,MATCH(AE155,'Rent Limits'!$A$1:$A$1045,0),MATCH(E155,'Rent Limits'!$J$1:$P$1)),0) -> 0 | R155: 0 | S155: 0 | T155: 0 | U155: 0 | V155: 0 | W155: 0 | X155: 0 | Y155: 0 | Z155: 0 | AA155: No | AE155: =CONCATENATE('Project, Applicant, Threshold'!$AD$40,'Assisted Units'!L155) ->  | AF155: =CONCATENATE('Project, Applicant, Threshold'!$AD$40,"0.35") -> 0.35
N156: =IF(J156="HOME",0,IFERROR(INDEX('Rent Limits'!$A$1:$I$1045,MATCH(AF156,'Rent Limits'!$A$1:$A$1045,0),MATCH(D156,'Rent Limits'!$A$1:$I$1,0)),0)) -> 0 | O156: 0 | P156: 0 | Q156: =IFERROR(INDEX('Rent Limits'!$J$1:$P$1045,MATCH(AE156,'Rent Limits'!$A$1:$A$1045,0),MATCH(E156,'Rent Limits'!$J$1:$P$1)),0) -> 0 | R156: 0 | S156: 0 | T156: 0 | U156: 0 | V156: 0 | W156: 0 | X156: 0 | Y156: 0 | Z156: 0 | AA156: No | AE156: =CONCATENATE('Project, Applicant, Threshold'!$AD$40,'Assisted Units'!L156) ->  | AF156: =CONCATENATE('Project, Applicant, Threshold'!$AD$40,"0.35") -> 0.35
N157: =IF(J157="HOME",0,IFERROR(INDEX('Rent Limits'!$A$1:$I$1045,MATCH(AF157,'Rent Limits'!$A$1:$A$1045,0),MATCH(D157,'Rent Limits'!$A$1:$I$1,0)),0)) -> 0 | O157: 0 | P157: 0 | Q157: =IFERROR(INDEX('Rent Limits'!$J$1:$P$1045,MATCH(AE157,'Rent Limits'!$A$1:$A$1045,0),MATCH(E157,'Rent Limits'!$J$1:$P$1)),0) -> 0 | R157: 0 | S157: 0 | T157: 0 | U157: 0 | V157: 0 | W157: 0 | X157: 0 | Y157: 0 | Z157: 0 | AA157: No | AE157: =CONCATENATE('Project, Applicant, Threshold'!$AD$40,'Assisted Units'!L157) ->  | AF157: =CONCATENATE('Project, Applicant, Threshold'!$AD$40,"0.35") -> 0.35
N158: =IF(J158="HOME",0,IFERROR(INDEX('Rent Limits'!$A$1:$I$1045,MATCH(AF158,'Rent Limits'!$A$1:$A$1045,0),MATCH(D158,'Rent Limits'!$A$1:$I$1,0)),0)) -> 0 | O158: 0 | P158: 0 | Q158: =IFERROR(INDEX('Rent Limits'!$J$1:$P$1045,MATCH(AE158,'Rent Limits'!$A$1:$A$1045,0),MATCH(E158,'Rent Limits'!$J$1:$P$1)),0) -> 0 | R158: 0 | S158: 0 | T158: 0 | U158: 0 | V158: 0 | W158: 0 | X158: 0 | Y158: 0 | Z158: 0 | AA158: No | AE158: =CONCATENATE('Project, Applicant, Threshold'!$AD$40,'Assisted Units'!L158) ->  | AF158: =CONCATENATE('Project, Applicant, Threshold'!$AD$40,"0.35") -> 0.35
N159: =IF(J159="HOME",0,IFERROR(INDEX('Rent Limits'!$A$1:$I$1045,MATCH(AF159,'Rent Limits'!$A$1:$A$1045,0),MATCH(D159,'Rent Limits'!$A$1:$I$1,0)),0)) -> 0 | O159: 0 | P159: 0 | Q159: =IFERROR(INDEX('Rent Limits'!$J$1:$P$1045,MATCH(AE159,'Rent Limits'!$A$1:$A$1045,0),MATCH(E159,'Rent Limits'!$J$1:$P$1)),0) -> 0 | R159: 0 | S159: 0 | T159: 0 | U159: 0 | V159: 0 | W159: 0 | X159: 0 | Y159: 0 | Z159: 0 | AA159: No | AE159: =CONCATENATE('Project, Applicant, Threshold'!$AD$40,'Assisted Units'!L159) ->  | AF159: =CONCATENATE('Project, Applicant, Threshold'!$AD$40,"0.35") -> 0.35
N160: =IF(J160="HOME",0,IFERROR(INDEX('Rent Limits'!$A$1:$I$1045,MATCH(AF160,'Rent Limits'!$A$1:$A$1045,0),MATCH(D160,'Rent Limits'!$A$1:$I$1,0)),0)) -> 0 | O160: 0 | P160: 0 | Q160: =IFERROR(INDEX('Rent Limits'!$J$1:$P$1045,MATCH(AE160,'Rent Limits'!$A$1:$A$1045,0),MATCH(E160,'Rent Limits'!$J$1:$P$1)),0) -> 0 | R160: 0 | S160: 0 | T160: 0 | U160: 0 | V160: 0 | W160: 0 | X160: 0 | Y160: 0 | Z160: 0 | AA160: No | AE160: =CONCATENATE('Project, Applicant, Threshold'!$AD$40,'Assisted Units'!L160) ->  | AF160: =CONCATENATE('Project, Applicant, Threshold'!$AD$40,"0.35") -> 0.35
N161: =IF(J161="HOME",0,IFERROR(INDEX('Rent Limits'!$A$1:$I$1045,MATCH(AF161,'Rent Limits'!$A$1:$A$1045,0),MATCH(D161,'Rent Limits'!$A$1:$I$1,0)),0)) -> 0 | O161: 0 | P161: 0 | Q161: =IFERROR(INDEX('Rent Limits'!$J$1:$P$1045,MATCH(AE161,'Rent Limits'!$A$1:$A$1045,0),MATCH(E161,'Rent Limits'!$J$1:$P$1)),0) -> 0 | R161: 0 | S161: 0 | T161: 0 | U161: 0 | V161: 0 | W161: 0 | X161: 0 | Y161: 0 | Z161: 0 | AA161: No | AE161: =CONCATENATE('Project, Applicant, Threshold'!$AD$40,'Assisted Units'!L161) ->  | AF161: =CONCATENATE('Project, Applicant, Threshold'!$AD$40,"0.35") -> 0.35
N162: =IF(J162="HOME",0,IFERROR(INDEX('Rent Limits'!$A$1:$I$1045,MATCH(AF162,'Rent Limits'!$A$1:$A$1045,0),MATCH(D162,'Rent Limits'!$A$1:$I$1,0)),0)) -> 0 | O162: 0 | P162: 0 | Q162: =IFERROR(INDEX('Rent Limits'!$J$1:$P$1045,MATCH(AE162,'Rent Limits'!$A$1:$A$1045,0),MATCH(E162,'Rent Limits'!$J$1:$P$1)),0) -> 0 | R162: 0 | S162: 0 | T162: 0 | U162: 0 | V162: 0 | W162: 0 | X162: 0 | Y162: 0 | Z162: 0 | AA162: No | AE162: =CONCATENATE('Project, Applicant, Threshold'!$AD$40,'Assisted Units'!L162) ->  | AF162: =CONCATENATE('Project, Applicant, Threshold'!$AD$40,"0.35") -> 0.35
N163: =IF(J163="HOME",0,IFERROR(INDEX('Rent Limits'!$A$1:$I$1045,MATCH(AF163,'Rent Limits'!$A$1:$A$1045,0),MATCH(D163,'Rent Limits'!$A$1:$I$1,0)),0)) -> 0 | O163: 0 | P163: 0 | Q163: =IFERROR(INDEX('Rent Limits'!$J$1:$P$1045,MATCH(AE163,'Rent Limits'!$A$1:$A$1045,0),MATCH(E163,'Rent Limits'!$J$1:$P$1)),0) -> 0 | R163: 0 | S163: 0 | T163: 0 | U163: 0 | V163: 0 | W163: 0 | X163: 0 | Y163: 0 | Z163: 0 | AA163: No | AE163: =CONCATENATE('Project, Applicant, Threshold'!$AD$40,'Assisted Units'!L163) ->  | AF163: =CONCATENATE('Project, Applicant, Threshold'!$AD$40,"0.35") -> 0.35
N164: =IF(J164="HOME",0,IFERROR(INDEX('Rent Limits'!$A$1:$I$1045,MATCH(AF164,'Rent Limits'!$A$1:$A$1045,0),MATCH(D164,'Rent Limits'!$A$1:$I$1,0)),0)) -> 0 | O164: 0 | P164: 0 | Q164: =IFERROR(INDEX('Rent Limits'!$J$1:$P$1045,MATCH(AE164,'Rent Limits'!$A$1:$A$1045,0),MATCH(E164,'Rent Limits'!$J$1:$P$1)),0) -> 0 | R164: 0 | S164: 0 | T164: 0 | U164: 0 | V164: 0 | W164: 0 | X164: 0 | Y164: 0 | Z164: 0 | AA164: No | AE164: =CONCATENATE('Project, Applicant, Threshold'!$AD$40,'Assisted Units'!L164) ->  | AF164: =CONCATENATE('Project, Applicant, Threshold'!$AD$40,"0.35") -> 0.35
N165: =IF(J165="HOME",0,IFERROR(INDEX('Rent Limits'!$A$1:$I$1045,MATCH(AF165,'Rent Limits'!$A$1:$A$1045,0),MATCH(D165,'Rent Limits'!$A$1:$I$1,0)),0)) -> 0 | O165: 0 | P165: 0 | Q165: =IFERROR(INDEX('Rent Limits'!$J$1:$P$1045,MATCH(AE165,'Rent Limits'!$A$1:$A$1045,0),MATCH(E165,'Rent Limits'!$J$1:$P$1)),0) -> 0 | R165: 0 | S165: 0 | T165: 0 | U165: 0 | V165: 0 | W165: 0 | X165: 0 | Y165: 0 | Z165: 0 | AA165: No | AE165: =CONCATENATE('Project, Applicant, Threshold'!$AD$40,'Assisted Units'!L165) ->  | AF165: =CONCATENATE('Project, Applicant, Threshold'!$AD$40,"0.35") -> 0.35
N166: =IF(J166="HOME",0,IFERROR(INDEX('Rent Limits'!$A$1:$I$1045,MATCH(AF166,'Rent Limits'!$A$1:$A$1045,0),MATCH(D166,'Rent Limits'!$A$1:$I$1,0)),0)) -> 0 | O166: 0 | P166: 0 | Q166: =IFERROR(INDEX('Rent Limits'!$J$1:$P$1045,MATCH(AE166,'Rent Limits'!$A$1:$A$1045,0),MATCH(E166,'Rent Limits'!$J$1:$P$1)),0) -> 0 | R166: 0 | S166: 0 | T166: 0 | U166: 0 | V166: 0 | W166: 0 | X166: 0 | Y166: 0 | Z166: 0 | AA166: No | AE166: =CONCATENATE('Project, Applicant, Threshold'!$AD$40,'Assisted Units'!L166) ->  | AF166: =CONCATENATE('Project, Applicant, Threshold'!$AD$40,"0.35") -> 0.35
N167: =IF(J167="HOME",0,IFERROR(INDEX('Rent Limits'!$A$1:$I$1045,MATCH(AF167,'Rent Limits'!$A$1:$A$1045,0),MATCH(D167,'Rent Limits'!$A$1:$I$1,0)),0)) -> 0 | O167: 0 | P167: 0 | Q167: =IFERROR(INDEX('Rent Limits'!$J$1:$P$1045,MATCH(AE167,'Rent Limits'!$A$1:$A$1045,0),MATCH(E167,'Rent Limits'!$J$1:$P$1)),0) -> 0 | R167: 0 | S167: 0 | T167: 0 | U167: 0 | V167: 0 | W167: 0 | X167: 0 | Y167: 0 | Z167: 0 | AA167: No | AE167: =CONCATENATE('Project, Applicant, Threshold'!$AD$40,'Assisted Units'!L167) ->  | AF167: =CONCATENATE('Project, Applicant, Threshold'!$AD$40,"0.35") -> 0.35
N168: =IF(J168="HOME",0,IFERROR(INDEX('Rent Limits'!$A$1:$I$1045,MATCH(AF168,'Rent Limits'!$A$1:$A$1045,0),MATCH(D168,'Rent Limits'!$A$1:$I$1,0)),0)) -> 0 | O168: 0 | P168: 0 | Q168: =IFERROR(INDEX('Rent Limits'!$J$1:$P$1045,MATCH(AE168,'Rent Limits'!$A$1:$A$1045,0),MATCH(E168,'Rent Limits'!$J$1:$P$1)),0) -> 0 | R168: 0 | S168: 0 | T168: 0 | U168: 0 | V168: 0 | W168: 0 | X168: 0 | Y168: 0 | Z168: 0 | AA168: No | AE168: =CONCATENATE('Project, Applicant, Threshold'!$AD$40,'Assisted Units'!L168) ->  | AF168: =CONCATENATE('Project, Applicant, Threshold'!$AD$40,"0.35") -> 0.35
N169: =IF(J169="HOME",0,IFERROR(INDEX('Rent Limits'!$A$1:$I$1045,MATCH(AF169,'Rent Limits'!$A$1:$A$1045,0),MATCH(D169,'Rent Limits'!$A$1:$I$1,0)),0)) -> 0 | O169: 0 | P169: 0 | Q169: =IFERROR(INDEX('Rent Limits'!$J$1:$P$1045,MATCH(AE169,'Rent Limits'!$A$1:$A$1045,0),MATCH(E169,'Rent Limits'!$J$1:$P$1)),0) -> 0 | R169: 0 | S169: 0 | T169: 0 | U169: 0 | V169: 0 | W169: 0 | X169: 0 | Y169: 0 | Z169: 0 | AA169: No | AE169: =CONCATENATE('Project, Applicant, Threshold'!$AD$40,'Assisted Units'!L169) ->  | AF169: =CONCATENATE('Project, Applicant, Threshold'!$AD$40,"0.35") -> 0.35
N170: =IF(J170="HOME",0,IFERROR(INDEX('Rent Limits'!$A$1:$I$1045,MATCH(AF170,'Rent Limits'!$A$1:$A$1045,0),MATCH(D170,'Rent Limits'!$A$1:$I$1,0)),0)) -> 0 | O170: 0 | P170: 0 | Q170: =IFERROR(INDEX('Rent Limits'!$J$1:$P$1045,MATCH(AE170,'Rent Limits'!$A$1:$A$1045,0),MATCH(E170,'Rent Limits'!$J$1:$P$1)),0) -> 0 | R170: 0 | S170: 0 | T170: 0 | U170: 0 | V170: 0 | W170: 0 | X170: 0 | Y170: 0 | Z170: 0 | AA170: No | AE170: =CONCATENATE('Project, Applicant, Threshold'!$AD$40,'Assisted Units'!L170) ->  | AF170: =CONCATENATE('Project, Applicant, Threshold'!$AD$40,"0.35") -> 0.35
N171: =IF(J171="HOME",0,IFERROR(INDEX('Rent Limits'!$A$1:$I$1045,MATCH(AF171,'Rent Limits'!$A$1:$A$1045,0),MATCH(D171,'Rent Limits'!$A$1:$I$1,0)),0)) -> 0 | O171: 0 | P171: 0 | Q171: =IFERROR(INDEX('Rent Limits'!$J$1:$P$1045,MATCH(AE171,'Rent Limits'!$A$1:$A$1045,0),MATCH(E171,'Rent Limits'!$J$1:$P$1)),0) -> 0 | R171: 0 | S171: 0 | T171: 0 | U171: 0 | V171: 0 | W171: 0 | X171: 0 | Y171: 0 | Z171: 0 | AA171: No | AE171: =CONCATENATE('Project, Applicant, Threshold'!$AD$40,'Assisted Units'!L171) ->  | AF171: =CONCATENATE('Project, Applicant, Threshold'!$AD$40,"0.35") -> 0.35
N172: =IF(J172="HOME",0,IFERROR(INDEX('Rent Limits'!$A$1:$I$1045,MATCH(AF172,'Rent Limits'!$A$1:$A$1045,0),MATCH(D172,'Rent Limits'!$A$1:$I$1,0)),0)) -> 0 | O172: 0 | P172: 0 | Q172: =IFERROR(INDEX('Rent Limits'!$J$1:$P$1045,MATCH(AE172,'Rent Limits'!$A$1:$A$1045,0),MATCH(E172,'Rent Limits'!$J$1:$P$1)),0) -> 0 | R172: 0 | S172: 0 | T172: 0 | U172: 0 | V172: 0 | W172: 0 | X172: 0 | Y172: 0 | Z172: 0 | AA172: No | AE172: =CONCATENATE('Project, Applicant, Threshold'!$AD$40,'Assisted Units'!L172) ->  | AF172: =CONCATENATE('Project, Applicant, Threshold'!$AD$40,"0.35") -> 0.35
N173: =IF(J173="HOME",0,IFERROR(INDEX('Rent Limits'!$A$1:$I$1045,MATCH(AF173,'Rent Limits'!$A$1:$A$1045,0),MATCH(D173,'Rent Limits'!$A$1:$I$1,0)),0)) -> 0 | O173: 0 | P173: 0 | Q173: =IFERROR(INDEX('Rent Limits'!$J$1:$P$1045,MATCH(AE173,'Rent Limits'!$A$1:$A$1045,0),MATCH(E173,'Rent Limits'!$J$1:$P$1)),0) -> 0 | R173: 0 | S173: 0 | T173: 0 | U173: 0 | V173: 0 | W173: 0 | X173: 0 | Y173: 0 | Z173: 0 | AA173: No | AE173: =CONCATENATE('Project, Applicant, Threshold'!$AD$40,'Assisted Units'!L173) ->  | AF173: =CONCATENATE('Project, Applicant, Threshold'!$AD$40,"0.35") -> 0.35
N174: =IF(J174="HOME",0,IFERROR(INDEX('Rent Limits'!$A$1:$I$1045,MATCH(AF174,'Rent Limits'!$A$1:$A$1045,0),MATCH(D174,'Rent Limits'!$A$1:$I$1,0)),0)) -> 0 | O174: 0 | P174: 0 | Q174: =IFERROR(INDEX('Rent Limits'!$J$1:$P$1045,MATCH(AE174,'Rent Limits'!$A$1:$A$1045,0),MATCH(E174,'Rent Limits'!$J$1:$P$1)),0) -> 0 | R174: 0 | S174: 0 | T174: 0 | U174: 0 | V174: 0 | W174: 0 | X174: 0 | Y174: 0 | Z174: 0 | AA174: No | AE174: =CONCATENATE('Project, Applicant, Threshold'!$AD$40,'Assisted Units'!L174) ->  | AF174: =CONCATENATE('Project, Applicant, Threshold'!$AD$40,"0.35") -> 0.35
N175: =IF(J175="HOME",0,IFERROR(INDEX('Rent Limits'!$A$1:$I$1045,MATCH(AF175,'Rent Limits'!$A$1:$A$1045,0),MATCH(D175,'Rent Limits'!$A$1:$I$1,0)),0)) -> 0 | O175: 0 | P175: 0 | Q175: =IFERROR(INDEX('Rent Limits'!$J$1:$P$1045,MATCH(AE175,'Rent Limits'!$A$1:$A$1045,0),MATCH(E175,'Rent Limits'!$J$1:$P$1)),0) -> 0 | R175: 0 | S175: 0 | T175: 0 | U175: 0 | V175: 0 | W175: 0 | X175: 0 | Y175: 0 | Z175: 0 | AA175: No | AE175: =CONCATENATE('Project, Applicant, Threshold'!$AD$40,'Assisted Units'!L175) ->  | AF175: =CONCATENATE('Project, Applicant, Threshold'!$AD$40,"0.35") -> 0.35
N176: =IF(J176="HOME",0,IFERROR(INDEX('Rent Limits'!$A$1:$I$1045,MATCH(AF176,'Rent Limits'!$A$1:$A$1045,0),MATCH(D176,'Rent Limits'!$A$1:$I$1,0)),0)) -> 0 | O176: 0 | P176: 0 | Q176: =IFERROR(INDEX('Rent Limits'!$J$1:$P$1045,MATCH(AE176,'Rent Limits'!$A$1:$A$1045,0),MATCH(E176,'Rent Limits'!$J$1:$P$1)),0) -> 0 | R176: 0 | S176: 0 | T176: 0 | U176: 0 | V176: 0 | W176: 0 | X176: 0 | Y176: 0 | Z176: 0 | AA176: No | AE176: =CONCATENATE('Project, Applicant, Threshold'!$AD$40,'Assisted Units'!L176) ->  | AF176: =CONCATENATE('Project, Applicant, Threshold'!$AD$40,"0.35") -> 0.35
N177: =IF(J177="HOME",0,IFERROR(INDEX('Rent Limits'!$A$1:$I$1045,MATCH(AF177,'Rent Limits'!$A$1:$A$1045,0),MATCH(D177,'Rent Limits'!$A$1:$I$1,0)),0)) -> 0 | O177: 0 | P177: 0 | Q177: =IFERROR(INDEX('Rent Limits'!$J$1:$P$1045,MATCH(AE177,'Rent Limits'!$A$1:$A$1045,0),MATCH(E177,'Rent Limits'!$J$1:$P$1)),0) -> 0 | R177: 0 | S177: 0 | T177: 0 | U177: 0 | V177: 0 | W177: 0 | X177: 0 | Y177: 0 | Z177: 0 | AA177: No | AE177: =CONCATENATE('Project, Applicant, Threshold'!$AD$40,'Assisted Units'!L177) ->  | AF177: =CONCATENATE('Project, Applicant, Threshold'!$AD$40,"0.35") -> 0.35
N178: =IF(J178="HOME",0,IFERROR(INDEX('Rent Limits'!$A$1:$I$1045,MATCH(AF178,'Rent Limits'!$A$1:$A$1045,0),MATCH(D178,'Rent Limits'!$A$1:$I$1,0)),0)) -> 0 | O178: 0 | P178: 0 | Q178: =IFERROR(INDEX('Rent Limits'!$J$1:$P$1045,MATCH(AE178,'Rent Limits'!$A$1:$A$1045,0),MATCH(E178,'Rent Limits'!$J$1:$P$1)),0) -> 0 | R178: 0 | S178: 0 | T178: 0 | U178: 0 | V178: 0 | W178: 0 | X178: 0 | Y178: 0 | Z178: 0 | AA178: No | AE178: =CONCATENATE('Project, Applicant, Threshold'!$AD$40,'Assisted Units'!L178) ->  | AF178: =CONCATENATE('Project, Applicant, Threshold'!$AD$40,"0.35") -> 0.35
N179: =IF(J179="HOME",0,IFERROR(INDEX('Rent Limits'!$A$1:$I$1045,MATCH(AF179,'Rent Limits'!$A$1:$A$1045,0),MATCH(D179,'Rent Limits'!$A$1:$I$1,0)),0)) -> 0 | O179: 0 | P179: 0 | Q179: =IFERROR(INDEX('Rent Limits'!$J$1:$P$1045,MATCH(AE179,'Rent Limits'!$A$1:$A$1045,0),MATCH(E179,'Rent Limits'!$J$1:$P$1)),0) -> 0 | R179: 0 | S179: 0 | T179: 0 | U179: 0 | V179: 0 | W179: 0 | X179: 0 | Y179: 0 | Z179: 0 | AA179: No | AE179: =CONCATENATE('Project, Applicant, Threshold'!$AD$40,'Assisted Units'!L179) ->  | AF179: =CONCATENATE('Project, Applicant, Threshold'!$AD$40,"0.35") -> 0.35
N180: =IF(J180="HOME",0,IFERROR(INDEX('Rent Limits'!$A$1:$I$1045,MATCH(AF180,'Rent Limits'!$A$1:$A$1045,0),MATCH(D180,'Rent Limits'!$A$1:$I$1,0)),0)) -> 0 | O180: 0 | P180: 0 | Q180: =IFERROR(INDEX('Rent Limits'!$J$1:$P$1045,MATCH(AE180,'Rent Limits'!$A$1:$A$1045,0),MATCH(E180,'Rent Limits'!$J$1:$P$1)),0) -> 0 | R180: 0 | S180: 0 | T180: 0 | U180: 0 | V180: 0 | W180: 0 | X180: 0 | Y180: 0 | Z180: 0 | AA180: No | AE180: =CONCATENATE('Project, Applicant, Threshold'!$AD$40,'Assisted Units'!L180) ->  | AF180: =CONCATENATE('Project, Applicant, Threshold'!$AD$40,"0.35") -> 0.35
N181: =IF(J181="HOME",0,IFERROR(INDEX('Rent Limits'!$A$1:$I$1045,MATCH(AF181,'Rent Limits'!$A$1:$A$1045,0),MATCH(D181,'Rent Limits'!$A$1:$I$1,0)),0)) -> 0 | O181: 0 | P181: 0 | Q181: =IFERROR(INDEX('Rent Limits'!$J$1:$P$1045,MATCH(AE181,'Rent Limits'!$A$1:$A$1045,0),MATCH(E181,'Rent Limits'!$J$1:$P$1)),0) -> 0 | R181: 0 | S181: 0 | T181: 0 | U181: 0 | V181: 0 | W181: 0 | X181: 0 | Y181: 0 | Z181: 0 | AA181: No | AE181: =CONCATENATE('Project, Applicant, Threshold'!$AD$40,'Assisted Units'!L181) ->  | AF181: =CONCATENATE('Project, Applicant, Threshold'!$AD$40,"0.35") -> 0.35
N182: =IF(J182="HOME",0,IFERROR(INDEX('Rent Limits'!$A$1:$I$1045,MATCH(AF182,'Rent Limits'!$A$1:$A$1045,0),MATCH(D182,'Rent Limits'!$A$1:$I$1,0)),0)) -> 0 | O182: 0 | P182: 0 | Q182: =IFERROR(INDEX('Rent Limits'!$J$1:$P$1045,MATCH(AE182,'Rent Limits'!$A$1:$A$1045,0),MATCH(E182,'Rent Limits'!$J$1:$P$1)),0) -> 0 | R182: 0 | S182: 0 | T182: 0 | U182: 0 | V182: 0 | W182: 0 | X182: 0 | Y182: 0 | Z182: 0 | AA182: No | AE182: =CONCATENATE('Project, Applicant, Threshold'!$AD$40,'Assisted Units'!L182) ->  | AF182: =CONCATENATE('Project, Applicant, Threshold'!$AD$40,"0.35") -> 0.35
N183: =IF(J183="HOME",0,IFERROR(INDEX('Rent Limits'!$A$1:$I$1045,MATCH(AF183,'Rent Limits'!$A$1:$A$1045,0),MATCH(D183,'Rent Limits'!$A$1:$I$1,0)),0)) -> 0 | O183: 0 | P183: 0 | Q183: =IFERROR(INDEX('Rent Limits'!$J$1:$P$1045,MATCH(AE183,'Rent Limits'!$A$1:$A$1045,0),MATCH(E183,'Rent Limits'!$J$1:$P$1)),0) -> 0 | R183: 0 | S183: 0 | T183: 0 | U183: 0 | V183: 0 | W183: 0 | X183: 0 | Y183: 0 | Z183: 0 | AA183: No | AE183: =CONCATENATE('Project, Applicant, Threshold'!$AD$40,'Assisted Units'!L183) ->  | AF183: =CONCATENATE('Project, Applicant, Threshold'!$AD$40,"0.35") -> 0.35
N184: =IF(J184="HOME",0,IFERROR(INDEX('Rent Limits'!$A$1:$I$1045,MATCH(AF184,'Rent Limits'!$A$1:$A$1045,0),MATCH(D184,'Rent Limits'!$A$1:$I$1,0)),0)) -> 0 | O184: 0 | P184: 0 | Q184: =IFERROR(INDEX('Rent Limits'!$J$1:$P$1045,MATCH(AE184,'Rent Limits'!$A$1:$A$1045,0),MATCH(E184,'Rent Limits'!$J$1:$P$1)),0) -> 0 | R184: 0 | S184: 0 | T184: 0 | U184: 0 | V184: 0 | W184: 0 | X184: 0 | Y184: 0 | Z184: 0 | AA184: No | AE184: =CONCATENATE('Project, Applicant, Threshold'!$AD$40,'Assisted Units'!L184) ->  | AF184: =CONCATENATE('Project, Applicant, Threshold'!$AD$40,"0.35") -> 0.35
N185: =IF(J185="HOME",0,IFERROR(INDEX('Rent Limits'!$A$1:$I$1045,MATCH(AF185,'Rent Limits'!$A$1:$A$1045,0),MATCH(D185,'Rent Limits'!$A$1:$I$1,0)),0)) -> 0 | O185: 0 | P185: 0 | Q185: =IFERROR(INDEX('Rent Limits'!$J$1:$P$1045,MATCH(AE185,'Rent Limits'!$A$1:$A$1045,0),MATCH(E185,'Rent Limits'!$J$1:$P$1)),0) -> 0 | R185: 0 | S185: 0 | T185: 0 | U185: 0 | V185: 0 | W185: 0 | X185: 0 | Y185: 0 | Z185: 0 | AA185: No | AE185: =CONCATENATE('Project, Applicant, Threshold'!$AD$40,'Assisted Units'!L185) ->  | AF185: =CONCATENATE('Project, Applicant, Threshold'!$AD$40,"0.35") -> 0.35
N186: =IF(J186="HOME",0,IFERROR(INDEX('Rent Limits'!$A$1:$I$1045,MATCH(AF186,'Rent Limits'!$A$1:$A$1045,0),MATCH(D186,'Rent Limits'!$A$1:$I$1,0)),0)) -> 0 | O186: 0 | P186: 0 | Q186: =IFERROR(INDEX('Rent Limits'!$J$1:$P$1045,MATCH(AE186,'Rent Limits'!$A$1:$A$1045,0),MATCH(E186,'Rent Limits'!$J$1:$P$1)),0) -> 0 | R186: 0 | S186: 0 | T186: 0 | U186: 0 | V186: 0 | W186: 0 | X186: 0 | Y186: 0 | Z186: 0 | AA186: No | AE186: =CONCATENATE('Project, Applicant, Threshold'!$AD$40,'Assisted Units'!L186) ->  | AF186: =CONCATENATE('Project, Applicant, Threshold'!$AD$40,"0.35") -> 0.35
N187: =IF(J187="HOME",0,IFERROR(INDEX('Rent Limits'!$A$1:$I$1045,MATCH(AF187,'Rent Limits'!$A$1:$A$1045,0),MATCH(D187,'Rent Limits'!$A$1:$I$1,0)),0)) -> 0 | O187: 0 | P187: 0 | Q187: =IFERROR(INDEX('Rent Limits'!$J$1:$P$1045,MATCH(AE187,'Rent Limits'!$A$1:$A$1045,0),MATCH(E187,'Rent Limits'!$J$1:$P$1)),0) -> 0 | R187: 0 | S187: 0 | T187: 0 | U187: 0 | V187: 0 | W187: 0 | X187: 0 | Y187: 0 | Z187: 0 | AA187: No | AE187: =CONCATENATE('Project, Applicant, Threshold'!$AD$40,'Assisted Units'!L187) ->  | AF187: =CONCATENATE('Project, Applicant, Threshold'!$AD$40,"0.35") -> 0.35
N188: =IF(J188="HOME",0,IFERROR(INDEX('Rent Limits'!$A$1:$I$1045,MATCH(AF188,'Rent Limits'!$A$1:$A$1045,0),MATCH(D188,'Rent Limits'!$A$1:$I$1,0)),0)) -> 0 | O188: 0 | P188: 0 | Q188: =IFERROR(INDEX('Rent Limits'!$J$1:$P$1045,MATCH(AE188,'Rent Limits'!$A$1:$A$1045,0),MATCH(E188,'Rent Limits'!$J$1:$P$1)),0) -> 0 | R188: 0 | S188: 0 | T188: 0 | U188: 0 | V188: 0 | W188: 0 | X188: 0 | Y188: 0 | Z188: 0 | AA188: No | AE188: =CONCATENATE('Project, Applicant, Threshold'!$AD$40,'Assisted Units'!L188) ->  | AF188: =CONCATENATE('Project, Applicant, Threshold'!$AD$40,"0.35") -> 0.35
N189: =IF(J189="HOME",0,IFERROR(INDEX('Rent Limits'!$A$1:$I$1045,MATCH(AF189,'Rent Limits'!$A$1:$A$1045,0),MATCH(D189,'Rent Limits'!$A$1:$I$1,0)),0)) -> 0 | O189: 0 | P189: 0 | Q189: =IFERROR(INDEX('Rent Limits'!$J$1:$P$1045,MATCH(AE189,'Rent Limits'!$A$1:$A$1045,0),MATCH(E189,'Rent Limits'!$J$1:$P$1)),0) -> 0 | R189: 0 | S189: 0 | T189: 0 | U189: 0 | V189: 0 | W189: 0 | X189: 0 | Y189: 0 | Z189: 0 | AA189: No | AE189: =CONCATENATE('Project, Applicant, Threshold'!$AD$40,'Assisted Units'!L189) ->  | AF189: =CONCATENATE('Project, Applicant, Threshold'!$AD$40,"0.35") -> 0.35
N190: =IF(J190="HOME",0,IFERROR(INDEX('Rent Limits'!$A$1:$I$1045,MATCH(AF190,'Rent Limits'!$A$1:$A$1045,0),MATCH(D190,'Rent Limits'!$A$1:$I$1,0)),0)) -> 0 | O190: 0 | P190: 0 | Q190: =IFERROR(INDEX('Rent Limits'!$J$1:$P$1045,MATCH(AE190,'Rent Limits'!$A$1:$A$1045,0),MATCH(E190,'Rent Limits'!$J$1:$P$1)),0) -> 0 | R190: 0 | S190: 0 | T190: 0 | U190: 0 | V190: 0 | W190: 0 | X190: 0 | Y190: 0 | Z190: 0 | AA190: No | AE190: =CONCATENATE('Project, Applicant, Threshold'!$AD$40,'Assisted Units'!L190) ->  | AF190: =CONCATENATE('Project, Applicant, Threshold'!$AD$40,"0.35") -> 0.35
N191: =IF(J191="HOME",0,IFERROR(INDEX('Rent Limits'!$A$1:$I$1045,MATCH(AF191,'Rent Limits'!$A$1:$A$1045,0),MATCH(D191,'Rent Limits'!$A$1:$I$1,0)),0)) -> 0 | O191: 0 | P191: 0 | Q191: =IFERROR(INDEX('Rent Limits'!$J$1:$P$1045,MATCH(AE191,'Rent Limits'!$A$1:$A$1045,0),MATCH(E191,'Rent Limits'!$J$1:$P$1)),0) -> 0 | R191: 0 | S191: 0 | T191: 0 | U191: 0 | V191: 0 | W191: 0 | X191: 0 | Y191: 0 | Z191: 0 | AA191: No | AE191: =CONCATENATE('Project, Applicant, Threshold'!$AD$40,'Assisted Units'!L191) ->  | AF191: =CONCATENATE('Project, Applicant, Threshold'!$AD$40,"0.35") -> 0.35
N192: =IF(J192="HOME",0,IFERROR(INDEX('Rent Limits'!$A$1:$I$1045,MATCH(AF192,'Rent Limits'!$A$1:$A$1045,0),MATCH(D192,'Rent Limits'!$A$1:$I$1,0)),0)) -> 0 | O192: 0 | P192: 0 | Q192: =IFERROR(INDEX('Rent Limits'!$J$1:$P$1045,MATCH(AE192,'Rent Limits'!$A$1:$A$1045,0),MATCH(E192,'Rent Limits'!$J$1:$P$1)),0) -> 0 | R192: 0 | S192: 0 | T192: 0 | U192: 0 | V192: 0 | W192: 0 | X192: 0 | Y192: 0 | Z192: 0 | AA192: No | AE192: =CONCATENATE('Project, Applicant, Threshold'!$AD$40,'Assisted Units'!L192) ->  | AF192: =CONCATENATE('Project, Applicant, Threshold'!$AD$40,"0.35") -> 0.35
N193: =IF(J193="HOME",0,IFERROR(INDEX('Rent Limits'!$A$1:$I$1045,MATCH(AF193,'Rent Limits'!$A$1:$A$1045,0),MATCH(D193,'Rent Limits'!$A$1:$I$1,0)),0)) -> 0 | O193: 0 | P193: 0 | Q193: =IFERROR(INDEX('Rent Limits'!$J$1:$P$1045,MATCH(AE193,'Rent Limits'!$A$1:$A$1045,0),MATCH(E193,'Rent Limits'!$J$1:$P$1)),0) -> 0 | R193: 0 | S193: 0 | T193: 0 | U193: 0 | V193: 0 | W193: 0 | X193: 0 | Y193: 0 | Z193: 0 | AA193: No | AE193: =CONCATENATE('Project, Applicant, Threshold'!$AD$40,'Assisted Units'!L193) ->  | AF193: =CONCATENATE('Project, Applicant, Threshold'!$AD$40,"0.35") -> 0.35
N194: =IF(J194="HOME",0,IFERROR(INDEX('Rent Limits'!$A$1:$I$1045,MATCH(AF194,'Rent Limits'!$A$1:$A$1045,0),MATCH(D194,'Rent Limits'!$A$1:$I$1,0)),0)) -> 0 | O194: 0 | P194: 0 | Q194: =IFERROR(INDEX('Rent Limits'!$J$1:$P$1045,MATCH(AE194,'Rent Limits'!$A$1:$A$1045,0),MATCH(E194,'Rent Limits'!$J$1:$P$1)),0) -> 0 | R194: 0 | S194: 0 | T194: 0 | U194: 0 | V194: 0 | W194: 0 | X194: 0 | Y194: 0 | Z194: 0 | AA194: No | AE194: =CONCATENATE('Project, Applicant, Threshold'!$AD$40,'Assisted Units'!L194) ->  | AF194: =CONCATENATE('Project, Applicant, Threshold'!$AD$40,"0.35") -> 0.35
N195: =IF(J195="HOME",0,IFERROR(INDEX('Rent Limits'!$A$1:$I$1045,MATCH(AF195,'Rent Limits'!$A$1:$A$1045,0),MATCH(D195,'Rent Limits'!$A$1:$I$1,0)),0)) -> 0 | O195: 0 | P195: 0 | Q195: =IFERROR(INDEX('Rent Limits'!$J$1:$P$1045,MATCH(AE195,'Rent Limits'!$A$1:$A$1045,0),MATCH(E195,'Rent Limits'!$J$1:$P$1)),0) -> 0 | R195: 0 | S195: 0 | T195: 0 | U195: 0 | V195: 0 | W195: 0 | X195: 0 | Y195: 0 | Z195: =IFERROR(V195*12/G195,0) -> 0 | AA195: No | AE195: =CONCATENATE('Project, Applicant, Threshold'!$AD$40,'Assisted Units'!L195) ->  | AF195: =CONCATENATE('Project, Applicant, Threshold'!$AD$40,"0.35") -> 0.35
N196: =IF(J196="HOME",0,IFERROR(INDEX('Rent Limits'!$A$1:$I$1045,MATCH(AF196,'Rent Limits'!$A$1:$A$1045,0),MATCH(D196,'Rent Limits'!$A$1:$I$1,0)),0)) -> 0 | O196: =IF(OR(B196="x",E196=""),0,IF(OR(G196="",D196="Vacant",J196="New PRP",J196="HLCP-E",J196="HLCP-N",J196="HOME",J196="LPR",X196>0,Y196>0),0.025,IF(G196<=N196,0.05,0.1))) -> 0 | P196: =H196*(1+O196) -> 0 | Q196: =IFERROR(INDEX('Rent Limits'!$J$1:$P$1045,MATCH(AE196,'Rent Limits'!$A$1:$A$1045,0),MATCH(E196,'Rent Limits'!$J$1:$P$1)),0) -> 0 | R196: =Q196-M196 -> 0 | S196: =IF(J196="HOME",0,ROUND(G196*0.5/12,0)) -> 0 | T196: =IF(J196="HOME",0,S196-M196) -> 0 | U196: =H196 -> 0 | V196: 0 | W196: =V196*12 -> 0 | X196: 0 | Y196: 0 | Z196: 0 | AA196: =IF(OR(AND(K196="VLI",J196<>"HOME",L196>0.3),AND(K196="LI",L196>$AB$3),AND(OR(J196="New PRP",K196="New PRP"),L196=0.8)),"Yes","No") -> No | AE196: =CONCATENATE('Project, Applicant, Threshold'!$AD$40,'Assisted Units'!L196) ->  | AF196: =CONCATENATE('Project, Applicant, Threshold'!$AD$40,"0.35") -> 0.35
N197: =IF(J197="HOME",0,IFERROR(INDEX('Rent Limits'!$A$1:$I$1045,MATCH(AF197,'Rent Limits'!$A$1:$A$1045,0),MATCH(D197,'Rent Limits'!$A$1:$I$1,0)),0)) -> 0 | O197: 0 | P197: 0 | Q197: =IFERROR(INDEX('Rent Limits'!$J$1:$P$1045,MATCH(AE197,'Rent Limits'!$A$1:$A$1045,0),MATCH(E197,'Rent Limits'!$J$1:$P$1)),0) -> 0 | R197: 0 | S197: 0 | T197: 0 | U197: 0 | V197: =IF(OR(D197="Vacant",J197="New PRP"),R197,IF(J197="HOME",MAX(U197,MIN(R197,P197)),MAX(U197,MIN(R197,P197,T197)))) -> 0 | W197: 0 | X197: 0 | Y197: 0 | Z197: 0 | AA197: No | AE197: =CONCATENATE('Project, Applicant, Threshold'!$AD$40,'Assisted Units'!L197) ->  | AF197: =CONCATENATE('Project, Applicant, Threshold'!$AD$40,"0.35") -> 0.35
N198: =IF(J198="HOME",0,IFERROR(INDEX('Rent Limits'!$A$1:$I$1045,MATCH(AF198,'Rent Limits'!$A$1:$A$1045,0),MATCH(D198,'Rent Limits'!$A$1:$I$1,0)),0)) -> 0 | O198: 0 | P198: 0 | Q198: =IFERROR(INDEX('Rent Limits'!$J$1:$P$1045,MATCH(AE198,'Rent Limits'!$A$1:$A$1045,0),MATCH(E198,'Rent Limits'!$J$1:$P$1)),0) -> 0 | R198: 0 | S198: 0 | T198: 0 | U198: 0 | V198: 0 | W198: 0 | X198: 0 | Y198: 0 | Z198: 0 | AA198: No | AE198: =CONCATENATE('Project, Applicant, Threshold'!$AD$40,'Assisted Units'!L198) ->  | AF198: =CONCATENATE('Project, Applicant, Threshold'!$AD$40,"0.35") -> 0.35
N199: =IF(J199="HOME",0,IFERROR(INDEX('Rent Limits'!$A$1:$I$1045,MATCH(AF199,'Rent Limits'!$A$1:$A$1045,0),MATCH(D199,'Rent Limits'!$A$1:$I$1,0)),0)) -> 0 | O199: 0 | P199: 0 | Q199: =IFERROR(INDEX('Rent Limits'!$J$1:$P$1045,MATCH(AE199,'Rent Limits'!$A$1:$A$1045,0),MATCH(E199,'Rent Limits'!$J$1:$P$1)),0) -> 0 | R199: 0 | S199: 0 | T199: 0 | U199: 0 | V199: 0 | W199: 0 | X199: 0 | Y199: 0 | Z199: 0 | AA199: No | AE199: =CONCATENATE('Project, Applicant, Threshold'!$AD$40,'Assisted Units'!L199) ->  | AF199: =CONCATENATE('Project, Applicant, Threshold'!$AD$40,"0.35") -> 0.35
N200: =IF(J200="HOME",0,IFERROR(INDEX('Rent Limits'!$A$1:$I$1045,MATCH(AF200,'Rent Limits'!$A$1:$A$1045,0),MATCH(D200,'Rent Limits'!$A$1:$I$1,0)),0)) -> 0 | O200: 0 | P200: 0 | Q200: =IFERROR(INDEX('Rent Limits'!$J$1:$P$1045,MATCH(AE200,'Rent Limits'!$A$1:$A$1045,0),MATCH(E200,'Rent Limits'!$J$1:$P$1)),0) -> 0 | R200: 0 | S200: 0 | T200: 0 | U200: 0 | V200: 0 | W200: 0 | X200: 0 | Y200: 0 | Z200: 0 | AA200: No | AE200: =CONCATENATE('Project, Applicant, Threshold'!$AD$40,'Assisted Units'!L200) ->  | AF200: =CONCATENATE('Project, Applicant, Threshold'!$AD$40,"0.35") -> 0.35
... 80 more rows

Sheet Non Assisted Units
A1: Non-Assisted Units (enter manager units on 'Assisted Units' worksheet) | H1: ='PRP Cover Page'!B9 -> 2024-02-07
A2: (A) | C2: (B) | E2: (C) | F2: (D) | G2: (E) | H2: (F)
A3: Unit Size Number of Bedrooms (Use 0 for SRO or Studio apts) | C3: Number of Units (include all non-assisted manager units) | E3: Total Average Monthly Rent (include all non-assisted manager units in average) | F3: Total Annual Rent | G3: Total Annual Tenant Assistance Subsidies | H3: Total Annual Rental Revenue
A4: 0 | F4: =E4*C4*12 -> 0 | H4: =F4+G4 -> 0
A5: 1 | F5: 0 | H5: 0
A6: 2 | F6: 0 | H6: 0
A7: 3 | F7: 0 | H7: 0
A8: 4 | F8: 0 | H8: 0
A9: 5 | F9: 0 | H9: 0
A10: TOTALS | C10: =SUM(C4:D9) -> 0 | F10: =SUM(F4:F9) -> 0 | G10: =SUM(G4:G9) -> 0 | H10: =SUM(H4:H9) -> 0

Sheet Original Assisted Units table
A1: Original Assisted and New PRP Assisted Units from 'Assisted Units' worksheet | B1: HCD Unit Designation
A2: Original HCD RA Targeted Income Level | B2: (blank) | C2: Grand Total
A3: (blank)
A4: Grand Total

Sheet Proposed Assisted Units table
A1: Proposed Assisted Units from 'Assisted Units' worksheet | B1: HCD Unit Designation
A2: HCD New PRP RA Targeted AMI Level | B2: (blank) | C2: Grand Total
A3: (blank)
A4: Grand Total

Sheet Dev Budget
A1: ='PRP Cover Page'!B9 -> 2024-02-07 | B1: Residential Permanent Sources/Uses of Funds | J1: Commercial Sources/Uses
A2: Uses of Funds | B2: HCD PRP Rehab Loan | C2: Residential Source Name: | D2: Residential Source Name: | E2: Residential Source Name: | F2: Residential Source Name: | G2: Private mortgage financing | H2: Deferred costs | I2: Total Residential Sources/Costs | J2: Total Commercial Sources/Costs | K2: Commercial Source Name: | L2: Commercial Source Name:
A4: Project Development Costs
A5: LAND COST/ACQUISITION
A6: Land Cost or Value | I6: =SUM(B6:H6) -> 0 | J6: =K6+L6 -> 0
A7: Demolition | I7: =SUM(B7:H7) -> 0 | J7: =K7+L7 -> 0
A8: Legal | I8: =SUM(B8:H8) -> 0 | J8: 0
A9: Land Lease Rent Prepayment | I9: =SUM(B9:H9) -> 0 | J9: 0
A10: Total Land Cost or Value | B10: =SUM(B6:B9) -> 0 | C10: =SUM(C6:C9) -> 0 | D10: 0 | E10: 0 | F10: 0 | G10: 0 | H10: 0 | I10: 0 | J10: 0 | K10: =SUM(K6:K9) -> 0 | L10: 0
A11: Existing Improvements Cost or Value | I11: =SUM(B11:H11) -> 0 | J11: 0
A12: Off-Site Improvements | I12: =SUM(B12:H12) -> 0 | J12: 0
A13: Total Acquisition Cost | B13: =SUM(B11:B12) -> 0 | C13: =SUM(C11:C12) -> 0 | D13: 0 | E13: 0 | F13: 0 | G13: 0 | H13: 0 | I13: 0 | J13: 0 | K13: =SUM(K11:K12) -> 0 | L13: 0
A14: Total Land Cost / Acquisition Cost | B14: =SUM(B10+B13) -> 0 | C14: =SUM(C10+C13) -> 0 | D14: =SUM(D10+D13) -> 0 | E14: 0 | F14: 0 | G14: 0 | H14: 0 | I14: 0 | J14: 0 | K14: =SUM(K10+K13) -> 0 | L14: 0
A15: Predevelopment Interest/Holding Cost | I15: =SUM(B15:H15) -> 0 | J15: 0
A16: Assumed, Accrued Interest on Existing Debt (Rehab/Acq) | I16: =SUM(B16:H16) -> 0 | J16: 0
A17: Excess Purchase Price Over Appraisal | I17: =SUM(B17:H17) -> 0 | J17: 0
A18: REHABILITATION
A19: Site Work | I19: =SUM(B19:H19) -> 0 | J19: 0
A20: Structures | I20: 0 | J20: 0
A21: General Requirements | I21: 0 | J21: 0
A22: Contractor Overhead | I22: 0 | J22: 0
A23: Contractor Profit | I23: 0 | J23: 0
A24: Prevailing Wages | I24: 0 | J24: 0
A25: General Liability Insurance | I25: 0 | J25: 0
A26: Other Rehabilitation: (Specify) | I26: 0 | J26: 0
A27: Other Rehabilitation: (Specify) | I27: 0 | J27: 0
A28: Other Rehabilitation: (Specify) | I28: 0 | J28: 0
A29: Other Rehabilitation: (Specify) | I29: 0 | J29: 0
A30: Total Rehabilitation Costs | B30: =SUM(B19:B29) -> 0 | C30: =SUM(C19:C29) -> 0 | D30: =SUM(D19:D29) -> 0 | E30: 0 | F30: 0 | G30: 0 | H30: 0 | I30: 0 | J30: =SUM(J19:J29) -> 0 | K30: 0 | L30: 0
A31: Total Relocation Expenses | I31: =SUM(B31:H31) -> 0 | J31: 0
A32: NEW CONSTRUCTION
A33: Site Work | I33: =SUM(B33:H33) -> 0 | J33: =K33+L33 -> 0
A34: Structures | I34: 0 | J34: 0
A35: General Requirements | I35: 0 | J35: 0
A36: Contractor Overhead | I36: 0 | J36: 0
A37: Contractor Profit | I37: 0 | J37: 0
A38: Prevailing Wages | I38: 0 | J38: 0
A39: General Liability Insurance | I39: 0 | J39: 0
A40: Urban Greening | I40: 0 | J40: 0
A41: Other New Construction: (Specify) | I41: 0 | J41: 0
A42: Other New Construction: (Specify) | I42: 0 | J42: 0
A43: Other New Construction: (Specify) | I43: 0 | J43: 0
A44: Total New Construction Costs | B44: =SUM(B33:B43) -> 0 | C44: =SUM(C33:C43) -> 0 | D44: =SUM(D33:D43) -> 0 | E44: 0 | F44: 0 | G44: 0 | H44: 0 | I44: 0 | J44: 0 | K44: =SUM(K33:K43) -> 0 | L44: 0
A45: ARCHITECTURAL FEES
A46: Design | I46: =SUM(B46:H46) -> 0 | J46: =K46+L46 -> 0
A47: Supervision | I47: =SUM(B47:H47) -> 0 | J47: 0
A48: Total Architectural Costs | B48: =SUM(B45:B47) -> 0 | C48: =SUM(C45:C47) -> 0 | D48: =SUM(D45:D47) -> 0 | E48: 0 | F48: 0 | G48: 0 | H48: 0 | I48: 0 | J48: 0 | K48: =SUM(K45:K47) -> 0 | L48: 0
A49: Total Survey & Engineering | I49: =SUM(B49:H49) -> 0 | J49: 0
A50: CONSTRUCTION INTEREST & FEES
A51: Construction Loan Interest | I51: =SUM(B51:H51) -> 0 | J51: =K51+L51 -> 0
A52: Origination Fee | I52: 0 | J52: 0
A53: Credit Enhancement/Application Fee | I53: 0 | J53: 0
A54: Bond Premium | I54: 0 | J54: 0
A55: Cost of Issuance | I55: 0 | J55: 0
A56: Title & Recording | I56: 0 | J56: 0
A57: Taxes | I57: 0 | J57: 0
A58: Insurance | I58: 0 | J58: 0
A59: Employment Reporting | I59: 0 | J59: 0
A60: Other Construction Int. & Fees: (Specify) | I60: 0 | J60: 0
A61: Other Construction Int. & Fees: (Specify) | I61: 0 | J61: 0
A62: Other Construction Int. & Fees: (Specify) | I62: 0 | J62: 0
A63: Other Construction Int. & Fees: (Specify) | I63: 0 | J63: 0
A64: Total Construction Interest & Fees | B64: =SUM(B51:B63) -> 0 | C64: =SUM(C51:C63) -> 0 | D64: =SUM(D51:D63) -> 0 | E64: 0 | F64: 0 | G64: 0 | H64: 0 | I64: 0 | J64: 0 | K64: =SUM(K51:K63) -> 0 | L64: 0
A65: PERMANENT FINANCING
A66: Loan Origination Fee | I66: =SUM(B66:H66) -> 0 | J66: =K66+L66 -> 0
A67: Credit Enhancement/Application Fee | I67: 0 | J67: 0
A68: Title & Recording | I68: 0 | J68: 0
A69: Taxes | I69: 0 | J69: 0
A70: Insurance | I70: 0 | J70: 0
A71: Other Perm. Financing Costs: (Specify) | I71: 0 | J71: 0
A72: Other Perm. Financing Costs: (Specify) | I72: 0 | J72: 0
A73: Other Perm. Financing Costs: (Specify) | I73: 0 | J73: 0
A74: Other Perm. Financing Costs: (Specify) | I74: 0 | J74: 0
A75: Total Permanent Financing Costs | B75: =SUM(B66:B74) -> 0 | C75: =SUM(C66:C74) -> 0 | D75: 0 | E75: 0 | F75: 0 | G75: 0 | H75: 0 | I75: 0 | J75: 0 | K75: =SUM(K66:K74) -> 0 | L75: 0
A76: Subtotals Forward | B76: =SUM(B10+B13+B15+B16+B17+B30+B31+B44+B48+B49+B64+B75) -> 0 | C76: =SUM(C10+C13+C15+C16+C17+C30+C31+C44+C48+C49+C64+C75) -> 0 | D76: =SUM(D10+D13+D15+D16+D17+D30+D31+D44+D48+D49+D64+D75) -> 0 | E76: 0 | F76: 0 | G76: 0 | H76: 0 | I76: 0 | J76: =SUM(J10+J13+J15+J16+J17+J31+J44+J48+J49+J64+J75) -> 0 | K76: 0 | L76: 0
A77: LEGAL FEES
A78: Legal Paid by Applicant | I78: =SUM(B78:H78) -> 0 | J78: =K78+L78 -> 0
A79: Other Attorney Costs: (Specify) | I79: =SUM(B79:H79) -> 0 | J79: 0
A80: Other Attorney Costs: (Specify) | I80: =SUM(B80:H80) -> 0 | J80: 0
A81: Other Attorney Costs: (Specify) | I81: =SUM(B81:H81) -> 0 | J81: 0
A82: Total Attorney Costs | B82: =SUM(B77:B81) -> 0 | C82: =SUM(C77:C81) -> 0 | D82: =SUM(D77:D81) -> 0 | E82: 0 | F82: 0 | G82: 0 | H82: 0 | I82: 0 | J82: 0 | K82: 0 | L82: 0
A83: RESERVES
A84: Operating Reserve | I84: =SUM(B84:H84) -> 0 | J84: =K84+L84 -> 0
A85: Replacement Reserve | I85: 0 | J85: 0
A86: Transition Reserve | I86: 0 | J86: 0
A87: Rent Reserve | I87: 0 | J87: 0
A88: Other Reserve Costs: (Specify) | I88: 0 | J88: 0
A89: Other Reserve Costs: (Specify) | I89: 0 | J89: 0
A90: Other Reserve Costs: (Specify) | I90: 0 | J90: 0
A91: Total Reserve Costs | B91: =SUM(B84:B90) -> 0 | C91: =SUM(C84:C90) -> 0 | D91: 0 | E91: 0 | F91: 0 | G91: 0 | H91: 0 | I91: 0 | J91: 0 | K91: =SUM(K84:K90) -> 0 | L91: 0
A92: CONTINGENCY COSTS
A93: Construction Hard Cost Contingency | I93: =SUM(B93:H93) -> 0 | J93: =K93+L93 -> 0
A94: Soft Cost Contingency | I94: =SUM(B94:H94) -> 0 | J94: 0
A95: Total Contingency Costs | B95: =SUM(B93:B94) -> 0 | C95: =SUM(C93:C94) -> 0 | D95: 0 | E95: 0 | F95: 0 | G95: 0 | H95: 0 | I95: 0 | J95: 0 | K95: =SUM(K93:K94) -> 0 | L95: 0
A96: OTHER PROJECT COSTS
A97: TCAC App/Allocation/Monitoring Fees | I97: =SUM(B97:H97) -> 0 | J97: =K97+L97 -> 0
A98: Environmental Audit | I98: 0 | J98: 0
A99: Local Development Impact Fees | I99: 0 | J99: 0
A100: Permit Processing Fees | I100: 0 | J100: 0
A101: Capital Fees | I101: 0 | J101: 0
A102: Marketing | I102: 0 | J102: 0
A103: Furnishings | I103: 0 | J103: 0
A104: Market Study | I104: 0 | J104: 0
A105: Accounting/Reimbursable | I105: 0 | J105: 0
A106: Appraisal Costs | I106: 0 | J106: 0
A107: Other Costs: (Specify) | I107: 0 | J107: 0
A108: Other Costs: (Specify) | I108: 0 | J108: 0
A109: Other Costs: (Specify) | I109: 0 | J109: 0
A110: Other Costs: (Specify) | I110: 0 | J110: 0
A111: Other Costs: (Specify) | I111: 0 | J111: 0
A112: Other Costs: (Specify) | I112: 0 | J112: 0
A113: Total Other Costs | B113: =SUM(B97:B112) -> 0 | C113: =SUM(C97:C112) -> 0 | D113: =SUM(D97:D112) -> 0 | E113: 0 | F113: 0 | G113: 0 | H113: 0 | I113: 0 | J113: 0 | K113: =SUM(K97:K112) -> 0 | L113: 0
A114: SUBTOTAL PROJECT COST | B114: =SUM(B76+B82+B91+B95+B113) -> 0 | C114: =SUM(C76+C82+C91+C95+C113) -> 0 | D114: =SUM(D76+D82+D91+D95+D113) -> 0 | E114: 0 | F114: 0 | G114: 0 | H114: 0 | I114: 0 | J114: 0 | K114: =SUM(K76+K82+K91+K95+K113) -> 0 | L114: 0
A115: DEVELOPER COSTS
A116: Developer Overhead/Profit | I116: =SUM(B116:H116) -> 0 | J116: =K116+L116 -> 0
A117: Consultant/Processing Agent | I117: 0 | J117: 0
A118: Broker Fees Paid to a Related Party | I118: 0 | J118: 0
A119: Construction Oversight by Developer | I119: 0 | J119: 0
A120: Operating Reserve | I120: =SUM(B120:H120) -> 0 | J120: =K120+L120 -> 0
A121: Other Developer Costs: (Specify) | I121: 0 | J121: 0
A122: Total Developer Costs | B122: =SUM(B116:B121) -> 0 | C122: 0 | D122: 0 | E122: 0 | F122: 0 | G122: 0 | H122: 0 | I122: 0 | J122: 0 | K122: =SUM(K116:K121) -> 0 | L122: =SUM(L116:L121) -> 0
A123: Total Project Costs | B123: =SUM(B114+B122) -> 0 | C123: 0 | D123: 0 | E123: 0 | F123: 0 | G123: 0 | H123: 0 | I123: 0 | J123: =J114+J122 -> 0 | K123: =K114+K122 -> 0 | L123: =L114+L122 -> 0

Sheet Dev Sources
A1: Sources of Funds | P1: ='PRP Cover Page'!B9 -> 2024-02-07
A2: Construction Period Sources of Funds
A3: Funding Committed by Application Submittal Date? | C3: Source Name (listed in order of lien priority) | F3: Source Type | G3: Lien No. | H3: Residential Amount | I3: Commercial Amount | J3: Total Amount | K3: Interest Rate | L3: Required Payment | M3: Loan Term (months) | N3: *Details of Deferred Costs
N4: Amount | O4: Description
A5: 1 | J5: =H5+I5 -> 0
A6: 2 | J6: 0
A7: 3 | J7: 0
A8: 4 | J8: 0
A9: 5 | J9: 0
A10: 6 | J10: =H10+I10 -> 0
A11: 7 | J11: 0
A12: 8 | J12: 0
A13: 9 | C13: Deferred costs (detail at right) | H13: =N14 -> 0 | J13: 0
F14: Totals | H14: =SUM(H5:H13) -> 0 | I14: =SUM(I5:I13) -> 0 | J14: =SUM(J5:J13) -> 0 | N14: =SUM(N5:N13) -> 0
A16: Permanent Sources of Funds
A17: Funding Committed by Application Submittal Date? | C17: Source Name | F17: Source Type | G17: Lien No. | H17: Residential Funding Amount | I17: Commercial Funding Amount | J17: Total Amount | K17: Interest Rate | M17: Repayment Terms | O17: Required Residential Debt Service | P17: Required Commercial Debt Service
K18: Type | L18: Rate | M18: Type | N18: Due in (yrs)
A19: 1 | B19: Yes | C19: ='Dev Budget'!B2 -> HCD PRP Rehab Loan | F19: State-HCD | H19: ='Dev Budget'!B123 -> 0 | J19: =H19+I19 -> 0
A20: 2 | C20: ='Dev Budget'!C2 -> Residential Source Name: | H20: ='Dev Budget'!C123 -> 0 | J20: =H20+I20 -> 0
A21: 3 | C21: ='Dev Budget'!D2 -> Residential Source Name: | H21: ='Dev Budget'!D123 -> 0 | J21: =H21+I21 -> 0
A22: 4 | C22: ='Dev Budget'!E2 -> Residential Source Name: | H22: ='Dev Budget'!E123 -> 0 | J22: 0
A23: 5 | C23: ='Dev Budget'!F2 -> Residential Source Name: | H23: ='Dev Budget'!F123 -> 0 | J23: 0
A24: 6 | C24: ='Dev Budget'!G2 -> Private mortgage financing | H24: ='Dev Budget'!G123 -> 0 | J24: =H24+I24 -> 0
A25: 7 | C25: ='Dev Budget'!H2 -> Deferred costs | F25: Other | H25: ='Dev Budget'!H123 -> 0 | J25: 0
A26: 8 | C26: ='Dev Budget'!K2 -> Commercial Source Name: | I26: ='Dev Budget'!K123 -> 0 | J26: 0
A27: 9 | C27: ='Dev Budget'!L2 -> Commercial Source Name: | I27: ='Dev Budget'!L123 -> 0 | J27: 0
F28: Totals | H28: =SUM(H19:H27) -> 0 | I28: =SUM(I19:I27) -> 0 | J28: =SUM(J19:J27) -> 0 | M28: Totals | O28: =SUM(O19:O27) -> 0 | P28: =SUM(P19:P27) -> 0
A30: Current Project Debt (will not be paid off at perm close and is not paying for rehab costs)
A31: Lender Name | F31: Source Type | G31: Lien No. | H31: Prinicipal Payable (enter account balance within 60 days of app submittal) | J31: Interest Payable (enter account balance within 60 days of app submittal) | L31: Interest Rate | N31: Repayment Terms | P31: Required Debt Service
L32: Type | M32: Rate | N32: Type | O32: Due in (yrs)
A33: 1
A34: 2
A35: 3
A36: 4
F37: Totals | H37: =SUM(H33:H36) -> 0 | J37: =SUM(J33:J36) -> 0 | P37: =SUM(P33:P36) -> 0
A39: Applicant comments: Include a description of balloon payments and unusual or extraordinary circumstances.

Sheet TBL and High Cost Test (hidden)
A1: 2022 TCAC Threshold Basis Limit for HCD Developer Fee 2017 UMR §8312(c) & (b) and High Cost Test for HCD Limits on Development Costs 2017 UMR §8311(a) & (b) (revised 2/25/22) Complete all yellow shaded cells; see cell comments for tips | BA1: 1/31/22 | BB1: SRO & STUDIO 4% & 9 | BC1: 1 BEDROOM | BD1: 2 BEDROOMS | BE1: 3 BEDROOMS | BF1: 4+ BEDROOMS | BG1: SRO & STUDIO | BH1: 1 BEDROOM | BI1: 2 BEDROOMS | BJ1: 3 BEDROOMS | BK1: 4+ BEDROOMS
A2: Project Name: | F2: =IF('Project, Applicant, Threshold'!E38="","",'Project, Applicant, Threshold'!E38) ->  | Z2: County: | AC2: =IF('Project, Applicant, Threshold'!AD40="","",'Project, Applicant, Threshold'!AD40) ->  | AI2: HCD Phase: | AO2: Origination | BA2: ALAMEDA | BB2: 384234 | BC2: 443018 | BD2: 534400 | BE2: 684032 | BF2: 762054
A3: Rep Name: | BA3: ALPINE | BB3: 278972 | BC3: 321652 | BD3: 388000 | BE3: 496640 | BF3: 553288
A4: Unit Size | I4: =CONCATENATE(BA1," TCAC Threshold Basis Limits (TBL) ") -> 1/31/22 TCAC Threshold Basis Limits (TBL) | Y4: Number of Units | AO4: Basis x Number of Units | BA4: AMADOR | BB4: 278972 | BC4: 321652 | BD4: 388000 | BE4: 496640 | BF4: 553288
A5: SRO/Studio | I5: =IF($AC$2="","",VLOOKUP($AC$2,$BA$1:$BF$59,AX5)) ->  | Y5: =(COUNTIF(('Assisted Units'!$E$3:$E$278),0))+'Non Assisted Units'!#REF!+'Non Assisted Units'!C4 ->  | AO5: =IF(ISERROR((I5*Y5)),0,(I5*Y5)) -> 0 | AX5: 2 | AY5: 7 | BA5: BUTTE | BB5: 246186 | BC5: 283850 | BD5: 342400 | BE5: 438272 | BF5: 488262
A6: 1 Bedroom | I6: =IF($AC$2="","",VLOOKUP($AC$2,$BA$1:$BF$59,AX6)) ->  | Y6: =(COUNTIF(('Assisted Units'!$E$3:$E$278),1))+'Non Assisted Units'!C5 -> 0 | AO6: =IF(ISERROR((I6*Y6)),0,(I6*Y6)) -> 0 | AX6: =AX5+1 -> 3 | AY6: =AY5+1 -> 8 | BA6: CALAVERAS | BB6: 278972 | BC6: 321652 | BD6: 388000 | BE6: 496640 | BF6: 553288
A7: 2 Bedrooms | I7: =IF($AC$2="","",VLOOKUP($AC$2,$BA$1:$BF$59,AX7)) ->  | Y7: =(COUNTIF(('Assisted Units'!$E$3:$E$278),2))+'Non Assisted Units'!C6 -> 0 | AO7: =IF(ISERROR((I7*Y7)),0,(I7*Y7)) -> 0 | AX7: =AX6+1 -> 4 | AY7: =AY6+1 -> 9 | BA7: COLUSA | BB7: 278972 | BC7: 321652 | BD7: 388000 | BE7: 496640 | BF7: 553288
A8: 3 Bedrooms | I8: =IF($AC$2="","",VLOOKUP($AC$2,$BA$1:$BF$59,AX8)) ->  | Y8: =(COUNTIF(('Assisted Units'!$E$3:$E$278),3))+'Non Assisted Units'!C7 -> 0 | AO8: =IF(ISERROR((I8*Y8)),0,(I8*Y8)) -> 0 | AX8: 5 | AY8: =AY7+1 -> 10 | BA8: CONTRA COSTA | BB8: 384234 | BC8: 443018 | BD8: 534400 | BE8: 684032 | BF8: 762054
A9: 4+ Bedrooms | I9: =IF($AC$2="","",VLOOKUP($AC$2,$BA$1:$BF$59,AX9)) ->  | Y9: =(COUNTIF(('Assisted Units'!$E$3:$E$278),4))+'Non Assisted Units'!C8+(COUNTIF(('Assisted Units'!$E$3:$E$278),5))+'Non Assisted Units'!C9 -> 0 | AO9: =IF(ISERROR((I9*Y9)),0,(I9*Y9)) -> 0 | AX9: 6 | AY9: =AY8+1 -> 11 | BA9: DEL NORTE | BB9: 278972 | BC9: 321652 | BD9: 388000 | BE9: 496640 | BF9: 553288
A10: Number of Manager Units in Project: | T10: TOTAL UNITS: | Y10: =SUM(Y5:Y9) ->  | BA10: EL DORADO | BB10: 278397 | BC10: 320989 | BD10: 387200 | BE10: 495616 | BF10: 552147
A11: TOTAL UNADJUSTED THRESHOLD BASIS LIMIT (TBL): | AO11: =SUM(AO5:AO9) -> 0 | BA11: FRESNO | BB11: 238133 | BC11: 274565 | BD11: 331200 | BE11: 423936 | BF11: 472291
A12: TBL ADJUSTMENTS §10327(c)(5)(A-F): | AL12: Yes/No | BA12: GLENN | BB12: 278972 | BC12: 321652 | BD12: 388000 | BE12: 496640 | BF12: 553288
A13: (A) | B13: Project paid in whole or part out of public funds subject to a legal requirement for the payment of state or federal prevailing wages or financed in part by a labor-affiliated organization requiring the employment of construction workers who are paid at least state or federal prevailing wages. (20%) | AO13: =ROUND(IF(AL13="Yes",AO11*0.2,0),0) -> 0 | BA13: HUMBOLDT | BB13: 278972 | BC13: 321652 | BD13: 388000 | BE13: 496640 | BF13: 553288
BA14: IMPERIAL | BB14: 240434 | BC14: 277218 | BD14: 334400 | BE14: 428032 | BF14: 476854
B15: Project certifies that (1) they are subject to a project labor agreement within the meaning of §2500(b)(1) of the Public Contract Code, or (2) they will use a skilled and trained workforce as defined by §25536.7 of the Health and Safety Code to perform all onsite work within an apprenticeable occupation in the building and construction trades. (5%) | AO15: =ROUND(IF(AL15="Yes",AO11*0.05,0),0) -> 0 | BA15: INYO | BB15: 278972 | BC15: 321652 | BD15: 388000 | BE15: 496640 | BF15: 553288
BA16: KERN | BB16: 238133 | BC16: 274565 | BD16: 331200 | BE16: 423936 | BF16: 472291
B17: New construction project required to provide parking beneath residential units (not "tuck under" parking) or through construction of an on-site parking structure of two or more levels. (10%) | AO17: =ROUND(IF(AL17="Yes",AO11*0.1,0),0) -> 0 | BA17: KINGS | BB17: 238133 | BC17: 274565 | BD17: 331200 | BE17: 423936 | BF17: 472291
BA18: LAKE | BB18: 278972 | BC18: 321652 | BD18: 388000 | BE18: 496640 | BF18: 553288
B19: Project where a day care center is part of the development. (2%) | AO19: =ROUND(IF(AL19="Yes",AO11*0.02,0),0) -> 0 | BA19: LASSEN | BB19: 278972 | BC19: 321652 | BD19: 388000 | BE19: 496640 | BF19: 553288
B20: Project where 100 percent of the Low Income units are for Special Needs populations. (2%) | AO20: =ROUND(IF(AL20="Yes",AO11*0.02,0),0) -> 0 | BA20: LOS ANGELES | BB20: 341094 | BC20: 393278 | BD20: 474400 | BE20: 607232 | BF20: 676494
B21: Project where at least 95% of the project's upper floor units are serviced by an elevator. (10%) | AO21: =ROUND(IF(AL21="Yes",(AO11*0.1),0),0) -> 0 | BA21: MADERA | BB21: 238133 | BC21: 274565 | BD21: 331200 | BE21: 423936 | BF21: 472291
BA22: MARIN | BB22: 307732 | BC22: 354812 | BD22: 428000 | BE22: 547840 | BF22: 610328
B23: Project wherein at least 95% of the building(s) is constructed as Type I as defined in the California Building Code, in which case, the Type III 10% increase below is not allowed. (15%) | AO23: =ROUND(IF(AL23="Yes",(AO11*0.15),0),0) -> 0 | BA23: MARIPOSA | BB23: 278972 | BC23: 321652 | BD23: 388000 | BE23: 496640 | BF23: 553288
BA24: MENDOCINO | BB24: 278972 | BC24: 321652 | BD24: 388000 | BE24: 496640 | BF24: 553288
B25: Project wherein at least 95% of the building(s) is constructed as a Type III as defined in the California Building Code, or a Type III/Type I combination, in which case, the Type I 15% increase above is not allowed. (10%) | AO25: =IF(AL23="Yes",0,ROUND(IF(AL25="Yes",(AO11*0.1),0),0)) -> 0 | BA25: MERCED | BB25: 238133 | BC25: 274565 | BD25: 331200 | BE25: 423936 | BF25: 472291
BA26: MODOC | BB26: 278972 | BC26: 321652 | BD26: 388000 | BE26: 496640 | BF26: 553288
A27: (B) | B27: Project applying under §10325 or §10326 of these regulations that include one or more of the features below. (up to 10%) | AO27: =IF(SUM(AL29:AL46)>0.005,MIN(0.1,SUM(AL29:AL46))*AO11,0) -> 0 | BA27: MONO | BB27: 278972 | BC27: 321652 | BD27: 388000 | BE27: 496640 | BF27: 553288
BA28: MONTEREY | BB28: 311183 | BC28: 358791 | BD28: 432800 | BE28: 553984 | BF28: 617173
A29: Proposed energy efficiency/resource conservation/indoor air quality items | B29: (1) Project shall have onsite renewable generation estimated to produce 50% or more of annual tenant electricity use. If the combined available roof area of the Project structures, including carports, is insufficient for provision of 50% of annual electricity use, then the Project shall have onsite renewable generation based on at least 90% of the available solar accessible roof area. Available solar accessible area is defined as roof area less north facing roof area for sloped roofs, equipment, solar thermal hot water and required local or state fire department set-backs and access routes. A Project not availing itself of the 90% roof area exception may also receive an increase under paragraph (2) only if the renewable generation used to calculate each basis increase does not overlap. (5%) | BA29: NAPA | BB29: 307732 | BC29: 354812 | BD29: 428000 | BE29: 547840 | BF29: 610328
AL30: =IF(AL29="Yes",0.05,0) -> 0 | BA30: NEVADA | BB30: 278972 | BC30: 321652 | BD30: 388000 | BE30: 496640 | BF30: 553288
B31: (2) Project shall have onsite renewable generation estimated to produce 75% or more of annual common area electricity use. If the combined available roof area of the Project structures, including carports, is insufficient for provision of 75% of annual electricity use, then the Project shall have onsite renewable generation based on at least 90% of the available solar accessible roof area. Available solar accessible area is defined as roof area less north facing roof area for sloped roofs, equipment, solar thermal hot water and required local or state fire department set-backs and access routes. A Project not availing itself of the 90% roof area exception may also receive an increase under paragraph (1) only if the renewable generation used to calculate each basis increase does not overlap. (2%) | BA31: ORANGE | BB31: 308882 | BC31: 356138 | BD31: 429600 | BE31: 549888 | BF31: 612610
AL32: =IF(AL31="Yes",0.02,0) -> 0 | BA32: PLACER | BB32: 278397 | BC32: 320989 | BD32: 387200 | BE32: 495616 | BF32: 552147
B33: (3) Newly constructed Project buildings shall be 15% or more energy efficient than the 2016 Energy Efficiency Standards (California Code of Regulations, Part 6 of Title 24), except that if the local building department has determined that building permit applications submitted on or before December 31, 2016 are complete, then newly constructed Project buildings shall be fifteen percent (15%) or more energy efficient than the 2013 Energy Efficiency Standards (California Code of Regulations, Part 6 of Title 24). (4%) | BA33: PLUMAS | BB33: 278972 | BC33: 321652 | BD33: 388000 | BE33: 496640 | BF33: 553288
AL34: =IF(AL33="Yes",0.04,0) -> 0 | BA34: RIVERSIDE | BB34: 240434 | BC34: 277218 | BD34: 334400 | BE34: 428032 | BF34: 476854
B35: (4) Rehab Project buildings shall have 80% decrease in estimated TDV energy use (or improvement in energy efficiency) post rehab as demonstrated using the appropriate performance module of CEC software. (4%) | BA35: SACRAMENTO | BB35: 278397 | BC35: 320989 | BD35: 387200 | BE35: 495616 | BF35: 552147
AL36: =IF(AL35="Yes",0.04,0) -> 0 | BA36: SAN BENITO | BB36: 278972 | BC36: 321652 | BD36: 388000 | BE36: 496640 | BF36: 553288
B37: (5) Irrigate only with reclaimed water, greywater, or rainwater (excepting water used for Community Gardens) or irrigate with reclaimed water, grey water, or rainwater in an amount that annually equals or exceeds 20,000 gallons or 300 gallons per unit, whichever is less. (1%) | BA37: SAN BERNARDINO | BB37: 240434 | BC37: 277218 | BD37: 334400 | BE37: 428032 | BF37: 476854
AL38: =IF(AL37="Yes",0.01,0) -> 0 | BA38: SAN DIEGO | BB38: 268043 | BC38: 309051 | BD38: 372800 | BE38: 477184 | BF38: 531613
B39: (6) Community Gardens of at least 60 square feet per unit. Permanent site improvements that provide a viable growing space within the Project including solar access, fencing, watering systems, secure storage space for tools, and pedestrian access. (1%) | BA39: SAN FRANCISCO | BB39: 530910 | BC39: 612134 | BD39: 738400 | BE39: 945152 | BF39: 1052958
AL40: =IF(AL39="Yes",0.01,0) -> 0 | BA40: SAN JOAQUIN | BB40: 238133 | BC40: 274565 | BD40: 331200 | BE40: 423936 | BF40: 472291
B41: (7) Install bamboo, cork, salvaged or FSC-Certified wood, natural linoleum, natural rubber, or ceramic tile in all kitchens, living rooms, and bathrooms (where no VOC adhesives or backing is also used). (1%) | BA41: SAN LUIS OBISPO | BB41: 311183 | BC41: 358791 | BD41: 432800 | BE41: 553984 | BF41: 617173
AL42: =IF(AL41="Yes",0.01,0) -> 0 | BA42: SAN MATEO | BB42: 440028 | BC42: 507348 | BD42: 612000 | BE42: 783360 | BF42: 872712
B43: (8) Install bamboo, stained concrete, cork, salvaged or FSC-Certified wood, ceramic tile, or natural linoleum in all common areas. (2%) | BA43: SANTA BARBARA | BB43: 311183 | BC43: 358791 | BD43: 432800 | BE43: 553984 | BF43: 617173
AL44: =IF(AL43="Yes",0.02,0) -> 0 | BA44: SANTA CLARA | BB44: 440028 | BC44: 507348 | BD44: 612000 | BE44: 783360 | BF44: 872712
B45: (9) Meet all requirements of the U.S. Environmental Protection Agency Indoor Air Plus Program. (2%) | BA45: SANTA CRUZ | BB45: 311183 | BC45: 358791 | BD45: 432800 | BE45: 553984 | BF45: 617173
AL46: =IF(AL45="Yes",0.02,0) -> 0 | BA46: SHASTA | BB46: 246186 | BC46: 283850 | BD46: 342400 | BE46: 438272 | BF46: 488262
A47: (D) | B47: Project requires seismic upgrading of existing structures, and/or requires toxic or other environmental mitigation as certified by the Project architect/ engineer. (lesser of costs or 15% basis adjustment) | AO47: =IF(AL47="Yes",MIN(AG49,AO11*0.15),0) -> 0 | BA47: SIERRA | BB47: 278972 | BC47: 321652 | BD47: 388000 | BE47: 496640 | BF47: 553288
AL48: =IF(AL47="yes","Please Select Type of Work and Enter Cost:",0) -> 0 | BA48: SISKIYOU | BB48: 278972 | BC48: 321652 | BD48: 388000 | BE48: 496640 | BF48: 553288
B49: If Yes, select type of work: | U49: Enter Certified Costs of Work: | AG49: 0 | BA49: SOLANO | BB49: 307732 | BC49: 354812 | BD49: 428000 | BE49: 547840 | BF49: 610328
A50: (E) | B50: Local development impact fees required to be paid to local government entities. Certification from local entities assessing fees also required. WAIVED IMPACT FEES ARE INELIGIBLE. | AO50: 0 | BA50: SONOMA | BB50: 307732 | BC50: 354812 | BD50: 428000 | BE50: 547840 | BF50: 610328
AL51: =IF(AL50="yes","Please Enter Amount Above:",0) -> 0 | BA51: STANISLAUS | BB51: 238133 | BC51: 274565 | BD51: 331200 | BE51: 423936 | BF51: 472291
A52: (F) | B52: Projects within a county with an unadjusted 9% threshold basis limit for a 2-bedroom unit equal or less than $400,000 and within a census tract designated on the TCAC/HCD Opportunity Map as Highest or High Resource. (10%) | AL52: =IF(AND(F54="Yes",OR(AB54="Highest Resource",AB54="High Resource")),"Yes","No") -> No | AO52: =ROUND(IF(AND(F54="Yes",OR(AB54="High Resource",AB54="Highest Resource"),AL52="Yes"),AO11*0.1,0),0) -> 0 | BA52: SUTTER | BB52: 278397 | BC52: 320989 | BD52: 387200 | BE52: 495616 | BF52: 552147
AL53: =IF(F54="Yes","In yellow cells, enter Tract ID # and TCAC/HCD Opportunity Map Resource level","") ->  | BA53: TEHAMA | BB53: 278972 | BC53: 321652 | BD53: 388000 | BE53: 496640 | BF53: 553288
B54: County eligibility: | F54: =IFERROR(IF(VLOOKUP(AC2,BA1:BF59,AX7,FALSE)<=400000,"Yes","No"),"") ->  | H54: TCAC/HCD Opportunity Area Map Tract ID #: | V54: Opportunity Map Resource level: | BA54: TRINITY | BB54: 278972 | BC54: 321652 | BD54: 388000 | BE54: 496640 | BF54: 553288
A55: TOTAL HCD ADJ. THRESHOLD BASIS LIMIT: | AO55: =AO11+AO13+AO15+AO17+AO19+AO20+AO21+AO23+AO25+AO27+AO47+AO50+AO52 -> 0 | BA55: TULARE | BB55: 238133 | BC55: 274565 | BD55: 331200 | BE55: 423936 | BF55: 472291
A56: =IF(AO2="Perm Close","Adjusted Threshold Basis Limit multiplied by 170%:","Adjusted Threshold Basis Limit multiplied by 160%:") -> Adjusted Threshold Basis Limit multiplied by 160%: | AO56: =IF(AO2="Perm Close",AO55*1.7,AO55*1.6) -> 0 | BA56: TUOLUMNE | BB56: 278972 | BC56: 321652 | BD56: 388000 | BE56: 496640 | BF56: 553288
A57: =IF(G2="",CONCATENATE("HCD HIGH COST TEST RESULT: ",G2),CONCATENATE("HCD HIGH COST TEST RESULT FOR: ",G2)) -> HCD HIGH COST TEST RESULT: | AE57: =IF(AO55=0,0,AE58/AO55) -> 0 | BA57: VENTURA | BB57: 311183 | BC57: 358791 | BD57: 432800 | BE57: 553984 | BF57: 617173
A58: (j) | B58: Total Eligible Basis (Dev Budget T125) | AE58: ='Dev Budget'!#REF! ->  | AL58: =IF(AE58=0,"",IF(AE58<=AO56,"Costs Reasonable",IF(AO2="Perm Close","Costs too high > 170%","Costs too high > 160%"))) ->  | BA58: YOLO | BB58: 278397 | BC58: 320989 | BD58: 387200 | BE58: 495616 | BF58: 552147
BA59: YUBA | BB59: 278397 | BC59: 320989 | BD59: 387200 | BE59: 495616 | BF59: 552147

Sheet Max Rehab Loan
A1: PRP Rehabilitation Loan Amount - NOFA §G | AK1: ='PRP Cover Page'!B9 -> 2024-02-07
A2: PRP Rehab Loan Summary
A3: Max PRP Rehab Loan (lesser of NOFA maximum and Max PRP Rehab base loan plus PRP Boost) | K3: =MIN(G10,AI10+AI14) -> 0 | O3: Applicant requested amount as shown in the 'Dev Sources' worksheet cell H19 | X3: ='Dev Sources'!H19 -> 0 | AB3: Proposed HCD PRP Rehab loan (lesser of Max PRP and requested) | AI3: =MIN(K3,X3) -> 0
A5: PRP Rehab base loan amount
A6: File Name | D6: Relocation Plan | L6: If Project triggers State Relocation Assistance Law (Title 1, GC, Division 7, Chapter 16, commencing at §7260, and Title 25 CCR, Subchapter 1, Chapter 6, commencing at §6000.) upload a relocation plan including the estimated costs of relocation (include costs on 'Dev Budget' worksheet). If Project does not trigger Relocation Law, upload a narrative explanation. | AF6: Uploaded to HCD?
A7: Total units in the Project | M7: ='Assisted Units'!A279+'Non Assisted Units'!C10 -> 0 | O7: Assisted units in the Project | Z7: ='Assisted Units'!E279 -> 0
A8: Total Project Rehab costs from the "Dev Budget" worksheet cell I123 | Q8: ='Dev Budget'!I123 -> 0 | U8: Is Project a Residential Hotel MHP §7301(v)?
A9: Applicant's eligible set-aside NOFA §G(1) | J9: =IF('Project, Applicant, Threshold'!AK22="Yes","Foreclosed Project set-aside",IF(AG8="Yes","Residential Hotel set-aside",IF(AND(M7>4,M7<21,Q8>2500000),"Small Project set-aside; permitted to apply outside of set-aside",IF(AND(M7>4,M7<21),"Small Project set-aside","No qualifying set-aside")))) -> No qualifying set-aside | Z9: Set-aside Applicant is applying for? | AN9: =IF(OR(J9="Small Project set-aside; permitted to apply outside of set-aside",J9="Small Project set-aside"),"Small Project",IF(J9="Residential Hotel set-aside","Residential Hotel",IF(J9="Foreclosed Project set-aside","Foreclosed Project",IF(J9="No qualifying set-aside","None","")))) -> None
A10: Project's loan limit per NOFA | G10: =IF(AG9="Small Project",5000000,25000000) -> 25000000 | K10: per Assisted unit | O10: 250000 | R10: =Z7*O10 -> 0 | U10: Max PRP Rehab base loan: lesser of NOFA and Assisted unit limits | AI10: =MIN(G10,R10) -> 0
A12: PRP Rehab loan Boost based on High Costs NOFA §G(2)(c) | AI12: Boost Amount
A13: Project is eligible for additional funding boosts NOFA §G(2)(c)? If Yes, project may increase the allowable PRP rehab funding by entering the applicable high-costs below in the yellow shaded cells and uploading the required documentation. | AI13: =IF(G10=2500000,"No","Yes") -> Yes
A14: Max Boost (no more than two high-cost factors below can be used) | O14: Largest high-cost factor | T14: =LARGE(AN16:AN22, ROWS(A$7:A7)) -> 0 | W14: 2nd largest high-cost factor | AC14: =LARGE(AN16:AN22, ROWS(A$7:A8)) -> 0 | AF14: PRP Boost | AI14: =T14+AC14 -> 0
A16: 1. Temporary or permanent relocation of at least half of the tenant households? If Yes and relo plan has been uploaded, boost of 25% of relo costs, as indicated by an HCD approved plan. | Z16: Relocation costs | AE16: ='Dev Budget'!I31 -> 0 | AI16: =IF(OR(AI13="No",X16<>"Yes",AK6<>"Yes"),0,AE16*0.25) -> 0 | AN16: =AI16 -> 0
A17: File Name | D17: Relocation Plan | L17: Costs of relocation as identified in relocation plan (see row 6 above)
A18: 2. Elevator replacement or repair that represents 25% or more of the total hard construction costs, as indicated by an elevator study (boost of 25% of projected elevator costs)? | P18: Total hard construction costs | S18: ='Dev Budget'!I19+'Dev Budget'!I20+'Dev Budget'!I93 -> 0 | W18: Elevator costs as indicated by an elevator study | AE18: % of costs | AG18: =IFERROR(AA18/S18,0) -> 0 | AI18: =IF(AI13="No",0,IF(AG18>=0.25,AA18*0.25,0)) -> 0 | AN18: =AI18 -> 0
A19: File Name | D19: Elevator study | L19: Submit elevator repair or replacement study | AF19: Uploaded to HCD? | AN19: =AI20 -> 0
A20: 3. Seismic work required by an enforcement agency accounting for 25% or more of the total hard construction costs, as demonstrated to HCD’s satisfaction, by a third-party contractor, governmental agency, or other qualified third-party entity (boost of 25% of projected seismic costs)? | P20: Total hard construction costs | S20: ='Dev Budget'!I19+'Dev Budget'!I20+'Dev Budget'!I93 -> 0 | W20: Seismic costs required by an enforcement agency | AE20: % of costs | AG20: =IFERROR(AA20/S20,0) -> 0 | AI20: =IF(AI13="No",0,IF(AG20>=0.25,AA20*0.25,0)) -> 0 | AN20: =AI22 -> 0
A21: File Name | D21: Seismic work | L21: Submit description/documentation of seismic work required by an enforcement agency | AF21: Uploaded to HCD? | AN21: =AI24 -> 0
A22: 4. Structural work required by an enforcement agency that accounts for 25% or more of the total hard construction costs, as demonstrated to HCD’s satisfaction, by a third-party contractor, governmental agency, or other qualified third-party entity (boost of 25% of projected structural costs)? | P22: Total hard construction costs | S22: ='Dev Budget'!I19+'Dev Budget'!I20+'Dev Budget'!I93 -> 0 | W22: Structural costs required by an enforcement agency | AE22: % of costs | AG22: =IFERROR(AA22/S22,0) -> 0 | AI22: =IF(AI13="No",0,IF(AG22>=0.25,AA22*0.25,0)) -> 0 | AN22: =AI26 -> 0
A23: File Name | D23: Structural work | L23: Submit description/documentation of structural work required by an enforcement agency | AF23: Uploaded to HCD?
A24: 5. Required environmental remediation accounting for 25% or more of the total hard construction costs, as specified by a letter from a third-party environmental company (boost of 25% of projected environmental costs)? | P24: Total hard construction costs | S24: ='Dev Budget'!I19+'Dev Budget'!I20+'Dev Budget'!I93 -> 0 | W24: Environmental remediation costs as specified in an environmental company letter | AE24: % of costs | AG24: =IFERROR(AA24/S24,0) -> 0 | AI24: =IF(AI13="No",0,IF(AG24>=0.25,AA24*0.25,0)) -> 0
A25: File Name | D25: Environmental remediation | L25: Submit environmental work as specified in a letter from a third-party environmental company | AF25: Uploaded to HCD?
A26: 6. Accessibility modifications accounting for 25% or more of the total construction cost, as specified by an accessibility study performed by a Certified Access Specialist (boost of 25% of projected accessibility costs)? | P26: Total hard construction costs | S26: ='Dev Budget'!I19+'Dev Budget'!I20+'Dev Budget'!I93 -> 0 | W26: Accessibility modification costs as specified by an accessibility study | AE26: % of costs | AG26: =IFERROR(AA26/S26,0) -> 0 | AI26: =IF(AI13="No",0,IF(AG26>=0.25,AA26*0.25,0)) -> 0
A27: File Name | D27: Accessibility work | L27: Submit an accessibility study from a Certified Access Specialist | AF27: Uploaded to HCD?

Sheet PRP Developer Fee
A1: HCD PRP Developer Fee Calculator | I1: ='PRP Cover Page'!B9 -> 2024-02-07 | K1: Max Fee
A2: HCD maximum Developer Fee | H2: =MIN(K2,MAX(H10,H14,H16)) -> 0 | K2: 2200000
A3: Budgeted Developer Fee - from 'Dev Budget' worksheet cell I122 + J122 | H3: ='Dev Budget'!I122+'Dev Budget'!J122 -> 0
A4: Project's rehab costs (total construction less contractor profit and overhead) - from 'Dev Budget' worksheet cell I30 minus I22 and I23 | I4: ='Dev Budget'!I30-'Dev Budget'!I22-'Dev Budget'!I23 -> 0
A5: Number of units in Project including manager units | E5: ='Assisted Units'!A279+'Non Assisted Units'!C10 -> 0 | F5: Rehab work costs per unit | I5: =IFERROR(I4/E5,0) -> 0
A6: Developer Fee is auto-calculated below for Projects that are not group homes UMR §8312(a)h
A7: (1) Projects where contract for rehab work excluding contractor profit and overhead exceeds $44,000 per unit
B8: (A) First 30 units at: | D8: 32000 | E8: per unit | G8: =IF(I5>44000,IF(E5>29,D8*30,E5*D8),0) -> 0
B9: (B) Units in excess of 30 at: | D9: 12500 | E9: per unit | G9: =IF(I5>44000,IF(E5<30,0,(E5-30)*D9),0) -> 0
B10: Total Developer Fee for this subsection = (A) + (B) | H10: =G8+G9 -> 0
A11: (2) Projects where contract for rehab work excluding contractor profit and overhead is between $12,500 and $44,000 per unit
B12: (A) First 30 units at: | D12: 15000 | E12: per unit | G12: =IF(AND(I5<44001,I5>12499),IF(E5>29,D12*30,E5*D12),0) -> 0
B13: (B) Units in excess of 30 at: | D13: 6500 | E13: per unit | G13: =IF(AND(I5<41001,I5>11499),IF(E5<30,0,(E5-30)*D13),0) -> 0
B14: Total Developer Fee for this subsection = (A) + (B) | H14: =G12+G13 -> 0
A15: (3) All other projects
B16: Total Developer Fee for this subsection | D16: 2000 | E16: per unit | H16: =IF(I5<12500,E5*D16,0) -> 0

Sheet Supportive Services Costs
A1: Supportive Services Costs Limits (for costs paid from Project income) | AK1: ='PRP Cover Page'!B9 -> 2024-02-07 | AQ1: Fiscal Year | AR1: Chronic Homelessness | AS1: Special Needs Population | AT1: Supportiv Services | AU1: Other | AV1: Chronic Homelessness | AW1: Special Needs Population | AX1: Supportiv Services | AY1: Other
A2: HCD UMR §8301(t): “Supportive Services” - social, health, educational, income support and employment services and benefits, coordination of community building and educational activities, individualized needs assessment, and individualized assistance with obtaining services and benefits. | AQ2: 2017 | AR2: 4080 | AS2: 3060 | AT2: 1051 | AU2: 250
A3: HCD UMR §8301(u): “Supportive Services Costs” - the costs of providing tenants service coordination, case management, and direct resident and Supportive Services. It includes: (1) the cost of providing tenants with information on and referral to social, health, educational, income support and employment services and benefits, coordination of community building and educational activities, individualized needs assessment, and individualized assistance with obtaining services and benefits; (2) salaries, benefits, contracted services, telecommunication expenses, travel costs, supplies, office expenses, staff training, maintenance of on-site equipment used in services programs, such as computer labs, incidental costs related to resident events, and other similar costs approved by the Department. | AQ3: =+AQ2+1 -> 2018 | AR3: =ROUND(AR2*1.025,0) -> 4182 | AS3: =ROUND(AS2*1.025,0) -> 3137 | AT3: =ROUND(AT2*1.025,0) -> 1077 | AU3: =ROUND(AU2*1.025,0) -> 256 | AV3: 4182 | AW3: 3137 | AX3: 1077 | AY3: 256
AQ4: =+AQ3+1 -> 2019 | AR4: =ROUND(AR3*1.025,0) -> 4287 | AS4: 3215 | AT4: 1104 | AU4: 262 | AV4: =ROUND(AV3*1.035,0) -> 4328 | AW4: 3247 | AX4: 1115 | AY4: 265
A5: A. Supportive Services Units: | I5: Total number of units: | M5: ='Assisted Units'!A279+'Non Assisted Units'!C10 -> 0 | O5: Certification Year for allowable supportive services costs: | AA5: 2023 | AC5: Total Units | AE5: Max PUPY Expense | AH5: Max Costs | AQ5: =+AQ4+1 -> 2020 | AR5: 4394 | AS5: 3295 | AT5: 1132 | AU5: 269 | AV5: 4479 | AW5: 3361 | AX5: 1154 | AY5: 274
A6: (1) UMR §8314(e)(1): Total number of Supportive Housing (SH) units anticipated to be restricted to individuals or families experiencing chronic homelessness as defined consistent with Health and Safety Code (HSC) §50675.14. | AE6: =VLOOKUP($AA$5,$AQ$2:$AY$60,2,FALSE) -> 4732 | AH6: =IFERROR(AE6*AC6,"") -> 0 | AQ6: =+AQ5+1 -> 2021 | AR6: 4504 | AS6: 3377 | AT6: 1160 | AU6: 276 | AV6: 4636 | AW6: 3479 | AX6: 1194 | AY6: 284
A7: (2) UMR §8314(e)(2): Total number of Supportive Housing (SH) units (other than those restricted to individuals or families experiencing chronic homelessness pursuant to HSC §50675.14), PLUS the total number of units restricted to occupancy by Special Needs Populations* (SNP) under any HCD program. *§7301(r) of MHP Regs - SNP means "Disabled Households, agricultural workers, single-parent households, survivors of physical abuse, homeless persons or persons at risk of becoming homeless, chronically ill persons including those with HIV and mental illness, displaced teenage parents (or expectant teenage parents), homeless youth as defined in Gov. Code §11139.5, individuals exiting from institutional settings, chronic substance abusers, or other specific groups with unique housing needs as determined by HCD. SNP do not include seniors or the frail elderly unless they otherwise qualify as a SNP". Do not include units included in (1) above. | AE7: =VLOOKUP($AA$5,$AQ$2:$AY$60,3,FALSE) -> 3548 | AH7: =IFERROR(AE7*AC7,"") -> 0 | AQ7: 2022 | AR7: 4617 | AS7: 3461 | AT7: 1189 | AU7: 283 | AV7: 4798 | AW7: 3601 | AX7: 1236 | AY7: 294
A8: (3) UMR §8314(e)(3): Total number of units where the Sponsor, their affiliate, or a service provider under contract to provide Supportive Services at the Project has both: (A) qualified staff devoted exclusively to oversight and quality control of resident services in affordable housing, including the Project; and (B) a system to track and report on tenant outcomes, such as changes in employment status and income. Do not include units included in items (1) and (2) above. | AE8: =VLOOKUP($AA$5,$AQ$2:$AY$60,4,FALSE) -> 1219 | AH8: =IFERROR(AE8*AC8,"") -> 0 | AQ8: 2023 | AR8: 4732 | AS8: 3548 | AT8: 1219 | AU8: 290 | AV8: 4966 | AW8: 3727 | AX8: 1279 | AY8: 304
A9: (4) UMR §8314(e)(4): Total number of units anticipated to be offered Supportive Services provided by the Project Sponsor, a Sponsor affiliate, or contracted service provider that do not satisfy the criteria in items (1), (2) and (3) above. | AE9: =VLOOKUP($AA$5,$AQ$2:$AY$60,5,FALSE) -> 290 | AH9: =IFERROR(AE9*AC9,"") -> 0 | AQ9: 2024 | AR9: 4850 | AS9: 3637 | AT9: 1249 | AU9: 297 | AV9: 5140 | AW9: 3857 | AX9: 1324 | AY9: 315
A10: (5) Maximum Supportive Services Costs | AC10: =SUM(AC6:AD9) -> 0 | AH10: =SUM(AH6:AL9) -> 0 | AQ10: 2025 | AR10: 4971 | AS10: 3728 | AT10: 1280 | AU10: 304 | AV10: 5320 | AW10: 3992 | AX10: 1370 | AY10: 326
AQ11: 2026 | AR11: 5095 | AS11: 3821 | AT11: 1312 | AU11: 312 | AV11: 5506 | AW11: 4132 | AX11: 1418 | AY11: 337

Sheet Operating
A1: ='Project, Applicant, Threshold'!E38 -> 0
A2: ='Project, Applicant, Threshold'!AK1 -> 2024-02-07 | C2: Year 1 Annual Income and Expenses
A4: Employee Information | F4: Comments
A5: No. | B5: FTE | C5: Employee Job Title | D5: Salary/Wages | E5: Value of Free Rent
C6: On-Site Manager(s) | D6: 0 | E6: 0
C7: On-Site Assistant Manager(s) | D7: 0 | E7: 0
C8: Supportive Services Staff Supervisor(s) | D8: 0
C9: Supportive Services Coordinator, On-Site | D9: 0
C10: Other Supportive Services Staff (inc. Case Manager) | D10: 0
C11: On-Site Maintenance Employee(s) | D11: 0 | E11: 0
C12: On-Site Leasing Agent/Administrative Employee(s) | D12: 0 | E12: 0
C13: On-Site Security Employee(s) | D13: 0 | E13: 0
D14: 0 | E14: 0
D15: 0 | E15: 0
C16: Total Salaries and Value of Free Rent Units | D16: =SUM(D6:D15) -> 0 | E16: =SUM(E6:E15) -> 0
B17: 6711 | C17: Payroll Taxes | D17: 0 | E17: Show free rent as an
B18: 6722 | C18: Workers Compensation | D18: 0 | E18: expense? | H18: Count free rent as an
B19: 6723 | C19: Employee Benefits | D19: 0 | E19: Yes | H19: expense?
C20: Employee(s) Payroll Taxes, Workers Comp. & Benefits | D20: =SUM(D17:D19) -> 0 | H20: =IF(E19="Yes",1,0) -> 1
C21: Total Employee(s) Expenses | D21: =D20+D16 -> 0
A24: Employee Units
A25: Income Limit | C25: Job Title(s) of Employee(s) Living On-Site | D25: Unit Type (No. of bdrms.) | E25: Square Footage | G25: Income Limit | H25: Job Title(s) of Employee(s) Living On-Site
D26: 0 | E26: 0 | G26: 0.6 | H26: On-Site Manager(s)
D27: 0 | E27: 0 | G27: 0.55 | H27: On-Site Assistant Manager(s)
D28: 0 | E28: 0 | G28: 0.5 | H28: On-Site Maintenance Employee(s)
D29: Total Square Footage | E29: =SUM(E26:E28) -> 0 | G29: None | H29: On-Site Leasing Agent/Administrative Employee(s)
A30: Year 1 Annual Operating Budget | G30: Other | H30: On-Site Security Employee(s)
A31: Acct. No. | C31: Revenue - Income | D31: Residential | E31: Commercial | F31: Comments | H31: Services Coordinator
A32: 5120/5140 | C32: Rent Revenue - Gross Potential | E32: 0
C33: Assisted Unit Rents | D33: ='Assisted Units'!W280 -> 0
C34: Non-Assisted Unit Rents | D34: ='Non Assisted Units'!H10 -> 0
A35: 5121 | C35: Non Assisted Unit Subsidies | D35: ='Non Assisted Units'!G10 -> 0
C36: ='Assisted Units'!X2 -> Enter rent subsidy source #1 here & monthly amounts below | D36: ='Assisted Units'!X280 -> 0
C37: ='Assisted Units'!Y2 -> Enter rent subsidy source #2 here & monthly amounts below | D37: ='Assisted Units'!Y280 -> 0
C38: Operating Subsidies | D38: 0
C39: Other: (specify) | D39: 0 | E39: 0
A40: 5910 | C40: Laundry and Vending Revenue | D40: 0
A41: 5170 | C41: Garage and Parking Spaces | D41: 0 | E41: 0
A42: 5990 | C42: Miscellaneous Rent Revenue | D42: 0 | E42: 0
C43: Gross Potential Income (GPI) | D43: =SUM(D32:D42) -> 0 | E43: =SUM(E32:E42) -> 0
C45: Vacancy Rate: Restricted Units | D45: 0.05
C46: Vacancy Rate: Unrestricted Units | D46: 0.05
C47: Vacancy Rate: Tenant Assistance Payments | D47: 0.05
C48: ="Vacancy Rate: " & C39 -> Vacancy Rate: Other: (specify) | D48: 0.05
C49: Vacancy Rate: Laundry & Vending & Other Income | D49: 0.05
C50: Vacancy Rate: Commercial Income | E50: 0.5
A51: 5220/5240 | C51: Vacancy Loss(es) | D51: =(D33*D45)+(D34*D46)+((D36+D37)*D47)+(D39*D48)+((D40+D41+D42)*D49) -> 0 | E51: =+E43*E50 -> 0
C52: Effective Gross Income (EGI) | D52: =+D43-D51 -> 0 | E52: =+E43-E51 -> 0
A53: Acct. No. | C53: Expenses | D53: Residential | E53: Commercial | F53: Comments
C55: Administrative Expenses: 6200/6300
A56: 6203 | C56: Conventions and Meetings | D56: 0 | E56: 0
A57: 6210 | C57: Advertising and Marketing | D57: 0 | E57: 0
A58: 6250 | C58: Other Renting Expenses | D58: 0 | E58: 0
A59: 6310 | C59: Office/Administrative Salaries -- from above | D59: =D12 -> 0 | E59: 0
A60: 6311 | C60: Office Expenses | D60: 0 | E60: 0
A61: 6312 | C61: Office or Model Apartment Rent | D61: 0 | E61: 0
A62: 6320 | C62: Management Fee | D62: 0 | E62: 0
A63: 6330 | C63: Site/Resident Manager(s) Salaries -- from above | D63: =D6+D7 -> 0 | E63: 0
A64: 6331 | C64: Administrative Free Rent Unit -- from above | D64: =IF(H20=1,E6+E7+E12,0) -> 0 | E64: 0
A65: 6340 | C65: Legal Expense -- Project | D65: 0 | E65: 0
A66: 6350 | C66: Audit Expense | D66: 0 | E66: 0
A67: 6351 | C67: Bookkeeping Fees/Accounting Services | D67: 0 | E67: 0
A68: 6390 | C68: Miscellaneous Administrative Expenses | D68: 0 | E68: 0
A69: 6263T | C69: Total Administrative Expenses | D69: =SUM(D56:D68) -> 0 | E69: =SUM(E56:E68) -> 0
A70: Acct. No. | C70: Expenses | D70: Residential | E70: Commercial | F70: Comments
C71: Utilities Expenses: 6400
A72: 6450 | C72: Electricity | D72: 0 | E72: 0
A73: 6451 | C73: Water | D73: 0 | E73: 0
A74: 6452 | C74: Gas | D74: 0 | E74: 0
A75: 6453 | C75: Sewer | D75: 0 | E75: 0
C76: Other Utilities: (specify) | D76: 0 | E76: 0
A77: 6400T | C77: Total Utilities Expenses | D77: =SUM(D72:D76) -> 0 | E77: =SUM(E72:E76) -> 0
C78: Operating and Maintenane Expenses: 6500 | F78: Comments
A79: 6510 | C79: Payroll -- from above | D79: =D11+D13+D14+D15 -> 0 | E79: 0
A80: 6515 | C80: Supplies | D80: 0 | E80: 0
A81: 6520 | C81: Contracts | D81: 0 | E81: 0
A82: 6521 | C82: Operating & Maintenance Free Rent Unit -- from above | D82: =IF(H20=1,E11+E14+E15,0) -> 0 | E82: 0
A83: 6525 | C83: Garbage and Trash Removal | D83: 0 | E83: 0
A84: 6530 | C84: Security Contract | D84: 0 | E84: 0
A85: 6531 | C85: Security Free Rent Unit -- from above | D85: =IF(H20=1,E13,0) -> 0 | E85: 0
A86: 6546 | C86: Heating/Cooling Repairs and Maintenance | D86: 0 | E86: 0
A87: 6548 | C87: Snow Removal | D87: 0 | E87: 0
A88: 6570 | C88: Vehicle & Maintenance Equipment Operation/Reports | D88: 0 | E88: 0
A89: 6590 | C89: Miscellaneous Operating and Maintenance Expenses | D89: 0 | E89: 0
A90: 6500T | C90: Total Operating & Maintenance Expenses | D90: =SUM(D79:D89) -> 0 | E90: =SUM(E79:E89) -> 0
C91: Taxes and Insurance: 6700 | F91: Comments
A92: 6710 | C92: Real Estate Taxes | D92: 0 | E92: 0
A93: 6711 | C93: Payroll Taxes (Project's Share) -- from above | D93: =D17 -> 0 | E93: 0
A94: 6720 | C94: Property and Liability Insurance (Hazard) | D94: 0 | E94: 0
A95: 6729 | C95: Other Insurance (e.g. Earthquake) | D95: 0 | E95: 0
A96: 6721 | C96: Fidelity Bond Insurance | D96: 0 | E96: 0
A97: 6722 | C97: Worker's Compensation -- from above | D97: =D18 -> 0 | E97: 0
A98: 6723 | C98: Health Insurance/Other Employee Benefits--from above | D98: =D19 -> 0 | E98: 0
A99: 6790 | C99: Miscellaneous Taxes, Licenses, Permits & Insurance | D99: 0 | E99: 0
A100: 6700T | C100: Total Taxes and Insurance | D100: =SUM(D92:D99) -> 0 | E100: =SUM(E92:E99) -> 0
C101: Supportive Services (SS) Costs (paid from Project income): 6900 | F101: Comments | G101: Max allowed
A102: 6990 | C102: Staff Supervisor(s) Salaries - from above | D102: =D8 -> 0 | E102: 0 | G102: =(D103+D104)*0.1 -> 0
A103: 6990 | C103: Services Coordinator Salaries, On-Site - from above | D103: =D9 -> 0 | E103: 0
A104: 6990 | C104: Other Supportive Services Staff Salaries - from above | D104: =D10 -> 0 | E104: 0
A105: 6990 | C105: Supportive Services Admin Overhead | D105: 0 | E105: 0 | G105: =SUM(D102:D107)*0.15 -> 0
A106: 6990 | C106: SS Costs not paid by third party: (specify) | D106: 0 | E106: 0
A107: 6990 | C107: SS Costs not paid by third party: (specify) | D107: 0 | E107: 0
A108: 6900T | C108: Total Supportive Services Costs | D108: =SUM(D102:D107) -> 0 | E108: =SUM(E102:E107) -> 0 | G108: ='Supportive Services Costs'!AH10 -> 0
C110: Total Operating Expenses | D110: =D69+D77+D90+D100+D108 -> 0 | E110: =E69+E77+E90+E100+E108 -> 0 | F110: Comments
C111: Funded Reserves: 7200 | D111: Residential | E111: Commercial
A112: 7210 | C112: HCD Req. Replacement Reserves UMR 8309(b)(2) | D112: =Reserves!AI6 -> 0 | E112: 0
A113: 7220 | C113: HCD Req. Operating Reserves - UMR 8308(f) | D113: 0 | E113: 0
A114: 7230 | C114: Other Reserves: (specify) | D114: 0 | E114: 0
A115: 7240 | C115: Other Reserves: (specify) | D115: 0 | E115: 0
C116: Total Reserves | D116: =SUM(D112:D115) -> 0 | E116: =SUM(E112:E115) -> 0
C117: Ground Lease | D117: Residential | E117: Commercial
C118: Ground Lease | D118: 0 | E118: 0
C119: Total Ground Lease | D119: =SUM(D118:D118) -> 0 | E119: =SUM(E118:E118) -> 0
C120: Net Operating Income | D120: =D52-D110-D116-D119 -> 0 | E120: =E52-E110-E116-E119 -> 0
C122: Financial Expenses: 6800 | F122: Comments
A123: 6820 | C123: 1st Mortgage Debt Service | D123: 0 | E123: 0
A124: 6830 | C124: 2nd Mortgage Debt Service | D124: 0 | E124: 0
A125: 6840 | C125: 3rd Mortgage Debt Service | D125: 0 | E125: 0
A126: 6890 | C126: HCD PRP Monitoring Fee - see NOFA §II(G)(5) | D126: =0.0042*'Dev Sources'!J19 -> 0
A127: 6890 | C127: Misc. Financial Expenses: (specify) | D127: 0 | E127: 0
A128: 6890 | C128: Misc. Financial Expenses: (specify) | D128: 0 | E128: 0
A129: 6890 | C129: Misc. Financial Expenses: (specify) | D129: 0 | E129: 0
A130: 6800T | C130: Total Financial Expenses | D130: =SUM(D123:D129) -> 0 | E130: =SUM(E123:E129) -> 0
C131: Cash Flow | D131: =+D120-D130 -> 0 | E131: =+E120-E130 -> 0
A133: 7190 | C133: Asset Management/Similar Fees UMR §8314(e) | D133: 0 | E133: 0
D134: Per Year | E134: Per Month
A135: Total Operating Expenses Per Unit
A136: Without any Adjustments | D136: =IFERROR(D110/('Assisted Units'!A279+'Non Assisted Units'!C10),0) -> 0 | E136: =+D136/12 -> 0
A137: Without RE Taxes, Social Services Coordinator or Social Services/Social Programs and With the Value of Rent Fee Units Included | D137: =IFERROR((IF(H20=1,+((E16+D110)-(D92+D108))/('Assisted Units'!A279+'Non Assisted Units'!C10),(D110-(D92+D108))/('Assisted Units'!A279+'Non Assisted Units'!C10))),0) -> 0 | E137: =+D137/12 -> 0

Sheet Reserves
A1: HCD Reserve Requirements (all reserve withdrawals will require prior HCD approval) | AK1: ='PRP Cover Page'!B9 -> 2024-02-07
A2: Replacement Reserve Calculator UMR §8309
A3: (a) | B3: Total Number of Project Units: | J3: ='Assisted Units'!A279+'Non Assisted Units'!C10 -> 0
A4: (b) | B4: PRP per unit per year: | AE4: 500 | AI4: =$J$3*AE4 -> 0
A5: (c) | B5: Third-party physical condition assessment (PCA) per unit amount per year (post rehab) | V5: PCA per unit amount (if available): | AI5: =$J$3*AE5 -> 0
A6: (d) | B6: HCD Required Replacement Reserve Amount = (b): | AI6: =AI4 -> 0
A7: Operating Reserve Calculator UMR §8308 | X7: Will Project rehab funding include tax credits:
A8: 1 | B8: Total Operating Expenses (including Property Taxes and excluding Supportive Service Coordinator salary): | AI8: =Operating!D110-Operating!D103 -> 0
A9: 2 | B9: Replacement Reserve amount (from above): | AI9: =AI6 -> 0
A10: 3 | B10: Mandatory Permanent Debt Service (enter lender name below):
A11: (a) | B11: 1st Mortgage Debt Service | AI11: =Operating!D123+Operating!E123 -> 0
A12: (b) | B12: 2nd Mortgage Debt Service | AI12: =Operating!D124+Operating!E124 -> 0
A13: (c) | B13: 3rd Mortgage Debt Service | AI13: =Operating!D125+Operating!E125 -> 0
A14: (d) | B14: HCD PRP Monitoring Fee | AI14: =Operating!D126+Operating!E126 -> 0
B15: Total Annual Mandatory Debt Service: | AI15: =SUM(AI11:AL14) -> 0
A16: 4 | B16: HCD Required Operating Reserve Amount (3 months if Project rehab funding includes tax credits; otherwise 4 months): | AI16: =IF(AI7="Yes",(AI8+AI9+AI15)/12*3,(AI8+AI9+AI15)/12*4) -> 0
A17: If Reserve amounts are different than the required amount, enter reserve amounts and how they are calculated below:
A20: Current Reserve Accounts and Account Balances (balance must be within 60 days of application submittal)
B21: Name of Current Project Reserve Account | O21: Entity requiring the Reserve Account | AE21: Account Balance | AI21: Account Balance Date
A22: 1
A23: File Name | C23: =IF(B22="","Not Applicable",B22) -> Not Applicable | O23: =IF(B22="","","Copy of Bank Statement showing "&B22&" balance of "&TEXT(AE22,"$#,##0")&" as of "&TEXT(AI22,"mm/dd/yy")) ->  | AE23: Uploaded to HCD?
A24: 2
A25: File Name | C25: =IF(B24="","Not Applicable",B24) -> Not Applicable | O25: =IF(B24="","","Copy of Bank Statement showing "&B24&" balance of "&TEXT(AE24,"$#,##0")&" as of "&TEXT(AI24,"mm/dd/yy")) ->  | AE25: Uploaded to HCD?
A26: 3
A27: File Name | C27: =IF(B26="","Not Applicable",B26) -> Not Applicable | O27: =IF(B26="","","Copy of Bank Statement showing "&B26&" balance of "&TEXT(AE26,"$#,##0")&" as of "&TEXT(AI26,"mm/dd/yy")) ->  | AE27: Uploaded to HCD?
A28: 4
A29: File Name | C29: =IF(B28="","Not Applicable",B28) -> Not Applicable | O29: =IF(B28="","","Copy of Bank Statement showing "&B28&" balance of "&TEXT(AE28,"$#,##0")&" as of "&TEXT(AI28,"mm/dd/yy")) ->  | AE29: Uploaded to HCD?
A30: 5
A31: File Name | C31: =IF(B30="","Not Applicable",B30) -> Not Applicable | O31: =IF(B30="","","Copy of Bank Statement showing "&B30&" balance of "&TEXT(AE30,"$#,##0")&" as of "&TEXT(AI30,"mm/dd/yy")) ->  | AE31: Uploaded to HCD?
A32: 6
A33: File Name | C33: =IF(B32="","Not Applicable",B32) -> Not Applicable | O33: =IF(B32="","","Copy of Bank Statement showing "&B32&" balance of "&TEXT(AE32,"$#,##0")&" as of "&TEXT(AI32,"mm/dd/yy")) ->  | AE33: Uploaded to HCD?
A34: 7
A35: File Name | C35: =IF(B34="","Not Applicable",B34) -> Not Applicable | O35: =IF(B34="","","Copy of Bank Statement showing "&B34&" balance of "&TEXT(AE34,"$#,##0")&" as of "&TEXT(AI34,"mm/dd/yy")) ->  | AE35: Uploaded to HCD?

Sheet Cash Flow
A1: Cash Flow | R1: ='PRP Cover Page'!B9 -> 2024-02-07
A2: Income From Housing Units | C2: Inflation | D2: Year 1 | E2: Year 2 | F2: Year 3 | G2: Year 4 | H2: Year 5 | I2: Year 6 | J2: Year 7 | K2: Year 8 | L2: Year 9 | M2: Year 10 | N2: Year 11 | O2: Year 12 | P2: Year 13 | Q2: Year 14 | R2: Year 15
A3: Assisted Unit Rents | C3: 0.025 | D3: =Operating!D33 -> 0 | E3: =D3*(1+$C$3) -> 0 | F3: 0 | G3: 0 | H3: 0 | I3: 0 | J3: 0 | K3: 0 | L3: 0 | M3: 0 | N3: =M3*(1+$C$3) -> 0 | O3: =N3*(1+$C$3) -> 0 | P3: =O3*(1+$C$3) -> 0 | Q3: =P3*(1+$C$3) -> 0 | R3: =Q3*(1+$C$3) -> 0
A4: Non-Assisted Unit Rents | C4: 0.025 | D4: =Operating!D34 -> 0 | E4: =D4*(1+$C$4) -> 0 | F4: 0 | G4: 0 | H4: 0 | I4: 0 | J4: 0 | K4: 0 | L4: 0 | M4: 0 | N4: =M4*(1+$C$4) -> 0 | O4: =N4*(1+$C$4) -> 0 | P4: =O4*(1+$C$4) -> 0 | Q4: =P4*(1+$C$4) -> 0 | R4: =Q4*(1+$C$4) -> 0
A5: Non Assisted Unit Subsidies | C5: 0.025 | D5: =Operating!D35 -> 0 | E5: =D5*(1+$C$6) -> 0 | F5: =E5*(1+$C$6) -> 0 | G5: =F5*(1+$C$6) -> 0 | H5: =G5*(1+$C$6) -> 0 | I5: =H5*(1+$C$6) -> 0 | J5: =I5*(1+$C$6) -> 0 | K5: =J5*(1+$C$6) -> 0 | L5: =K5*(1+$C$6) -> 0 | M5: =L5*(1+$C$6) -> 0 | N5: =M5*(1+$C$6) -> 0 | O5: =N5*(1+$C$6) -> 0 | P5: =O5*(1+$C$6) -> 0 | Q5: =P5*(1+$C$6) -> 0 | R5: =Q5*(1+$C$6) -> 0
A6: =Operating!C36 -> Enter rent subsidy source #1 here & monthly amounts below | C6: 0.025 | D6: =Operating!D36 -> 0 | E6: =D6*(1+$C$6) -> 0 | F6: =E6*(1+$C$6) -> 0 | G6: =F6*(1+$C$6) -> 0 | H6: 0 | I6: 0 | J6: 0 | K6: 0 | L6: 0 | M6: 0 | N6: 0 | O6: 0 | P6: 0 | Q6: 0 | R6: 0
A7: =Operating!C37 -> Enter rent subsidy source #2 here & monthly amounts below | C7: 0.025 | D7: =Operating!D37 -> 0 | E7: =D7*(1+$C$7) -> 0 | F7: 0 | G7: 0 | H7: 0 | I7: 0 | J7: 0 | K7: 0 | L7: 0 | M7: 0 | N7: =M7*(1+$C$7) -> 0 | O7: =N7*(1+$C$7) -> 0 | P7: =O7*(1+$C$7) -> 0 | Q7: =P7*(1+$C$7) -> 0 | R7: =Q7*(1+$C$7) -> 0
A8: =Operating!C38 -> Operating Subsidies | C8: 0.02 | D8: =Operating!D38 -> 0 | E8: =D8*(1+$C$8) -> 0 | F8: 0 | G8: 0 | H8: 0 | I8: 0 | J8: 0 | K8: 0 | L8: 0 | M8: 0 | N8: =M8*(1+$C$8) -> 0 | O8: =N8*(1+$C$8) -> 0 | P8: =O8*(1+$C$8) -> 0 | Q8: =P8*(1+$C$8) -> 0 | R8: =Q8*(1+$C$8) -> 0
A9: =Operating!C39 -> Other: (specify) | C9: =C6 -> 0.025 | D9: =Operating!D39 -> 0 | E9: =D9*(1+$C$9) -> 0 | F9: =E9*(1+$C$9) -> 0 | G9: 0 | H9: 0 | I9: 0 | J9: 0 | K9: 0 | L9: 0 | M9: 0 | N9: 0 | O9: 0 | P9: 0 | Q9: 0 | R9: 0
A10: Gross Potential Income - Housing | D10: =SUM(D3:D9) -> 0 | E10: 0 | F10: 0 | G10: 0 | H10: 0 | I10: 0 | J10: 0 | K10: 0 | L10: 0 | M10: 0 | N10: =SUM(N3:N9) -> 0 | O10: 0 | P10: 0 | Q10: 0 | R10: 0
A12: Other Income
A13: Laundry & Vending | C13: 0.025 | D13: =Operating!D40 -> 0 | E13: =D13*(1+$C$13) -> 0 | F13: 0 | G13: 0 | H13: 0 | I13: 0 | J13: 0 | K13: 0 | L13: 0 | M13: 0 | N13: =M13*(1+$C$13) -> 0 | O13: =N13*(1+$C$13) -> 0 | P13: =O13*(1+$C$13) -> 0 | Q13: =P13*(1+$C$13) -> 0 | R13: =Q13*(1+$C$13) -> 0
A14: Other Income | C14: 0.025 | D14: =Operating!D41+Operating!D42 -> 0 | E14: =D14*(1+$C$14) -> 0 | F14: 0 | G14: 0 | H14: 0 | I14: 0 | J14: 0 | K14: 0 | L14: 0 | M14: 0 | N14: =M14*(1+$C$14) -> 0 | O14: =N14*(1+$C$14) -> 0 | P14: =O14*(1+$C$14) -> 0 | Q14: =P14*(1+$C$14) -> 0 | R14: =Q14*(1+$C$14) -> 0
A15: Commercial Income | C15: 0.025 | D15: =Operating!E43 -> 0 | E15: =D15*(1+$C$15) -> 0 | F15: 0 | G15: 0 | H15: 0 | I15: 0 | J15: 0 | K15: 0 | L15: 0 | M15: 0 | N15: =M15*(1+$C$15) -> 0 | O15: =N15*(1+$C$15) -> 0 | P15: =O15*(1+$C$15) -> 0 | Q15: =P15*(1+$C$15) -> 0 | R15: =Q15*(1+$C$15) -> 0
A16: Gross Potential Income - Other | D16: =SUM(D13:D15) -> 0 | E16: 0 | F16: 0 | G16: 0 | H16: 0 | I16: 0 | J16: 0 | K16: 0 | L16: 0 | M16: 0 | N16: =SUM(N13:N15) -> 0 | O16: 0 | P16: 0 | Q16: 0 | R16: 0
A18: Gross Potential Income - Total | D18: =D10+D16 -> 0 | E18: 0 | F18: 0 | G18: 0 | H18: 0 | I18: 0 | J18: 0 | K18: 0 | L18: 0 | M18: 0 | N18: =N10+N16 -> 0 | O18: 0 | P18: 0 | Q18: 0 | R18: 0
A20: Vacancy Assumptions
A21: Restricted Units | C21: =Operating!D45 -> 0.05 | D21: =$C21*D3 -> 0 | E21: =$C21*E3 -> 0 | F21: 0 | G21: 0 | H21: 0 | I21: 0 | J21: 0 | K21: 0 | L21: 0 | M21: 0 | N21: =$C21*N3 -> 0 | O21: 0 | P21: 0 | Q21: 0 | R21: 0
A22: Unrestricted Units | C22: =Operating!D46 -> 0.05 | D22: =$C22*D4 -> 0 | E22: 0 | F22: 0 | G22: 0 | H22: 0 | I22: 0 | J22: 0 | K22: 0 | L22: 0 | M22: 0 | N22: =$C22*N4 -> 0 | O22: 0 | P22: 0 | Q22: 0 | R22: 0
A23: Tenant Assistance Payments | C23: =Operating!D47 -> 0.05 | D23: =$C23*(D6+D7) -> 0 | E23: =$C23*(E6+E7) -> 0 | F23: 0 | G23: 0 | H23: 0 | I23: 0 | J23: 0 | K23: 0 | L23: 0 | M23: 0 | N23: =$C23*(N6+N7) -> 0 | O23: 0 | P23: 0 | Q23: 0 | R23: 0
A24: =Operating!C39 -> Other: (specify) | C24: =Operating!D48 -> 0.05 | D24: =$C24*D9 -> 0 | E24: =$C24*E9 -> 0 | F24: 0 | G24: 0 | H24: 0 | I24: 0 | J24: 0 | K24: 0 | L24: 0 | M24: 0 | N24: =$C24*N9 -> 0 | O24: 0 | P24: 0 | Q24: 0 | R24: 0
A25: Laundry/Vending/Other Income | C25: =Operating!D49 -> 0.05 | D25: =$C25*(D13+D14) -> 0 | E25: =$C25*(E13+E14) -> 0 | F25: 0 | G25: 0 | H25: 0 | I25: 0 | J25: 0 | K25: 0 | L25: 0 | M25: 0 | N25: =$C25*(N13+N14) -> 0 | O25: 0 | P25: 0 | Q25: 0 | R25: 0
A26: Commercial Income | C26: =Operating!E50 -> 0.5 | D26: =$C26*D15 -> 0 | E26: =$C26*E15 -> 0 | F26: 0 | G26: 0 | H26: 0 | I26: 0 | J26: 0 | K26: 0 | L26: 0 | M26: 0 | N26: =$C26*N15 -> 0 | O26: 0 | P26: 0 | Q26: 0 | R26: 0
A27: Total Vacancy Loss | D27: =SUM(D21:D26) -> 0 | E27: =SUM(E21:E26) -> 0 | F27: 0 | G27: 0 | H27: 0 | I27: 0 | J27: 0 | K27: 0 | L27: 0 | M27: 0 | N27: =SUM(N21:N26) -> 0 | O27: 0 | P27: 0 | Q27: 0 | R27: 0
A29: Effective Gross Income | D29: =D18-D27 -> 0 | E29: 0 | F29: 0 | G29: 0 | H29: 0 | I29: 0 | J29: 0 | K29: 0 | L29: 0 | M29: 0 | N29: =N18-N27 -> 0 | O29: 0 | P29: 0 | Q29: 0 | R29: 0
A31: Operating Expenses & Reserve Deposits
A32: Residential Exp. (w/o Real Estate Taxes & Sup. Services) | C32: 0.035 | D32: =Operating!D110-Operating!D92-Operating!D108 -> 0 | E32: =(1+$C$32)*D32 -> 0 | F32: 0 | G32: 0 | H32: 0 | I32: 0 | J32: 0 | K32: 0 | L32: 0 | M32: 0 | N32: =(1+$C$32)*M32 -> 0 | O32: =(1+$C$32)*N32 -> 0 | P32: =(1+$C$32)*O32 -> 0 | Q32: =(1+$C$32)*P32 -> 0 | R32: =(1+$C$32)*Q32 -> 0
A33: Real Estate Taxes | C33: 0.02 | D33: =Operating!D92 -> 0 | E33: =(1+$C$33)*D33 -> 0 | F33: 0 | G33: 0 | H33: 0 | I33: 0 | J33: 0 | K33: 0 | L33: 0 | M33: 0 | N33: =(1+$C$33)*M33 -> 0 | O33: =(1+$C$33)*N33 -> 0 | P33: =(1+$C$33)*O33 -> 0 | Q33: =(1+$C$33)*P33 -> 0 | R33: =(1+$C$33)*Q33 -> 0
A34: Supportive Services Costs | C34: 0.025 | D34: =Operating!D108 -> 0 | E34: =(1+$C$34)*D34 -> 0 | F34: 0 | G34: 0 | H34: 0 | I34: 0 | J34: 0 | K34: 0 | L34: 0 | M34: 0 | N34: =(1+$C$34)*M34 -> 0 | O34: =(1+$C$34)*N34 -> 0 | P34: =(1+$C$34)*O34 -> 0 | Q34: =(1+$C$34)*P34 -> 0 | R34: =(1+$C$34)*Q34 -> 0
A35: HCD Req. Replacement Reserves | D35: =Operating!D112+Operating!E112 -> 0 | E35: =D35 -> 0 | F35: =E35 -> 0 | G35: 0 | H35: 0 | I35: 0 | J35: 0 | K35: 0 | L35: 0 | M35: 0 | N35: 0 | O35: 0 | P35: 0 | Q35: 0 | R35: 0
A36: HCD Req. Op. Reserves UMR 8308(f) | D36: =Operating!D113+Operating!E113 -> 0 | E36: =(1+$C$36)*D36 -> 0 | F36: =(1+$C$36)*E36 -> 0 | G36: 0 | H36: 0 | I36: 0
A37: Other Reserves | C37: 0 | D37: =Operating!D114+Operating!D115+Operating!E114+Operating!E115 -> 0 | E37: =(1+$C$37)*D37 -> 0 | F37: 0 | G37: 0 | H37: 0 | I37: 0 | J37: 0 | K37: 0 | L37: 0 | M37: 0 | N37: =(1+$C$37)*M37 -> 0 | O37: =(1+$C$37)*N37 -> 0 | P37: =(1+$C$37)*O37 -> 0 | Q37: =(1+$C$37)*P37 -> 0 | R37: =(1+$C$37)*Q37 -> 0
A38: Ground Lease | C38: 0.02 | D38: =Operating!D118+Operating!E118 -> 0 | E38: =(1+$C$38)*D38 -> 0 | F38: 0 | G38: 0 | H38: 0 | I38: 0 | J38: 0 | K38: 0 | L38: 0 | M38: 0 | N38: =(1+$C$38)*M38 -> 0 | O38: =(1+$C$38)*N38 -> 0 | P38: =(1+$C$38)*O38 -> 0 | Q38: =(1+$C$38)*P38 -> 0 | R38: =(1+$C$38)*Q38 -> 0
A39: Commercial Expenses | C39: 0.035 | D39: =Operating!E110 -> 0 | E39: =(1+$C$39)*D39 -> 0 | F39: 0 | G39: 0 | H39: 0 | I39: 0 | J39: 0 | K39: 0 | L39: 0 | M39: 0 | N39: =(1+$C$39)*M39 -> 0 | O39: =(1+$C$39)*N39 -> 0 | P39: =(1+$C$39)*O39 -> 0 | Q39: =(1+$C$39)*P39 -> 0 | R39: =(1+$C$39)*Q39 -> 0
A40: Total Expenses & Reserves | D40: =SUM(D32:D39) -> 0 | E40: 0 | F40: 0 | G40: 0 | H40: 0 | I40: 0 | J40: 0 | K40: 0 | L40: 0 | M40: 0 | N40: =SUM(N32:N39) -> 0 | O40: 0 | P40: 0 | Q40: 0 | R40: 0
A42: Net Operating Income | D42: =D29-D40 -> 0 | E42: 0 | F42: 0 | G42: 0 | H42: 0 | I42: 0 | J42: 0 | K42: 0 | L42: 0 | M42: 0 | N42: =N29-N40 -> 0 | O42: 0 | P42: 0 | Q42: 0 | R42: 0
A44: Debt Service
A45: 1st Mortgage | D45: =Operating!D123+Operating!E123 -> 0 | E45: =$D$45 -> 0 | F45: 0 | G45: 0 | H45: 0 | I45: 0 | J45: 0 | K45: 0 | L45: 0 | M45: 0 | N45: 0 | O45: 0 | P45: 0 | Q45: 0 | R45: 0
A46: Bridge Loan (repaid from Investor equity) | D46: 0 | E46: 0 | F46: 0 | G46: 0 | H46: 0
A47: 2nd Mortgage | D47: =Operating!D124+Operating!E124 -> 0 | E47: =$D$47 -> 0 | F47: 0 | G47: 0 | H47: 0 | I47: 0 | J47: 0 | K47: 0 | L47: 0 | M47: 0 | N47: 0 | O47: 0 | P47: 0 | Q47: 0 | R47: 0
A48: 3rd Mortgage Debt Service | D48: =Operating!D125+Operating!E125 -> 0 | E48: =$D$48 -> 0 | F48: 0 | G48: 0 | H48: 0 | I48: 0 | J48: 0 | K48: 0 | L48: 0 | M48: 0 | N48: 0 | O48: 0 | P48: 0 | Q48: 0 | R48: 0
